Workbook

Sheet Config (hidden)
B2: Configuration | G2: DO NOT MOVE ANY CELL VALUES OR INSERT ANY ROWS OR COLUMNS
B3: Drop down values | K3: Adjustment Factors | O3: Show worksheet tabs | X3: Home screen | Z3: Tab Hide & Protect
B4: State | C4: ID | E4: Status | G4: Yes/No | I4: Required / Optional | K4: Home page ROR Adj % | M4: Home page Inf. Adj % | Z4: Page / Tab Name | AA4: Hide Tab | AB4: Protect | AC4: Very Hidden
B5: Alabama | C5: AL | E5: Married | G5: Y | I5: Required | K5: 0.0005 | M5: 0.0005 | O5: FALSE | X5: Home | Z5: Home | AA5: N | AB5: Y
B6: Alaska | C6: AK | E6: Single | G6: N | I6: Optional | X6: Welcome | Z6: Individuals | AA6: N | AB6: Y
B7: Arizona | C7: AZ | U7: Password | V7: retire | Z7: Assets | AA7: N | AB7: Y
B8: Arkansas | C8: AR | E8: Tab Retire column mapping to VB module CalcualateDiff field name | U8: This will become the password to un-protect tabs | Z8: Investments | AA8: Y | AB8: Y
B9: California | C9: CA | E9: Retire tab column for Mthy Dif Budget v Net | J9: Y | K9: diffCol | O9: TaxRateReturnTab | P9: ImportMsg | U9: If blank a default of "retire" will be used. | Z9: Budget | AA9: N | AB9: Y
B10: Colorado | C10: CO | E10: Retire tab column for Necessary Withdrawal | J10: U | K10: withCol | Z10: Income | AA10: N | AB10: Y
B11: Connecticut | C11: CT | E11: Retire tab column for RMD additional | J11: AM | K11: rmdShortCol | O11: Used to determine if the Press the Calculator message should be shown. | Z11: TaxRates | AA11: Y | AB11: Y | AC11: Y
B12: DC | C12: DC | E12: Retire tab RMD budget amt | J12: AO | K12: budgetAdjCol | O12: Show msg | R12: Check Cell | U12: Version | V12: 1.1.0 | Z12: Housing | AA12: Y | AB12: Y | AC12: Y
B13: Delaware | C13: DE | E13: Retire tab Effective Tax Rate | J13: Q | O13: Budget | P13: 106595 | Q13: FALSE | R13: I5 | Z13: Med-Insur | AA13: Y | AB13: Y | AC13: Y
B14: Florida | C14: FL | E14: Retire tab Reinvested RMD | J14: AZ | O14: Income | P14: 39379.7862 | Q14: FALSE | R14: AQ15 | Z14: Vehicle | AA14: Y | AB14: Y | AC14: Y
B15: Georgia | C15: GA | O15: Assets | P15: 1076000 | Q15: FALSE | R15: F4 | Z15: Retire | AA15: N | AB15: Y
B16: Hawaii | C16: HI | O16: Retire | P16: 0 | Q16: FALSE | R16: AD6 | U16: Zoom % | V16: 125 | Z16: Rental | AA16: Y | AB16: Y | AC16: Y
B17: Idaho | C17: ID | E17: Retire column Before tax withdrawal | J17: BH | K17: beforeCol | O17: Tax rates | P17: 2276501.74 | Q17: FALSE | R17: K5 | Z17: Useful Info | AA17: N | AB17: Y
B18: Illinois | C18: IL | E18: Retire column After tax withdrawal | J18: BB | K18: afterCol | O18: Housing | P18: 1013.15 | Q18: TRUE | R18: N24 | Z18: RMD | AA18: Y | AB18: Y | AC18: Y
B19: Indiana | C19: IN | E19: Retire column Before tax balance | J19: BF | K19: beforeBalCol | Z19: TaxTables | AA19: Y | AB19: Y | AC19: Y
B20: Iowa | C20: IA | E20: Retire column After tax balance | J20: BD | K20: afterBalCol | Z20: SS Estimator | AA20: Y | AB20: Y | AC20: Y
B21: Kansas | C21: KS | O21: Rental | P21: 0 | Q21: FALSE | R21: M33 | Z21: Welcome | AA21: N | AB21: Y
B22: Kentucky | C22: KY | O22: Individual | P22: SingleLouisiana | Q22: FALSE | R22: D28 | Z22: Config | AA22: Y | AB22: Y | AC22: Y
B23: Louisiana | C23: LA | E23: Version | Z23: HomeChart | AA23: Y | AB23: Y | AC23: Y
B24: Maine | C24: ME | E24: Version 1.2.0 | Z24: COLACPI | AA24: Y | AB24: Y | AC24: Y
B25: Maryland | C25: MD | Z25: LifeTables | AA25: Y | AB25: Y | AC25: Y
B26: Massachusetts | C26: MA | Z26: RMDTable | AA26: Y | AB26: Y | AC26: Y
B27: Michigan | C27: MI | Z27: IRMAA | AA27: Y | AB27: Y | AC27: Y
B28: Minnesota | C28: MN | F28: Lvl = | G28: Message levels: I - Info, W - Warn, E - Error | Z28: Export | AA28: Y | AB28: Y | AC28: Y
B29: Mississippi | C29: MS | E29: Checklist report messages | Z29: EData | AA29: Y | AB29: N | AC29: Y
B30: Missouri | C30: MO | E30: Rule # | F30: Lvl | G30: Messages for Checklist report | X30: Message | Z30: Scenarios | AA30: Y | AB30: Y | AC30: Y
B31: Montana | C31: MT | E31: 1 | F31: I | G31: R.01 -Tax rate tables are not in use while an override rate is defined. Review TaxRates tab, field "Override". | X31: Calc rate | Z31: Calculators | AA31: Y | AB31: Y | AC31: Y
B32: Nebraska | C32: NE | E32: 2 | F32: W | G32: R.02 - Retirement inflation rate is one or more percent above the last ten year average inflation rate. Review Retire tab, field "Inflation Rate %". | X32: 1.8 | Z32: Notes | AA32: Y | AB32: Y | AC32: Y
B33: Nevada | C33: NV | E33: 3 | F33: W | G33: R.03 - Retirement inflation rate is one or more percent below the last ten year average inflation rate. Review Retire tab, field "Inflation Rate %". | Z33: ImportMsg | AA33: Y | AB33: Y | AC33: Y
B34: New Hampshire | C34: NH | E34: 4 | F34: W | G34: R.04 -Monthly housing cost after sale of house should not be zero. Review Housing tab, field "Estimated monthly housing cost after sale of house". | Z34: Overview | AA34: N | AB34: Y
B35: New Jersey | C35: NJ | E35: 5 | F35: I | G35: R.05 - RMD (Required Minimum Distribution) has happened for one or more years. Total amount of funds re-deposited into After tax: | X35: 943824 | Z35: Settings | AA35: Y | AB35: Y | AC35: Y
B36: New Mexico | C36: NM | E36: 6 | F36: I | G36: R.06 - No errors or warnings found.
B37: New York | C37: NY | E37: 7 | F37: I | G37: R.07 - All Investments are indicated as After Tax. Review Assets tab, fields "Investment Type"
B38: North Carolina | C38: NC | E38: 8 | F38: I | G38: R.08 - County tax rate table has been defined and will be used. Review TaxRates tab, fields "County" tax rate table.
B39: North Dakota | C39: ND | E39: 9 | F39: I | G39: R.09 - City tax rate table has been defined and will be used. Review TaxRates tab, fields "City" tax rate tables.
B40: Ohio | C40: OH | E40: 10 | F40: W | G40: R.10 - No Individual 2 defined but income for Id-2 is defined. Review Income tab, field "Monthly Amount".
B41: Oklahoma | C41: OK | E41: 11 | F41: W | G41: R.11 - No Individual 2 defined but medical insurance costs for Id-2 is defined. Review Med-Insur tab, field "Individual 2, Amount".
B42: Oregon | C42: OR | E42: 12 | F42: W | G42: R.12 - No Individual 2 defined but tax status of Married is defined. Review TaxRate tab, field "Status".
B43: Pennsylvania | C43: PA | E43: 13 | F43: W | G43: R.13 - No Individual 2 defined but one or more investments are defined as Individual 2 assets. Review Assets tab, field "Investment Owner".
B44: Rhode Island | C44: RI | E44: 14 | F44: W | G44: R.14 - Income my cause IRMAA adjustments on Medicare costs. Review future year adjusted incomes with the most current IRMAA rates. Information regarding IRMAA can be found in the Useful Info tab.
B45: South Carolina | C45: SC | E45: 15 | F45: W | G45: R.15 - Income my cause IRMAA adjustments on Medicare costs. Review current year adjusted incomes with the most current IRMAA rates. Information regarding IRMAA can be found in the Useful Info tab.
B46: South Dakota | C46: SD | E46: 16 | F46: W | G46: R.16 - Medicare IRMAA will impact your Medicare medical costs. Be sure to review your Med-Insur budget values in accordance with the most current IRMAA rates.
B47: Tennessee | C47: TN | E47: 17 | F47: I | G47: R.17 - There is a COLA adjustment but no income defined for one or more incomes. Review Income tab, fields "COLA / Adj. & Monthly Amount".
B48: Texas | C48: TX | E48: 18 | F48: W | G48: R.18 - Individual 2 is defined but tax status of Single is defined. Review Individuals tab Income Tax field "Status".
B49: Utah | C49: UT | E49: 19 | F49: I | G49: R.19 - There is no COLA adjustment for one or more incomes. Review Income tab, fields "COLA / Adj.".
B50: Vermont | C50: VT | E50: 20 | F50: I | G50: R.20 - One or more incomes are defined with zero percent income tax. Review Income tab, fields "% Taxable".
B51: Virginia | C51: VA | E51: 21 | F51: W | G51: R.21 - There is no income defined. Typically there should be Social Security or equivalent income. Review Income tab, fields "Monthly Amount".
B52: Washington | C52: WA | E52: 22 | F52: I | G52: R.22 - There is no current house value yet there is a mortgage.
B53: West Virginia | C53: WV | E53: 23 | F53: E | G53: R.23 - Less than 10 years information in Dept. of Labor Consumer Price Index data. Unable to perform Inflation checklist rules. Review Useful Info tab - COLA & CPI report.
B54: Wisconsin | C54: WI | E54: 24 | F54: W | G54: R.24 - Income tax rate formulas are not currently matching the selected filing status and state. Press the 'Update tax tables' button on the "Individuals" tab to resolve the issue.
B55: Wyoming | C55: WY | E55: 25 | F55: I | G55: R.25 - Second year withdrawal amount is significantly different from year one. Does start income have correct dates. Does Budget have defined adjustements. Ensure income and budget variances are correct.
E56: 26
E57: 27
E58: 28
E59: 29
E60: 30

Sheet Welcome
C2: Retirement Planner
A3: Home | C3: Done by DaveW (DbyDW)
C4: =Config!E24 -> Version 1.2.0
C7: You've got to plan for retirement?
C8: Planning for retirement shouldn't be dreaded and avoided. The most often asked question regarding retirement is "will the money last". Retirement Planner software helps to answer that and other questions. Whether you are early or late in the planning process it needs to be done. The statement "failing to plan is planning to fail" is just as applicable to retirement as it is to other aspects of life. This software can be used to create a forty-year retirement plan. Many events and aspects of life will impact the quality of retirement. What the future holds for one in retirement is unknown. Yet, one can be prepared and educated about the challenges and opportunities of retirement. A knowledgeable and sound retirement plan will help now and in the future. Though this software is titled Retirement Planner it can and has been used to assist with making financial decisions for decades before retirement.
C11: Retirement Planner does not provide any investment strategies or track historical performance of investments. This software is not intended to replace the value of professional financial advice.
C14: Plan for the future not the past
C15: This software is designed to plan for the future and not track the past. The plan is always created with a current or going forward timeframe. When using this software and entering the target retirement year it must either be the current year or a future year. A target retirement start year prior to this year is not supported and cannot be entered. Even if you retired one or more years in the past the software uses the current year as the starting year for planning purposes.
C16: Points of control
C18: Retirement Planner provides three points of control and adjustment along with the financial data entered to create a plan. These points of control are 1) Retirement Year, 2) Average Rate of Return, and 3) Annual Inflation Rate. These controls are associated with Individuals, Income, and Expenses. Retirement Planner allows increasing or decreasing these points of control to understand the effects on the retirement plan. In real life some of these factors can be controlled. At other times these factors are out of our control.
B24: Next steps
C26: Go to the Overview tab to access the documentation link and sample data and scenarios. It is recommended to view the documentation web site for information in understanding and using Retirement Planner.
G31: Retirement Planner - Copyright 2017-2022 David A. Weilert Permission is hereby granted, free of charge, to any person obtaining a copy of this software and associated documentation files (the "Software"), to deal in the Software without restriction, including without limitation the rights to use, copy, modify, merge, publish, distribute, sublicense, and/or sell copies of the Software, and to permit persons to whom the Software is furnished to do so, subject to the following conditions: The above copyright notice and this permission notice shall be included in all copies or substantial portions of the Software. THE SOFTWARE IS PROVIDED "AS IS", WITHOUT WARRANTY OF ANY KIND, EXPRESS OR IMPLIED, INCLUDING BUT NOT LIMITED TO THE WARRANTIES OF MERCHANTABILITY, FITNESS FOR A PARTICULAR PURPOSE AND NONINFRINGEMENT. IN NO EVENT SHALL THE AUTHORS OR COPYRIGHT HOLDERS BE LIABLE FOR ANY CLAIM, DAMAGES OR OTHER LIABILITY, WHETHER IN AN ACTION OF CONTRACT, TORT OR OTHERWISE, ARISING FROM, OUT OF OR IN CONNECTION WITH THE SOFTWARE OR THE USE OR OTHER DEALINGS IN THE SOFTWARE. Microsoft Excel (r) is copyrighted by Microsoft (c) and is not freely distributed or included by this notice.

Sheet Overview
C2: Retirement Planner
A3: Home | C3: Done by DaveW (DbyDW)
C4: =Config!E24 -> Version 1.2.0
C6: Documentation
C8: Detailed information for Retirement Planner is available at the following web site and not provided in this spreadsheet. Clicking the link will open the documentation web site.
C12: Learning to use The four following scenarios are provided with sample data that can be loaded by pressing the associated Scenario button. When loading a scenario all existing data will be over-written. The data can be modified as desired to evaluate, experiment, and learn how to use Retirement Planner. By exploring these scenarios and reviewing the suggested actions you will gain familiarity with the software to aid in creating a retirement plan. Click the scenario button to load the associated data.
C14: Sally & Jon, married in their 50's. They have moderate investments, both are working and contribute to 401Ks. They have a mortgage on their home along with two car payments. They are planning to retire in the next 10-15 years. | F14: Molly, single and in her 30's. Molly has a small saving account and contributes to a tax deferred saving. She rents and has a car payment. Molly lives in a city where there is a 1% city tax on all income. | I14: Aly & Ari, married in their early 70's. They have significant savings with income from Social Security, pensions, and rental income. They are planning to down-size and sell their house in 2030 and sell the rental property in 2035. | L14: Jason, single in his early 60's. Jason has small savings with income from Social Security and disability benefits He rents and has no vehicle payment. He plans on buying a vehicle in the next two years. A single line-item amount is used all of the budget.
C16: Action: Review Investment Balance column on the Retire tab. In the 2062 timeframe monies are not large enough to cover withdrawal needs. When generating the plan a message is displayed that calculations are stopped once this condition occurs. | F16: Action: The current Rate of return is 7%. From the Home tab or Retire tab change the Annual Rate-of-Return and/or the Annual Inflation Rate. What reduction in monies will happen if the Rate of Return is reduced to 5%? | I16: Action: IRS Required Minimum Distribution (RMD) supplemental withdrawals have occured in multiple years. Review the RMD Adj. column of the Retire tab. Notice the cells with dark grey background with an upper-case Y. These are the years that RMD supplemental monies were withdrawn. Click the 'eye' icon in the heading of the column to view details. | L16: Action: Review the Income tab, click the eyeball icon to view the detail data. Note the $25,000 of supplemental income in the second year. This is an expected inheiritance.
C17: Action: Review the Selling House seciton of the Housing tab. The Housing tab is accessed from Housing sections of the Assets or Budget tabs. The house is planned to be sold in 2050. Try changing the year sold and generating a new plan to review the impact of this change. | F17: Action: The current target year to retire is 2052. How much longer will monies be extended if retirement is delayed four years? From the Home tab or Retire tab change the Retirement Year and create an updated plan. | I17: Action: From the Home tab select and view the Retirement Financials chart. Note the 2030 and 2035 years when the house and rental properties are sold. Lines on the chart for the properties drop and the line for After tax is increased for each year. | L17: Action: Review the Retire tab, and notice the message indicating income exceeded budget needs in one or more years. This is the result of the $25,000 of supplemental income in the second year.
C18: Action: Generate the Checklist Report from the Home tab. Issue R.18 is identified on the report. On the Individuals tab note the tax filing status of SINGLE is used. Change this to MARRIED on the Individual tab and create an updated plan. It is important to ensure the proper tax information is selected. | F18: Action: Molly lives in a city where there is a 1% city tax on all income. From either the Individuals tab or the Income tab click the pencil icon to open the TaxRates tab. In the upper right-hand portion of the tab is where this City tax is defined. | I18: Action: From the Home tab select and view the Checklist report. Issue R.14 has occurred indicating the IRMAA (Income Related Monthly Adjustment Amount) will apply to the Medicare premiums. IRMAA is an additional amount that must be paid for Medicare because taxable income is high. Review the IRMAA report in the Useful Info tab. The Budget for Med-Insur has been adjusted for the increase. | L18: Action: Review the Retire tab, and notice the Single year adjustments of $400 for four years. This increase in budget is for a car payment.
C19: Action: From the Home tab or Retire tab change the Annual Rate-of-Return and/or the Annual Inflation Rate. Generate an updated plan and notice that small changes in either of these values can have significant impact over multiple years. | F19: Action: From the Investments section of the Assets tab increase the monthly contribution by $800 per month. Generate an updated plan review the impact of increased savings." | I19: Action: From the Home tab select and view the Budget Trends chart. The chart on the right, Monthly Adjustments, shows the planned adjustments in future years. These adjustments are entered on the Retire tab in the Single and Multi-year adjustment columns. The reason for the adjustment is provided in the comments column. | L19: Action: Review the Budget tab, and notice a singleline item is used for the entire monthly budget. Consider creating additional line-items to breakout rent, food, utilities, etc., to provide better information to for the budget.
C20: Action: From the Budget tab notice that the column labeled: (+/-) Monthly Adjust at Retirement has multiple entries. At retirement start the expense of house payments and car payments are removed and Med-Insur is increased to cover the Medicare costs. | I20: Action: From the Home tab select and view the Checklist report. Issue R.25 has occurred. This message does not require any actions. It is information to suggest a review of data to ensure it is correct. The additional monies withdrawn to meet the RMD has caused the withdrawal amount to increase in year two. The second individual has reached the age when the withdrawals must be taken.
C21: Action: From the Income tab review that two incomes are defined with end years in 2032 and 2034. These incomes define the individuals' work income. Once an individual retires from work the associated income must be stopped. Use the Year to Start and Year to Stop provide the ability to define a period of time that income is expected.

Sheet Settings
C2: Settings
A3: Return | C3: Settings for Retirement Planner and upgrading to a new version of the software.
C5: First screen
C6: Select the first screen to be shown when opening the software. | H6: Welcome
C9: Display Green Calculator message at startup.
C10: Select Y or N to display messsage. | H10: Y
C13: Default zoom percent
C14: Enter the default percent to zoom (100 - 300). | H14: 125
C15: Press the Apply zoom button once value is provided.
C17: Update software
C19: To aid in upgrading to a new version of the software follow the below defined steps. This process is the exporting of data from the existing spreadsheet and copying and importing the data into the new spreadsheet. a.) Open the old spreadsheet. Select the Settings tab (press green gear in upper right-hand side of Home) and scroll to the bottom. Press the button labeled 'Export Data'. This will copy all currently entered data to the EData tab. b.) Press the button labeled 'Open EData'. Once the tab is open press the button labeled 'Select Data'. Now using your keyboard Ctrl+C to outline the selected data to copy. This will cause a dashed line around the selected data. This selected data will be copied to the new version of the spreadsheet. c.) Open the new version of the spreadsheet. Select the Settings tab (press green gear in upper right-hand side of Home) and scroll to the bottom. Press the button labeled 'Open EData'. d.) Once the EData tab is opened press the button labeled 'Remove Data' to remove any existing data in the tab. Select the first cell in the first column after the gray header bar (cell A5). Once the cell is selected paste the copied data from the above steps into the tab. e.) Press the return arrow in the upper left to close the EData tab and return to the Settings tab. f.) Press the button labeled 'Import Data' to import the copied data into the new version of the spreadsheet. The import process with show a status screen with a report of completed activity. Once importing is completed the 'Updating Taxes' process is invoked. g.) A message box will be displayed to indicate the import process is completed. h.) Save the new spreadsheet and close the old spreadsheet.
C21: NOTE: If you have added any information in the Notes feature of the Useful Info tab you must copy the Notes data to the new spreadsheet. The Notes data is not exported and must be copied manually.

Sheet Home
C2: Retirement Planner | L2: =IF(S2>"","Financial information has changed, the chart or report should be generated again.","") ->  | T2: Current Chart: | U2: Investments & Assets
C3: Done by DaveW (DbyDW) | Q3: =IF(Config!Q12="SHOW", "Press calculator to update financials","" ) -> 
C4: =Config!E24 -> Version 1.2.0 | H4: Press red and green buttons to change values | Q4: =IF(Retire!D12<YEAR(TODAY()),"ERROR: Retirement YEAR is in the past, must be current year or in the future.","") -> 
I5: Average Rate of Return % | K5: =Retire!D15 -> 0.04 | M5: Annual Inflation Rate % | O5: =Retire!D18 -> 0.03 | Q5: Retirement Year | S5: =Retire!D12 -> 2034
B21: Click above buttons to switch to the tab
G35: Click icon to view chart
H40: Investments & Assets | J40: Retirement Financials | L40: Income | N40: Budget | P40: Budget Trends | R40: House & Rental | T40: Checklist Report
G41: Start year: | H41: Current year | J41: Retirement start year | L41: =H41 -> Current year | N41: =H41 -> Current year | P41: =J41 -> Retirement start year | R41: =H41 -> Current year | T41: N/A
G42: End year: | H42: Age 100 | J42: Start plus 40 years | L42: Start plus 40 years | N42: Start plus 40 years | P42: Start plus 40 years | R42: Start plus 40 years

Sheet Individuals
C2: Individuals
A3: Return | C3: Enter information for a single individual or a couple.
H4: Todays date | I4: =TODAY() -> 2022-08-17
D7: Individual 1 | I7: Hoping
D8: This entry must be used if there is only one individual to be defined. The actual birth date is not required but the year needs to be correct. Example, actual date of birth is October 8, 1954, entry could be 01/01/54. | I8: The 'Hopeful retire date' is used to calculate Months and Days till retirement.
D9: Name | E9: Date-of-birth | F9: Age | G9: Hopeful date | I9: Months till retirement | J9: =IF(G10>I4, DATEDIF(I4, G10, "m"), 0) -> 145
D10: Jon | E10: 1968-02-07 | F10: =IF(E10<>"",YEAR(TODAY())-YEAR(E10),"") -> 54 | G10: 2034-10-01 | I10: Days till retirement | J10: =IF(G10>I4, DATEDIF(I4, G10, "d"), 0) -> 4428
D13: Individual 2
D14: Name | E14: Date-of-birth | F14: Age | G14: Hopeful date | I14: Months till retirement | J14: =IF(G15>I4, DATEDIF(I4, G15, "m"), 0) -> 164
D15: Sally | E15: 1970-06-20 | F15: =IF(E15<>"",YEAR(TODAY())-YEAR(E15),"") -> 52 | G15: 2036-05-01 | I15: Days till retirement | J15: =IF(G15>I4, DATEDIF(I4, G15, "d"), 0) -> 5006
D18: Retirement planning year
D19: The retirement planning year must be the current year or in the future. This value can be changed at any time to evaluate what year is best for your needs. | J19: 2022
D20: Retirement planning year | G20: =I20+J20 -> 2034 | I20: 2022 | J20: 12
D24: Income tax
A25: Detail Tax Data | D25: The filing status and state are used to locate the appropriate tax rate tables for Federal and State income taxes. If you are subject to County and/or City taxes use the pencil to open TaxRates tab and enter the information as needed.
D26: Status | F26: State
D27: Single | F27: Louisiana
D28: =D27&F27 -> SingleLouisiana
D29: Messages | I29: =IF(TaxRates!L8<>0,"Settings do not match current tax tables, update required","") -> 
D30: =IF(D15>"",IF(D10="","Use Id-1 when only a single user",""),"") ->  | I30: Current Settings
D31: =IF(D10>"",IF(E10="","Date-of-birth for Id-1 is required",""),"") ->  | I31: Status: | J31: =TaxRates!E8 -> Single
D32: =IF(NOT(ISBLANK(E10)),IF(ISBLANK(D10),"Name for Id-1 is recommended",""),"") ->  | I32: State: | J32: =TaxRates!F8 -> Louisiana
D33: =IF(NOT(ISBLANK(E15)),IF(ISBLANK(D15),"Name for Id-2 is recommended",""),"") -> 
D34: =IF(D15>"",IF(E15="","Date-of-birth for Id-2 is required",""),"") -> 

Sheet Assets
C2: Assets
A3: Return | C3: Enter data regarding your assets i.e., cars, home, investments, saving, etc. This information is the foundation for calculating current and future financial estimates. The 'Category Item ID' is a user defined value that will be to control if the line item is included in the 'Category Total'. In the Investments section if 'Category Item ID' is blank the line item will not be included.
C4: Current value of all assets | E4: =SUM(E60+E49+E31+E21+E15) -> 1088000 | F4: =SUM(E60+E49+E31+E21) -> 1076000
C7: CASH
C8: Available cash on hand. These funds are not included when calculating annual withdrawals for the retirement plan but are included in the total current assets figure shown above. Category Item ID is any value that will help identify the line item.
C9: Category Item ID | D9: Description | E9: Current Value | F9: Comments | M9: Last Updated
C10: C-001 | D10: Checking | E10: 4000
C11: S-002 | D11: Savings | E11: 8000
E12: 0
E13: 0
E14: 0
D15: Category total | E15: =SUMIF(C10:C14,"<>"&"",E10:E14) -> 12000
C18: HOUSING
C19: If you own your home enter the information below. If the house has no mortgage ensure the 'Payment' and 'Payment Frequency' are zero. The 'Current Value' will be used to calculate future value of your home in conjunction with the 'Annual Appreciation Rate'. Additional data regarding the house is entered in the 'Housing' tab. Acess the tab by clicking the pencil icon for this category.
A20: Edit Housing detail | C20: Category Item ID | D20: Description | E20: Current Value | F20: Payment | G20: Payment Frequency | H20: Annual Appreciation Rate | M20: Last Updated
C21: Home | D21: Wood Park Ave | E21: 450000 | F21: 1300 | G21: 12 | H21: 0.0185
D22: Category total | E22: =SUMIF(C21:C21,"<>"&"",E21:E21) -> 450000
C24: VEHICLES
C25: Enter up to four vehicles. Any dollar amount in the 'Payment' column will be used to create a monthly payment in the expenses for the vehicle. Press the pencil icon for this category to open the 'Vehcile' tab to view additional data for vehicles.
A26: Edit Vehicle detail | C26: Category Item ID | D26: Description | E26: Current Value | F26: Payment | M26: Last Updated
C27: Lexus | D27: RX | E27: 35000 | F27: 350
C28: Honda | D28: CX | E28: 41000 | F28: 450
E29: 0 | F29: 0
E30: 0 | F30: 0
D31: Category total | E31: =SUMIF(C27:C30,"<>"&"",E27:E30) -> 76000
C34: INVESTMENTS
A35: View Investment detail | C35: Investments i.e., IRA, 401K, stocks, etc. should be entered below. The 'Monthly Contribution' column is used to indicate how much additional monies are planned to be added to the investment each month. Any investment that does not have the Before or After tax value set will be considered after tax investments. Note: A blank Category Item ID will cause the line item to NOT be included in the current value of all assets and will NOT be included when creating the retirement plan.
C36: Category Item ID | D36: Description | E36: Current Value | F36: Monthly Contribution | G36: Rate of Return (R-o-R) | H36: Before or After tax | I36: Investment Owner | J36: Comments | M36: Last Updated | N36: =SUM(N37:N48) -> 3 | O36: 2 | P36: 1 | Q36: 1 | R36: 2 | S36: 0 | T36: =COUNTIFS(H37:H48,"Before tax",I37:I48, "Joint") -> 0 | U36: =SUM(U37:U48) -> 29500 | V36: =SUMIF(C37:C48,"<>"&"",E37:E48) -> 550000 | W36: =U36/V36 -> 0.05363636364
C37: Jon | D37: 401K | E37: 250000 | F37: 2000 | G37: 0.055 | H37: Before tax | I37: Individual 1 | M37: 2022-01-05 | N37: =COUNTIFS( E37:E37, ">0",C37:C37, "<>"&"") -> 1 | O37: =COUNTIFS( H37:H37, $O$49, C37:C37, "<>"&"") -> 1 | P37: =COUNTIFS( H37:H37, $P$49, C37:C37, "<>"&"") -> 0 | Q37: =COUNTIFS( I37:I37, $Q$49, C37:C37, "<>"&"") -> 1 | R37: =COUNTIFS( I37:I37, $R$49, C37:C37, "<>"&"") -> 0 | S37: =COUNTIFS( I37:I37, $S$49, C37:C37, "<>"&"") -> 0 | U37: =IF(C37<>"",E37*G37,0) -> 13750
C38: Sally | D38: 401K | E38: 225000 | F38: 1500 | G38: 0.05 | H38: Before tax | I38: Individual 2 | M38: 2022-01-05 | N38: =COUNTIFS( E38:E38, ">0",C38:C38, "<>"&"") -> 1 | O38: =COUNTIFS( H38:H38, $O$49, C38:C38, "<>"&"") -> 1 | P38: =COUNTIFS( H38:H38, $P$49, C38:C38, "<>"&"") -> 0 | Q38: =COUNTIFS( I38:I38, $Q$49, C38:C38, "<>"&"") -> 0 | R38: =COUNTIFS( I38:I38, $R$49, C38:C38, "<>"&"") -> 1 | S38: =COUNTIFS( I38:I38, $S$49, C38:C38, "<>"&"") -> 0 | U38: =IF(C38<>"",E38*G38,0) -> 11250
C39: Sally | D39: IRA | E39: 75000 | F39: 250 | G39: 0.06 | H39: After tax | I39: Individual 2 | M39: 2022-01-05 | N39: 1 | O39: =COUNTIFS( H39:H39, $O$49, C39:C39, "<>"&"") -> 0 | P39: 1 | Q39: 0 | R39: 1 | S39: 0 | U39: 4500
E40: 0 | F40: 0 | G40: 0 | N40: 0 | O40: 0 | P40: 0 | Q40: 0 | R40: 0 | S40: 0 | U40: 0
E41: 0 | F41: 0 | G41: 0 | N41: 0 | O41: 0 | P41: 0 | Q41: 0 | R41: 0 | S41: 0 | U41: 0
E42: 0 | F42: 0 | G42: 0 | N42: 0 | O42: 0 | P42: 0 | Q42: 0 | R42: 0 | S42: 0 | U42: 0
E43: 0 | F43: 0 | G43: 0 | N43: 0 | O43: 0 | P43: 0 | Q43: 0 | R43: 0 | S43: 0 | U43: 0
E44: 0 | F44: 0 | G44: 0 | N44: 0 | O44: 0 | P44: 0 | Q44: 0 | R44: 0 | S44: 0 | U44: 0
E45: 0 | F45: 0 | G45: 0 | N45: 0 | O45: 0 | P45: 0 | Q45: 0 | R45: 0 | S45: 0 | U45: 0
E46: 0 | F46: 0 | G46: 0 | N46: 0 | O46: 0 | P46: 0 | Q46: 0 | R46: 0 | S46: 0 | U46: 0
E47: 0 | F47: 0 | G47: 0 | N47: 0 | O47: 0 | P47: 0 | Q47: 0 | R47: 0 | S47: 0 | U47: 0
E48: 0 | F48: 0 | G48: 0 | N48: 0 | O48: 0 | P48: 0 | Q48: 0 | R48: 0 | S48: 0 | U48: 0
D49: Category total | E49: =SUMIF(C37:C48,"<>"&"",E37:E48) -> 550000 | G49: Sub total by ID | I49: Amount | J49: Percent | M49: =COUNTIF(H37:H48,"Before tax") -> 2 | N49: =COUNTIF(I37:I48,"Individual 2") -> 2 | O49: Before tax | P49: After tax | Q49: Individual 1 | R49: Individual 2 | S49: Joint
G50: Individual 1 Before tax | I50: =SUMIFS(E37:E48,I37:I48, "Individual 1", H37:H48,"Before tax",C37:C48,"<>"&"") -> 250000 | J50: =IF($E$49>0,I50/$E$49,0) -> 0.4545454545 | K50: =IF(I50>0,I50/(I50+I51),0) -> 0.5263157895 | L50: =IF(SUM(O36+P36)<>N36,"Before or After tax not set for one or more investments", "") -> 
G51: Individual 2 Before tax | I51: =SUMIFS(E37:E48,I37:I48, "Individual 2", H37:H48,"Before tax", C37:C48, "<>"&"") -> 225000 | J51: =IF($E$49>0,I51/$E$49,0) -> 0.4090909091 | K51: =IF(I51>0,I51/(I50+I51),0) -> 0.4736842105 | L51: =IF(SUM(Q36+R36+S36)<>N36,"Investment owner not set for one or more investments", "") -> 
D52: Overall rate of return % | E52: =W36 -> 0.05363636364 | G52: After tax (*) | I52: =E49-SUM(I50:I51) -> 75000 | J52: =IF($E$49>0,I52/$E$49,0) -> 0.1363636364 | K52: =1-J52 -> 0.8636363636 | L52: =IF(T36>0,"Owner cannot be set to Joint for Before tax investment", "") -> 
G53: * Any investment not classified as Before tax will be treated as After tax | L53: =IF(COUNTIFS(C37:C48,"<>"&"",E37:E48,0),"One of more entires has a zero dollar amount & Category ID defined. Provide dollar amount or remove Category ID to resolve issue.","") -> 
C55: RENTAL | O55: No house value R1 | P55: No house value R2
C56: If you have rental property provide the data below. The Category Item Id is shown in graphs on the 'Home' tab to and to help identify the property. Select the pencil icon to open the 'Rental' tab and to view and enter additional data regarding the property.
A57: Edit Rental detail | C57: Category Item ID | D57: Description | E57: Current Value | G57: Comments | M57: Last Updated
E58: 0 | O58: =IF(Assets!E58 < 1, IF(Rental!D24>0, "Error", ""), "") ->  | P58: =IF(Assets!E59 < 1, IF(Rental!K24>0, "Error", ""), "") -> Error
E59: 0
D60: Category total | E60: =SUMIF(C58:C59,"<>"&"",E58:E59) -> 0 | G60: =IF(O58="Error","First rental property has rental income but Current Value is missing or zero.","") -> 
G61: =IF(P58="Error","Second rental property has rental income but Current Value is missing or zero.","") -> Second rental property has rental income but Current Value is missing or zero.

Sheet Income
C2: Income
A3: Return | C3: Enter monthly incomes from all sources. The Monthly Amount provided for a source can be Gross or Net. If using Gross and withdrawals are taken out to pay for items, e.g. medical insurance, be sure to include the amount withdrawn in the budget. Any income can be removed at a specified year. Two categories Rental and Supplemental do not have monthly amounts defined. Rental income is calculated from information defined in the Rental tab. Supplemental income provides the ability to add a one time income such as the sale of a car, and inheritance, etc. Most common income tax is at 100% if the income is taxed. Yet Social Security benefits are taxable at either 0%, 50%, or 85% based on income. For more information visit the Social Security web site:
C4: https://www.ssa.gov/benefits/retirement/planner/taxes.html
C6: Estimate Social Security | I6: Detail Tax Data | O6: Detail Rental Data
D8: Individual 1 | E8: Individual 2 | F8: Employment, Annuity, Pensions, etc. | N8: Supplemental | O8: Rental | P8: Total Monthly | AP8: Rule Usage | AQ8: Change Usage
C9: Source name | D9: SS-Id1 | E9: SS-Id2 | F9: Pension | G9: Work 1 | H9: Work 2 | I9: Source 6 | J9: Source 7 | K9: Source 8 | L9: Work | M9: Source 10 | N9: Supplemental | O9: Rental | AQ9: =SUM(N16:N140) -> 0
C10: Monthly Amt | D10: 3200 | E10: 3000 | F10: 1500 | G10: 9500 | H10: 8000 | I10: 0 | J10: 0 | K10: 0 | L10: 0 | M10: 0 | P10: =SUM(D10:M10) -> 25200 | AP10: =COUNTIF(D10:M10,">0") -> 5 | AQ10: =SUM(D10:M10) -> 25200
C11: Year to start | D11: 2034 | E11: 2036 | F11: 2034 | G11: 2000 | H11: 2000 | Q11: Total Annual Income | R11: Amount Taxable | S11: Amount Non-taxable | T11: Id-1 Age | U11: Id-2 Age | AQ11: =SUM(D11:M11) -> 10104
C12: Year to stop | G12: 2034 | H12: 2036 | AQ12: =SUM(D12:M12) -> 4070
A13: Toggle yearly data | C13: COLA / Pay raise | D13: 0.0131 | E13: 0.0131 | F13: 0.02 | G13: 0.02 | H13: 0.02 | I13: 0 | J13: 0 | K13: 0 | L13: 0 | M13: 0 | W13: Column pairs both must be 1 for dollar amounts to show in colums D - M | AP13: =COUNTIF(D13:M13,">0") -> 5 | AQ13: =SUM(D13:M13) -> 0.0862
C14: % Taxable | D14: 0.85 | E14: 0.85 | F14: 1 | G14: 1 | H14: 1 | I14: 0 | J14: 0 | K14: 0 | L14: 0 | M14: 0 | N14: 0 | O14: 1 | V14: Payment Flags | AQ14: =SUM(D14:O14) -> 5.7
D15: =IF(D10>0,IF(D14=0,1,0),0) -> 0 | E15: =IF(E10>0,IF(E14=0,1,0),0) -> 0 | F15: 0 | G15: 0 | H15: 0 | I15: 0 | J15: 0 | K15: 0 | L15: 0 | M15: 0 | N15: 0 | O15: =SUM(D15:M15) -> 0 | P15: =SUM(D15:O15) -> 0 | V15: V | W15: W | X15: X | Y15: Y | Z15: Z | AA15: AA | AB15: AB | AC15: AC | AD15: AD | AE15: AE | AF15: AF | AG15: AG | AH15: AH | AI15: AI | AJ15: AJ | AK15: AK | AL15: AL | AM15: AM | AN15: AN | AO15: AO | AQ15: =SUM(AQ9:AQ14) -> 39379.7862
A16: =IF(C16=Retire!$D$12,"==>","") ->  | C16: =YEAR(TODAY()) -> 2022 | D16: =IF(SUM(V16+W16)=2, D10*12, 0) -> 0 | E16: =IF(SUM(X16+Y16)=2, E10*12, 0) -> 0 | F16: =IF(SUM(Z16+AA16)=2, F10*12, 0) -> 0 | G16: =IF(SUM(AB16+AC16)=2, G10*12, 0) -> 114000 | H16: =IF(SUM(AD16+AE16)=2, H10*12, 0) -> 96000 | I16: =IF(SUM(AF16+AG16)=2, I10*12, 0) -> 0 | J16: =IF(SUM(AH16+AI16)=2, J10*12, 0) -> 0 | K16: =IF(SUM(AJ16+AK16)=2, K10*12, 0) -> 0 | L16: =IF(SUM(AL16+AM16)=2, L10*12, 0) -> 0 | M16: =IF(SUM(AN16+AO16)=2, M10*12, 0) -> 0 | N16: 0 | O16: =IF(Rental!Q37>0,Rental!Q37,0) -> 0 | Q16: =SUM(D16:O16) -> 210000 | R16: =SUM((D16*$D$14)+(E16*$E$14)+(F16*$F$14)+(G16*$G$14)+(H16*$H$14)+(I16*$I$14)+(J16*$J$14)+(K16*$K$14)+(L16*$L$14)+(M16*$M$14)+(N16*$N$14)+(O16*$O$14)) -> 210000 | S16: =Q16-R16 -> 0 | T16: =Individuals!F10 -> 54 | U16: =Individuals!F15 -> 52 | V16: =IF(C16>=$D$11,1,0) -> 0 | W16: =IF($D$12<>"",IF(C16<$D$12,1,0),1) -> 1 | X16: =IF(C16>=$E$11,1,0) -> 0 | Y16: =IF($E$12<>"",IF(C16<$E$12,1,0),1) -> 1 | Z16: =IF(C16>=$F$11,1,0) -> 0 | AA16: =IF($F$12<>"",IF(C16<$F$12,1,0),1) -> 1 | AB16: =IF(C16>=$G$11,1,0) -> 1 | AC16: =IF($G$12<>"",IF(C16<$G$12,1,0),1) -> 1 | AD16: =IF(C16>=$H$11,1,0) -> 1 | AE16: =IF($H$12<>"",IF(C16<$H$12,1,0),1) -> 1 | AF16: =IF(C16>=$I$11,1,0) -> 1 | AG16: =IF($I$12<>"",IF(C16<$I$12,1,0),1) -> 1 | AH16: =IF(C16>=$J$11,1,0) -> 1 | AI16: =IF($J$12<>"",IF(C16<$J$12,1,0),1) -> 1 | AJ16: =IF(C16>=$K$11,1,0) -> 1 | AK16: =IF($K$12<>"",IF(C16<$K$12,1,0),1) -> 1 | AL16: =IF(C16>=$L$11,1,0) -> 1 | AM16: =IF($L$12<>"",IF(C16<$L$12,1,0),1) -> 1 | AN16: =IF(C16>=$M$11,1,0) -> 1 | AO16: =IF($M$12<>"",IF(C16<$M$12,1,0),1) -> 1
A17: =IF(C17=Retire!$D$12,"==>","") ->  | C17: =C16+1 -> 2023 | D17: =IF(SUM(V17+W17)=2,IF(D16=0,$D$10*12,D16+(D16*$D$13) ),0 ) -> 0 | E17: =IF(SUM(X17+Y17)=2,IF(E16=0,$E$10*12,E16+(E16*$E$13) ),0 ) -> 0 | F17: =IF(SUM(Z17+AA17)=2,IF(F16=0,$F$10*12,F16+(F16*$F$13) ),0 ) -> 0 | G17: =IF(SUM(AB17+AC17)=2,IF(G16=0,$G$10*12,G16+(G16*$G$13) ),0 ) -> 116280 | H17: =IF(SUM(AD17+AE17)=2,IF(H16=0,$H$10*12,H16+(H16*$H$13) ),0 ) -> 97920 | I17: =IF(SUM(AF17+AG17)=2,IF(I16=0,$I$10*12,I16+(I16*$I$13) ),0 ) -> 0 | J17: =IF(SUM(AH17+AI17)=2,IF(J16=0,$J$10*12,J16+(J16*$J$13) ),0 ) -> 0 | K17: =IF(SUM(AJ17+AK17)=2,IF(K16=0,$K$10*12,K16+(K16*$K$13) ),0 ) -> 0 | L17: =IF(SUM(AL17+AM17)=2,IF(L16=0,$L$10*12,L16+(L16*$L$13) ),0 ) -> 0 | M17: =IF(SUM(AN17+AO17)=2,IF(M16=0,$M$10*12,M16+(M16*$M$13) ),0 ) -> 0 | N17: 0 | O17: =IF(Rental!Q38>0,Rental!Q38,0) -> 0 | Q17: 214200 | R17: 214200 | S17: 0 | T17: =T16+1 -> 55 | U17: =IF(ISNUMBER(U16),U16+1,"") -> 53 | V17: =IF(C17>=$D$11,1,0) -> 0 | W17: =IF($D$12<>"",IF(C17<$D$12,1,0),1) -> 1 | X17: =IF(C17>=$E$11,1,0) -> 0 | Y17: =IF($E$12<>"",IF(C17<$E$12,1,0),1) -> 1 | Z17: =IF(C17>=$F$11,1,0) -> 0 | AA17: =IF($F$12<>"",IF(C17<$F$12,1,0),1) -> 1 | AB17: =IF(C17>=$G$11,1,0) -> 1 | AC17: =IF($G$12<>"",IF(C17<$G$12,1,0),1) -> 1 | AD17: =IF(C17>=$H$11,1,0) -> 1 | AE17: =IF($H$12<>"",IF(C17<$H$12,1,0),1) -> 1 | AF17: =IF(C17>=$I$11,1,0) -> 1 | AG17: =IF($I$12<>"",IF(C17<$I$12,1,0),1) -> 1 | AH17: =IF(C17>=$J$11,1,0) -> 1 | AI17: =IF($J$12<>"",IF(C17<$J$12,1,0),1) -> 1 | AJ17: =IF(C17>=$K$11,1,0) -> 1 | AK17: =IF($K$12<>"",IF(C17<$K$12,1,0),1) -> 1 | AL17: =IF(C17>=$L$11,1,0) -> 1 | AM17: =IF($L$12<>"",IF(C17<$L$12,1,0),1) -> 1 | AN17: =IF(C17>=$M$11,1,0) -> 1 | AO17: =IF($M$12<>"",IF(C17<$M$12,1,0),1) -> 1
A18: =IF(C18=Retire!$D$12,"==>","") ->  | C18: =C17+1 -> 2024 | D18: =IF(SUM(V18+W18)=2,IF(D17=0,$D$10*12,D17+(D17*$D$13) ),0 ) -> 0 | E18: =IF(SUM(X18+Y18)=2,IF(E17=0,$E$10*12,E17+(E17*$E$13) ),0 ) -> 0 | F18: =IF(SUM(Z18+AA18)=2,IF(F17=0,$F$10*12,F17+(F17*$F$13) ),0 ) -> 0 | G18: =IF(SUM(AB18+AC18)=2,IF(G17=0,$G$10*12,G17+(G17*$G$13) ),0 ) -> 118605.6 | H18: =IF(SUM(AD18+AE18)=2,IF(H17=0,$H$10*12,H17+(H17*$H$13) ),0 ) -> 99878.4 | I18: =IF(SUM(AF18+AG18)=2,IF(I17=0,$I$10*12,I17+(I17*$I$13) ),0 ) -> 0 | J18: =IF(SUM(AH18+AI18)=2,IF(J17=0,$J$10*12,J17+(J17*$J$13) ),0 ) -> 0 | K18: =IF(SUM(AJ18+AK18)=2,IF(K17=0,$K$10*12,K17+(K17*$K$13) ),0 ) -> 0 | L18: =IF(SUM(AL18+AM18)=2,IF(L17=0,$L$10*12,L17+(L17*$L$13) ),0 ) -> 0 | M18: =IF(SUM(AN18+AO18)=2,IF(M17=0,$M$10*12,M17+(M17*$M$13) ),0 ) -> 0 | N18: 0 | O18: =IF(Rental!Q39>0,Rental!Q39,0) -> 0 | Q18: 218484 | R18: 218484 | S18: 0 | T18: =T17+1 -> 56 | U18: =IF(ISNUMBER(U17),U17+1,"") -> 54 | V18: 0 | W18: 1 | X18: 0 | Y18: 1 | Z18: 0 | AA18: 1 | AB18: 1 | AC18: 1 | AD18: 1 | AE18: 1 | AF18: 1 | AG18: 1 | AH18: 1 | AI18: 1 | AJ18: 1 | AK18: 1 | AL18: 1 | AM18: 1 | AN18: 1 | AO18: 1
A19: =IF(C19=Retire!$D$12,"==>","") ->  | C19: 2025 | D19: =IF(SUM(V19+W19)=2,IF(D18=0,$D$10*12,D18+(D18*$D$13) ),0 ) -> 0 | E19: =IF(SUM(X19+Y19)=2,IF(E18=0,$E$10*12,E18+(E18*$E$13) ),0 ) -> 0 | F19: =IF(SUM(Z19+AA19)=2,IF(F18=0,$F$10*12,F18+(F18*$F$13) ),0 ) -> 0 | G19: =IF(SUM(AB19+AC19)=2,IF(G18=0,$G$10*12,G18+(G18*$G$13) ),0 ) -> 120977.712 | H19: =IF(SUM(AD19+AE19)=2,IF(H18=0,$H$10*12,H18+(H18*$H$13) ),0 ) -> 101875.968 | I19: =IF(SUM(AF19+AG19)=2,IF(I18=0,$I$10*12,I18+(I18*$I$13) ),0 ) -> 0 | J19: =IF(SUM(AH19+AI19)=2,IF(J18=0,$J$10*12,J18+(J18*$J$13) ),0 ) -> 0 | K19: =IF(SUM(AJ19+AK19)=2,IF(K18=0,$K$10*12,K18+(K18*$K$13) ),0 ) -> 0 | L19: =IF(SUM(AL19+AM19)=2,IF(L18=0,$L$10*12,L18+(L18*$L$13) ),0 ) -> 0 | M19: =IF(SUM(AN19+AO19)=2,IF(M18=0,$M$10*12,M18+(M18*$M$13) ),0 ) -> 0 | N19: 0 | O19: =IF(Rental!Q40>0,Rental!Q40,0) -> 0 | Q19: 222853.68 | R19: 222853.68 | S19: 0 | T19: 57 | U19: 55 | V19: 0 | W19: 1 | X19: 0 | Y19: 1 | Z19: 0 | AA19: 1 | AB19: 1 | AC19: 1 | AD19: 1 | AE19: 1 | AF19: 1 | AG19: 1 | AH19: 1 | AI19: 1 | AJ19: 1 | AK19: 1 | AL19: 1 | AM19: 1 | AN19: 1 | AO19: 1
A20: =IF(C20=Retire!$D$12,"==>","") ->  | C20: 2026 | D20: =IF(SUM(V20+W20)=2,IF(D19=0,$D$10*12,D19+(D19*$D$13) ),0 ) -> 0 | E20: =IF(SUM(X20+Y20)=2,IF(E19=0,$E$10*12,E19+(E19*$E$13) ),0 ) -> 0 | F20: =IF(SUM(Z20+AA20)=2,IF(F19=0,$F$10*12,F19+(F19*$F$13) ),0 ) -> 0 | G20: =IF(SUM(AB20+AC20)=2,IF(G19=0,$G$10*12,G19+(G19*$G$13) ),0 ) -> 123397.2662 | H20: =IF(SUM(AD20+AE20)=2,IF(H19=0,$H$10*12,H19+(H19*$H$13) ),0 ) -> 103913.4874 | I20: =IF(SUM(AF20+AG20)=2,IF(I19=0,$I$10*12,I19+(I19*$I$13) ),0 ) -> 0 | J20: =IF(SUM(AH20+AI20)=2,IF(J19=0,$J$10*12,J19+(J19*$J$13) ),0 ) -> 0 | K20: =IF(SUM(AJ20+AK20)=2,IF(K19=0,$K$10*12,K19+(K19*$K$13) ),0 ) -> 0 | L20: =IF(SUM(AL20+AM20)=2,IF(L19=0,$L$10*12,L19+(L19*$L$13) ),0 ) -> 0 | M20: =IF(SUM(AN20+AO20)=2,IF(M19=0,$M$10*12,M19+(M19*$M$13) ),0 ) -> 0 | N20: 0 | O20: =IF(Rental!Q41>0,Rental!Q41,0) -> 0 | Q20: 227310.7536 | R20: 227310.7536 | S20: 0 | T20: 58 | U20: 56 | V20: 0 | W20: 1 | X20: 0 | Y20: 1 | Z20: 0 | AA20: 1 | AB20: 1 | AC20: 1 | AD20: 1 | AE20: 1 | AF20: 1 | AG20: 1 | AH20: 1 | AI20: 1 | AJ20: 1 | AK20: 1 | AL20: 1 | AM20: 1 | AN20: 1 | AO20: 1
A21: =IF(C21=Retire!$D$12,"==>","") ->  | C21: 2027 | D21: =IF(SUM(V21+W21)=2,IF(D20=0,$D$10*12,D20+(D20*$D$13) ),0 ) -> 0 | E21: =IF(SUM(X21+Y21)=2,IF(E20=0,$E$10*12,E20+(E20*$E$13) ),0 ) -> 0 | F21: =IF(SUM(Z21+AA21)=2,IF(F20=0,$F$10*12,F20+(F20*$F$13) ),0 ) -> 0 | G21: =IF(SUM(AB21+AC21)=2,IF(G20=0,$G$10*12,G20+(G20*$G$13) ),0 ) -> 125865.2116 | H21: =IF(SUM(AD21+AE21)=2,IF(H20=0,$H$10*12,H20+(H20*$H$13) ),0 ) -> 105991.7571 | I21: =IF(SUM(AF21+AG21)=2,IF(I20=0,$I$10*12,I20+(I20*$I$13) ),0 ) -> 0 | J21: =IF(SUM(AH21+AI21)=2,IF(J20=0,$J$10*12,J20+(J20*$J$13) ),0 ) -> 0 | K21: =IF(SUM(AJ21+AK21)=2,IF(K20=0,$K$10*12,K20+(K20*$K$13) ),0 ) -> 0 | L21: =IF(SUM(AL21+AM21)=2,IF(L20=0,$L$10*12,L20+(L20*$L$13) ),0 ) -> 0 | M21: =IF(SUM(AN21+AO21)=2,IF(M20=0,$M$10*12,M20+(M20*$M$13) ),0 ) -> 0 | N21: 0 | O21: =IF(Rental!Q42>0,Rental!Q42,0) -> 0 | Q21: 231856.9687 | R21: 231856.9687 | S21: 0 | T21: 59 | U21: 57 | V21: 0 | W21: 1 | X21: 0 | Y21: 1 | Z21: 0 | AA21: 1 | AB21: 1 | AC21: 1 | AD21: 1 | AE21: 1 | AF21: 1 | AG21: 1 | AH21: 1 | AI21: 1 | AJ21: 1 | AK21: 1 | AL21: 1 | AM21: 1 | AN21: 1 | AO21: 1
A22: =IF(C22=Retire!$D$12,"==>","") ->  | C22: 2028 | D22: 0 | E22: 0 | F22: 0 | G22: 128382.5158 | H22: 108111.5922 | I22: 0 | J22: 0 | K22: 0 | L22: 0 | M22: 0 | N22: 0 | O22: =IF(Rental!Q43>0,Rental!Q43,0) -> 0 | Q22: 236494.108 | R22: 236494.108 | S22: 0 | T22: 60 | U22: 58 | V22: 0 | W22: 1 | X22: 0 | Y22: 1 | Z22: 0 | AA22: 1 | AB22: 1 | AC22: 1 | AD22: 1 | AE22: 1 | AF22: 1 | AG22: 1 | AH22: 1 | AI22: 1 | AJ22: 1 | AK22: 1 | AL22: 1 | AM22: 1 | AN22: 1 | AO22: 1
A23: =IF(C23=Retire!$D$12,"==>","") ->  | C23: 2029 | D23: 0 | E23: 0 | F23: 0 | G23: 130950.1661 | H23: 110273.8241 | I23: 0 | J23: 0 | K23: 0 | L23: 0 | M23: 0 | N23: 0 | O23: =IF(Rental!Q44>0,Rental!Q44,0) -> 0 | Q23: 241223.9902 | R23: 241223.9902 | S23: 0 | T23: 61 | U23: 59 | V23: 0 | W23: 1 | X23: 0 | Y23: 1 | Z23: 0 | AA23: 1 | AB23: 1 | AC23: 1 | AD23: 1 | AE23: 1 | AF23: 1 | AG23: 1 | AH23: 1 | AI23: 1 | AJ23: 1 | AK23: 1 | AL23: 1 | AM23: 1 | AN23: 1 | AO23: 1
A24: =IF(C24=Retire!$D$12,"==>","") ->  | C24: 2030 | D24: 0 | E24: 0 | F24: 0 | G24: 133569.1694 | H24: 112479.3006 | I24: 0 | J24: 0 | K24: 0 | L24: 0 | M24: 0 | N24: 0 | O24: =IF(Rental!Q45>0,Rental!Q45,0) -> 0 | Q24: 246048.47 | R24: 246048.47 | S24: 0 | T24: 62 | U24: 60 | V24: 0 | W24: 1 | X24: 0 | Y24: 1 | Z24: 0 | AA24: 1 | AB24: 1 | AC24: 1 | AD24: 1 | AE24: 1 | AF24: 1 | AG24: 1 | AH24: 1 | AI24: 1 | AJ24: 1 | AK24: 1 | AL24: 1 | AM24: 1 | AN24: 1 | AO24: 1
A25: =IF(C25=Retire!$D$12,"==>","") ->  | C25: 2031 | D25: 0 | E25: 0 | F25: 0 | G25: 136240.5528 | H25: 114728.8866 | I25: 0 | J25: 0 | K25: 0 | L25: 0 | M25: 0 | N25: 0 | O25: =IF(Rental!Q46>0,Rental!Q46,0) -> 0 | Q25: 250969.4394 | R25: 250969.4394 | S25: 0 | T25: 63 | U25: 61 | V25: 0 | W25: 1 | X25: 0 | Y25: 1 | Z25: 0 | AA25: 1 | AB25: 1 | AC25: 1 | AD25: 1 | AE25: 1 | AF25: 1 | AG25: 1 | AH25: 1 | AI25: 1 | AJ25: 1 | AK25: 1 | AL25: 1 | AM25: 1 | AN25: 1 | AO25: 1
A26: =IF(C26=Retire!$D$12,"==>","") ->  | C26: 2032 | D26: 0 | E26: 0 | F26: 0 | G26: 138965.3639 | H26: 117023.4643 | I26: 0 | J26: 0 | K26: 0 | L26: 0 | M26: 0 | N26: 0 | O26: =IF(Rental!Q47>0,Rental!Q47,0) -> 0 | Q26: 255988.8282 | R26: 255988.8282 | S26: 0 | T26: 64 | U26: 62 | V26: 0 | W26: 1 | X26: 0 | Y26: 1 | Z26: 0 | AA26: 1 | AB26: 1 | AC26: 1 | AD26: 1 | AE26: 1 | AF26: 1 | AG26: 1 | AH26: 1 | AI26: 1 | AJ26: 1 | AK26: 1 | AL26: 1 | AM26: 1 | AN26: 1 | AO26: 1
A27: =IF(C27=Retire!$D$12,"==>","") ->  | C27: 2033 | D27: 0 | E27: 0 | F27: 0 | G27: 141744.6712 | H27: 119363.9336 | I27: 0 | J27: 0 | K27: 0 | L27: 0 | M27: 0 | N27: 0 | O27: =IF(Rental!Q48>0,Rental!Q48,0) -> 0 | Q27: 261108.6048 | R27: 261108.6048 | S27: 0 | T27: 65 | U27: 63 | V27: 0 | W27: 1 | X27: 0 | Y27: 1 | Z27: 0 | AA27: 1 | AB27: 1 | AC27: 1 | AD27: 1 | AE27: 1 | AF27: 1 | AG27: 1 | AH27: 1 | AI27: 1 | AJ27: 1 | AK27: 1 | AL27: 1 | AM27: 1 | AN27: 1 | AO27: 1
A28: =IF(C28=Retire!$D$12,"==>","") -> ==> | C28: 2034 | D28: 38400 | E28: 0 | F28: 18000 | G28: 0 | H28: 121751.2123 | I28: 0 | J28: 0 | K28: 0 | L28: 0 | M28: 0 | N28: 0 | O28: =IF(Rental!Q49>0,Rental!Q49,0) -> 0 | Q28: 178151.2123 | R28: 172391.2123 | S28: 5760 | T28: 66 | U28: 64 | V28: 1 | W28: 1 | X28: 0 | Y28: 1 | Z28: 1 | AA28: 1 | AB28: 1 | AC28: 0 | AD28: 1 | AE28: 1 | AF28: 1 | AG28: 1 | AH28: 1 | AI28: 1 | AJ28: 1 | AK28: 1 | AL28: 1 | AM28: 1 | AN28: 1 | AO28: 1
A29: =IF(C29=Retire!$D$12,"==>","") ->  | C29: 2035 | D29: 38903.04 | E29: 0 | F29: 18360 | G29: 0 | H29: 124186.2365 | I29: 0 | J29: 0 | K29: 0 | L29: 0 | M29: 0 | N29: 0 | O29: =IF(Rental!Q50>0,Rental!Q50,0) -> 0 | Q29: 181449.2765 | R29: 175613.8205 | S29: 5835.456 | T29: 67 | U29: 65 | V29: 1 | W29: 1 | X29: 0 | Y29: 1 | Z29: 1 | AA29: 1 | AB29: 1 | AC29: 0 | AD29: 1 | AE29: 1 | AF29: 1 | AG29: 1 | AH29: 1 | AI29: 1 | AJ29: 1 | AK29: 1 | AL29: 1 | AM29: 1 | AN29: 1 | AO29: 1
A30: =IF(C30=Retire!$D$12,"==>","") ->  | C30: 2036 | D30: 39412.66982 | E30: 36000 | F30: 18727.2 | G30: 0 | H30: 0 | I30: 0 | J30: 0 | K30: 0 | L30: 0 | M30: 0 | N30: 0 | O30: =IF(Rental!Q51>0,Rental!Q51,0) -> 0 | Q30: 94139.86982 | R30: 82827.96935 | S30: 11311.90047 | T30: 68 | U30: 66 | V30: 1 | W30: 1 | X30: 1 | Y30: 1 | Z30: 1 | AA30: 1 | AB30: 1 | AC30: 0 | AD30: 1 | AE30: 0 | AF30: 1 | AG30: 1 | AH30: 1 | AI30: 1 | AJ30: 1 | AK30: 1 | AL30: 1 | AM30: 1 | AN30: 1 | AO30: 1
A31: =IF(C31=Retire!$D$12,"==>","") ->  | C31: 2037 | D31: 39928.9758 | E31: 36471.6 | F31: 19101.744 | G31: 0 | H31: 0 | I31: 0 | J31: 0 | K31: 0 | L31: 0 | M31: 0 | N31: 0 | O31: =IF(Rental!Q52>0,Rental!Q52,0) -> 0 | Q31: 95502.3198 | R31: 84042.23343 | S31: 11460.08637 | T31: 69 | U31: 67 | V31: 1 | W31: 1 | X31: 1 | Y31: 1 | Z31: 1 | AA31: 1 | AB31: 1 | AC31: 0 | AD31: 1 | AE31: 0 | AF31: 1 | AG31: 1 | AH31: 1 | AI31: 1 | AJ31: 1 | AK31: 1 | AL31: 1 | AM31: 1 | AN31: 1 | AO31: 1
A32: =IF(C32=Retire!$D$12,"==>","") ->  | C32: 2038 | D32: 40452.04538 | E32: 36949.37796 | F32: 19483.77888 | G32: 0 | H32: 0 | I32: 0 | J32: 0 | K32: 0 | L32: 0 | M32: 0 | N32: 0 | O32: =IF(Rental!Q53>0,Rental!Q53,0) -> 0 | Q32: 96885.20222 | R32: 85274.98872 | S32: 11610.2135 | T32: 70 | U32: 68 | V32: 1 | W32: 1 | X32: 1 | Y32: 1 | Z32: 1 | AA32: 1 | AB32: 1 | AC32: 0 | AD32: 1 | AE32: 0 | AF32: 1 | AG32: 1 | AH32: 1 | AI32: 1 | AJ32: 1 | AK32: 1 | AL32: 1 | AM32: 1 | AN32: 1 | AO32: 1
A33: =IF(C33=Retire!$D$12,"==>","") ->  | C33: 2039 | D33: 40981.96718 | E33: 37433.41481 | F33: 19873.45446 | G33: 0 | H33: 0 | I33: 0 | J33: 0 | K33: 0 | L33: 0 | M33: 0 | N33: 0 | O33: =IF(Rental!Q54>0,Rental!Q54,0) -> 0 | Q33: 98288.83645 | R33: 86526.52915 | S33: 11762.3073 | T33: 71 | U33: 69 | V33: 1 | W33: 1 | X33: 1 | Y33: 1 | Z33: 1 | AA33: 1 | AB33: 1 | AC33: 0 | AD33: 1 | AE33: 0 | AF33: 1 | AG33: 1 | AH33: 1 | AI33: 1 | AJ33: 1 | AK33: 1 | AL33: 1 | AM33: 1 | AN33: 1 | AO33: 1
A34: =IF(C34=Retire!$D$12,"==>","") ->  | C34: 2040 | D34: 41518.83095 | E34: 37923.79255 | F34: 20270.92355 | G34: 0 | H34: 0 | I34: 0 | J34: 0 | K34: 0 | L34: 0 | M34: 0 | N34: 0 | O34: =IF(Rental!Q55>0,Rental!Q55,0) -> 0 | Q34: 99713.54704 | R34: 87797.15351 | S34: 11916.39352 | T34: 72 | U34: 70 | V34: 1 | W34: 1 | X34: 1 | Y34: 1 | Z34: 1 | AA34: 1 | AB34: 1 | AC34: 0 | AD34: 1 | AE34: 0 | AF34: 1 | AG34: 1 | AH34: 1 | AI34: 1 | AJ34: 1 | AK34: 1 | AL34: 1 | AM34: 1 | AN34: 1 | AO34: 1
A35: =IF(C35=Retire!$D$12,"==>","") ->  | C35: 2041 | D35: 42062.72763 | E35: 38420.59423 | F35: 20676.34202 | G35: 0 | H35: 0 | I35: 0 | J35: 0 | K35: 0 | L35: 0 | M35: 0 | N35: 0 | O35: =IF(Rental!Q56>0,Rental!Q56,0) -> 0 | Q35: 101159.6639 | R35: 89087.1656 | S35: 12072.49828 | T35: 73 | U35: 71 | V35: 1 | W35: 1 | X35: 1 | Y35: 1 | Z35: 1 | AA35: 1 | AB35: 1 | AC35: 0 | AD35: 1 | AE35: 0 | AF35: 1 | AG35: 1 | AH35: 1 | AI35: 1 | AJ35: 1 | AK35: 1 | AL35: 1 | AM35: 1 | AN35: 1 | AO35: 1
A36: =IF(C36=Retire!$D$12,"==>","") ->  | C36: 2042 | D36: 42613.74936 | E36: 38923.90401 | F36: 21089.86886 | G36: 0 | H36: 0 | I36: 0 | J36: 0 | K36: 0 | L36: 0 | M36: 0 | N36: 0 | O36: =IF(Rental!Q57>0,Rental!Q57,0) -> 0 | Q36: 102627.5222 | R36: 90396.87423 | S36: 12230.64801 | T36: 74 | U36: 72 | V36: 1 | W36: 1 | X36: 1 | Y36: 1 | Z36: 1 | AA36: 1 | AB36: 1 | AC36: 0 | AD36: 1 | AE36: 0 | AF36: 1 | AG36: 1 | AH36: 1 | AI36: 1 | AJ36: 1 | AK36: 1 | AL36: 1 | AM36: 1 | AN36: 1 | AO36: 1
A37: =IF(C37=Retire!$D$12,"==>","") ->  | C37: 2043 | D37: 43171.98948 | E37: 39433.80715 | F37: 21511.66624 | G37: 0 | H37: 0 | I37: 0 | J37: 0 | K37: 0 | L37: 0 | M37: 0 | N37: 0 | O37: =IF(Rental!Q58>0,Rental!Q58,0) -> 0 | Q37: 104117.4629 | R37: 91726.59337 | S37: 12390.8695 | T37: 75 | U37: 73 | V37: 1 | W37: 1 | X37: 1 | Y37: 1 | Z37: 1 | AA37: 1 | AB37: 1 | AC37: 0 | AD37: 1 | AE37: 0 | AF37: 1 | AG37: 1 | AH37: 1 | AI37: 1 | AJ37: 1 | AK37: 1 | AL37: 1 | AM37: 1 | AN37: 1 | AO37: 1
A38: =IF(C38=Retire!$D$12,"==>","") ->  | C38: 2044 | D38: 43737.54254 | E38: 39950.39003 | F38: 21941.89956 | G38: 0 | H38: 0 | I38: 0 | J38: 0 | K38: 0 | L38: 0 | M38: 0 | N38: 0 | O38: =IF(Rental!Q59>0,Rental!Q59,0) -> 0 | Q38: 105629.8321 | R38: 93076.64224 | S38: 12553.18989 | T38: 76 | U38: 74 | V38: 1 | W38: 1 | X38: 1 | Y38: 1 | Z38: 1 | AA38: 1 | AB38: 1 | AC38: 0 | AD38: 1 | AE38: 0 | AF38: 1 | AG38: 1 | AH38: 1 | AI38: 1 | AJ38: 1 | AK38: 1 | AL38: 1 | AM38: 1 | AN38: 1 | AO38: 1
A39: =IF(C39=Retire!$D$12,"==>","") ->  | C39: 2045 | D39: 44310.50435 | E39: 40473.74014 | F39: 22380.73755 | G39: 0 | H39: 0 | I39: 0 | J39: 0 | K39: 0 | L39: 0 | M39: 0 | N39: 0 | O39: =IF(Rental!Q60>0,Rental!Q60,0) -> 0 | Q39: 107164.982 | R39: 94447.34537 | S39: 12717.63667 | T39: 77 | U39: 75 | V39: 1 | W39: 1 | X39: 1 | Y39: 1 | Z39: 1 | AA39: 1 | AB39: 1 | AC39: 0 | AD39: 1 | AE39: 0 | AF39: 1 | AG39: 1 | AH39: 1 | AI39: 1 | AJ39: 1 | AK39: 1 | AL39: 1 | AM39: 1 | AN39: 1 | AO39: 1
A40: =IF(C40=Retire!$D$12,"==>","") ->  | C40: 2046 | D40: 44890.97196 | E40: 41003.94613 | F40: 22828.3523 | G40: 0 | H40: 0 | I40: 0 | J40: 0 | K40: 0 | L40: 0 | M40: 0 | N40: 0 | O40: =IF(Rental!Q61>0,Rental!Q61,0) -> 0 | Q40: 108723.2704 | R40: 95839.03268 | S40: 12884.23771 | T40: 78 | U40: 76 | V40: 1 | W40: 1 | X40: 1 | Y40: 1 | Z40: 1 | AA40: 1 | AB40: 1 | AC40: 0 | AD40: 1 | AE40: 0 | AF40: 1 | AG40: 1 | AH40: 1 | AI40: 1 | AJ40: 1 | AK40: 1 | AL40: 1 | AM40: 1 | AN40: 1 | AO40: 1
A41: =IF(C41=Retire!$D$12,"==>","") ->  | C41: 2047 | D41: 45479.04369 | E41: 41541.09783 | F41: 23284.91935 | G41: 0 | H41: 0 | I41: 0 | J41: 0 | K41: 0 | L41: 0 | M41: 0 | N41: 0 | O41: =IF(Rental!Q62>0,Rental!Q62,0) -> 0 | Q41: 110305.0609 | R41: 97252.03964 | S41: 13053.02123 | T41: 79 | U41: 77 | V41: 1 | W41: 1 | X41: 1 | Y41: 1 | Z41: 1 | AA41: 1 | AB41: 1 | AC41: 0 | AD41: 1 | AE41: 0 | AF41: 1 | AG41: 1 | AH41: 1 | AI41: 1 | AJ41: 1 | AK41: 1 | AL41: 1 | AM41: 1 | AN41: 1 | AO41: 1
A42: =IF(C42=Retire!$D$12,"==>","") ->  | C42: 2048 | D42: 46074.81916 | E42: 42085.28621 | F42: 23750.61774 | G42: 0 | H42: 0 | I42: 0 | J42: 0 | K42: 0 | L42: 0 | M42: 0 | N42: 0 | O42: =IF(Rental!Q63>0,Rental!Q63,0) -> 0 | Q42: 111910.7231 | R42: 98686.7073 | S42: 13224.01581 | T42: 80 | U42: 78 | V42: 1 | W42: 1 | X42: 1 | Y42: 1 | Z42: 1 | AA42: 1 | AB42: 1 | AC42: 0 | AD42: 1 | AE42: 0 | AF42: 1 | AG42: 1 | AH42: 1 | AI42: 1 | AJ42: 1 | AK42: 1 | AL42: 1 | AM42: 1 | AN42: 1 | AO42: 1
A43: =IF(C43=Retire!$D$12,"==>","") ->  | C43: 2049 | D43: 46678.39929 | E43: 42636.60346 | F43: 24225.63009 | G43: 0 | H43: 0 | I43: 0 | J43: 0 | K43: 0 | L43: 0 | M43: 0 | N43: 0 | O43: =IF(Rental!Q64>0,Rental!Q64,0) -> 0 | Q43: 113540.6328 | R43: 100143.3824 | S43: 13397.25041 | T43: 81 | U43: 79 | V43: 1 | W43: 1 | X43: 1 | Y43: 1 | Z43: 1 | AA43: 1 | AB43: 1 | AC43: 0 | AD43: 1 | AE43: 0 | AF43: 1 | AG43: 1 | AH43: 1 | AI43: 1 | AJ43: 1 | AK43: 1 | AL43: 1 | AM43: 1 | AN43: 1 | AO43: 1
A44: =IF(C44=Retire!$D$12,"==>","") ->  | C44: 2050 | D44: 47289.88632 | E44: 43195.14296 | F44: 24710.14269 | G44: 0 | H44: 0 | I44: 0 | J44: 0 | K44: 0 | L44: 0 | M44: 0 | N44: 0 | O44: =IF(Rental!Q65>0,Rental!Q65,0) -> 0 | Q44: 115195.172 | R44: 101622.4176 | S44: 13572.75439 | T44: 82 | U44: 80 | V44: 1 | W44: 1 | X44: 1 | Y44: 1 | Z44: 1 | AA44: 1 | AB44: 1 | AC44: 0 | AD44: 1 | AE44: 0 | AF44: 1 | AG44: 1 | AH44: 1 | AI44: 1 | AJ44: 1 | AK44: 1 | AL44: 1 | AM44: 1 | AN44: 1 | AO44: 1
A45: =IF(C45=Retire!$D$12,"==>","") ->  | C45: 2051 | D45: 47909.38383 | E45: 43760.99934 | F45: 25204.34555 | G45: 0 | H45: 0 | I45: 0 | J45: 0 | K45: 0 | L45: 0 | M45: 0 | N45: 0 | O45: =IF(Rental!Q66>0,Rental!Q66,0) -> 0 | Q45: 116874.7287 | R45: 103124.1712 | S45: 13750.55748 | T45: 83 | U45: 81 | V45: 1 | W45: 1 | X45: 1 | Y45: 1 | Z45: 1 | AA45: 1 | AB45: 1 | AC45: 0 | AD45: 1 | AE45: 0 | AF45: 1 | AG45: 1 | AH45: 1 | AI45: 1 | AJ45: 1 | AK45: 1 | AL45: 1 | AM45: 1 | AN45: 1 | AO45: 1
A46: =IF(C46=Retire!$D$12,"==>","") ->  | C46: 2052 | D46: 48536.99676 | E46: 44334.26843 | F46: 25708.43246 | G46: 0 | H46: 0 | I46: 0 | J46: 0 | K46: 0 | L46: 0 | M46: 0 | N46: 0 | O46: =IF(Rental!Q67>0,Rental!Q67,0) -> 0 | Q46: 118579.6976 | R46: 104649.0079 | S46: 13930.68978 | T46: 84 | U46: 82 | V46: 1 | W46: 1 | X46: 1 | Y46: 1 | Z46: 1 | AA46: 1 | AB46: 1 | AC46: 0 | AD46: 1 | AE46: 0 | AF46: 1 | AG46: 1 | AH46: 1 | AI46: 1 | AJ46: 1 | AK46: 1 | AL46: 1 | AM46: 1 | AN46: 1 | AO46: 1
A47: =IF(C47=Retire!$D$12,"==>","") ->  | C47: 2053 | D47: 49172.83142 | E47: 44915.04734 | F47: 26222.60111 | G47: 0 | H47: 0 | I47: 0 | J47: 0 | K47: 0 | L47: 0 | M47: 0 | N47: 0 | O47: =IF(Rental!Q68>0,Rental!Q68,0) -> 0 | Q47: 120310.4799 | R47: 106197.2981 | S47: 14113.18181 | T47: 85 | U47: 83 | V47: 1 | W47: 1 | X47: 1 | Y47: 1 | Z47: 1 | AA47: 1 | AB47: 1 | AC47: 0 | AD47: 1 | AE47: 0 | AF47: 1 | AG47: 1 | AH47: 1 | AI47: 1 | AJ47: 1 | AK47: 1 | AL47: 1 | AM47: 1 | AN47: 1 | AO47: 1
A48: =IF(C48=Retire!$D$12,"==>","") ->  | C48: 2054 | D48: 49816.99551 | E48: 45503.43446 | F48: 26747.05313 | G48: 0 | H48: 0 | I48: 0 | J48: 0 | K48: 0 | L48: 0 | M48: 0 | N48: 0 | O48: =IF(Rental!Q69>0,Rental!Q69,0) -> 0 | Q48: =SUM(D48:O48) -> 122067.4831 | R48: =SUM((D48*$D$14)+(E48*$E$14)+(F48*$F$14)+(G48*$G$14)+(H48*$H$14)+(I48*$I$14)+(J48*$J$14)+(K48*$K$14)+(L48*$L$14)+(M48*$M$14)+(N48*$N$14)+(O48*$O$14)) -> 107769.4186 | S48: =Q48-R48 -> 14298.0645 | T48: 86 | U48: 84 | V48: 1 | W48: 1 | X48: 1 | Y48: 1 | Z48: 1 | AA48: 1 | AB48: 1 | AC48: 0 | AD48: 1 | AE48: 0 | AF48: 1 | AG48: 1 | AH48: 1 | AI48: 1 | AJ48: 1 | AK48: 1 | AL48: 1 | AM48: 1 | AN48: 1 | AO48: 1
A49: =IF(C49=Retire!$D$12,"==>","") ->  | C49: 2055 | D49: 50469.59815 | E49: 46099.52946 | F49: 27281.99419 | G49: 0 | H49: 0 | I49: 0 | J49: 0 | K49: 0 | L49: 0 | M49: 0 | N49: 0 | O49: =IF(Rental!Q70>0,Rental!Q70,0) -> 0 | Q49: 123851.1218 | R49: 109365.7527 | S49: 14485.36914 | T49: 87 | U49: 85 | V49: 1 | W49: 1 | X49: 1 | Y49: 1 | Z49: 1 | AA49: 1 | AB49: 1 | AC49: 0 | AD49: 1 | AE49: 0 | AF49: 1 | AG49: 1 | AH49: 1 | AI49: 1 | AJ49: 1 | AK49: 1 | AL49: 1 | AM49: 1 | AN49: 1 | AO49: 1
A50: =IF(C50=Retire!$D$12,"==>","") ->  | C50: 2056 | D50: 51130.74989 | E50: 46703.43329 | F50: 27827.63407 | G50: 0 | H50: 0 | I50: 0 | J50: 0 | K50: 0 | L50: 0 | M50: 0 | N50: 0 | O50: =IF(Rental!Q71>0,Rental!Q71,0) -> 0 | Q50: 125661.8173 | R50: 110986.6898 | S50: 14675.12748 | T50: 88 | U50: 86 | V50: 1 | W50: 1 | X50: 1 | Y50: 1 | Z50: 1 | AA50: 1 | AB50: 1 | AC50: 0 | AD50: 1 | AE50: 0 | AF50: 1 | AG50: 1 | AH50: 1 | AI50: 1 | AJ50: 1 | AK50: 1 | AL50: 1 | AM50: 1 | AN50: 1 | AO50: 1
A51: =IF(C51=Retire!$D$12,"==>","") ->  | C51: 2057 | D51: 51800.56271 | E51: 47315.24827 | F51: 28384.18676 | G51: 0 | H51: 0 | I51: 0 | J51: 0 | K51: 0 | L51: 0 | M51: 0 | N51: 0 | O51: =IF(Rental!Q72>0,Rental!Q72,0) -> 0 | Q51: 127499.9977 | R51: 112632.6261 | S51: 14867.37165 | T51: 89 | U51: 87 | V51: 1 | W51: 1 | X51: 1 | Y51: 1 | Z51: 1 | AA51: 1 | AB51: 1 | AC51: 0 | AD51: 1 | AE51: 0 | AF51: 1 | AG51: 1 | AH51: 1 | AI51: 1 | AJ51: 1 | AK51: 1 | AL51: 1 | AM51: 1 | AN51: 1 | AO51: 1
A52: =IF(C52=Retire!$D$12,"==>","") ->  | C52: 2058 | D52: 52479.15008 | E52: 47935.07802 | F52: 28951.87049 | G52: 0 | H52: 0 | I52: 0 | J52: 0 | K52: 0 | L52: 0 | M52: 0 | N52: 0 | O52: =IF(Rental!Q73>0,Rental!Q73,0) -> 0 | Q52: 129366.0986 | R52: 114303.9644 | S52: 15062.13422 | T52: 90 | U52: 88 | V52: 1 | W52: 1 | X52: 1 | Y52: 1 | Z52: 1 | AA52: 1 | AB52: 1 | AC52: 0 | AD52: 1 | AE52: 0 | AF52: 1 | AG52: 1 | AH52: 1 | AI52: 1 | AJ52: 1 | AK52: 1 | AL52: 1 | AM52: 1 | AN52: 1 | AO52: 1
A53: =IF(C53=Retire!$D$12,"==>","") ->  | C53: 2059 | D53: 53166.62695 | E53: 48563.02754 | F53: 29530.9079 | G53: 0 | H53: 0 | I53: 0 | J53: 0 | K53: 0 | L53: 0 | M53: 0 | N53: 0 | O53: =IF(Rental!Q74>0,Rental!Q74,0) -> 0 | Q53: 131260.5624 | R53: 116001.1142 | S53: 15259.44817 | T53: 91 | U53: 89 | V53: 1 | W53: 1 | X53: 1 | Y53: 1 | Z53: 1 | AA53: 1 | AB53: 1 | AC53: 0 | AD53: 1 | AE53: 0 | AF53: 1 | AG53: 1 | AH53: 1 | AI53: 1 | AJ53: 1 | AK53: 1 | AL53: 1 | AM53: 1 | AN53: 1 | AO53: 1
A54: =IF(C54=Retire!$D$12,"==>","") ->  | C54: 2060 | D54: 53863.10976 | E54: 49199.2032 | F54: 30121.52606 | G54: 0 | H54: 0 | I54: 0 | J54: 0 | K54: 0 | L54: 0 | M54: 0 | N54: 0 | O54: =IF(Rental!Q75>0,Rental!Q75,0) -> 0 | Q54: 133183.839 | R54: 117724.4921 | S54: 15459.34694 | T54: 92 | U54: 90 | V54: 1 | W54: 1 | X54: 1 | Y54: 1 | Z54: 1 | AA54: 1 | AB54: 1 | AC54: 0 | AD54: 1 | AE54: 0 | AF54: 1 | AG54: 1 | AH54: 1 | AI54: 1 | AJ54: 1 | AK54: 1 | AL54: 1 | AM54: 1 | AN54: 1 | AO54: 1
A55: =IF(C55=Retire!$D$12,"==>","") ->  | C55: 2061 | D55: 54568.7165 | E55: 49843.71277 | F55: 30723.95658 | G55: 0 | H55: 0 | I55: 0 | J55: 0 | K55: 0 | L55: 0 | M55: 0 | N55: 0 | O55: =IF(Rental!Q76>0,Rental!Q76,0) -> 0 | Q55: 135136.3858 | R55: 119474.5215 | S55: 15661.86439 | T55: 93 | U55: 91 | V55: 1 | W55: 1 | X55: 1 | Y55: 1 | Z55: 1 | AA55: 1 | AB55: 1 | AC55: 0 | AD55: 1 | AE55: 0 | AF55: 1 | AG55: 1 | AH55: 1 | AI55: 1 | AJ55: 1 | AK55: 1 | AL55: 1 | AM55: 1 | AN55: 1 | AO55: 1
A56: =IF(C56=Retire!$D$12,"==>","") ->  | C56: 2062 | D56: 55283.56669 | E56: 50496.6654 | F56: 31338.43571 | G56: 0 | H56: 0 | I56: 0 | J56: 0 | K56: 0 | L56: 0 | M56: 0 | N56: 0 | O56: =IF(Rental!Q77>0,Rental!Q77,0) -> 0 | Q56: 137118.6678 | R56: 121251.633 | S56: 15867.03481 | T56: 94 | U56: 92 | V56: 1 | W56: 1 | X56: 1 | Y56: 1 | Z56: 1 | AA56: 1 | AB56: 1 | AC56: 0 | AD56: 1 | AE56: 0 | AF56: 1 | AG56: 1 | AH56: 1 | AI56: 1 | AJ56: 1 | AK56: 1 | AL56: 1 | AM56: 1 | AN56: 1 | AO56: 1
A57: =IF(C57=Retire!$D$12,"==>","") ->  | C57: 2063 | D57: 56007.78141 | E57: 51158.17172 | F57: 31965.20443 | G57: 0 | H57: 0 | I57: 0 | J57: 0 | K57: 0 | L57: 0 | M57: 0 | N57: 0 | O57: =IF(Rental!Q78>0,Rental!Q78,0) -> 0 | Q57: 139131.1576 | R57: 123056.2646 | S57: 16074.89297 | T57: 95 | U57: 93 | V57: 1 | W57: 1 | X57: 1 | Y57: 1 | Z57: 1 | AA57: 1 | AB57: 1 | AC57: 0 | AD57: 1 | AE57: 0 | AF57: 1 | AG57: 1 | AH57: 1 | AI57: 1 | AJ57: 1 | AK57: 1 | AL57: 1 | AM57: 1 | AN57: 1 | AO57: 1
A58: =IF(C58=Retire!$D$12,"==>","") ->  | C58: 2064 | D58: 56741.48335 | E58: 51828.34377 | F58: 32604.50851 | G58: 0 | H58: 0 | I58: 0 | J58: 0 | K58: 0 | L58: 0 | M58: 0 | N58: 0 | O58: =IF(Rental!Q79>0,Rental!Q79,0) -> 0 | Q58: 141174.3356 | R58: 124888.8616 | S58: 16285.47407 | T58: 96 | U58: 94 | V58: 1 | W58: 1 | X58: 1 | Y58: 1 | Z58: 1 | AA58: 1 | AB58: 1 | AC58: 0 | AD58: 1 | AE58: 0 | AF58: 1 | AG58: 1 | AH58: 1 | AI58: 1 | AJ58: 1 | AK58: 1 | AL58: 1 | AM58: 1 | AN58: 1 | AO58: 1
A59: =IF(C59=Retire!$D$12,"==>","") ->  | C59: 2065 | D59: 57484.79678 | E59: 52507.29507 | F59: 33256.59868 | G59: 0 | H59: 0 | I59: 0 | J59: 0 | K59: 0 | L59: 0 | M59: 0 | N59: 0 | O59: =IF(Rental!Q80>0,Rental!Q80,0) -> 0 | Q59: 143248.6905 | R59: 126749.8768 | S59: 16498.81378 | T59: 97 | U59: 95 | V59: 1 | W59: 1 | X59: 1 | Y59: 1 | Z59: 1 | AA59: 1 | AB59: 1 | AC59: 0 | AD59: 1 | AE59: 0 | AF59: 1 | AG59: 1 | AH59: 1 | AI59: 1 | AJ59: 1 | AK59: 1 | AL59: 1 | AM59: 1 | AN59: 1 | AO59: 1
A60: =IF(C60=Retire!$D$12,"==>","") ->  | C60: 2066 | D60: 58237.84762 | E60: 53195.14064 | F60: 33921.73066 | G60: 0 | H60: 0 | I60: 0 | J60: 0 | K60: 0 | L60: 0 | M60: 0 | N60: 0 | O60: =IF(Rental!Q81>0,Rental!Q81,0) -> 0 | Q60: 145354.7189 | R60: 128639.7707 | S60: 16714.94824 | T60: 98 | U60: 96 | V60: 1 | W60: 1 | X60: 1 | Y60: 1 | Z60: 1 | AA60: 1 | AB60: 1 | AC60: 0 | AD60: 1 | AE60: 0 | AF60: 1 | AG60: 1 | AH60: 1 | AI60: 1 | AJ60: 1 | AK60: 1 | AL60: 1 | AM60: 1 | AN60: 1 | AO60: 1
A61: =IF(C61=Retire!$D$12,"==>","") ->  | C61: 2067 | D61: 59000.76342 | E61: 53891.99698 | F61: 34600.16527 | G61: 0 | H61: 0 | I61: 0 | J61: 0 | K61: 0 | L61: 0 | M61: 0 | N61: 0 | O61: =IF(Rental!Q82>0,Rental!Q82,0) -> 0 | Q61: 147492.9257 | R61: 130559.0116 | S61: 16933.91406 | T61: 99 | U61: 97 | V61: 1 | W61: 1 | X61: 1 | Y61: 1 | Z61: 1 | AA61: 1 | AB61: 1 | AC61: 0 | AD61: 1 | AE61: 0 | AF61: 1 | AG61: 1 | AH61: 1 | AI61: 1 | AJ61: 1 | AK61: 1 | AL61: 1 | AM61: 1 | AN61: 1 | AO61: 1
A62: =IF(C62=Retire!$D$12,"==>","") ->  | C62: 2068 | D62: 59773.67342 | E62: 54597.98214 | F62: 35292.16858 | G62: 0 | H62: 0 | I62: 0 | J62: 0 | K62: 0 | L62: 0 | M62: 0 | N62: 0 | O62: =IF(Rental!Q83>0,Rental!Q83,0) -> 0 | Q62: 149663.8241 | R62: 132508.0758 | S62: 17155.74833 | T62: 100 | U62: 98 | V62: 1 | W62: 1 | X62: 1 | Y62: 1 | Z62: 1 | AA62: 1 | AB62: 1 | AC62: 0 | AD62: 1 | AE62: 0 | AF62: 1 | AG62: 1 | AH62: 1 | AI62: 1 | AJ62: 1 | AK62: 1 | AL62: 1 | AM62: 1 | AN62: 1 | AO62: 1
A63: =IF(C63=Retire!$D$12,"==>","") ->  | C63: 2069 | D63: 60556.70854 | E63: 55313.21571 | F63: 35998.01195 | G63: 0 | H63: 0 | I63: 0 | J63: 0 | K63: 0 | L63: 0 | M63: 0 | N63: 0 | O63: =IF(Rental!Q84>0,Rental!Q84,0) -> 0 | Q63: 151867.9362 | R63: 134487.4476 | S63: 17380.48864 | T63: 101 | U63: 99 | V63: 1 | W63: 1 | X63: 1 | Y63: 1 | Z63: 1 | AA63: 1 | AB63: 1 | AC63: 0 | AD63: 1 | AE63: 0 | AF63: 1 | AG63: 1 | AH63: 1 | AI63: 1 | AJ63: 1 | AK63: 1 | AL63: 1 | AM63: 1 | AN63: 1 | AO63: 1
A64: =IF(C64=Retire!$D$12,"==>","") ->  | C64: 2070 | D64: 61350.00142 | E64: 56037.81883 | F64: 36717.97219 | G64: 0 | H64: 0 | I64: 0 | J64: 0 | K64: 0 | L64: 0 | M64: 0 | N64: 0 | O64: =IF(Rental!Q85>0,Rental!Q85,0) -> 0 | Q64: 154105.7924 | R64: 136497.6194 | S64: 17608.17304 | T64: 102 | U64: 100 | V64: 1 | W64: 1 | X64: 1 | Y64: 1 | Z64: 1 | AA64: 1 | AB64: 1 | AC64: 0 | AD64: 1 | AE64: 0 | AF64: 1 | AG64: 1 | AH64: 1 | AI64: 1 | AJ64: 1 | AK64: 1 | AL64: 1 | AM64: 1 | AN64: 1 | AO64: 1
A65: =IF(C65=Retire!$D$12,"==>","") ->  | C65: =C64+1 -> 2071 | D65: 62153.68644 | E65: 56771.91426 | F65: 37452.33163 | G65: 0 | H65: 0 | I65: 0 | J65: 0 | K65: 0 | L65: 0 | M65: 0 | N65: 0 | O65: =IF(Rental!Q86>0,Rental!Q86,0) -> 0 | Q65: =SUM(D65:O65) -> 156377.9323 | R65: =SUM((D65*$D$14)+(E65*$E$14)+(F65*$F$14)+(G65*$G$14)+(H65*$H$14)+(I65*$I$14)+(J65*$J$14)+(K65*$K$14)+(L65*$L$14)+(M65*$M$14)+(N65*$N$14)+(O65*$O$14)) -> 138539.0922 | S65: =Q65-R65 -> 17838.84011 | T65: 103 | U65: 101 | V65: 1 | W65: 1 | X65: 1 | Y65: 1 | Z65: 1 | AA65: 1 | AB65: 1 | AC65: 0 | AD65: 1 | AE65: 0 | AF65: 1 | AG65: 1 | AH65: 1 | AI65: 1 | AJ65: 1 | AK65: 1 | AL65: 1 | AM65: 1 | AN65: 1 | AO65: 1
A66: =IF(C66=Retire!$D$12,"==>","") ->  | C66: 2072 | D66: 62967.89974 | E66: 57515.62634 | F66: 38201.37826 | G66: 0 | H66: 0 | I66: 0 | J66: 0 | K66: 0 | L66: 0 | M66: 0 | N66: 0 | O66: =IF(Rental!Q87>0,Rental!Q87,0) -> 0 | Q66: 158684.9043 | R66: 140612.3754 | S66: 18072.52891 | T66: 104 | U66: 102 | V66: 1 | W66: 1 | X66: 1 | Y66: 1 | Z66: 1 | AA66: 1 | AB66: 1 | AC66: 0 | AD66: 1 | AE66: 0 | AF66: 1 | AG66: 1 | AH66: 1 | AI66: 1 | AJ66: 1 | AK66: 1 | AL66: 1 | AM66: 1 | AN66: 1 | AO66: 1
A67: =IF(C67=Retire!$D$12,"==>","") ->  | C67: 2073 | D67: 63792.77922 | E67: 58269.08104 | F67: 38965.40583 | G67: 0 | H67: 0 | I67: 0 | J67: 0 | K67: 0 | L67: 0 | M67: 0 | N67: 0 | O67: =IF(Rental!Q88>0,Rental!Q88,0) -> 0 | Q67: 161027.2661 | R67: 142717.9871 | S67: 18309.27904 | T67: 105 | U67: 103 | V67: 1 | W67: 1 | X67: 1 | Y67: 1 | Z67: 1 | AA67: 1 | AB67: 1 | AC67: 0 | AD67: 1 | AE67: 0 | AF67: 1 | AG67: 1 | AH67: 1 | AI67: 1 | AJ67: 1 | AK67: 1 | AL67: 1 | AM67: 1 | AN67: 1 | AO67: 1
A68: =IF(C68=Retire!$D$12,"==>","") ->  | C68: 2074 | D68: 64628.46463 | E68: 59032.406 | F68: 39744.71395 | G68: 0 | H68: 0 | I68: 0 | J68: 0 | K68: 0 | L68: 0 | M68: 0 | N68: 0 | O68: =IF(Rental!Q89>0,Rental!Q89,0) -> 0 | Q68: 163405.5846 | R68: 144856.454 | S68: 18549.13059 | T68: 106 | U68: 104 | V68: 1 | W68: 1 | X68: 1 | Y68: 1 | Z68: 1 | AA68: 1 | AB68: 1 | AC68: 0 | AD68: 1 | AE68: 0 | AF68: 1 | AG68: 1 | AH68: 1 | AI68: 1 | AJ68: 1 | AK68: 1 | AL68: 1 | AM68: 1 | AN68: 1 | AO68: 1
A69: =IF(C69=Retire!$D$12,"==>","") ->  | C69: 2075 | D69: 65475.09752 | E69: 59805.73052 | F69: 40539.60822 | G69: 0 | H69: 0 | I69: 0 | J69: 0 | K69: 0 | L69: 0 | M69: 0 | N69: 0 | O69: =IF(Rental!Q90>0,Rental!Q90,0) -> 0 | Q69: 165820.4363 | R69: 147028.3121 | S69: 18792.12421 | T69: 107 | U69: 105 | V69: 1 | W69: 1 | X69: 1 | Y69: 1 | Z69: 1 | AA69: 1 | AB69: 1 | AC69: 0 | AD69: 1 | AE69: 0 | AF69: 1 | AG69: 1 | AH69: 1 | AI69: 1 | AJ69: 1 | AK69: 1 | AL69: 1 | AM69: 1 | AN69: 1 | AO69: 1
A70: =IF(C70=Retire!$D$12,"==>","") ->  | C70: 2076 | D70: 66332.82129 | E70: 60589.18559 | F70: 41350.40039 | G70: 0 | H70: 0 | I70: 0 | J70: 0 | K70: 0 | L70: 0 | M70: 0 | N70: 0 | O70: =IF(Rental!Q91>0,Rental!Q91,0) -> 0 | Q70: 168272.4073 | R70: 149234.1062 | S70: 19038.30103 | T70: 108 | U70: 106 | V70: 1 | W70: 1 | X70: 1 | Y70: 1 | Z70: 1 | AA70: 1 | AB70: 1 | AC70: 0 | AD70: 1 | AE70: 0 | AF70: 1 | AG70: 1 | AH70: 1 | AI70: 1 | AJ70: 1 | AK70: 1 | AL70: 1 | AM70: 1 | AN70: 1 | AO70: 1
A71: =IF(C71=Retire!$D$12,"==>","") ->  | C71: 2077 | D71: 67201.78125 | E71: 61382.90392 | F71: 42177.4084 | G71: 0 | H71: 0 | I71: 0 | J71: 0 | K71: 0 | L71: 0 | M71: 0 | N71: 0 | O71: =IF(Rental!Q92>0,Rental!Q92,0) -> 0 | Q71: 170762.0936 | R71: 151474.3908 | S71: 19287.70278 | T71: 109 | U71: 107 | V71: 1 | W71: 1 | X71: 1 | Y71: 1 | Z71: 1 | AA71: 1 | AB71: 1 | AC71: 0 | AD71: 1 | AE71: 0 | AF71: 1 | AG71: 1 | AH71: 1 | AI71: 1 | AJ71: 1 | AK71: 1 | AL71: 1 | AM71: 1 | AN71: 1 | AO71: 1
A72: =IF(C72=Retire!$D$12,"==>","") ->  | C72: 2078 | D72: 68082.12459 | E72: 62187.01996 | F72: 43020.95656 | G72: 0 | H72: 0 | I72: 0 | J72: 0 | K72: 0 | L72: 0 | M72: 0 | N72: 0 | O72: =IF(Rental!Q93>0,Rental!Q93,0) -> 0 | Q72: 173290.1011 | R72: 153749.7294 | S72: 19540.37168 | T72: 110 | U72: 108 | V72: 1 | W72: 1 | X72: 1 | Y72: 1 | Z72: 1 | AA72: 1 | AB72: 1 | AC72: 0 | AD72: 1 | AE72: 0 | AF72: 1 | AG72: 1 | AH72: 1 | AI72: 1 | AJ72: 1 | AK72: 1 | AL72: 1 | AM72: 1 | AN72: 1 | AO72: 1
A73: =IF(C73=Retire!$D$12,"==>","") ->  | C73: 2079 | D73: 68974.00042 | E73: 63001.66993 | F73: 43881.3757 | G73: 0 | H73: 0 | I73: 0 | J73: 0 | K73: 0 | L73: 0 | M73: 0 | N73: 0 | O73: =IF(Rental!Q94>0,Rental!Q94,0) -> 0 | Q73: 175857.046 | R73: 156060.6955 | S73: 19796.35055 | T73: 111 | U73: 109 | V73: 1 | W73: 1 | X73: 1 | Y73: 1 | Z73: 1 | AA73: 1 | AB73: 1 | AC73: 0 | AD73: 1 | AE73: 0 | AF73: 1 | AG73: 1 | AH73: 1 | AI73: 1 | AJ73: 1 | AK73: 1 | AL73: 1 | AM73: 1 | AN73: 1 | AO73: 1
A74: =IF(C74=Retire!$D$12,"==>","") ->  | C74: 2080 | D74: 69877.55983 | E74: 63826.9918 | F74: 44759.00321 | G74: 0 | H74: 0 | I74: 0 | J74: 0 | K74: 0 | L74: 0 | M74: 0 | N74: 0 | O74: =IF(Rental!Q95>0,Rental!Q95,0) -> 0 | Q74: 178463.5548 | R74: 158407.8721 | S74: 20055.68274 | T74: 112 | U74: 110 | V74: 1 | W74: 1 | X74: 1 | Y74: 1 | Z74: 1 | AA74: 1 | AB74: 1 | AC74: 0 | AD74: 1 | AE74: 0 | AF74: 1 | AG74: 1 | AH74: 1 | AI74: 1 | AJ74: 1 | AK74: 1 | AL74: 1 | AM74: 1 | AN74: 1 | AO74: 1
A75: =IF(C75=Retire!$D$12,"==>","") ->  | C75: 2081 | D75: 70792.95586 | E75: 64663.12539 | F75: 45654.18327 | G75: 0 | H75: 0 | I75: 0 | J75: 0 | K75: 0 | L75: 0 | M75: 0 | N75: 0 | O75: =IF(Rental!Q96>0,Rental!Q96,0) -> 0 | Q75: 181110.2645 | R75: 160791.8523 | S75: 20318.41219 | T75: 113 | U75: 111 | V75: 1 | W75: 1 | X75: 1 | Y75: 1 | Z75: 1 | AA75: 1 | AB75: 1 | AC75: 0 | AD75: 1 | AE75: 0 | AF75: 1 | AG75: 1 | AH75: 1 | AI75: 1 | AJ75: 1 | AK75: 1 | AL75: 1 | AM75: 1 | AN75: 1 | AO75: 1
A76: =IF(C76=Retire!$D$12,"==>","") ->  | C76: 2082 | D76: 71720.34358 | E76: 65510.21234 | F76: 46567.26694 | G76: 0 | H76: 0 | I76: 0 | J76: 0 | K76: 0 | L76: 0 | M76: 0 | N76: 0 | O76: =IF(Rental!Q97>0,Rental!Q97,0) -> 0 | Q76: 183797.8229 | R76: 163213.2395 | S76: 20584.58339 | T76: 114 | U76: 112 | V76: 1 | W76: 1 | X76: 1 | Y76: 1 | Z76: 1 | AA76: 1 | AB76: 1 | AC76: 0 | AD76: 1 | AE76: 0 | AF76: 1 | AG76: 1 | AH76: 1 | AI76: 1 | AJ76: 1 | AK76: 1 | AL76: 1 | AM76: 1 | AN76: 1 | AO76: 1
A77: =IF(C77=Retire!$D$12,"==>","") ->  | C77: 2083 | D77: 72659.88008 | E77: 66368.39612 | F77: 47498.61228 | G77: 0 | H77: 0 | I77: 0 | J77: 0 | K77: 0 | L77: 0 | M77: 0 | N77: 0 | O77: =IF(Rental!Q98>0,Rental!Q98,0) -> 0 | Q77: 186526.8885 | R77: 165672.647 | S77: 20854.24143 | T77: 115 | U77: 113 | V77: 1 | W77: 1 | X77: 1 | Y77: 1 | Z77: 1 | AA77: 1 | AB77: 1 | AC77: 0 | AD77: 1 | AE77: 0 | AF77: 1 | AG77: 1 | AH77: 1 | AI77: 1 | AJ77: 1 | AK77: 1 | AL77: 1 | AM77: 1 | AN77: 1 | AO77: 1
A78: =IF(C78=Retire!$D$12,"==>","") ->  | C78: 2084 | D78: 73611.72451 | E78: 67237.82211 | F78: 48448.58452 | G78: 0 | H78: 0 | I78: 0 | J78: 0 | K78: 0 | L78: 0 | M78: 0 | N78: 0 | O78: =IF(Rental!Q99>0,Rental!Q99,0) -> 0 | Q78: 189298.1311 | R78: 168170.6991 | S78: 21127.43199 | T78: 116 | U78: 114 | V78: 1 | W78: 1 | X78: 1 | Y78: 1 | Z78: 1 | AA78: 1 | AB78: 1 | AC78: 0 | AD78: 1 | AE78: 0 | AF78: 1 | AG78: 1 | AH78: 1 | AI78: 1 | AJ78: 1 | AK78: 1 | AL78: 1 | AM78: 1 | AN78: 1 | AO78: 1
A79: =IF(C79=Retire!$D$12,"==>","") ->  | C79: 2085 | D79: 74576.0381 | E79: 68118.63758 | F79: 49417.55621 | G79: 0 | H79: 0 | I79: 0 | J79: 0 | K79: 0 | L79: 0 | M79: 0 | N79: 0 | O79: =IF(Rental!Q100>0,Rental!Q100,0) -> 0 | Q79: 192112.2319 | R79: 170708.0305 | S79: 21404.20135 | T79: 117 | U79: 115 | V79: 1 | W79: 1 | X79: 1 | Y79: 1 | Z79: 1 | AA79: 1 | AB79: 1 | AC79: 0 | AD79: 1 | AE79: 0 | AF79: 1 | AG79: 1 | AH79: 1 | AI79: 1 | AJ79: 1 | AK79: 1 | AL79: 1 | AM79: 1 | AN79: 1 | AO79: 1
A80: =IF(C80=Retire!$D$12,"==>","") ->  | C80: 2086 | D80: 75552.9842 | E80: 69010.99173 | F80: 50405.90734 | G80: 0 | H80: 0 | I80: 0 | J80: 0 | K80: 0 | L80: 0 | M80: 0 | N80: 0 | O80: =IF(Rental!Q101>0,Rental!Q101,0) -> 0 | Q80: 194969.8833 | R80: 173285.2869 | S80: 21684.59639 | T80: 118 | U80: 116 | V80: 1 | W80: 1 | X80: 1 | Y80: 1 | Z80: 1 | AA80: 1 | AB80: 1 | AC80: 0 | AD80: 1 | AE80: 0 | AF80: 1 | AG80: 1 | AH80: 1 | AI80: 1 | AJ80: 1 | AK80: 1 | AL80: 1 | AM80: 1 | AN80: 1 | AO80: 1
A81: =IF(C81=Retire!$D$12,"==>","") ->  | C81: 2087 | D81: 76542.72829 | E81: 69915.03572 | F81: 51414.02548 | G81: 0 | H81: 0 | I81: 0 | J81: 0 | K81: 0 | L81: 0 | M81: 0 | N81: 0 | O81: =IF(Rental!Q102>0,Rental!Q102,0) -> 0 | Q81: 197871.7895 | R81: 175903.1249 | S81: 21968.6646 | T81: 119 | U81: 117 | V81: =IF(C81>=$D$11,1,0) -> 1 | W81: =IF($D$12<>"",IF(C81<$D$12,1,0),1) -> 1 | X81: =IF(C81>=$E$11,1,0) -> 1 | Y81: =IF($E$12<>"",IF(C81<$E$12,1,0),1) -> 1 | Z81: =IF(C81>=$F$11,1,0) -> 1 | AA81: =IF($F$12<>"",IF(C81<$F$12,1,0),1) -> 1 | AB81: =IF(C81>=$G$11,1,0) -> 1 | AC81: =IF($G$12<>"",IF(C81<$G$12,1,0),1) -> 0 | AD81: =IF(C81>=$H$11,1,0) -> 1 | AE81: =IF($H$12<>"",IF(C81<$H$12,1,0),1) -> 0 | AF81: =IF(C81>=$I$11,1,0) -> 1 | AG81: =IF($I$12<>"",IF(C81<$I$12,1,0),1) -> 1 | AH81: =IF(C81>=$J$11,1,0) -> 1 | AI81: =IF($J$12<>"",IF(C81<$J$12,1,0),1) -> 1 | AJ81: =IF(C81>=$K$11,1,0) -> 1 | AK81: =IF($K$12<>"",IF(C81<$K$12,1,0),1) -> 1 | AL81: =IF(C81>=$L$11,1,0) -> 1 | AM81: =IF($L$12<>"",IF(C81<$L$12,1,0),1) -> 1 | AN81: =IF(C81>=$M$11,1,0) -> 1 | AO81: =IF($M$12<>"",IF(C81<$M$12,1,0),1) -> 1
A82: =IF(C82=Retire!$D$12,"==>","") ->  | C82: 2088 | D82: 77545.43803 | E82: 70830.92269 | F82: 52442.30599 | G82: 0 | H82: 0 | I82: 0 | J82: 0 | K82: 0 | L82: 0 | M82: 0 | N82: 0 | O82: =IF(Rental!Q103>0,Rental!Q103,0) -> 0 | Q82: 200818.6667 | R82: 178562.2126 | S82: 22256.45411 | T82: =T81+1 -> 120 | U82: =IF(ISNUMBER(U81),U81+1,"") -> 118 | V82: 1 | W82: 1 | X82: 1 | Y82: 1 | Z82: 1 | AA82: 1 | AB82: 1 | AC82: 0 | AD82: 1 | AE82: 0 | AF82: 1 | AG82: 1 | AH82: 1 | AI82: 1 | AJ82: 1 | AK82: 1 | AL82: 1 | AM82: 1 | AN82: 1 | AO82: 1
A83: =IF(C83=Retire!$D$12,"==>","") ->  | C83: 2089 | D83: 78561.28327 | E83: 71758.80778 | F83: 53491.15211 | G83: 0 | H83: 0 | I83: 0 | J83: 0 | K83: 0 | L83: 0 | M83: 0 | N83: 0 | O83: =IF(Rental!Q104>0,Rental!Q104,0) -> 0 | Q83: 203811.2432 | R83: 181263.2295 | S83: 22548.01366 | T83: 121 | U83: 119 | V83: 1 | W83: 1 | X83: 1 | Y83: 1 | Z83: 1 | AA83: 1 | AB83: 1 | AC83: 0 | AD83: 1 | AE83: 0 | AF83: 1 | AG83: 1 | AH83: 1 | AI83: 1 | AJ83: 1 | AK83: 1 | AL83: 1 | AM83: 1 | AN83: 1 | AO83: 1
A84: =IF(C84=Retire!$D$12,"==>","") ->  | C84: 2090 | D84: 79590.43608 | E84: 72698.84816 | F84: 54560.97516 | G84: 0 | H84: 0 | I84: 0 | J84: 0 | K84: 0 | L84: 0 | M84: 0 | N84: 0 | O84: =IF(Rental!Q105>0,Rental!Q105,0) -> 0 | Q84: 206850.2594 | R84: 184006.8668 | S84: 22843.39264 | T84: 122 | U84: 120 | V84: 1 | W84: 1 | X84: 1 | Y84: 1 | Z84: 1 | AA84: 1 | AB84: 1 | AC84: 0 | AD84: 1 | AE84: 0 | AF84: 1 | AG84: 1 | AH84: 1 | AI84: 1 | AJ84: 1 | AK84: 1 | AL84: 1 | AM84: 1 | AN84: 1 | AO84: 1
A85: =IF(C85=Retire!$D$12,"==>","") ->  | C85: 2091 | D85: =IF(SUM(V85+W85)=2,IF(D84=0,$D$10*12,D84+(D84*$D$13) ),0 ) -> 80633.0708 | E85: =IF(SUM(X85+Y85)=2,IF(E84=0,$E$10*12,E84+(E84*$E$13) ),0 ) -> 73651.20307 | F85: =IF(SUM(Z85+AA85)=2,IF(F84=0,$F$10*12,F84+(F84*$F$13) ),0 ) -> 55652.19466 | G85: =IF(SUM(AB85+AC85)=2,IF(G84=0,$G$10*12,G84+(G84*$G$13) ),0 ) -> 0 | H85: =IF(SUM(AD85+AE85)=2,IF(H84=0,$H$10*12,H84+(H84*$H$13) ),0 ) -> 0 | I85: =IF(SUM(AF85+AG85)=2,IF(I84=0,$I$10*12,I84+(I84*$I$13) ),0 ) -> 0 | J85: =IF(SUM(AH85+AI85)=2,IF(J84=0,$J$10*12,J84+(J84*$J$13) ),0 ) -> 0 | K85: =IF(SUM(AJ85+AK85)=2,IF(K84=0,$K$10*12,K84+(K84*$K$13) ),0 ) -> 0 | L85: =IF(SUM(AL85+AM85)=2,IF(L84=0,$L$10*12,L84+(L84*$L$13) ),0 ) -> 0 | M85: =IF(SUM(AN85+AO85)=2,IF(M84=0,$M$10*12,M84+(M84*$M$13) ),0 ) -> 0 | N85: 0 | O85: =IF(Rental!Q106>0,Rental!Q106,0) -> 0 | Q85: 209936.4685 | R85: 186793.8274 | S85: 23142.64108 | T85: 123 | U85: 121 | V85: 1 | W85: 1 | X85: 1 | Y85: 1 | Z85: 1 | AA85: 1 | AB85: 1 | AC85: 0 | AD85: 1 | AE85: 0 | AF85: 1 | AG85: 1 | AH85: 1 | AI85: 1 | AJ85: 1 | AK85: 1 | AL85: 1 | AM85: 1 | AN85: 1 | AO85: 1
A86: =IF(C86=Retire!$D$12,"==>","") ->  | C86: 2092 | D86: 81689.36402 | E86: 74616.03383 | F86: 56765.23855 | G86: 0 | H86: 0 | I86: 0 | J86: 0 | K86: 0 | L86: 0 | M86: 0 | N86: 0 | O86: =IF(Rental!Q107>0,Rental!Q107,0) -> 0 | Q86: 213070.6364 | R86: 189624.8267 | S86: 23445.80968 | T86: 124 | U86: 122 | V86: 1 | W86: 1 | X86: 1 | Y86: 1 | Z86: 1 | AA86: 1 | AB86: 1 | AC86: 0 | AD86: 1 | AE86: 0 | AF86: 1 | AG86: 1 | AH86: 1 | AI86: 1 | AJ86: 1 | AK86: 1 | AL86: 1 | AM86: 1 | AN86: 1 | AO86: 1
A87: =IF(C87=Retire!$D$12,"==>","") ->  | C87: 2093 | D87: 82759.49469 | E87: 75593.50387 | F87: 57900.54332 | G87: 0 | H87: 0 | I87: 0 | J87: 0 | K87: 0 | L87: 0 | M87: 0 | N87: 0 | O87: =IF(Rental!Q108>0,Rental!Q108,0) -> 0 | Q87: 216253.5419 | R87: 192500.5921 | S87: 23752.94978 | T87: 125 | U87: 123 | V87: 1 | W87: 1 | X87: 1 | Y87: 1 | Z87: 1 | AA87: 1 | AB87: 1 | AC87: 0 | AD87: 1 | AE87: 0 | AF87: 1 | AG87: 1 | AH87: 1 | AI87: 1 | AJ87: 1 | AK87: 1 | AL87: 1 | AM87: 1 | AN87: 1 | AO87: 1
A88: =IF(C88=Retire!$D$12,"==>","") ->  | C88: 2094 | D88: 83843.64407 | E88: 76583.77877 | F88: 59058.55419 | G88: 0 | H88: 0 | I88: 0 | J88: 0 | K88: 0 | L88: 0 | M88: 0 | N88: 0 | O88: =IF(Rental!Q109>0,Rental!Q109,0) -> 0 | Q88: 219485.977 | R88: 195421.8636 | S88: 24064.11343 | T88: 126 | U88: 124 | V88: 1 | W88: 1 | X88: 1 | Y88: 1 | Z88: 1 | AA88: 1 | AB88: 1 | AC88: 0 | AD88: 1 | AE88: 0 | AF88: 1 | AG88: 1 | AH88: 1 | AI88: 1 | AJ88: 1 | AK88: 1 | AL88: 1 | AM88: 1 | AN88: 1 | AO88: 1
A89: =IF(C89=Retire!$D$12,"==>","") ->  | C89: 2095 | D89: 84941.99581 | E89: 77587.02627 | F89: 60239.72527 | G89: 0 | H89: 0 | I89: 0 | J89: 0 | K89: 0 | L89: 0 | M89: 0 | N89: 0 | O89: =IF(Rental!Q110>0,Rental!Q110,0) -> 0 | Q89: 222768.7474 | R89: 198389.394 | S89: 24379.35331 | T89: 127 | U89: 125 | V89: 1 | W89: 1 | X89: 1 | Y89: 1 | Z89: 1 | AA89: 1 | AB89: 1 | AC89: 0 | AD89: 1 | AE89: 0 | AF89: 1 | AG89: 1 | AH89: 1 | AI89: 1 | AJ89: 1 | AK89: 1 | AL89: 1 | AM89: 1 | AN89: 1 | AO89: 1
A90: =IF(C90=Retire!$D$12,"==>","") ->  | C90: 2096 | D90: 86054.73596 | E90: 78603.41632 | F90: 61444.51978 | G90: 0 | H90: 0 | I90: 0 | J90: 0 | K90: 0 | L90: 0 | M90: 0 | N90: 0 | O90: =IF(Rental!Q111>0,Rental!Q111,0) -> 0 | Q90: 226102.6721 | R90: 201403.9492 | S90: 24698.72284 | T90: 128 | U90: 126 | V90: 1 | W90: 1 | X90: 1 | Y90: 1 | Z90: 1 | AA90: 1 | AB90: 1 | AC90: 0 | AD90: 1 | AE90: 0 | AF90: 1 | AG90: 1 | AH90: 1 | AI90: 1 | AJ90: 1 | AK90: 1 | AL90: 1 | AM90: 1 | AN90: 1 | AO90: 1
A91: =IF(C91=Retire!$D$12,"==>","") ->  | C91: 2097 | D91: 87182.053 | E91: 79633.12107 | F91: 62673.41018 | G91: 0 | H91: 0 | I91: 0 | J91: 0 | K91: 0 | L91: 0 | M91: 0 | N91: 0 | O91: =IF(Rental!Q112>0,Rental!Q112,0) -> 0 | Q91: 229488.5842 | R91: 204466.3081 | S91: 25022.27611 | T91: 129 | U91: 127 | V91: 1 | W91: 1 | X91: 1 | Y91: 1 | Z91: 1 | AA91: 1 | AB91: 1 | AC91: 0 | AD91: 1 | AE91: 0 | AF91: 1 | AG91: 1 | AH91: 1 | AI91: 1 | AJ91: 1 | AK91: 1 | AL91: 1 | AM91: 1 | AN91: 1 | AO91: 1
A92: =IF(C92=Retire!$D$12,"==>","") ->  | C92: 2098 | D92: 88324.13789 | E92: 80676.31496 | F92: 63926.87838 | G92: 0 | H92: 0 | I92: 0 | J92: 0 | K92: 0 | L92: 0 | M92: 0 | N92: 0 | O92: =IF(Rental!Q113>0,Rental!Q113,0) -> 0 | Q92: 232927.3312 | R92: 207577.2633 | S92: 25350.06793 | T92: 130 | U92: 128 | V92: 1 | W92: 1 | X92: 1 | Y92: 1 | Z92: 1 | AA92: 1 | AB92: 1 | AC92: 0 | AD92: 1 | AE92: 0 | AF92: 1 | AG92: 1 | AH92: 1 | AI92: 1 | AJ92: 1 | AK92: 1 | AL92: 1 | AM92: 1 | AN92: 1 | AO92: 1
A93: =IF(C93=Retire!$D$12,"==>","") ->  | C93: 2099 | D93: 89481.1841 | E93: 81733.17468 | F93: 65205.41595 | G93: 0 | H93: 0 | I93: 0 | J93: 0 | K93: 0 | L93: 0 | M93: 0 | N93: 0 | O93: =IF(Rental!Q114>0,Rental!Q114,0) -> 0 | Q93: 236419.7747 | R93: 210737.6209 | S93: 25682.15382 | T93: 131 | U93: 129 | V93: 1 | W93: 1 | X93: 1 | Y93: 1 | Z93: 1 | AA93: 1 | AB93: 1 | AC93: 0 | AD93: 1 | AE93: 0 | AF93: 1 | AG93: 1 | AH93: 1 | AI93: 1 | AJ93: 1 | AK93: 1 | AL93: 1 | AM93: 1 | AN93: 1 | AO93: 1
A94: =IF(C94=Retire!$D$12,"==>","") ->  | C94: 2100 | D94: 90653.38761 | E94: 82803.87927 | F94: 66509.52427 | G94: 0 | H94: 0 | I94: 0 | J94: 0 | K94: 0 | L94: 0 | M94: 0 | N94: 0 | O94: =IF(Rental!Q115>0,Rental!Q115,0) -> 0 | Q94: 239966.7911 | R94: 213948.2011 | S94: 26018.59003 | T94: 132 | U94: 130 | V94: 1 | W94: 1 | X94: 1 | Y94: 1 | Z94: 1 | AA94: 1 | AB94: 1 | AC94: 0 | AD94: 1 | AE94: 0 | AF94: 1 | AG94: 1 | AH94: 1 | AI94: 1 | AJ94: 1 | AK94: 1 | AL94: 1 | AM94: 1 | AN94: 1 | AO94: 1
A95: =IF(C95=Retire!$D$12,"==>","") ->  | C95: 2101 | D95: 91840.94699 | E95: 83888.61009 | F95: 67839.71475 | G95: 0 | H95: 0 | I95: 0 | J95: 0 | K95: 0 | L95: 0 | M95: 0 | N95: 0 | O95: =IF(Rental!Q116>0,Rental!Q116,0) -> 0 | Q95: 243569.2718 | R95: 217209.8383 | S95: 26359.43356 | T95: 133 | U95: 131 | V95: 1 | W95: 1 | X95: 1 | Y95: 1 | Z95: 1 | AA95: 1 | AB95: 1 | AC95: 0 | AD95: 1 | AE95: 0 | AF95: 1 | AG95: 1 | AH95: 1 | AI95: 1 | AJ95: 1 | AK95: 1 | AL95: 1 | AM95: 1 | AN95: 1 | AO95: 1
A96: =IF(C96=Retire!$D$12,"==>","") ->  | C96: 2102 | D96: 93044.06339 | E96: 84987.55088 | F96: 69196.50905 | G96: 0 | H96: 0 | I96: 0 | J96: 0 | K96: 0 | L96: 0 | M96: 0 | N96: 0 | O96: =IF(Rental!Q117>0,Rental!Q117,0) -> 0 | Q96: 247228.1233 | R96: 220523.3812 | S96: 26704.74214 | T96: 134 | U96: 132 | V96: 1 | W96: 1 | X96: 1 | Y96: 1 | Z96: 1 | AA96: 1 | AB96: 1 | AC96: 0 | AD96: 1 | AE96: 0 | AF96: 1 | AG96: 1 | AH96: 1 | AI96: 1 | AJ96: 1 | AK96: 1 | AL96: 1 | AM96: 1 | AN96: 1 | AO96: 1
A97: =IF(C97=Retire!$D$12,"==>","") ->  | C97: 2103 | D97: 94262.94062 | E97: 86100.8878 | F97: 70580.43923 | G97: 0 | H97: 0 | I97: 0 | J97: 0 | K97: 0 | L97: 0 | M97: 0 | N97: 0 | O97: =IF(Rental!Q118>0,Rental!Q118,0) -> 0 | Q97: 250944.2676 | R97: 223889.6934 | S97: 27054.57426 | T97: 135 | U97: 133 | V97: 1 | W97: 1 | X97: 1 | Y97: 1 | Z97: 1 | AA97: 1 | AB97: 1 | AC97: 0 | AD97: 1 | AE97: 0 | AF97: 1 | AG97: 1 | AH97: 1 | AI97: 1 | AJ97: 1 | AK97: 1 | AL97: 1 | AM97: 1 | AN97: 1 | AO97: 1
A98: =IF(C98=Retire!$D$12,"==>","") ->  | C98: 2104 | D98: 95497.78514 | E98: 87228.80943 | F98: 71992.04801 | G98: 0 | H98: 0 | I98: 0 | J98: 0 | K98: 0 | L98: 0 | M98: 0 | N98: 0 | O98: =IF(Rental!Q119>0,Rental!Q119,0) -> 0 | Q98: 254718.6426 | R98: 227309.6534 | S98: 27408.98919 | T98: 136 | U98: 134 | V98: 1 | W98: 1 | X98: 1 | Y98: 1 | Z98: 1 | AA98: 1 | AB98: 1 | AC98: 0 | AD98: 1 | AE98: 0 | AF98: 1 | AG98: 1 | AH98: 1 | AI98: 1 | AJ98: 1 | AK98: 1 | AL98: 1 | AM98: 1 | AN98: 1 | AO98: 1
A99: =IF(C99=Retire!$D$12,"==>","") ->  | C99: 2105 | D99: 96748.80613 | E99: 88371.50683 | F99: 73431.88897 | G99: 0 | H99: 0 | I99: 0 | J99: 0 | K99: 0 | L99: 0 | M99: 0 | N99: 0 | O99: =IF(Rental!Q120>0,Rental!Q120,0) -> 0 | Q99: 258552.2019 | R99: 230784.155 | S99: 27768.04694 | T99: 137 | U99: 135 | V99: 1 | W99: 1 | X99: 1 | Y99: 1 | Z99: 1 | AA99: 1 | AB99: 1 | AC99: 0 | AD99: 1 | AE99: 0 | AF99: 1 | AG99: 1 | AH99: 1 | AI99: 1 | AJ99: 1 | AK99: 1 | AL99: 1 | AM99: 1 | AN99: 1 | AO99: 1
A100: =IF(C100=Retire!$D$12,"==>","") ->  | C100: 2106 | D100: 98016.21549 | E100: 89529.17357 | F100: 74900.52675 | G100: 0 | H100: 0 | I100: 0 | J100: 0 | K100: 0 | L100: 0 | M100: 0 | N100: 0 | O100: =IF(Rental!Q121>0,Rental!Q121,0) -> 0 | Q100: 262445.9158 | R100: 234314.1075 | S100: 28131.80836 | T100: 138 | U100: 136 | V100: 1 | W100: 1 | X100: 1 | Y100: 1 | Z100: 1 | AA100: 1 | AB100: 1 | AC100: 0 | AD100: 1 | AE100: 0 | AF100: 1 | AG100: 1 | AH100: 1 | AI100: 1 | AJ100: 1 | AK100: 1 | AL100: 1 | AM100: 1 | AN100: 1 | AO100: 1
A101: =IF(C101=Retire!$D$12,"==>","") ->  | C101: 2107 | D101: 99300.22791 | E101: 90702.00575 | F101: 76398.53729 | G101: 0 | H101: 0 | I101: 0 | J101: 0 | K101: 0 | L101: 0 | M101: 0 | N101: 0 | O101: =IF(Rental!Q122>0,Rental!Q122,0) -> 0 | Q101: 266400.7709 | R101: 237900.4359 | S101: 28500.33505 | T101: 139 | U101: 137 | V101: 1 | W101: 1 | X101: 1 | Y101: 1 | Z101: 1 | AA101: 1 | AB101: 1 | AC101: 0 | AD101: 1 | AE101: 0 | AF101: 1 | AG101: 1 | AH101: 1 | AI101: 1 | AJ101: 1 | AK101: 1 | AL101: 1 | AM101: 1 | AN101: 1 | AO101: 1
A102: =IF(C102=Retire!$D$12,"==>","") ->  | C102: 2108 | D102: 100601.0609 | E102: 91890.20202 | F102: 77926.50803 | G102: 0 | H102: 0 | I102: 0 | J102: 0 | K102: 0 | L102: 0 | M102: 0 | N102: 0 | O102: =IF(Rental!Q123>0,Rental!Q123,0) -> 0 | Q102: 270417.771 | R102: 241544.0815 | S102: 28873.68944 | T102: 140 | U102: 138 | V102: 1 | W102: 1 | X102: 1 | Y102: 1 | Z102: 1 | AA102: 1 | AB102: 1 | AC102: 0 | AD102: 1 | AE102: 0 | AF102: 1 | AG102: 1 | AH102: 1 | AI102: 1 | AJ102: 1 | AK102: 1 | AL102: 1 | AM102: 1 | AN102: 1 | AO102: 1
A103: =IF(C103=Retire!$D$12,"==>","") ->  | C103: 2109 | D103: 101918.9348 | E103: 93093.96367 | F103: 79485.03819 | G103: 0 | H103: 0 | I103: 0 | J103: 0 | K103: 0 | L103: 0 | M103: 0 | N103: 0 | O103: =IF(Rental!Q124>0,Rental!Q124,0) -> 0 | Q103: 274497.9367 | R103: 245246.0019 | S103: 29251.93477 | T103: 141 | U103: 139 | V103: 1 | W103: 1 | X103: 1 | Y103: 1 | Z103: 1 | AA103: 1 | AB103: 1 | AC103: 0 | AD103: 1 | AE103: 0 | AF103: 1 | AG103: 1 | AH103: 1 | AI103: 1 | AJ103: 1 | AK103: 1 | AL103: 1 | AM103: 1 | AN103: 1 | AO103: 1
A104: =IF(C104=Retire!$D$12,"==>","") ->  | C104: 2110 | D104: 103254.0728 | E104: 94313.49459 | F104: 81074.73896 | G104: 0 | H104: 0 | I104: 0 | J104: 0 | K104: 0 | L104: 0 | M104: 0 | N104: 0 | O104: =IF(Rental!Q125>0,Rental!Q125,0) -> 0 | Q104: 278642.3064 | R104: 249007.1713 | S104: 29635.13512 | T104: 142 | U104: 140 | V104: 1 | W104: 1 | X104: 1 | Y104: 1 | Z104: 1 | AA104: 1 | AB104: 1 | AC104: 0 | AD104: 1 | AE104: 0 | AF104: 1 | AG104: 1 | AH104: 1 | AI104: 1 | AJ104: 1 | AK104: 1 | AL104: 1 | AM104: 1 | AN104: 1 | AO104: 1
A105: =IF(C105=Retire!$D$12,"==>","") ->  | C105: 2111 | D105: 104606.7012 | E105: 95549.00137 | F105: 82696.23374 | G105: 0 | H105: 0 | I105: 0 | J105: 0 | K105: 0 | L105: 0 | M105: 0 | N105: 0 | O105: =IF(Rental!Q126>0,Rental!Q126,0) -> 0 | Q105: 282851.9363 | R105: 252828.5809 | S105: 30023.35539 | T105: 143 | U105: 141 | V105: 1 | W105: 1 | X105: 1 | Y105: 1 | Z105: 1 | AA105: 1 | AB105: 1 | AC105: 0 | AD105: 1 | AE105: 0 | AF105: 1 | AG105: 1 | AH105: 1 | AI105: 1 | AJ105: 1 | AK105: 1 | AL105: 1 | AM105: 1 | AN105: 1 | AO105: 1
A106: =IF(C106=Retire!$D$12,"==>","") ->  | C106: 2112 | D106: 105977.049 | E106: 96800.69329 | F106: 84350.15841 | G106: 0 | H106: 0 | I106: 0 | J106: 0 | K106: 0 | L106: 0 | M106: 0 | N106: 0 | O106: =IF(Rental!Q127>0,Rental!Q127,0) -> 0 | Q106: 287127.9007 | R106: 256711.2393 | S106: 30416.66134 | T106: 144 | U106: 142 | V106: 1 | W106: 1 | X106: 1 | Y106: 1 | Z106: 1 | AA106: 1 | AB106: 1 | AC106: 0 | AD106: 1 | AE106: 0 | AF106: 1 | AG106: 1 | AH106: 1 | AI106: 1 | AJ106: 1 | AK106: 1 | AL106: 1 | AM106: 1 | AN106: 1 | AO106: 1
A107: =IF(C107=Retire!$D$12,"==>","") ->  | C107: 2113 | D107: 107365.3483 | E107: 98068.78237 | F107: 86037.16158 | G107: 0 | H107: 0 | I107: 0 | J107: 0 | K107: 0 | L107: 0 | M107: 0 | N107: 0 | O107: =IF(Rental!Q128>0,Rental!Q128,0) -> 0 | Q107: 291471.2923 | R107: 260656.1727 | S107: 30815.1196 | T107: 145 | U107: 143 | V107: 1 | W107: 1 | X107: 1 | Y107: 1 | Z107: 1 | AA107: 1 | AB107: 1 | AC107: 0 | AD107: 1 | AE107: 0 | AF107: 1 | AG107: 1 | AH107: 1 | AI107: 1 | AJ107: 1 | AK107: 1 | AL107: 1 | AM107: 1 | AN107: 1 | AO107: 1
A108: =IF(C108=Retire!$D$12,"==>","") ->  | C108: 2114 | D108: 108771.8344 | E108: 99353.48342 | F108: 87757.90481 | G108: 0 | H108: 0 | I108: 0 | J108: 0 | K108: 0 | L108: 0 | M108: 0 | N108: 0 | O108: =IF(Rental!Q129>0,Rental!Q129,0) -> 0 | Q108: 295883.2226 | R108: 264664.4249 | S108: 31218.79767 | T108: 146 | U108: 144 | V108: 1 | W108: 1 | X108: 1 | Y108: 1 | Z108: 1 | AA108: 1 | AB108: 1 | AC108: 0 | AD108: 1 | AE108: 0 | AF108: 1 | AG108: 1 | AH108: 1 | AI108: 1 | AJ108: 1 | AK108: 1 | AL108: 1 | AM108: 1 | AN108: 1 | AO108: 1
A109: =IF(C109=Retire!$D$12,"==>","") ->  | C109: 2115 | D109: 110196.7454 | E109: 100655.0141 | F109: 89513.06291 | G109: 0 | H109: 0 | I109: 0 | J109: 0 | K109: 0 | L109: 0 | M109: 0 | N109: 0 | O109: =IF(Rental!Q130>0,Rental!Q130,0) -> 0 | Q109: 300364.8224 | R109: 268737.0585 | S109: 31627.76392 | T109: 147 | U109: 145 | V109: 1 | W109: 1 | X109: 1 | Y109: 1 | Z109: 1 | AA109: 1 | AB109: 1 | AC109: 0 | AD109: 1 | AE109: 0 | AF109: 1 | AG109: 1 | AH109: 1 | AI109: 1 | AJ109: 1 | AK109: 1 | AL109: 1 | AM109: 1 | AN109: 1 | AO109: 1
A110: =IF(C110=Retire!$D$12,"==>","") ->  | C110: 2116 | D110: 111640.3228 | E110: 101973.5947 | F110: 91303.32416 | G110: 0 | H110: 0 | I110: 0 | J110: 0 | K110: 0 | L110: 0 | M110: 0 | N110: 0 | O110: =IF(Rental!Q131>0,Rental!Q131,0) -> 0 | Q110: 304917.2417 | R110: 272875.1541 | S110: 32042.08763 | T110: 148 | U110: 146 | V110: 1 | W110: 1 | X110: 1 | Y110: 1 | Z110: 1 | AA110: 1 | AB110: 1 | AC110: 0 | AD110: 1 | AE110: 0 | AF110: 1 | AG110: 1 | AH110: 1 | AI110: 1 | AJ110: 1 | AK110: 1 | AL110: 1 | AM110: 1 | AN110: 1 | AO110: 1
A111: =IF(C111=Retire!$D$12,"==>","") ->  | C111: 2117 | D111: 113102.811 | E111: 103309.4488 | F111: 93129.39065 | G111: 0 | H111: 0 | I111: 0 | J111: 0 | K111: 0 | L111: 0 | M111: 0 | N111: 0 | O111: =IF(Rental!Q132>0,Rental!Q132,0) -> 0 | Q111: 309541.6505 | R111: 277079.8115 | S111: 32461.83898 | T111: 149 | U111: 147 | V111: 1 | W111: 1 | X111: 1 | Y111: 1 | Z111: 1 | AA111: 1 | AB111: 1 | AC111: 0 | AD111: 1 | AE111: 0 | AF111: 1 | AG111: 1 | AH111: 1 | AI111: 1 | AJ111: 1 | AK111: 1 | AL111: 1 | AM111: 1 | AN111: 1 | AO111: 1
A112: =IF(C112=Retire!$D$12,"==>","") ->  | C112: 2118 | D112: 114584.4578 | E112: 104662.8026 | F112: 94991.97846 | G112: 0 | H112: 0 | I112: 0 | J112: 0 | K112: 0 | L112: 0 | M112: 0 | N112: 0 | O112: =IF(Rental!Q133>0,Rental!Q133,0) -> 0 | Q112: 314239.2389 | R112: 281352.1498 | S112: 32887.08907 | T112: 150 | U112: 148 | V112: 1 | W112: 1 | X112: 1 | Y112: 1 | Z112: 1 | AA112: 1 | AB112: 1 | AC112: 0 | AD112: 1 | AE112: 0 | AF112: 1 | AG112: 1 | AH112: 1 | AI112: 1 | AJ112: 1 | AK112: 1 | AL112: 1 | AM112: 1 | AN112: 1 | AO112: 1
A113: =IF(C113=Retire!$D$12,"==>","") ->  | C113: 2119 | D113: 116085.5142 | E113: 106033.8853 | F113: 96891.81803 | G113: 0 | H113: 0 | I113: 0 | J113: 0 | K113: 0 | L113: 0 | M113: 0 | N113: 0 | O113: =IF(Rental!Q134>0,Rental!Q134,0) -> 0 | Q113: 319011.2176 | R113: 285693.3077 | S113: 33317.90993 | T113: 151 | U113: 149 | V113: 1 | W113: 1 | X113: 1 | Y113: 1 | Z113: 1 | AA113: 1 | AB113: 1 | AC113: 0 | AD113: 1 | AE113: 0 | AF113: 1 | AG113: 1 | AH113: 1 | AI113: 1 | AJ113: 1 | AK113: 1 | AL113: 1 | AM113: 1 | AN113: 1 | AO113: 1
A114: =IF(C114=Retire!$D$12,"==>","") ->  | C114: 2120 | D114: 117606.2345 | E114: 107422.9292 | F114: 98829.65439 | G114: 0 | H114: 0 | I114: 0 | J114: 0 | K114: 0 | L114: 0 | M114: 0 | N114: 0 | O114: =IF(Rental!Q135>0,Rental!Q135,0) -> 0 | Q114: 323858.8181 | R114: 290104.4435 | S114: 33754.37455 | T114: 152 | U114: 150 | V114: 1 | W114: 1 | X114: 1 | Y114: 1 | Z114: 1 | AA114: 1 | AB114: 1 | AC114: 0 | AD114: 1 | AE114: 0 | AF114: 1 | AG114: 1 | AH114: 1 | AI114: 1 | AJ114: 1 | AK114: 1 | AL114: 1 | AM114: 1 | AN114: 1 | AO114: 1
A115: =IF(C115=Retire!$D$12,"==>","") ->  | C115: 2121 | D115: 119146.8761 | E115: 108830.1696 | F115: 100806.2475 | G115: 0 | H115: 0 | I115: 0 | J115: 0 | K115: 0 | L115: 0 | M115: 0 | N115: 0 | O115: =IF(Rental!Q136>0,Rental!Q136,0) -> 0 | Q115: 328783.2932 | R115: 294586.7364 | S115: 34196.55686 | T115: 153 | U115: 151 | V115: 1 | W115: 1 | X115: 1 | Y115: 1 | Z115: 1 | AA115: 1 | AB115: 1 | AC115: 0 | AD115: 1 | AE115: 0 | AF115: 1 | AG115: 1 | AH115: 1 | AI115: 1 | AJ115: 1 | AK115: 1 | AL115: 1 | AM115: 1 | AN115: 1 | AO115: 1
A116: =IF(C116=Retire!$D$12,"==>","") ->  | C116: 2122 | D116: 120707.7002 | E116: 110255.8448 | F116: 102822.3724 | G116: 0 | H116: 0 | I116: 0 | J116: 0 | K116: 0 | L116: 0 | M116: 0 | N116: 0 | O116: =IF(Rental!Q137>0,Rental!Q137,0) -> 0 | Q116: 333785.9175 | R116: 299141.3857 | S116: 34644.53176 | T116: 154 | U116: 152 | V116: 1 | W116: 1 | X116: 1 | Y116: 1 | Z116: 1 | AA116: 1 | AB116: 1 | AC116: 0 | AD116: 1 | AE116: 0 | AF116: 1 | AG116: 1 | AH116: 1 | AI116: 1 | AJ116: 1 | AK116: 1 | AL116: 1 | AM116: 1 | AN116: 1 | AO116: 1
A117: =IF(C117=Retire!$D$12,"==>","") ->  | C117: 2123 | D117: 122288.9711 | E117: 111700.1964 | F117: 104878.8199 | G117: 0 | H117: 0 | I117: 0 | J117: 0 | K117: 0 | L117: 0 | M117: 0 | N117: 0 | O117: =IF(Rental!Q138>0,Rental!Q138,0) -> 0 | Q117: 338867.9874 | R117: 303769.6122 | S117: 35098.37512 | T117: 155 | U117: 153 | V117: 1 | W117: 1 | X117: 1 | Y117: 1 | Z117: 1 | AA117: 1 | AB117: 1 | AC117: 0 | AD117: 1 | AE117: 0 | AF117: 1 | AG117: 1 | AH117: 1 | AI117: 1 | AJ117: 1 | AK117: 1 | AL117: 1 | AM117: 1 | AN117: 1 | AO117: 1
A118: =IF(C118=Retire!$D$12,"==>","") ->  | C118: 2124 | D118: 123890.9566 | E118: 113163.469 | F118: 106976.3963 | G118: 0 | H118: 0 | I118: 0 | J118: 0 | K118: 0 | L118: 0 | M118: 0 | N118: 0 | O118: =IF(Rental!Q139>0,Rental!Q139,0) -> 0 | Q118: 344030.8218 | R118: 308472.658 | S118: 35558.16384 | T118: 156 | U118: 154 | V118: 1 | W118: 1 | X118: 1 | Y118: 1 | Z118: 1 | AA118: 1 | AB118: 1 | AC118: 0 | AD118: 1 | AE118: 0 | AF118: 1 | AG118: 1 | AH118: 1 | AI118: 1 | AJ118: 1 | AK118: 1 | AL118: 1 | AM118: 1 | AN118: 1 | AO118: 1
A119: =IF(C119=Retire!$D$12,"==>","") ->  | C119: 2125 | D119: 125513.9281 | E119: 114645.9104 | F119: 109115.9242 | G119: 0 | H119: 0 | I119: 0 | J119: 0 | K119: 0 | L119: 0 | M119: 0 | N119: 0 | O119: =IF(Rental!Q140>0,Rental!Q140,0) -> 0 | Q119: 349275.7627 | R119: 313251.787 | S119: 36023.97578 | T119: 157 | U119: 155 | V119: 1 | W119: 1 | X119: 1 | Y119: 1 | Z119: 1 | AA119: 1 | AB119: 1 | AC119: 0 | AD119: 1 | AE119: 0 | AF119: 1 | AG119: 1 | AH119: 1 | AI119: 1 | AJ119: 1 | AK119: 1 | AL119: 1 | AM119: 1 | AN119: 1 | AO119: 1
A120: =IF(C120=Retire!$D$12,"==>","") ->  | C120: 2126 | D120: 127158.1606 | E120: 116147.7718 | F120: 111298.2427 | G120: 0 | H120: 0 | I120: 0 | J120: 0 | K120: 0 | L120: 0 | M120: 0 | N120: 0 | O120: =IF(Rental!Q141>0,Rental!Q141,0) -> 0 | Q120: 354604.1751 | R120: 318108.2852 | S120: 36495.88986 | T120: 158 | U120: 156 | V120: 1 | W120: 1 | X120: 1 | Y120: 1 | Z120: 1 | AA120: 1 | AB120: 1 | AC120: 0 | AD120: 1 | AE120: 0 | AF120: 1 | AG120: 1 | AH120: 1 | AI120: 1 | AJ120: 1 | AK120: 1 | AL120: 1 | AM120: 1 | AN120: 1 | AO120: 1
A121: =IF(C121=Retire!$D$12,"==>","") ->  | C121: 2127 | D121: 128823.9325 | E121: 117669.3076 | F121: 113524.2075 | G121: 0 | H121: 0 | I121: 0 | J121: 0 | K121: 0 | L121: 0 | M121: 0 | N121: 0 | O121: =IF(Rental!Q142>0,Rental!Q142,0) -> 0 | Q121: 360017.4477 | R121: 323043.4617 | S121: 36973.98602 | T121: 159 | U121: 157 | V121: 1 | W121: 1 | X121: 1 | Y121: 1 | Z121: 1 | AA121: 1 | AB121: 1 | AC121: 0 | AD121: 1 | AE121: 0 | AF121: 1 | AG121: 1 | AH121: 1 | AI121: 1 | AJ121: 1 | AK121: 1 | AL121: 1 | AM121: 1 | AN121: 1 | AO121: 1
A122: =IF(C122=Retire!$D$12,"==>","") ->  | C122: 2128 | D122: 130511.526 | E122: 119210.7756 | F122: 115794.6917 | G122: 0 | H122: 0 | I122: 0 | J122: 0 | K122: 0 | L122: 0 | M122: 0 | N122: 0 | O122: =IF(Rental!Q143>0,Rental!Q143,0) -> 0 | Q122: 365516.9933 | R122: 328058.648 | S122: 37458.34524 | T122: 160 | U122: 158 | V122: 1 | W122: 1 | X122: 1 | Y122: 1 | Z122: 1 | AA122: 1 | AB122: 1 | AC122: 0 | AD122: 1 | AE122: 0 | AF122: 1 | AG122: 1 | AH122: 1 | AI122: 1 | AJ122: 1 | AK122: 1 | AL122: 1 | AM122: 1 | AN122: 1 | AO122: 1
A123: =IF(C123=Retire!$D$12,"==>","") ->  | C123: 2129 | D123: 132221.227 | E123: 120772.4367 | F123: 118110.5855 | G123: 0 | H123: 0 | I123: 0 | J123: 0 | K123: 0 | L123: 0 | M123: 0 | N123: 0 | O123: =IF(Rental!Q144>0,Rental!Q144,0) -> 0 | Q123: 371104.2493 | R123: 333155.1997 | S123: 37949.04956 | T123: 161 | U123: 159 | V123: 1 | W123: 1 | X123: 1 | Y123: 1 | Z123: 1 | AA123: 1 | AB123: 1 | AC123: 0 | AD123: 1 | AE123: 0 | AF123: 1 | AG123: 1 | AH123: 1 | AI123: 1 | AJ123: 1 | AK123: 1 | AL123: 1 | AM123: 1 | AN123: 1 | AO123: 1
A124: =IF(C124=Retire!$D$12,"==>","") ->  | C124: 2130 | D124: 133953.3251 | E124: 122354.5556 | F124: 120472.7972 | G124: 0 | H124: 0 | I124: 0 | J124: 0 | K124: 0 | L124: 0 | M124: 0 | N124: 0 | O124: =IF(Rental!Q145>0,Rental!Q145,0) -> 0 | Q124: 376780.678 | R124: 338334.4959 | S124: 38446.18211 | T124: 162 | U124: 160 | V124: 1 | W124: 1 | X124: 1 | Y124: 1 | Z124: 1 | AA124: 1 | AB124: 1 | AC124: 0 | AD124: 1 | AE124: 0 | AF124: 1 | AG124: 1 | AH124: 1 | AI124: 1 | AJ124: 1 | AK124: 1 | AL124: 1 | AM124: 1 | AN124: 1 | AO124: 1
A125: =IF(C125=Retire!$D$12,"==>","") ->  | C125: 2131 | D125: 135708.1136 | E125: 123957.4003 | F125: 122882.2532 | G125: 0 | H125: 0 | I125: 0 | J125: 0 | K125: 0 | L125: 0 | M125: 0 | N125: 0 | O125: =IF(Rental!Q146>0,Rental!Q146,0) -> 0 | Q125: 382547.7671 | R125: 343597.9401 | S125: 38949.8271 | T125: 163 | U125: 161 | V125: 1 | W125: 1 | X125: 1 | Y125: 1 | Z125: 1 | AA125: 1 | AB125: 1 | AC125: 0 | AD125: 1 | AE125: 0 | AF125: 1 | AG125: 1 | AH125: 1 | AI125: 1 | AJ125: 1 | AK125: 1 | AL125: 1 | AM125: 1 | AN125: 1 | AO125: 1
A126: =IF(C126=Retire!$D$12,"==>","") ->  | C126: 2132 | D126: 137485.8899 | E126: 125581.2423 | F126: 125339.8982 | G126: 0 | H126: 0 | I126: 0 | J126: 0 | K126: 0 | L126: 0 | M126: 0 | N126: 0 | O126: =IF(Rental!Q147>0,Rental!Q147,0) -> 0 | Q126: 388407.0304 | R126: 348946.9606 | S126: 39460.06983 | T126: 164 | U126: 162 | V126: 1 | W126: 1 | X126: 1 | Y126: 1 | Z126: 1 | AA126: 1 | AB126: 1 | AC126: 0 | AD126: 1 | AE126: 0 | AF126: 1 | AG126: 1 | AH126: 1 | AI126: 1 | AJ126: 1 | AK126: 1 | AL126: 1 | AM126: 1 | AN126: 1 | AO126: 1
A127: =IF(C127=Retire!$D$12,"==>","") ->  | C127: 2133 | D127: 139286.9551 | E127: 127226.3565 | F127: 127846.6962 | G127: 0 | H127: 0 | I127: 0 | J127: 0 | K127: 0 | L127: 0 | M127: 0 | N127: 0 | O127: =IF(Rental!Q148>0,Rental!Q148,0) -> 0 | Q127: 394360.0078 | R127: 354383.0111 | S127: 39976.99675 | T127: 165 | U127: 163 | V127: 1 | W127: 1 | X127: 1 | Y127: 1 | Z127: 1 | AA127: 1 | AB127: 1 | AC127: 0 | AD127: 1 | AE127: 0 | AF127: 1 | AG127: 1 | AH127: 1 | AI127: 1 | AJ127: 1 | AK127: 1 | AL127: 1 | AM127: 1 | AN127: 1 | AO127: 1
A128: =IF(C128=Retire!$D$12,"==>","") ->  | C128: =C127+1 -> 2134 | D128: 141111.6142 | E128: 128893.0218 | F128: 130403.6301 | G128: 0 | H128: 0 | I128: 0 | J128: 0 | K128: 0 | L128: 0 | M128: 0 | N128: 0 | O128: =IF(Rental!Q149>0,Rental!Q149,0) -> 0 | Q128: =SUM(D128:O128) -> 400408.2661 | R128: =SUM((D128*$D$14)+(E128*$E$14)+(F128*$F$14)+(G128*$G$14)+(H128*$H$14)+(I128*$I$14)+(J128*$J$14)+(K128*$K$14)+(L128*$L$14)+(M128*$M$14)+(N128*$N$14)+(O128*$O$14)) -> 359907.5707 | S128: =Q128-R128 -> 40500.6954 | T128: 166 | U128: 164 | V128: 1 | W128: 1 | X128: 1 | Y128: 1 | Z128: 1 | AA128: 1 | AB128: 1 | AC128: 0 | AD128: 1 | AE128: 0 | AF128: 1 | AG128: 1 | AH128: 1 | AI128: 1 | AJ128: 1 | AK128: 1 | AL128: 1 | AM128: 1 | AN128: 1 | AO128: 1
A129: =IF(C129=Retire!$D$12,"==>","") ->  | C129: 2135 | D129: 142960.1764 | E129: 130581.5204 | F129: 133011.7027 | G129: 0 | H129: 0 | I129: 0 | J129: 0 | K129: 0 | L129: 0 | M129: 0 | N129: 0 | O129: =IF(Rental!Q150>0,Rental!Q150,0) -> 0 | Q129: 406553.3995 | R129: 365522.145 | S129: 41031.25451 | T129: 167 | U129: 165 | V129: 1 | W129: 1 | X129: 1 | Y129: 1 | Z129: 1 | AA129: 1 | AB129: 1 | AC129: 0 | AD129: 1 | AE129: 0 | AF129: 1 | AG129: 1 | AH129: 1 | AI129: 1 | AJ129: 1 | AK129: 1 | AL129: 1 | AM129: 1 | AN129: 1 | AO129: 1
A130: =IF(C130=Retire!$D$12,"==>","") ->  | C130: 2136 | D130: 144832.9547 | E130: 132292.1383 | F130: 135671.9368 | G130: 0 | H130: 0 | I130: 0 | J130: 0 | K130: 0 | L130: 0 | M130: 0 | N130: 0 | O130: =IF(Rental!Q151>0,Rental!Q151,0) -> 0 | Q130: 412797.0298 | R130: 371228.2658 | S130: 41568.76395 | T130: 168 | U130: 166 | V130: 1 | W130: 1 | X130: 1 | Y130: 1 | Z130: 1 | AA130: 1 | AB130: 1 | AC130: 0 | AD130: 1 | AE130: 0 | AF130: 1 | AG130: 1 | AH130: 1 | AI130: 1 | AJ130: 1 | AK130: 1 | AL130: 1 | AM130: 1 | AN130: 1 | AO130: 1
A131: =IF(C131=Retire!$D$12,"==>","") ->  | C131: 2137 | D131: 146730.2664 | E131: 134025.1653 | F131: 138385.3755 | G131: 0 | H131: 0 | I131: 0 | J131: 0 | K131: 0 | L131: 0 | M131: 0 | N131: 0 | O131: =IF(Rental!Q152>0,Rental!Q152,0) -> 0 | Q131: 419140.8072 | R131: 377027.4925 | S131: 42113.31475 | T131: 169 | U131: 167 | V131: 1 | W131: 1 | X131: 1 | Y131: 1 | Z131: 1 | AA131: 1 | AB131: 1 | AC131: 0 | AD131: 1 | AE131: 0 | AF131: 1 | AG131: 1 | AH131: 1 | AI131: 1 | AJ131: 1 | AK131: 1 | AL131: 1 | AM131: 1 | AN131: 1 | AO131: 1
A132: =IF(C132=Retire!$D$12,"==>","") ->  | C132: 2138 | D132: 148652.4329 | E132: 135780.895 | F132: 141153.083 | G132: 0 | H132: 0 | I132: 0 | J132: 0 | K132: 0 | L132: 0 | M132: 0 | N132: 0 | O132: =IF(Rental!Q153>0,Rental!Q153,0) -> 0 | Q132: 425586.4109 | R132: 382921.4117 | S132: 42664.99918 | T132: 170 | U132: 168 | V132: 1 | W132: 1 | X132: 1 | Y132: 1 | Z132: 1 | AA132: 1 | AB132: 1 | AC132: 0 | AD132: 1 | AE132: 0 | AF132: 1 | AG132: 1 | AH132: 1 | AI132: 1 | AJ132: 1 | AK132: 1 | AL132: 1 | AM132: 1 | AN132: 1 | AO132: 1
A133: =IF(C133=Retire!$D$12,"==>","") ->  | C133: 2139 | D133: 150599.7797 | E133: 137559.6247 | F133: 143976.1447 | G133: 0 | H133: 0 | I133: 0 | J133: 0 | K133: 0 | L133: 0 | M133: 0 | N133: 0 | O133: =IF(Rental!Q154>0,Rental!Q154,0) -> 0 | Q133: 432135.5491 | R133: 388911.6385 | S133: 43223.91067 | T133: 171 | U133: 169 | V133: 1 | W133: 1 | X133: 1 | Y133: 1 | Z133: 1 | AA133: 1 | AB133: 1 | AC133: 0 | AD133: 1 | AE133: 0 | AF133: 1 | AG133: 1 | AH133: 1 | AI133: 1 | AJ133: 1 | AK133: 1 | AL133: 1 | AM133: 1 | AN133: 1 | AO133: 1
A134: =IF(C134=Retire!$D$12,"==>","") ->  | C134: 2140 | D134: 152572.6368 | E134: 139361.6558 | F134: 146855.6676 | G134: 0 | H134: 0 | I134: 0 | J134: 0 | K134: 0 | L134: 0 | M134: 0 | N134: 0 | O134: =IF(Rental!Q155>0,Rental!Q155,0) -> 0 | Q134: 438789.9602 | R134: 394999.8163 | S134: 43790.1439 | T134: 172 | U134: 170 | V134: 1 | W134: 1 | X134: 1 | Y134: 1 | Z134: 1 | AA134: 1 | AB134: 1 | AC134: 0 | AD134: 1 | AE134: 0 | AF134: 1 | AG134: 1 | AH134: 1 | AI134: 1 | AJ134: 1 | AK134: 1 | AL134: 1 | AM134: 1 | AN134: 1 | AO134: 1
A135: =IF(C135=Retire!$D$12,"==>","") ->  | C135: 2141 | D135: 154571.3384 | E135: 141187.2935 | F135: 149792.7809 | G135: 0 | H135: 0 | I135: 0 | J135: 0 | K135: 0 | L135: 0 | M135: 0 | N135: 0 | O135: =IF(Rental!Q156>0,Rental!Q156,0) -> 0 | Q135: 445551.4128 | R135: 401187.618 | S135: 44363.79478 | T135: 173 | U135: 171 | V135: 1 | W135: 1 | X135: 1 | Y135: 1 | Z135: 1 | AA135: 1 | AB135: 1 | AC135: 0 | AD135: 1 | AE135: 0 | AF135: 1 | AG135: 1 | AH135: 1 | AI135: 1 | AJ135: 1 | AK135: 1 | AL135: 1 | AM135: 1 | AN135: 1 | AO135: 1
A136: =IF(C136=Retire!$D$12,"==>","") ->  | C136: 2142 | D136: 156596.2229 | E136: 143036.847 | F136: 152788.6366 | G136: 0 | H136: 0 | I136: 0 | J136: 0 | K136: 0 | L136: 0 | M136: 0 | N136: 0 | O136: =IF(Rental!Q157>0,Rental!Q157,0) -> 0 | Q136: 452421.7065 | R136: 407476.746 | S136: 44944.96049 | T136: 174 | U136: 172 | V136: 1 | W136: 1 | X136: 1 | Y136: 1 | Z136: 1 | AA136: 1 | AB136: 1 | AC136: 0 | AD136: 1 | AE136: 0 | AF136: 1 | AG136: 1 | AH136: 1 | AI136: 1 | AJ136: 1 | AK136: 1 | AL136: 1 | AM136: 1 | AN136: 1 | AO136: 1
A137: =IF(C137=Retire!$D$12,"==>","") ->  | C137: 2143 | D137: 158647.6334 | E137: 144910.6297 | F137: 155844.4093 | G137: 0 | H137: 0 | I137: 0 | J137: 0 | K137: 0 | L137: 0 | M137: 0 | N137: 0 | O137: =IF(Rental!Q158>0,Rental!Q158,0) -> 0 | Q137: 459402.6725 | R137: 413868.933 | S137: 45533.73948 | T137: 175 | U137: 173 | V137: 1 | W137: 1 | X137: 1 | Y137: 1 | Z137: 1 | AA137: 1 | AB137: 1 | AC137: 0 | AD137: 1 | AE137: 0 | AF137: 1 | AG137: 1 | AH137: 1 | AI137: 1 | AJ137: 1 | AK137: 1 | AL137: 1 | AM137: 1 | AN137: 1 | AO137: 1
A138: =IF(C138=Retire!$D$12,"==>","") ->  | C138: 2144 | D138: 160725.9174 | E138: 146808.959 | F138: 158961.2975 | G138: 0 | H138: 0 | I138: 0 | J138: 0 | K138: 0 | L138: 0 | M138: 0 | N138: 0 | O138: =IF(Rental!Q159>0,Rental!Q159,0) -> 0 | Q138: 466496.1739 | R138: 420365.9424 | S138: 46130.23146 | T138: 176 | U138: 174 | V138: 1 | W138: 1 | X138: 1 | Y138: 1 | Z138: 1 | AA138: 1 | AB138: 1 | AC138: 0 | AD138: 1 | AE138: 0 | AF138: 1 | AG138: 1 | AH138: 1 | AI138: 1 | AJ138: 1 | AK138: 1 | AL138: 1 | AM138: 1 | AN138: 1 | AO138: 1
A139: =IF(C139=Retire!$D$12,"==>","") ->  | C139: 2145 | D139: 162831.427 | E139: 148732.1563 | F139: 162140.5234 | G139: 0 | H139: 0 | I139: 0 | J139: 0 | K139: 0 | L139: 0 | M139: 0 | N139: 0 | O139: =IF(Rental!Q160>0,Rental!Q160,0) -> 0 | Q139: 473704.1067 | R139: 426969.5692 | S139: 46734.5375 | T139: 177 | U139: 175 | V139: 1 | W139: 1 | X139: 1 | Y139: 1 | Z139: 1 | AA139: 1 | AB139: 1 | AC139: 0 | AD139: 1 | AE139: 0 | AF139: 1 | AG139: 1 | AH139: 1 | AI139: 1 | AJ139: 1 | AK139: 1 | AL139: 1 | AM139: 1 | AN139: 1 | AO139: 1
A140: =IF(C140=Retire!$D$12,"==>","") ->  | C140: 2146 | D140: 164964.5186 | E140: 150680.5476 | F140: 165383.3339 | G140: 0 | H140: 0 | I140: 0 | J140: 0 | K140: 0 | L140: 0 | M140: 0 | N140: 0 | O140: =IF(Rental!Q161>0,Rental!Q161,0) -> 0 | Q140: 481028.4001 | R140: 433681.6402 | S140: 47346.75994 | T140: 178 | U140: 176 | V140: 1 | W140: 1 | X140: 1 | Y140: 1 | Z140: 1 | AA140: 1 | AB140: 1 | AC140: 0 | AD140: 1 | AE140: 0 | AF140: 1 | AG140: 1 | AH140: 1 | AI140: 1 | AJ140: 1 | AK140: 1 | AL140: 1 | AM140: 1 | AN140: 1 | AO140: 1
A141: =MATCH("==>",A16:A140,0)+15 -> 28

Sheet Budget
C2: Budget | T2: These columns have all data match the background so they can be accessed to produce home charts. If columns are hidden the charts will not work properly.
A3: Return | C3: Enter your budget related information for each category. The first three categories Housing, Transportation, and Med-Insur are not entered on this page. Click the pencil icon for each category to edit the associated data.
H4: Current Monthly Budget | I4: Current Annual Budget | J4: =COUNTIF(J9:J170,">0") -> 1 | K4: Est. Total Monthly at Retirement | L4: Est. Total Annual at Retirement | N4: Annual Inflation Rate | O4: Years till retirement
C5: Toggle viewing retirement adjustment columns | H5: =I5/12 -> 8882.916667 | I5: =SUM(I21+I34+I47+I60+I72+I85+I98+I112+I126+I140+I154+I170) -> 106595 | J5: =COUNTIF(J9:J170,"<0") -> 2 | K5: =L5/12 -> 9983.012675 | L5: =SUM(L21+L34+L47+L60+L72+L85+L98+L112+L126+L140+L154+L170) -> 119796.1521 | N5: =Retire!D18 -> 0.03 | O5: =Retire!D12-YEAR(TODAY()) -> 12
C6: =IF(J6>0,"Defined retirement budget adjustment(s) exist. View adjustments by toggling the 'eye' icon.","") -> Defined retirement budget adjustment(s) exist. View adjustments by toggling the 'eye' icon. | J6: =SUM(J4:J5) -> 3 | T6: Future budget information | AA6: Optional / Required | AD6: Home graph information
B7: Category & Line Item Descriptions | D7: Expense Amount | E7: Annual Freq. | F7: Inflation Applies | G7: Optional or Required | H7: Current Monthly Amount | I7: Current Annual Amount | J7: (+/-) Monthly Adjust at Retirement | K7: Projected Retirement Monthly $ | L7: Projected Retirement Annual $ | M7: Comment | T7: # | U7: Year | V7: Annual Budget Amount | W7: Housing Costs | AA7: Annual Optional Expenses | AB7: Annual Required Expenses | AC7: First Year Adjustments | AD7: Current Budget and Retirement Budget
B9: HOUSING | D9: (data imported from Housing tab, select pencil to edit) | AA9: =SUM(AA10:AA169) -> 35854.44692 | AB9: =SUM(AB10:AB169) -> 59060.51585 | AC9: =Retire!AA9*12 -> 0 | AD9: Category | AE9: Current
C10: =Housing!C13 -> Insurance | D10: =Housing!D13 -> 2500 | E10: =Housing!E13 -> 1 | F10: =Housing!F13 -> Y | G10: =Housing!G13 -> Required | H10: =IF(ISNUMBER(I10),I10/12,0) -> 208.3333333 | I10: =IF(ISNUMBER(E10),IF(E10>0,D10*E10,0),"") -> 2500 | J10: 0 | K10: =IF(ISNUMBER(L10),L10/12,"") -> 297.0335181 | L10: =IF(ISNUMBER(I10),IF(F10="Y",FV($N$5,$O$5,0,I10*-1)+(J10*12),I10+(J10*12)),"") -> 3564.402217 | T10: 1 | U10: =Individuals!G20 -> 2034 | V10: =I5 -> 106595 | W10: =I21 -> 25300 | AA10: =IF(G10="Optional",L10,0) -> 0 | AB10: =IF(G10="Required",L10,0) -> 3564.402217 | AD10: =B9 -> HOUSING | AE10: =H21*12 -> 25300
C11: =Housing!C14 -> Repairs | D11: =Housing!D14 -> 3500 | E11: =Housing!E14 -> 1 | F11: =Housing!F14 -> Y | G11: =Housing!G14 -> Required | H11: =IF(ISNUMBER(I11),I11/12,0) -> 291.6666667 | I11: =IF(ISNUMBER(E11),IF(E11>0,D11*E11,0),"") -> 3500 | J11: 0 | K11: =IF(ISNUMBER(L11),L11/12,"") -> 415.8469253 | L11: 4990.163104 | T11: =T10+1 -> 2 | U11: =U10+1 -> 2035 | V11: =V10+(V10*$N$5) -> 109792.85 | W11: =W10+(W10*$N$5) -> 26059 | AA11: 0 | AB11: 4990.163104 | AD11: =B22 -> VEHICLE | AE11: =H34*12 -> 18280
C12: =Housing!C15 -> Property Taxes | D12: =Housing!D15 -> 1000 | E12: =Housing!E15 -> 1 | F12: =Housing!F15 -> Y | G12: =Housing!G15 -> Required | H12: 83.33333333 | I12: 1000 | J12: 0 | K12: =IF(ISNUMBER(L12),L12/12,"") -> 118.8134072 | L12: 1425.760887 | T12: =T11+1 -> 3 | U12: =U11+1 -> 2036 | V12: 113086.6355 | W12: 26840.77 | AA12: 0 | AB12: 1425.760887 | AD12: =B35 -> MED-INSUR | AE12: =H47*12 -> 1164
C13: =Housing!C16 -> Housekeeper | D13: =Housing!D16 -> 100 | E13: =Housing!E16 -> 26 | F13: =Housing!F16 -> N | G13: =Housing!G16 -> Optional | H13: 216.6666667 | I13: 2600 | J13: 0 | K13: =IF(ISNUMBER(L13),L13/12,"") -> 216.6666667 | L13: 2600 | T13: 4 | U13: 2037 | V13: 116479.2346 | W13: 27645.9931 | AA13: 2600 | AB13: 0 | AD13: =B48 -> HEALTH | AE13: =H60*12 -> 6310
C14: =Housing!C17 -> Home Owner Assoc. | D14: =Housing!D17 -> 100 | E14: =Housing!E17 -> 1 | F14: =Housing!F17 -> Y | G14: =Housing!G17 -> Required | H14: 8.333333333 | I14: 100 | J14: 0 | K14: 11.88134072 | L14: 142.5760887 | T14: 5 | U14: 2038 | V14: 119973.6116 | W14: 28475.37289 | AA14: 0 | AB14: 142.5760887 | AD14: =B61 -> UTILITIES | AE14: =H72*12 -> 6240
C15: =Housing!C18 -> Home Security | D15: =Housing!D18 -> 0 | E15: =Housing!E18 -> 0 | F15: =Housing!F18 -> N | G15: =Housing!G18 -> Optional | H15: 0 | I15: 0 | J15: 0 | K15: 0 | L15: 0 | T15: 6 | U15: 2039 | V15: 123572.82 | W15: 29329.63408 | AA15: 0 | AB15: 0 | AD15: =B73 -> PERSONAL | AE15: =H85*12 -> 8805
C16: =Housing!C19 -> Lawn Service | D16: =Housing!D19 -> 0 | E16: =Housing!E19 -> 0 | F16: =Housing!F19 -> N | G16: =Housing!G19 -> Optional | H16: 0 | I16: 0 | J16: 0 | K16: 0 | L16: 0 | T16: 7 | U16: 2040 | V16: 127280.0045 | W16: 30209.5231 | AA16: 0 | AB16: 0 | AD16: =B86 -> FOOD & DRINK | AE16: =H98*12 -> 24660
C17: =Housing!C20 -> Other | D17: =Housing!D20 -> 0 | E17: =Housing!E20 -> 0 | F17: =Housing!F20 -> N | G17: =Housing!G20 -> Optional | H17: 0 | I17: 0 | J17: 0 | K17: 0 | L17: 0 | T17: 8 | U17: 2041 | V17: 131098.4047 | W17: 31115.8088 | AA17: 0 | AB17: 0 | AD17: =B99 -> SUBSCRIPTIONS | AE17: =H112*12 -> 3336
C18: =Housing!C21 -> Other | D18: =Housing!D21 -> 0 | E18: =Housing!E21 -> 0 | F18: =Housing!F21 -> N | G18: =Housing!G21 -> Optional | H18: 0 | I18: 0 | J18: 0 | K18: 0 | L18: 0 | T18: 9 | U18: 2042 | V18: 135031.3568 | W18: 32049.28306 | AA18: 0 | AB18: 0 | AD18: =B113 -> MISCELLANEOUS | AE18: =H126*12 -> 12500
C19: =Housing!C22 -> Other | D19: =Housing!D22 -> 0 | E19: =Housing!E22 -> 0 | F19: =Housing!F22 -> N | G19: =Housing!G22 -> Optional | H19: 0 | I19: 0 | J19: 0 | K19: 0 | L19: 0 | T19: 10 | U19: 2043 | V19: 139082.2975 | W19: 33010.76155 | AA19: 0 | AB19: 0 | AD19: =B127 -> N/A | AE19: =H140*12 -> 0
C20: =Housing!C23 -> Mortgage (from Assets) | D20: =Housing!D23 -> 1300 | E20: =Housing!E23 -> 12 | F20: =Housing!F23 -> N | G20: =Housing!G23 -> Required | H20: =IF(ISNUMBER(I20),I20/12,"") -> 1300 | I20: =IF(ISNUMBER(E20),IF(E20>0,D20*E20,""),"") -> 15600 | J20: -1300 | K20: 0 | L20: 0 | T20: 11 | U20: 2044 | V20: 143254.7665 | W20: 34001.0844 | AA20: 0 | AB20: 0 | AD20: =B141 -> N/A | AE20: =H154*12 -> 0
H21: =SUM(H10:H20) -> 2108.333333 | I21: =SUM(I10:I20) -> 25300 | K21: =SUM(K10:K20) -> 1060.241858 | L21: =SUM(L10:L20) -> 12722.9023 | T21: 12 | U21: 2045 | V21: 147552.4094 | W21: 35021.11693 | AA21: 0 | AB21: 0 | AD21: =B155 -> N/A | AE21: =H170*12 -> 0
B22: VEHICLE | D22: (data imported from Vehicle tab, select pencil to edit) | T22: 13 | U22: 2046 | V22: 151978.9817 | W22: 36071.75044 | AA22: 0 | AB22: 0
C23: =Vehicle!C21 -> Insurance premium(s) | D23: =Vehicle!D21 -> 2000 | E23: =Vehicle!E21 -> 2 | F23: =Vehicle!F21 -> Y | G23: Required | H23: =IF(ISNUMBER(I23),I23/12,0) -> 333.3333333 | I23: =IF(ISNUMBER(E23),IF(E23>0,D23*E23,0),"") -> 4000 | J23: 0 | K23: =IF(ISNUMBER(L23),L23/12,"") -> 475.2536289 | L23: =IF(ISNUMBER(I23),IF(F23="Y",FV($N$5,$O$5,0,I23*-1)+(J23*12),I23+(J23*12)),"") -> 5703.043547 | T23: 14 | U23: 2047 | V23: 156538.3512 | W23: 37153.90295 | AA23: 0 | AB23: 5703.043547 | AD23: Category | AE23: Retirement
C24: =Vehicle!C22 -> Maintenance | D24: =Vehicle!D22 -> 600 | E24: =Vehicle!E22 -> 2 | F24: =Vehicle!F22 -> Y | G24: Required | H24: 100 | I24: 1200 | J24: 0 | K24: 142.5760887 | L24: 1710.913064 | T24: 15 | U24: 2048 | V24: 161234.5017 | W24: 38268.52004 | AA24: 0 | AB24: 1710.913064 | AD24: =AD10 -> HOUSING | AE24: =K21*12 -> 12722.9023
C25: =Vehicle!C23 -> Repairs | D25: =Vehicle!D23 -> 100 | E25: =Vehicle!E23 -> 12 | F25: =Vehicle!F23 -> Y | G25: Required | H25: 100 | I25: 1200 | J25: 0 | K25: 142.5760887 | L25: 1710.913064 | T25: 16 | U25: 2049 | V25: 166071.5368 | W25: 39416.57564 | AA25: 0 | AB25: 1710.913064 | AD25: =AD11 -> VEHICLE | AE25: =K34*12 -> 12375.6045
C26: =Vehicle!C24 -> Fuel | D26: =Vehicle!D24 -> 50 | E26: =Vehicle!E24 -> 12 | F26: =Vehicle!F24 -> Y | G26: Required | H26: 50 | I26: 600 | J26: 0 | K26: 71.28804434 | L26: 855.4565321 | T26: 17 | U26: 2050 | V26: 171053.6829 | W26: 40599.07291 | AA26: 0 | AB26: 855.4565321 | AD26: MED-INSUR | AE26: =K47*12 -> 6564
C27: =Vehicle!C25 -> Registration(s) | D27: =Vehicle!D25 -> 115 | E27: =Vehicle!E25 -> 2 | F27: =Vehicle!F25 -> Y | G27: Required | H27: 19.16666667 | I27: 230 | J27: 0 | K27: 27.32708366 | L27: 327.925004 | T27: 18 | U27: 2051 | V27: 176185.2934 | W27: 41817.0451 | AA27: 0 | AB27: 327.925004 | AD27: HEALTH | AE27: =K60*12 -> 8996.551196
C28: =Vehicle!C26 -> Tolls / Parking | D28: =Vehicle!D26 -> 100 | E28: =Vehicle!E26 -> 12 | F28: =Vehicle!F26 -> Y | G28: Required | H28: 100 | I28: 1200 | J28: 0 | K28: 142.5760887 | L28: 1710.913064 | T28: 19 | U28: 2052 | V28: 181470.8522 | W28: 43071.55645 | AA28: 0 | AB28: 1710.913064 | AD28: UTILITIES | AE28: =K72*12 -> 8896.747934
C29: =Vehicle!C27 -> AAA membership | D29: =Vehicle!D27 -> 250 | E29: =Vehicle!E27 -> 1 | F29: =Vehicle!F27 -> Y | G29: Required | H29: 20.83333333 | I29: 250 | J29: 0 | K29: 29.70335181 | L29: 356.4402217 | T29: 20 | U29: 2053 | V29: 186914.9777 | W29: 44363.70314 | AA29: 0 | AB29: 356.4402217 | AD29: PERSONAL | AE29: =K85*12 -> 12553.82461
C30: =Vehicle!C28 -> Other | D30: =Vehicle!D28 -> 0 | E30: =Vehicle!E28 -> 0 | F30: =Vehicle!F28 -> Y | G30: Required | H30: 0 | I30: 0 | J30: 0 | K30: 0 | L30: 0 | T30: 21 | U30: 2054 | V30: 192522.4271 | W30: 45694.61424 | AA30: 0 | AB30: 0 | AD30: FOOD & DRINK | AE30: =K98*12 -> 35159.26347
C31: =Vehicle!C29 -> Other | D31: =Vehicle!D29 -> 0 | E31: =Vehicle!E29 -> 0 | F31: =Vehicle!F29 -> N | G31: Optional | H31: 0 | I31: 0 | J31: 0 | K31: =IF(ISNUMBER(L31),L31/12,"") -> 0 | L31: 0 | T31: 22 | U31: 2055 | V31: 198298.0999 | W31: 47065.45266 | AA31: 0 | AB31: 0 | AD31: SUBSCRIPTIONS | AE31: =K112*12 -> 4705.247012
C32: =Vehicle!C30 -> Other | D32: =Vehicle!D30 -> 0 | E32: =Vehicle!E30 -> 0 | F32: =Vehicle!F30 -> N | G32: Optional | H32: 0 | I32: 0 | J32: 0 | K32: =IF(ISNUMBER(L32),L32/12,"") -> 0 | L32: 0 | T32: 23 | U32: 2056 | V32: 204247.0429 | W32: 48477.41624 | AA32: 0 | AB32: 0 | AD32: MISCELLANEOUS | AE32: =K126*12 -> 17822.01109
C33: =Vehicle!C31 -> Monthly car payments | D33: =Vehicle!D31 -> 800 | E33: =Vehicle!E31 -> 12 | F33: =Vehicle!F31 -> N | G33: Optional | H33: 800 | I33: 9600 | J33: -800 | K33: =IF(ISNUMBER(L33),L33/12,"") -> 0 | L33: 0 | T33: 24 | U33: 2057 | V33: 210374.4542 | W33: 49931.73873 | AA33: 0 | AB33: 0 | AD33: N/A | AE33: =K140*12 -> 0
H34: =SUM(H23:H33) -> 1523.333333 | I34: =SUM(I23:I33) -> 18280 | K34: =SUM(K23:K33) -> 1031.300375 | L34: =SUM(L23:L33) -> 12375.6045 | T34: 25 | U34: 2058 | V34: 216685.6878 | W34: 51429.69089 | AA34: 0 | AB34: 0 | AD34: N/A | AE34: =K154*12 -> 0
B35: MED-INSUR | D35: (data imported from Med-Insur tab, select pencil to edit) | T35: 26 | U35: 2059 | V35: 223186.2584 | W35: 52972.58162 | AA35: 0 | AB35: 0 | AD35: N/A | AE35: =K170*12 -> 0
C36: ='Med-Insur'!C11 -> Rx | D36: ='Med-Insur'!D11 -> 97 | E36: ='Med-Insur'!E11 -> 12 | F36: ='Med-Insur'!F11 -> N | G36: Required | H36: =IF(ISNUMBER(I36),I36/12,0) -> 97 | I36: =IF(ISNUMBER(E36),IF(E36>0,D36*E36,0),"") -> 1164 | J36: 0 | K36: =IF(ISNUMBER(L36),L36/12,"") -> 97 | L36: =IF(ISNUMBER(I36),IF(F36="Y",FV($N$5,$O$5,0,I36*-1)+(J36*12),I36+(J36*12)),"") -> 1164 | T36: 27 | U36: 2060 | V36: 229881.8462 | W36: 54561.75907 | AA36: 0 | AB36: 1164
C37: ='Med-Insur'!C12 -> Other | D37: ='Med-Insur'!D12 -> 0 | E37: ='Med-Insur'!E12 -> 0 | F37: ='Med-Insur'!F12 -> N | G37: Required | H37: 0 | I37: 0 | J37: 450 | K37: 450 | L37: 5400 | T37: 28 | U37: 2061 | V37: 236778.3015 | W37: 56198.61184 | AA37: 0 | AB37: 5400
C38: ='Med-Insur'!C13 -> Other | D38: ='Med-Insur'!D13 -> 0 | E38: ='Med-Insur'!E13 -> 0 | F38: ='Med-Insur'!F13 -> N | G38: Optional | H38: 0 | I38: 0 | J38: 0 | K38: 0 | L38: 0 | T38: 29 | U38: 2062 | V38: 243881.6506 | W38: 57884.5702 | AA38: 0 | AB38: 0
C39: ='Med-Insur'!C14 -> Other | D39: ='Med-Insur'!D14 -> 0 | E39: ='Med-Insur'!E14 -> 0 | F39: ='Med-Insur'!F14 -> N | G39: Required | H39: 0 | I39: 0 | J39: 0 | K39: 0 | L39: 0 | T39: 30 | U39: 2063 | V39: 251198.1001 | W39: 59621.1073 | AA39: 0 | AB39: 0
C40: ='Med-Insur'!C15 -> Other | D40: ='Med-Insur'!D15 -> 0 | E40: ='Med-Insur'!E15 -> 0 | F40: ='Med-Insur'!F15 -> N | G40: Required | H40: 0 | I40: 0 | J40: 0 | K40: 0 | L40: 0 | T40: 31 | U40: 2064 | V40: 258734.0431 | W40: 61409.74052 | AA40: 0 | AB40: 0
C41: ='Med-Insur'!C16 -> Other | D41: ='Med-Insur'!D16 -> 0 | E41: ='Med-Insur'!E16 -> 0 | F41: ='Med-Insur'!F16 -> N | G41: Required | H41: 0 | I41: 0 | J41: 0 | K41: 0 | L41: 0 | T41: 32 | U41: 2065 | V41: 266496.0644 | W41: 63252.03274 | AA41: 0 | AB41: 0
C42: ='Med-Insur'!C17 -> Other | D42: ='Med-Insur'!D17 -> 0 | E42: ='Med-Insur'!E17 -> 0 | F42: ='Med-Insur'!F17 -> N | G42: Required | H42: 0 | I42: 0 | J42: 0 | K42: 0 | L42: 0 | T42: 33 | U42: 2066 | V42: 274490.9463 | W42: 65149.59372 | AA42: 0 | AB42: 0
C43: ='Med-Insur'!C18 -> Other | D43: ='Med-Insur'!D18 -> 0 | E43: ='Med-Insur'!E18 -> 0 | F43: ='Med-Insur'!F18 -> N | G43: Optional | H43: 0 | I43: 0 | J43: 0 | K43: 0 | L43: 0 | T43: 34 | U43: 2067 | V43: 282725.6747 | W43: 67104.08153 | AA43: 0 | AB43: 0
C44: ='Med-Insur'!C19 -> Other | D44: ='Med-Insur'!D19 -> 0 | E44: ='Med-Insur'!E19 -> 0 | F44: ='Med-Insur'!F19 -> N | G44: Optional | H44: 0 | I44: 0 | J44: 0 | K44: 0 | L44: 0 | T44: 35 | U44: 2068 | V44: 291207.445 | W44: 69117.20398 | AA44: 0 | AB44: 0
C45: ='Med-Insur'!C20 -> Other | D45: ='Med-Insur'!D20 -> 0 | E45: ='Med-Insur'!E20 -> 0 | F45: ='Med-Insur'!F20 -> N | G45: Optional | H45: 0 | I45: 0 | J45: 0 | K45: 0 | L45: 0 | T45: 36 | U45: 2069 | V45: 299943.6683 | W45: 71190.7201 | AA45: 0 | AB45: 0
C46: ='Med-Insur'!C21 -> Medicare B & D | D46: ='Med-Insur'!D21 -> 0 | E46: ='Med-Insur'!E21 -> 12 | F46: ='Med-Insur'!F21 -> Y | G46: Optional | H46: 0 | I46: 0 | J46: 0 | K46: 0 | L46: 0 | T46: 37 | U46: 2070 | V46: 308941.9784 | W46: 73326.4417 | AA46: 0 | AB46: 0
B47: Following category titles can be edited | H47: =SUM(H36:H46) -> 97 | I47: =SUM(I36:I46) -> 1164 | J47: 0 | K47: =SUM(K36:K46) -> 547 | L47: =SUM(L36:L46) -> 6564 | T47: 38 | U47: 2071 | V47: 318210.2377 | W47: 75526.23495 | AA47: 0 | AB47: 0
B48: HEALTH | H48: =IF(ISNUMBER(I48),I48/12,"") ->  | I48: =IF(ISNUMBER(D48),IF(D48>0,F48*D48,""),"") ->  | K48: =IF(ISNUMBER(L48),L48/12,"") ->  | L48: =IF(ISNUMBER(I48),IF(E48="Y",FV($N$5,$O$5,0,I48*-1)+(J48*12),I48+(J48*12)),"") ->  | T48: 39 | U48: 2072 | V48: 327756.5449 | W48: 77792.022 | AA48: 0 | AB48: 0
C49: Doctor Visits | D49: 75 | E49: 4 | F49: Y | G49: Required | H49: =IF(ISNUMBER(I49),I49/12,0) -> 25 | I49: =IF(ISNUMBER(E49),IF(E49>0,D49*E49,0),"") -> 300 | J49: 0 | K49: 35.64402217 | L49: =IF(ISNUMBER(I49),IF(F49="Y",FV($N$5,$O$5,0,I49*-1)+(J49*12),I49+(J49*12)),"") -> 427.7282661 | T49: 40 | U49: 2073 | V49: 337589.2412 | W49: 80125.78266 | AA49: 0 | AB49: 427.7282661
C50: Dentist Visits | D50: 400 | E50: 2 | F50: Y | G50: Required | H50: 66.66666667 | I50: 800 | J50: 0 | K50: 95.05072579 | L50: 1140.608709 | T50: 41 | U50: 2074 | V50: 347716.9184 | W50: 82529.55614
C51: Prescription Drugs | D51: 100 | E51: 12 | F51: Y | G51: Required | H51: 100 | I51: 1200 | J51: 0 | K51: 142.5760887 | L51: 1710.913064 | T51: 42 | U51: 2075 | V51: 358148.426 | W51: 85005.44282
C52: OTC Drugs | D52: 130 | E52: 12 | F52: Y | G52: Required | H52: 130 | I52: 1560 | J52: 0 | K52: 185.3489153 | L52: 2224.186983 | T52: 43 | U52: 2076 | V52: 368892.8788 | W52: 87555.60611
C53: Doctor & Dentist Visits | D53: 1000 | E53: 1 | F53: Y | G53: Optional | H53: 83.33333333 | I53: 1000 | J53: 0 | K53: 118.8134072 | L53: 1425.760887 | T53: 44 | U53: 2077 | V53: 379959.6651 | W53: 90182.27429
C54: Other | D54: 0 | E54: 0 | F54: Y | G54: Optional | H54: 0 | I54: 0 | J54: 0 | K54: 0 | L54: 0 | T54: 45 | U54: 2078 | V54: 391358.4551 | W54: 92887.74252
C55: Other | D55: 0 | E55: 0 | F55: Y | G55: Optional | H55: 0 | I55: 0 | J55: 0 | K55: 0 | L55: 0 | T55: 46 | U55: 2079 | V55: 403099.2087 | W55: 95674.37479
C56: Eye exams | D56: 200 | E56: 2 | F56: Y | G56: Required | H56: 33.33333333 | I56: 400 | J56: 0 | K56: 47.52536289 | L56: 570.3043547 | T56: 47 | U56: 2080 | V56: 415192.185 | W56: 98544.60604 | AA56: 0 | AB56: 570.3043547
C57: Eye glasses | D57: 350 | E57: 3 | F57: Y | G57: Required | H57: 87.5 | I57: 1050 | J57: 0 | K57: 124.7540776 | L57: 1497.048931 | T57: 48 | U57: 2081 | V57: 427647.9506 | W57: 101500.9442
C58: Other | D58: 0 | E58: 0 | F58: Y | G58: Optional | H58: 0 | I58: 0 | J58: 0 | K58: 0 | L58: 0 | T58: 49 | U58: 2082 | V58: 440477.3891 | W58: 104545.9725
C59: Other | D59: 0 | E59: 0 | F59: Y | G59: Optional | H59: 0 | I59: 0 | J59: 0 | K59: 0 | L59: 0 | T59: 50 | U59: 2083 | V59: 453691.7107 | W59: 107682.3517 | AA59: =IF(G59="Optional",L59,0) -> 0 | AB59: =IF(G59="Required",L59,0) -> 0
H60: =SUM(H49:H59) -> 525.8333333 | I60: =SUM(I49:I59) -> 6310 | K60: =SUM(K49:K59) -> 749.7125997 | L60: =SUM(L49:L59) -> 8996.551196 | T60: 51 | U60: 2084 | V60: 467302.4621 | W60: 110912.8223 | AA60: 0 | AB60: 0
B61: UTILITIES | T61: 52 | U61: 2085 | V61: 481321.5359 | W61: 114240.2069 | AA61: 0 | AB61: 0
C62: Phone - Land | D62: 0 | E62: 0 | F62: Y | G62: Optional | H62: =IF(ISNUMBER(I62),I62/12,0) -> 0 | I62: =IF(ISNUMBER(E62),IF(E62>0,D62*E62,0),"") -> 0 | J62: 0 | K62: =IF(ISNUMBER(L62),L62/12,"") -> 0 | L62: =IF(ISNUMBER(I62),IF(F62="Y",FV($N$5,$O$5,0,I62*-1)+(J62*12),I62+(J62*12)),"") -> 0 | T62: 53 | U62: 2086 | V62: 495761.182 | W62: 117667.4131 | AA62: 0 | AB62: 0
C63: Phone Cell 1 | D63: 150 | E63: 12 | F63: Y | G63: Required | H63: 150 | I63: 1800 | J63: 0 | K63: =IF(ISNUMBER(L63),L63/12,"") -> 213.864133 | L63: 2566.369596 | T63: 54 | U63: 2087 | V63: 510634.0175 | W63: 121197.4355 | AA63: 0 | AB63: 2566.369596
C64: Phone - Cell 2 | D64: 50 | E64: 12 | F64: Y | G64: Required | H64: 50 | I64: 600 | J64: 0 | K64: 71.28804434 | L64: 855.4565321 | T64: 55 | U64: 2088 | V64: 525953.038 | W64: 124833.3586 | AA64: 0 | AB64: 855.4565321
C65: Other | D65: 0 | E65: 0 | F65: Y | G65: Optional | H65: 0 | I65: 0 | J65: 0 | K65: 0 | L65: 0 | T65: 56 | U65: 2089 | V65: 541731.6291 | W65: 128578.3594 | AA65: 0 | AB65: 0
C66: Internet | D66: 80 | E66: 12 | F66: Y | G66: Required | H66: 80 | I66: 960 | J66: 0 | K66: 114.0608709 | L66: 1368.730451 | T66: 57 | U66: 2090 | V66: 557983.578 | W66: 132435.7101 | AA66: 0 | AB66: 1368.730451
C67: Water | D67: 45 | E67: 12 | F67: Y | G67: Required | H67: 45 | I67: 540 | J67: 0 | K67: 64.15923991 | L67: 769.9108789 | T67: 58 | U67: 2091 | V67: 574723.0853 | W67: 136408.7815 | AA67: 0 | AB67: 769.9108789
C68: Sewer | D68: 25 | E68: 12 | F68: Y | G68: Required | H68: 25 | I68: 300 | J68: 0 | K68: 35.64402217 | L68: 427.7282661 | T68: 59 | U68: 2092 | V68: 591964.7779 | W68: 140501.0449 | AA68: 0 | AB68: 427.7282661
C69: Refuse | D69: 45 | E69: 12 | F69: Y | G69: Required | H69: 45 | I69: 540 | J69: 0 | K69: 64.15923991 | L69: 769.9108789 | T69: 60 | U69: 2093 | V69: 609723.7212 | W69: 144716.0762 | AA69: 0 | AB69: 769.9108789
C70: Electric | D70: 125 | E70: 12 | F70: Y | G70: Required | H70: 125 | I70: 1500 | J70: 0 | K70: 178.2201109 | L70: 2138.64133 | T70: 61 | U70: 2094 | V70: 628015.4329 | W70: 149057.5585 | AA70: 0 | AB70: 2138.64133
C71: Other | D71: 0 | E71: 0 | F71: N | G71: Optional | H71: 0 | I71: 0 | J71: 0 | K71: 0 | L71: 0 | T71: 62 | U71: 2095 | V71: 646855.8959 | W71: 153529.2853 | AA71: 0 | AB71: 0
H72: =SUM(H62:H71) -> 520 | I72: =SUM(I62:I71) -> 6240 | K72: =SUM(K62:K71) -> 741.3956612 | L72: =SUM(L62:L71) -> 8896.747934 | T72: 63 | U72: 2096 | V72: 666261.5727 | W72: 158135.1638 | AA72: 0 | AB72: 0
B73: PERSONAL | T73: 64 | U73: 2097 | V73: 686249.4199 | W73: 162879.2188 | AA73: 0 | AB73: 0
C74: Clothing | D74: 200 | E74: 12 | F74: Y | G74: Required | H74: =IF(ISNUMBER(I74),I74/12,0) -> 200 | I74: =IF(ISNUMBER(E74),IF(E74>0,D74*E74,0),"") -> 2400 | J74: 0 | K74: =IF(ISNUMBER(L74),L74/12,"") -> 285.1521774 | L74: =IF(ISNUMBER(I74),IF(F74="Y",FV($N$5,$O$5,0,I74*-1)+(J74*12),I74+(J74*12)),"") -> 3421.826128 | T74: 65 | U74: 2098 | V74: 706836.9025 | W74: 167765.5953 | AA74: 0 | AB74: 3421.826128
C75: Haircuts | D75: 50 | E75: 12 | F75: Y | G75: Required | H75: 50 | I75: 600 | J75: 0 | K75: 71.28804434 | L75: 855.4565321 | T75: 66 | U75: 2099 | V75: =V74+(V74*$N$5) -> 728042.0096 | W75: 172798.5632
C76: Haircuts | D76: 125 | E76: 9 | F76: Y | G76: Required | H76: 93.75 | I76: 1125 | J76: 0 | K76: 133.6650831 | L76: 1603.980998 | T76: =T75+1 -> 67 | U76: 2100 | V76: 749883.2699 | W76: 177982.5201
C77: Massage/Fitness | D77: 130 | E77: 12 | F77: Y | G77: Optional | H77: 130 | I77: 1560 | J77: 0 | K77: 185.3489153 | L77: 2224.186983 | T77: 68 | U77: 2101 | V77: 772379.768 | W77: 183321.9957
C78: Health Club | D78: 260 | E78: 12 | F78: Y | G78: Optional | H78: 260 | I78: 3120 | J78: 0 | K78: 370.6978306 | L78: 4448.373967 | T78: 69 | U78: 2102 | V78: 795551.161 | W78: 188821.6556
C79: Other | D79: 0 | E79: 0 | F79: Y | G79: Required | H79: 0 | I79: 0 | J79: 0 | K79: 0 | L79: 0 | T79: 70 | U79: 2103 | V79: 819417.6958 | W79: 194486.3052
C80: Other | D80: 0 | E80: 0 | F80: Y | G80: Required | H80: 0 | I80: 0 | J80: 0 | K80: 0 | L80: 0 | T80: 71 | U80: 2104 | V80: 844000.2267 | W80: 200320.8944
C81: Other | D81: 0 | E81: 0 | F81: Y | G81: Required | H81: 0 | I81: 0 | J81: 0 | K81: 0 | L81: 0 | T81: 72 | U81: 2105 | V81: 869320.2335 | W81: 206330.5212 | AA81: 0 | AB81: 0
C82: Other | D82: 0 | E82: 0 | F82: Y | G82: Required | H82: 0 | I82: 0 | J82: 0 | K82: 0 | L82: 0 | T82: 73 | U82: 2106 | V82: 895399.8405 | W82: 212520.4368
C83: Other | D83: 0 | E83: 0 | F83: Y | G83: Required | H83: 0 | I83: 0 | J83: 0 | K83: 0 | L83: 0 | T83: 74 | U83: 2107 | V83: 922261.8357 | W83: 218896.0499
C84: Other | D84: 0 | E84: 0 | F84: Y | G84: Required | H84: 0 | I84: 0 | J84: 0 | K84: 0 | L84: 0 | T84: 75 | U84: 2108 | V84: 949929.6908 | W84: 225462.9314 | AA84: =IF(G84="Optional",L84,0) -> 0 | AB84: =IF(G84="Required",L84,0) -> 0
H85: =SUM(H74:H84) -> 733.75 | I85: =SUM(I74:I84) -> 8805 | K85: =SUM(K74:K84) -> 1046.152051 | L85: =SUM(L74:L84) -> 12553.82461 | T85: 76 | U85: 2109 | V85: 978427.5815 | W85: 232226.8194 | AA85: 0 | AB85: 0
B86: FOOD & DRINK | T86: 77 | U86: 2110 | V86: 1007780.409 | W86: 239193.624 | AA86: 0 | AB86: 0
C87: Groceries | D87: 450 | E87: 26 | F87: Y | G87: Required | H87: =IF(ISNUMBER(I87),I87/12,0) -> 975 | I87: =IF(ISNUMBER(E87),IF(E87>0,D87*E87,0),"") -> 11700 | J87: 0 | K87: =IF(ISNUMBER(L87),L87/12,"") -> 1390.116865 | L87: =IF(ISNUMBER(I87),IF(F87="Y",FV($N$5,$O$5,0,I87*-1)+(J87*12),I87+(J87*12)),"") -> 16681.40238 | T87: 78 | U87: 2111 | V87: 1038013.821 | W87: 246369.4327 | AA87: 0 | AB87: 16681.40238
C88: Eating Out | D88: 700 | E88: 12 | F88: Y | G88: Optional | H88: 700 | I88: 8400 | J88: 0 | K88: 998.0326208 | L88: 11976.39145 | T88: 79 | U88: 2112 | V88: 1069154.236 | W88: 253760.5157 | AA88: 11976.39145 | AB88: 0
C89: Coffee & Bar | D89: 190 | E89: 24 | F89: Y | G89: Optional | H89: 380 | I89: 4560 | J89: 0 | K89: 541.789137 | L89: 6501.469644 | T89: 80 | U89: 2113 | V89: 1101228.863 | W89: 261373.3311
C90: Other | D90: 0 | E90: 0 | F90: Y | G90: Optional | H90: 0 | I90: 0 | J90: 0 | K90: 0 | L90: 0 | T90: 81 | U90: 2114 | V90: 1134265.729 | W90: 269214.5311
C91: Other | D91: 0 | E91: 0 | F91: Y | G91: Optional | H91: 0 | I91: 0 | J91: 0 | K91: 0 | L91: 0 | T91: 82 | U91: 2115 | V91: 1168293.701 | W91: 277290.967
C92: Other | D92: 0 | E92: 0 | F92: Y | G92: Optional | H92: 0 | I92: 0 | J92: 0 | K92: 0 | L92: 0 | T92: =T91+1 -> 83 | U92: 2116 | V92: 1203342.512 | W92: 285609.696
C93: Other | D93: 0 | E93: 0 | F93: Y | G93: Optional | H93: 0 | I93: 0 | J93: 0 | K93: 0 | L93: 0 | T93: 84 | U93: 2117 | V93: 1239442.787 | W93: 294177.9869
C94: Other | D94: 0 | E94: 0 | F94: Y | G94: Optional | H94: 0 | I94: 0 | J94: 0 | K94: 0 | L94: 0 | T94: 85 | U94: 2118 | V94: 1276626.071 | W94: 303003.3265
C95: Other | D95: 0 | E95: 0 | F95: Y | G95: Optional | H95: 0 | I95: 0 | J95: 0 | K95: 0 | L95: 0 | T95: 86 | U95: 2119 | V95: 1314924.853 | W95: 312093.4263 | AA95: 0 | AB95: 0
C96: Other | D96: 0 | E96: 0 | F96: Y | G96: Optional | H96: 0 | I96: 0 | J96: 0 | K96: 0 | L96: 0 | T96: 87 | U96: 2120 | V96: 1354372.598 | W96: 321456.2291
C97: Other | D97: 0 | E97: 0 | F97: Y | G97: Optional | H97: 0 | I97: 0 | J97: 0 | K97: 0 | L97: 0 | T97: 88 | U97: 2121 | V97: 1395003.776 | W97: 331099.916 | AA97: =IF(G97="Optional",L97,0) -> 0 | AB97: =IF(G97="Required",L97,0) -> 0
H98: =SUM(H87:H97) -> 2055 | I98: =SUM(I87:I97) -> 24660 | K98: =SUM(K87:K97) -> 2929.938622 | L98: =SUM(L87:L97) -> 35159.26347 | T98: 89 | U98: 2122 | V98: 1436853.89 | W98: 341032.9134 | AA98: 0 | AB98: 0
B99: SUBSCRIPTIONS | T99: 90 | U99: 2123 | V99: 1479959.506 | W99: 351263.9008 | AA99: 0 | AB99: 0
C100: News Paper | D100: 12 | E100: 12 | F100: Y | G100: Optional | H100: =IF(ISNUMBER(I100),I100/12,0) -> 12 | I100: =IF(ISNUMBER(E100),IF(E100>0,D100*E100,0),"") -> 144 | J100: 0 | K100: =IF(ISNUMBER(L100),L100/12,"") -> 17.10913064 | L100: =IF(ISNUMBER(I100),IF(F100="Y",FV($N$5,$O$5,0,I100*-1)+(J100*12),I100+(J100*12)),"") -> 205.3095677 | T100: 91 | U100: 2124 | V100: 1524358.292 | W100: 361801.8179 | AA100: 205.3095677 | AB100: 0
C101: Movies | D101: 70 | E101: 12 | F101: Y | G101: Optional | H101: 70 | I101: 840 | J101: 0 | K101: 99.80326208 | L101: 1197.639145 | T101: 92 | U101: 2125 | V101: 1570089.04 | W101: 372655.8724 | AA101: 1197.639145 | AB101: 0
C102: Music | D102: 15 | E102: 12 | F102: Y | G102: Optional | H102: 15 | I102: 180 | J102: 0 | K102: 21.3864133 | L102: 256.6369596 | T102: 93 | U102: 2126 | V102: 1617191.712 | W102: 383835.5486
C103: Public Radio | D103: 120 | E103: 1 | F103: N | G103: Optional | H103: 10 | I103: 120 | J103: 0 | K103: 10 | L103: 120 | T103: 94 | U103: 2127 | V103: 1665707.463 | W103: 395350.615
C104: NY Times | D104: 15 | E104: 12 | F104: Y | G104: Optional | H104: 15 | I104: 180 | J104: 0 | K104: 21.3864133 | L104: 256.6369596 | T104: 95 | U104: 2128 | V104: 1715678.687 | W104: 407211.1335
C105: DVDs, CDs, MP3s, etc. | D105: 0 | E105: 0 | F105: Y | G105: Optional | H105: 0 | I105: 0 | J105: 0 | K105: 0 | L105: 0 | T105: 96 | U105: 2129 | V105: 1767149.047 | W105: 419427.4675
C106: Video | D106: 20 | E106: 12 | F106: Y | G106: Required | H106: 20 | I106: 240 | J106: 0 | K106: 28.51521774 | L106: 342.1826128 | T106: 97 | U106: 2130 | V106: 1820163.519 | W106: 432010.2915
C107: Audible books | D107: 16 | E107: 12 | F107: Y | G107: Required | H107: 16 | I107: 192 | J107: 0 | K107: 22.81217419 | L107: 273.7460903 | T107: 98 | U107: 2131 | V107: 1874768.424 | W107: 444970.6003
C108: Streaming TV | D108: 120 | E108: 12 | F108: Y | G108: Optional | H108: 120 | I108: 1440 | J108: 0 | K108: 171.0913064 | L108: 2053.095677 | T108: =T107+1 -> 99 | U108: 2132 | V108: 1931011.477 | W108: 458319.7183 | AA108: 2053.095677 | AB108: 0
C109: Other | D109: 0 | E109: 0 | F109: Y | G109: Required | H109: 0 | I109: 0 | J109: 0 | K109: 0 | L109: 0 | T109: 100 | U109: 2133 | V109: 1988941.821 | W109: 472069.3098
C110: Other | D110: 0 | E110: 0 | F110: Y | G110: Required | H110: 0 | I110: 0 | J110: 0 | K110: 0 | L110: 0 | T110: 101 | U110: 2134 | V110: 2048610.076 | W110: 486231.3891
C111: Other | D111: 0 | E111: 0 | F111: Y | G111: Required | H111: 0 | I111: 0 | J111: 0 | K111: 0 | L111: 0 | T111: 102 | U111: 2135 | V111: 2110068.378 | W111: 500818.3308 | AA111: =IF(G111="Optional",L111,0) -> 0 | AB111: =IF(G111="Required",L111,0) -> 0
H112: =SUM(H100:H111) -> 278 | I112: =SUM(I100:I111) -> 3336 | K112: =SUM(K100:K111) -> 392.1039177 | L112: =SUM(L100:L111) -> 4705.247012 | T112: 103 | U112: 2136 | V112: 2173370.43 | W112: 515842.8807 | AA112: 0 | AB112: 0
B113: MISCELLANEOUS | T113: 104 | U113: 2137 | V113: 2238571.543 | W113: 531318.1671 | AA113: 0 | AB113: 0
C114: Charity | D114: 500 | E114: 12 | F114: Y | G114: Optional | H114: =IF(ISNUMBER(I114),I114/12,0) -> 500 | I114: =IF(ISNUMBER(E114),IF(E114>0,D114*E114,0),"") -> 6000 | J114: 0 | K114: =IF(ISNUMBER(L114),L114/12,"") -> 712.8804434 | L114: =IF(ISNUMBER(I114),IF(F114="Y",FV($N$5,$O$5,0,I114*-1)+(J114*12),I114+(J114*12)),"") -> 8554.565321 | T114: =T113+1 -> 105 | U114: =U113+1 -> 2138 | V114: =V113+(V113*$N$5) -> 2305728.689 | W114: =W113+(W113*$N$5) -> 547257.7121 | AA114: 8554.565321 | AB114: 0
C115: Fun times | D115: 250 | E115: 12 | F115: Y | G115: Optional | H115: 250 | I115: 3000 | J115: 0 | K115: 356.4402217 | L115: 4277.282661 | T115: 106 | U115: 2139 | V115: 2374900.549 | W115: 563675.4435 | AA115: 4277.282661 | AB115: 0
C116: Birthday Gifts | D116: 1000 | E116: 1 | F116: Y | G116: Optional | H116: 83.33333333 | I116: 1000 | J116: 0 | K116: 118.8134072 | L116: 1425.760887 | T116: 107 | U116: 2140 | V116: 2446147.566 | W116: 580585.7068 | AA116: 1425.760887 | AB116: 0
C117: Christmas Gifts | D117: 2500 | E117: 1 | F117: Y | G117: Optional | H117: 208.3333333 | I117: 2500 | J117: 0 | K117: 297.0335181 | L117: 3564.402217 | T117: 108 | U117: 2141 | V117: 2519531.993 | W117: 598003.278 | AA117: 3564.402217 | AB117: 0
C118: Other | D118: 0 | E118: 0 | F118: Y | G118: Optional | H118: 0 | I118: 0 | J118: 0 | K118: 0 | L118: 0 | T118: 109 | U118: 2142 | V118: 2595117.953 | W118: 615943.3764 | AA118: 0 | AB118: 0
C119: Other | D119: 0 | E119: 0 | F119: Y | G119: Optional | H119: 0 | I119: 0 | J119: 0 | K119: 0 | L119: 0 | T119: 110 | U119: 2143 | V119: 2672971.491 | W119: 634421.6777 | AA119: 0 | AB119: 0
C120: Other | D120: 0 | E120: 0 | F120: Y | G120: Optional | H120: 0 | I120: 0 | J120: 0 | K120: 0 | L120: 0 | T120: 111 | U120: 2144 | V120: 2753160.636 | W120: 653454.328 | AA120: 0 | AB120: 0
C121: Other | D121: 0 | E121: 0 | F121: Y | G121: Optional | H121: 0 | I121: 0 | J121: 0 | K121: 0 | L121: 0 | T121: 112 | U121: 2145 | V121: 2835755.455 | W121: 673057.9578 | AA121: 0 | AB121: 0
C122: Other | D122: 0 | E122: 0 | F122: Y | G122: Optional | H122: 0 | I122: 0 | J122: 0 | K122: 0 | L122: 0 | T122: 113 | U122: 2146 | V122: 2920828.119 | W122: 693249.6966 | AA122: 0 | AB122: 0
C123: Other | D123: 0 | E123: 0 | F123: Y | G123: Optional | H123: 0 | I123: 0 | J123: 0 | K123: 0 | L123: 0 | T123: 114 | U123: 2147 | V123: 3008452.962 | W123: 714047.1875 | AA123: 0 | AB123: 0
C124: Other | D124: 0 | E124: 0 | F124: Y | G124: Optional | H124: 0 | I124: 0 | J124: 0 | K124: 0 | L124: 0 | T124: 115 | U124: 2148 | V124: 3098706.551 | W124: 735468.6031 | AA124: 0 | AB124: 0
C125: Other | D125: 0 | E125: 0 | F125: Y | G125: Optional | H125: 0 | I125: 0 | J125: 0 | K125: 0 | L125: 0 | T125: 116 | U125: 2149 | V125: 3191667.748 | W125: 757532.6612 | AA125: 0 | AB125: 0
H126: =SUM(H114:H125) -> 1041.666667 | I126: =SUM(I114:I125) -> 12500 | K126: =SUM(K114:K125) -> 1485.16759 | L126: =SUM(L114:L125) -> 17822.01109 | T126: 117 | U126: 2150 | V126: 3287417.78 | W126: 780258.641 | AA126: 0 | AB126: 0
B127: N/A | T127: 118 | U127: 2151 | V127: 3386040.314 | W127: 803666.4002 | AA127: 0 | AB127: 0
C128: Other | D128: 0 | E128: 0 | F128: Y | G128: Required | H128: =IF(ISNUMBER(I128),I128/12,0) -> 0 | I128: =IF(ISNUMBER(E128),IF(E128>0,D128*E128,0),"") -> 0 | J128: 0 | K128: =IF(ISNUMBER(L128),L128/12,"") -> 0 | L128: =IF(ISNUMBER(I128),IF(F128="Y",FV($N$5,$O$5,0,I128*-1)+(J128*12),I128+(J128*12)),"") -> 0 | T128: 119 | U128: 2152 | V128: 3487621.523 | W128: 827776.3922 | AA128: 0 | AB128: 0
C129: Other | D129: 0 | E129: 0 | F129: Y | G129: Required | H129: 0 | I129: 0 | J129: 0 | K129: 0 | L129: 0 | T129: 120 | U129: 2153 | V129: 3592250.169 | W129: 852609.684 | AA129: 0 | AB129: 0
C130: Other | D130: 0 | E130: 0 | F130: Y | G130: Required | H130: 0 | I130: 0 | J130: 0 | K130: 0 | L130: 0 | T130: 121 | U130: 2154 | V130: 3700017.674 | W130: 878187.9745
C131: Other | D131: 0 | E131: 0 | F131: Y | G131: Required | H131: 0 | I131: 0 | J131: 0 | K131: 0 | L131: 0 | T131: 122 | U131: 2155 | V131: 3811018.204 | W131: 904533.6138
C132: Other | D132: 0 | E132: 0 | F132: Y | G132: Required | H132: 0 | I132: 0 | J132: 0 | K132: 0 | L132: 0 | T132: 123 | U132: 2156 | V132: 3925348.75 | W132: 931669.6222
C133: Other | D133: 0 | E133: 0 | F133: Y | G133: Required | H133: 0 | I133: 0 | J133: 0 | K133: 0 | L133: 0 | T133: 124 | U133: 2157 | V133: 4043109.213 | W133: 959619.7108
C134: Other | D134: 0 | E134: 0 | F134: Y | G134: Required | H134: 0 | I134: 0 | J134: 0 | K134: 0 | L134: 0 | T134: 125 | U134: 2158 | V134: 4164402.489 | W134: 988408.3022
C135: Other | D135: 0 | E135: 0 | F135: Y | G135: Required | H135: 0 | I135: 0 | J135: 0 | K135: 0 | L135: 0
C136: Other | D136: 0 | E136: 0 | F136: Y | G136: Required | H136: 0 | I136: 0 | J136: 0 | K136: 0 | L136: 0 | AA136: 0 | AB136: 0
C137: Other | D137: 0 | E137: 0 | F137: Y | G137: Required | H137: 0 | I137: 0 | J137: 0 | K137: 0 | L137: 0
C138: Other | D138: 0 | E138: 0 | F138: Y | G138: Required | H138: 0 | I138: 0 | J138: 0 | K138: 0 | L138: 0
C139: Other | D139: 0 | E139: 0 | F139: Y | G139: Required | H139: 0 | I139: 0 | J139: 0 | K139: 0 | L139: 0 | AA139: =IF(G139="Optional",L139,0) -> 0 | AB139: =IF(G139="Required",L139,0) -> 0
H140: =SUM(H128:H139) -> 0 | I140: =SUM(I128:I139) -> 0 | K140: =SUM(K128:K139) -> 0 | L140: =SUM(L128:L139) -> 0 | AA140: 0 | AB140: 0
B141: N/A | AA141: 0 | AB141: 0
C142: Other | D142: 0 | E142: 0 | F142: Y | G142: Required | H142: =IF(ISNUMBER(I142),I142/12,0) -> 0 | I142: =IF(ISNUMBER(E142),IF(E142>0,D142*E142,0),"") -> 0 | J142: 0 | K142: =IF(ISNUMBER(L142),L142/12,"") -> 0 | L142: =IF(ISNUMBER(I142),IF(F142="Y",FV($N$5,$O$5,0,I142*-1)+(J142*12),I142+(J142*12)),"") -> 0 | AA142: 0 | AB142: 0
C143: Other | D143: 0 | E143: 0 | F143: Y | G143: Required | H143: 0 | I143: 0 | J143: 0 | K143: 0 | L143: 0 | AA143: 0 | AB143: 0
C144: Other | D144: 0 | E144: 0 | F144: Y | G144: Required | H144: 0 | I144: 0 | J144: 0 | K144: 0 | L144: 0 | AA144: 0 | AB144: 0
C145: Other | D145: 0 | E145: 0 | F145: Y | G145: Required | H145: 0 | I145: 0 | J145: 0 | K145: 0 | L145: 0 | AA145: 0 | AB145: 0
C146: Other | D146: 0 | E146: 0 | F146: Y | G146: Required | H146: 0 | I146: 0 | J146: 0 | K146: 0 | L146: 0 | AA146: 0 | AB146: 0
C147: Other | D147: 0 | E147: 0 | F147: Y | G147: Required | H147: 0 | I147: 0 | J147: 0 | K147: 0 | L147: 0 | AA147: 0 | AB147: 0
C148: Other | D148: 0 | E148: 0 | F148: Y | G148: Required | H148: =IF(ISNUMBER(I148),I148/12,0) -> 0 | I148: =IF(ISNUMBER(E148),IF(E148>0,D148*E148,0),"") -> 0 | J148: 0 | K148: =IF(ISNUMBER(L148),L148/12,"") -> 0 | L148: =IF(ISNUMBER(I148),IF(F148="Y",FV($N$5,$O$5,0,I148*-1)+(J148*12),I148+(J148*12)),"") -> 0
C149: Other | D149: 0 | E149: 0 | F149: Y | G149: Required | H149: =IF(ISNUMBER(I149),I149/12,0) -> 0 | I149: =IF(ISNUMBER(E149),IF(E149>0,D149*E149,0),"") -> 0 | J149: 0 | K149: =IF(ISNUMBER(L149),L149/12,"") -> 0 | L149: =IF(ISNUMBER(I149),IF(F149="Y",FV($N$5,$O$5,0,I149*-1)+(J149*12),I149+(J149*12)),"") -> 0
C150: Other | D150: 0 | E150: 0 | F150: Y | G150: Required | H150: 0 | I150: 0 | J150: 0 | K150: 0 | L150: 0 | AA150: 0 | AB150: 0
C151: Other | D151: 0 | E151: 0 | F151: Y | G151: Required | H151: =IF(ISNUMBER(I151),I151/12,0) -> 0 | I151: =IF(ISNUMBER(E151),IF(E151>0,D151*E151,0),"") -> 0 | J151: 0 | K151: =IF(ISNUMBER(L151),L151/12,"") -> 0 | L151: =IF(ISNUMBER(I151),IF(F151="Y",FV($N$5,$O$5,0,I151*-1)+(J151*12),I151+(J151*12)),"") -> 0
C152: Other | D152: 0 | E152: 0 | F152: Y | G152: Required | H152: 0 | I152: 0 | J152: 0 | K152: 0 | L152: 0 | AA152: 0 | AB152: 0
C153: Other | D153: 0 | E153: 0 | F153: Y | G153: Required | H153: 0 | I153: 0 | J153: 0 | K153: 0 | L153: 0 | AA153: 0 | AB153: 0
H154: =SUM(H142:H153) -> 0 | I154: =SUM(I142:I153) -> 0 | K154: =SUM(K142:K153) -> 0 | L154: =SUM(L142:L153) -> 0 | AA154: 0 | AB154: 0
B155: N/A | AA155: 0 | AB155: 0
C156: Other | D156: 0 | E156: 0 | F156: Y | G156: Required | H156: =IF(ISNUMBER(I156),I156/12,0) -> 0 | I156: =IF(ISNUMBER(E156),IF(E156>0,D156*E156,0),"") -> 0 | J156: 0 | K156: =IF(ISNUMBER(L156),L156/12,"") -> 0 | L156: =IF(ISNUMBER(I156),IF(F156="Y",FV($N$5,$O$5,0,I156*-1)+(J156*12),I156+(J156*12)),"") -> 0 | AA156: 0 | AB156: 0
C157: Other | D157: 0 | E157: 0 | F157: Y | G157: Required | H157: 0 | I157: 0 | J157: 0 | K157: 0 | L157: 0 | AA157: 0 | AB157: 0
C158: Other | D158: 0 | E158: 0 | F158: Y | G158: Required | H158: 0 | I158: 0 | J158: 0 | K158: 0 | L158: 0 | AA158: 0 | AB158: 0
C159: Other | D159: 0 | E159: 0 | F159: Y | G159: Required | H159: 0 | I159: 0 | J159: 0 | K159: 0 | L159: 0 | AA159: 0 | AB159: 0
C160: Other | D160: 0 | E160: 0 | F160: Y | G160: Required | H160: 0 | I160: 0 | J160: 0 | K160: 0 | L160: 0 | AA160: 0 | AB160: 0
C161: Other | D161: 0 | E161: 0 | F161: Y | G161: Required | H161: 0 | I161: 0 | J161: 0 | K161: 0 | L161: 0 | AA161: 0 | AB161: 0
C162: Other | D162: 0 | E162: 0 | F162: Y | G162: Required | H162: 0 | I162: 0 | J162: 0 | K162: 0 | L162: 0 | AA162: 0 | AB162: 0
C163: Other | D163: 0 | E163: 0 | F163: Y | G163: Required | H163: 0 | I163: 0 | J163: 0 | K163: 0 | L163: 0 | AA163: 0 | AB163: 0
C164: Other | D164: 0 | E164: 0 | F164: y | G164: Required | H164: 0 | I164: 0 | J164: 0 | K164: 0 | L164: 0 | AA164: 0 | AB164: 0
C165: Other | D165: 0 | E165: 0 | F165: y | G165: Required | H165: =IF(ISNUMBER(I165),I165/12,0) -> 0 | I165: =IF(ISNUMBER(E165),IF(E165>0,D165*E165,0),"") -> 0 | J165: 0 | K165: =IF(ISNUMBER(L165),L165/12,"") -> 0 | L165: =IF(ISNUMBER(I165),IF(F165="Y",FV($N$5,$O$5,0,I165*-1)+(J165*12),I165+(J165*12)),"") -> 0
C166: Other | D166: 0 | E166: 0 | F166: Y | G166: Required | H166: =IF(ISNUMBER(I166),I166/12,0) -> 0 | I166: =IF(ISNUMBER(E166),IF(E166>0,D166*E166,0),"") -> 0 | J166: 0 | K166: =IF(ISNUMBER(L166),L166/12,"") -> 0 | L166: =IF(ISNUMBER(I166),IF(F166="Y",FV($N$5,$O$5,0,I166*-1)+(J166*12),I166+(J166*12)),"") -> 0
C167: Other | D167: 0 | E167: 0 | F167: Y | G167: Required | H167: 0 | I167: 0 | J167: 0 | K167: =IF(ISNUMBER(L167),L167/12,"") -> 0 | L167: 0
C168: Other | D168: 0 | E168: 0 | F168: Y | G168: Required | H168: 0 | I168: 0 | J168: 0 | K168: =IF(ISNUMBER(L168),L168/12,"") -> 0 | L168: 0
C169: Other | D169: 0 | E169: 0 | F169: Y | G169: Required | H169: 0 | I169: 0 | J169: 0 | K169: 0 | L169: 0 | AA169: =IF(G169="Optional",L169,0) -> 0 | AB169: =IF(G169="Required",L169,0) -> 0
H170: =SUM(H156:H169) -> 0 | I170: =SUM(I156:I169) -> 0 | K170: =SUM(K156:K169) -> 0 | L170: =SUM(L156:L169) -> 0
B174: Y
B175: N

Sheet Retire
C2: Retirement Planning | U2: =IF(U49>0,"One or more years has income exceeding budget needs.","") -> 
A3: Return | C3: Retirement plan for 40 years beginning with retirement start year.
AF5: Budget Related | AQ5: Housing Related | AU5: Combined After/Before | AX5: After Tax Related | BF5: Before Tax Related | BK5: Validation Checking | BR5: Rental Property
AA6: =SUM(AA9:AA48) -> 0 | AB6: =SUM(AB9:AB48) -> 0 | AD6: =SUM(AA6:AB6) -> 0 | BB6: Base Int. | BC6: After Tax % | BD6: After Tax $ | BF6: Before Tax $ | BG6: Before Tax % | BH6: Base Int.
C7: =IF(Config!Q12="SHOW","Press calculator to update","") ->  | F7: Yr. # | G7: Year | H7: Age | K7: Investment Balance | L7: Growth from Interest | M7: House Sale Net Sale $ | O7: Annual Gross Income | P7: Income Tax Due | Q7: Effective Tax Rate | R7: Monthly Net Income | S7: Annual Net Income | U7: Annual withdrawal from Investments | W7: Adjusted Annual Budget | X7: Calculated Monthly Budget | Y7: Monthly Difference Budget vs. Net | AA7: Single Year Monthly Budget Adj. (+/-) | AB7: Multi-year Monthly Budget Adj. (+/-) | AC7: RMD Adj. | AD7: Comments | AF7: Calculated Adjusted Annual Budget | AG7: Calculated Adjusted Monthly Budget | AH7: Base budget plus inflation (Budget tab) | AI7: Annual Single year Adj. (col AC) | AJ7: Annual Multi-year Adj. (col AD) | AK7: Annual Housing to Decrease (house sold) | AL7: Annual Housing to Increase (house sold) | AM7: RMD Annual Shortage Amount | AN7: Income tax due | AO7: Budget Adjustment to cover RMD | AQ7: Base monthly budget | AR7: Monthly house $ in Budget | AS7: Monthly $ less house costs | AU7: Combined Interest | AV7: Combined Balance | AX7: Net Amount from Sale of House (+) | AY7: Reinvested Withdrawal (+) | AZ7: Reinvested RMD (+) | BA7: Interest (+) | BB7: =BD7*$D$15 -> 6205.288827 | BC7: =BD7/D10 -> 0.1421732694 | BD7: =VLOOKUP(D12,Investments!BW7:BY67,3) -> 155132.2207 | BF7: =VLOOKUP(D12,Investments!BW7:BY67,2) -> 936016.4159 | BH7: =BF7*$D$15 -> 37440.65664 | BK7: Income | BL7: Withdrawal | BM7: Income + Withdrawal | BN7: Total Interest Earned | BO7: Withdrawal Less Interest | BP7: Investments Result | BR7: Rental 1 Net Sales $ Add to After Tax | BS7: Rental 2 Net Sales $ Add to After Tax
A8: Toggle column view | H8: Id-1 | I8: Id-2 | BB8: Withdrawal (-) | BC8: Percent of Total | BD8: Balance + Rental Sales | BF8: Balance | BG8: Percent of Total | BH8: Withdrawal (-) | BI8: Interest (+)
F9: 1 | G9: =D12 -> 2034 | H9: =IF(Individuals!$E$10>0,G9-YEAR(Individuals!$E$10),0) -> 66 | I9: =IF(Individuals!$E$15>0,G9-YEAR(Individuals!$E$15),0) -> 64 | K9: =ROUND(D10,0) -> 1091149 | L9: =ROUND(AU9,0) -> 44392 | M9: =AX9 -> 0 | O9: =Income!Q28+U9 -> 196928.3223 | P9: =TaxRates!M47 -> 45170 | Q9: =IF(O9<>0,P9/O9,0) -> 0.2293727965 | R9: =ROUND(S9/12,0) -> 12647 | S9: =O9-P9 -> 151758.3223 | U9: 18777.11 | W9: =X9*12 -> 151764 | X9: =ROUND(AG9,0) -> 12647 | Y9: =ROUND(R9-X9,0) -> 0 | AA9: 0 | AB9: 0 | AC9: =IF(AO9>0,"Y","") ->  | AF9: =AG9*12 -> 151765 | AG9: =SUM(AH9:AO9)/12 -> 12647.08333 | AH9: =VLOOKUP(G9,Budget!$U$10:$V$134,2) -> 106595 | AI9: =AA9*12 -> 0 | AJ9: =AB9*12 -> 0 | AK9: =IF(G9>=Housing!$I$43, IF( Housing!$I$43 <> "", VLOOKUP(G9,Budget!U10:W134,3)*-1,0), 0) -> 0 | AL9: =IF(G9<Housing!$I$43, 0, VLOOKUP(G9,Housing!E81:I205,5)*12) -> 0 | AM9: =RMD!V7 -> 0 | AN9: =P9 -> 45170 | AQ9: =W9/12+AB9 -> 12647 | AR9: =Budget!K21 -> 1060.241858 | AS9: =AQ9-AR9 -> 11586.75814 | AU9: =IF(AV9 > 0, AV9*$D$15, 0) -> 44392.48733 | AV9: =BD9+BF9 -> 1109812.183 | AX9: =IF(G9=Housing!$I$43,Housing!$I$48,0) -> 0 | AY9: 0 | BA9: =BD9*$D$15 -> 6205.288827 | BC9: =BC7 -> 0.1421732694 | BD9: =IF((AX9+AZ9+BD7+AY9+BR9+BS9)-BB9>0, (AX9+AZ9+BD7+AY9+BR9+BS9)-BB9, 0) -> 155132.2207 | BF9: =(BF7+BH7)-BH9 -> 954679.9625 | BG9: =IF(AV9>0,BF9/AV9,0) -> 0.8602175908 | BH9: 18777.11 | BI9: =IF(BF9>0,BF9*$D$15,0) -> 38187.1985 | BK9: =Income!Q28:Q67 -> 178151.2123 | BL9: =U9:U48 -> 18777.11 | BM9: =SUM(BK9:BL9) -> 196928.3223 | BN9: =BI9+BA9 -> 44392.48733 | BO9: =BN9-BL9 -> 25615.37733 | BP9: =IF(BO9<0,"Investments down","Investments Up") -> Investments Up | BR9: =LOOKUP(G9,Rental!$C$37:$C$161,Rental!$Y$37:$Y$161) -> 0 | BS9: =LOOKUP(G9,Rental!$C$37:$C$161,Rental!$AD$37:$AD$161) -> 0
C10: Starting Balance | D10: =VLOOKUP(D12,Investments!E7:F67,2) -> 1091149 | F10: =F9+1 -> 2 | G10: =G9+1 -> 2035 | H10: =H9+1 -> 67 | I10: 65 | K10: =ROUND(AV10,0) -> 1135428 | L10: =ROUND(AU10,0) -> 45417 | M10: 0 | O10: =IF(U10>0,Income!Q29+U10,Income!Q29) -> 206981.4465 | P10: =TaxRates!M48 -> 48597 | Q10: 0.2347891602 | R10: 13199 | S10: 158384.4465 | U10: 25532.17 | W10: =X10*12 -> 158388 | X10: =ROUND(AG10,0) -> 13199 | Y10: 0 | AA10: 0 | AB10: 0 | AC10: =IF(AO10>0,"Y","") ->  | AF10: =AG10*12 -> 158389.85 | AG10: =SUM(AH10:AO10)/12 -> 13199.15417 | AH10: =VLOOKUP(G10,Budget!$U$10:$V$134,2) -> 109792.85 | AI10: =AA10*12 -> 0 | AJ10: =(AB10+(AJ9))*12 -> 0 | AK10: =IF(G10>=Housing!$I$43, IF( Housing!$I$43 <> "", VLOOKUP(G10,Budget!U11:W135,3)*-1,0), 0) -> 0 | AL10: =IF(G10<Housing!$I$43, 0, VLOOKUP(G10,Housing!E82:I206,5)*12) -> 0 | AM10: =RMD!V8 -> 0 | AN10: 48597 | AQ10: =AQ9+(AQ9*$D$18)+AB10 -> 13026.41 | AR10: =AR9+(AR9*$D$18) -> 1092.049114 | AS10: =AQ10-AR10 -> 11934.36089 | AU10: 45417.10242 | AV10: =BD10+BF10 -> 1135427.561 | AX10: =IF(G10=Housing!$I$43,Housing!$I$48,0) -> 0 | AY10: 0 | BA10: =BD10*$D$15 -> 6453.500381 | BC10: =IF(AV10>0,BD10/AV10,0) -> 0.1420940579 | BD10: =IF((BD9+AX10+AY9+AZ9+BA9+BR10+BS10)-BB9>0, (BD9+AX10+AY9+AZ9+BA9+BR10+BS10)-BB9, 0) -> 161337.5095 | BF10: =IF((BF9+BI9)-BH9 > 0, (BF9+BI9)-BH9, 0) -> 974090.051 | BG10: 0.8579059421 | BH10: 25532.17 | BI10: =IF(BF10>0,BF10*$D$15,0) -> 38963.60204 | BK10: 181449.2765 | BL10: 25532.17 | BM10: =SUM(BK10:BL10) -> 206981.4465 | BN10: 45417.10242 | BO10: 19884.93242 | BP10: =IF(BO10<0,"Investments down","Investments Up") -> Investments Up | BR10: =LOOKUP(G10,Rental!$C$37:$C$161,Rental!$Y$37:$Y$161) -> 0 | BS10: =LOOKUP(G10,Rental!$C$37:$C$161,Rental!$AD$37:$AD$161) -> 0
C11: Starting annual budget | D11: =Budget!L5 -> 119796.1521 | F11: =F10+1 -> 3 | G11: =G10+1 -> 2036 | H11: 68 | I11: 66 | K11: =ROUND(AV11,0) -> 1155312 | L11: 46212 | M11: 0 | O11: =IF(U11>0,Income!Q30+U11,Income!Q30) -> 186509.8698 | P11: =TaxRates!M49 -> 36715 | Q11: 0.1968528531 | R11: 12483 | S11: 149794.8698 | U11: 92370 | W11: 149796 | X11: 12483 | Y11: 0 | AA11: 0 | AB11: 0 | AF11: 149801.6355 | AG11: 12483.46962 | AH11: =VLOOKUP(G11,Budget!$U$10:$V$134,2) -> 113086.6355 | AI11: 0 | AJ11: =(AB11+SUM($AB$9:AB10))*12 -> 0 | AK11: =IF(G11>=Housing!$I$43, IF( Housing!$I$43 <> "", VLOOKUP(G11,Budget!U12:W136,3)*-1,0), 0) -> 0 | AL11: =IF(G11<Housing!$I$43, 0, VLOOKUP(G11,Housing!E83:I207,5)*12) -> 0 | AM11: =RMD!V9 -> 0 | AN11: 36715 | AQ11: 13417.2023 | AR11: 1124.810587 | AS11: 12292.39171 | AU11: 46212.49972 | AV11: 1155312.493 | AX11: =IF(G11=Housing!$I$43,Housing!$I$48,0) -> 0 | AY11: 0 | BA11: 6711.640396 | BC11: 0.1452343075 | BD11: =IF((BD10+AX11+AY10+AZ10+BA10+BR11+BS11)-BB10>0, (BD10+AX11+AY10+AZ10+BA10+BR11+BS11)-BB10, 0) -> 167791.0099 | BF11: 987521.4831 | BG11: 0.8547656925 | BH11: 92370 | BI11: =IF(BF11>0,BF11*$D$15,0) -> 39500.85932 | BK11: 94139.86982 | BL11: 92370 | BM11: 186509.8698 | BN11: 46212.49972 | BO11: -46157.50028 | BP11: Investments down | BR11: =LOOKUP(G11,Rental!$C$37:$C$161,Rental!$Y$37:$Y$161) -> 0 | BS11: =LOOKUP(G11,Rental!$C$37:$C$161,Rental!$AD$37:$AD$161) -> 0
C12: Retirement year | D12: =Individuals!G20 -> 2034 | F12: =F11+1 -> 4 | G12: 2037 | H12: 69 | I12: 67 | K12: 1109155 | L12: 44366 | M12: 0 | O12: =IF(U12>0,Income!Q31+U12,Income!Q31) -> 192090.3198 | P12: =TaxRates!M50 -> 37810 | Q12: 0.1968344893 | R12: 12857 | S12: 154280.3198 | U12: 96588 | W12: 154284 | X12: 12857 | Y12: 0 | AA12: 0 | AB12: 0 | AF12: 154289.2346 | AG12: 12857.43621 | AH12: =VLOOKUP(G12,Budget!$U$10:$V$134,2) -> 116479.2346 | AI12: 0 | AJ12: =(AB12+SUM($AB$9:AB11))*12 -> 0 | AK12: =IF(G12>=Housing!$I$43, IF( Housing!$I$43 <> "", VLOOKUP(G12,Budget!U13:W137,3)*-1,0), 0) -> 0 | AL12: =IF(G12<Housing!$I$43, 0, VLOOKUP(G12,Housing!E84:I208,5)*12) -> 0 | AM12: =RMD!V10 -> 0 | AN12: 37810 | AQ12: 13819.71837 | AR12: 1158.554905 | AS12: 12661.16346 | AU12: 44366.19971 | AV12: 1109154.993 | AX12: =IF(G12=Housing!$I$43,Housing!$I$48,0) -> 0 | AY12: 0 | BA12: 6980.106012 | BC12: 0.1573293646 | BD12: 174502.6503 | BF12: 934652.3424 | BG12: 0.8426706354 | BH12: 96588 | BI12: 37386.09369 | BK12: 95502.3198 | BL12: 96588 | BM12: 192090.3198 | BN12: 44366.19971 | BO12: -52221.80029 | BP12: Investments down | BR12: =LOOKUP(G12,Rental!$C$37:$C$161,Rental!$Y$37:$Y$161) -> 0 | BS12: =LOOKUP(G12,Rental!$C$37:$C$161,Rental!$AD$37:$AD$161) -> 0
F13: 5 | G13: 2038 | H13: 70 | I13: 68 | K13: 1056933 | L13: 42277 | M13: 0 | O13: =IF(U13>0,Income!Q32+U13,Income!Q32) -> 197493.2022 | P13: =TaxRates!M51 -> 38762 | Q13: 0.1962700466 | R13: 13228 | S13: 158731.2022 | U13: 100608 | W13: 158736 | X13: 13228 | Y13: 0 | AA13: 0 | AB13: 0 | AF13: 158735.6116 | AG13: 13227.96763 | AH13: =VLOOKUP(G13,Budget!$U$10:$V$134,2) -> 119973.6116 | AI13: 0 | AJ13: =(AB13+SUM($AB$9:AB12))*12 -> 0 | AK13: =IF(G13>=Housing!$I$43, IF( Housing!$I$43 <> "", VLOOKUP(G13,Budget!U14:W138,3)*-1,0), 0) -> 0 | AL13: =IF(G13<Housing!$I$43, 0, VLOOKUP(G13,Housing!E85:I209,5)*12) -> 0 | AM13: =RMD!V11 -> 0 | AN13: 38762 | AQ13: 14234.30992 | AR13: 1193.311552 | AS13: 13040.99837 | AU13: 42277.32769 | AV13: 1056933.192 | AX13: =IF(G13=Housing!$I$43,Housing!$I$48,0) -> 0 | AY13: 0 | BA13: 7259.310252 | BC13: 0.1717069325 | BD13: 181482.7563 | BF13: 875450.4361 | BG13: 0.8282930675 | BH13: 100608 | BI13: 35018.01744 | BK13: 96885.20222 | BL13: 100608 | BM13: 197493.2022 | BN13: 42277.32769 | BO13: -58330.67231 | BP13: Investments down | BR13: =LOOKUP(G13,Rental!$C$37:$C$161,Rental!$Y$37:$Y$161) -> 0 | BS13: =LOOKUP(G13,Rental!$C$37:$C$161,Rental!$AD$37:$AD$161) -> 0
F14: 6 | G14: 2039 | H14: 71 | I14: 69 | K14: 998603 | L14: 39944 | M14: 0 | O14: =IF(U14>0,Income!Q33+U14,Income!Q33) -> 202604.8364 | P14: =TaxRates!M52 -> 39518 | Q14: 0.195049638 | R14: 13591 | S14: 163086.8364 | U14: 104316 | W14: 163092 | X14: 13591 | Y14: 0 | AA14: 0 | AB14: 0 | AF14: 163090.82 | AG14: 13590.90166 | AH14: =VLOOKUP(G14,Budget!$U$10:$V$134,2) -> 123572.82 | AI14: 0 | AJ14: =(AB14+SUM($AB$9:AB13))*12 -> 0 | AK14: =IF(G14>=Housing!$I$43, IF( Housing!$I$43 <> "", VLOOKUP(G14,Budget!U15:W139,3)*-1,0), 0) -> 0 | AL14: =IF(G14<Housing!$I$43, 0, VLOOKUP(G14,Housing!E86:I210,5)*12) -> 0 | AM14: =RMD!V12 -> 0 | AN14: 39518 | AQ14: 14661.33922 | AR14: 1229.110899 | AS14: 13432.22832 | AU14: 39944.1008 | AV14: 998602.5201 | AX14: =IF(G14=Housing!$I$43,Housing!$I$48,0) -> 0 | AY14: 0 | BA14: 7549.682662 | BC14: 0.1890061989 | BD14: 188742.0666 | BF14: 809860.4535 | BG14: 0.8109938011 | BH14: 104316 | BI14: 32394.41814 | BK14: 98288.83645 | BL14: 104316 | BM14: 202604.8364 | BN14: 39944.1008 | BO14: -64371.8992 | BP14: Investments down | BR14: =LOOKUP(G14,Rental!$C$37:$C$161,Rental!$Y$37:$Y$161) -> 0 | BS14: =LOOKUP(G14,Rental!$C$37:$C$161,Rental!$AD$37:$AD$161) -> 0
C15: Avg. rate of return % | D15: 0.04 | F15: 7 | G15: 2040 | H15: 72 | I15: 70 | K15: 934231 | L15: 37369 | M15: 0 | O15: =IF(U15>0,Income!Q34+U15,Income!Q34) -> 207305.547 | P15: =TaxRates!M53 -> 40015 | Q15: 0.1930242609 | R15: 13941 | S15: 167290.547 | U15: 107592 | W15: 167292 | X15: 13941 | Y15: 0 | AA15: 0 | AB15: 0 | AF15: 167295.0045 | AG15: 13941.25038 | AH15: =VLOOKUP(G15,Budget!$U$10:$V$134,2) -> 127280.0045 | AI15: 0 | AJ15: =(AB15+SUM($AB$9:AB14))*12 -> 0 | AK15: =IF(G15>=Housing!$I$43, IF( Housing!$I$43 <> "", VLOOKUP(G15,Budget!U16:W140,3)*-1,0), 0) -> 0 | AL15: =IF(G15<Housing!$I$43, 0, VLOOKUP(G15,Housing!E87:I211,5)*12) -> 0 | AM15: =RMD!V13 -> 0 | AN15: 40015 | AQ15: 15101.17939 | AR15: 1265.984225 | AS15: 13835.19517 | AU15: 37369.22483 | AV15: 934230.6209 | AX15: =IF(G15=Housing!$I$43,Housing!$I$48,0) -> 0 | AY15: 0 | BA15: 7851.669969 | BC15: 0.2101105924 | BD15: 196291.7492 | BF15: 737938.8717 | BG15: 0.7898894076 | BH15: 107592 | BI15: 29517.55487 | BK15: 99713.54704 | BL15: 107592 | BM15: 207305.547 | BN15: 37369.22483 | BO15: -70222.77517 | BP15: Investments down | BR15: =LOOKUP(G15,Rental!$C$37:$C$161,Rental!$Y$37:$Y$161) -> 0 | BS15: =LOOKUP(G15,Rental!$C$37:$C$161,Rental!$AD$37:$AD$161) -> 0
F16: 8 | G16: 2041 | H16: 73 | I16: 71 | K16: 864008 | L16: 34560 | M16: 0 | O16: =IF(U16>0,Income!Q35+U16,Income!Q35) -> 211433.6639 | P16: =TaxRates!M54 -> 40171 | Q16: 0.1899933968 | R16: 14272 | S16: =O16-P16 -> 171262.6639 | U16: 110274 | W16: 171264 | X16: 14272 | Y16: 0 | AA16: 0 | AB16: 0 | AF16: 171269.4047 | AG16: 14272.45039 | AH16: =VLOOKUP(G16,Budget!$U$10:$V$134,2) -> 131098.4047 | AI16: 0 | AJ16: =(AB16+SUM($AB$9:AB15))*12 -> 0 | AK16: =IF(G16>=Housing!$I$43, IF( Housing!$I$43 <> "", VLOOKUP(G16,Budget!U17:W141,3)*-1,0), 0) -> 0 | AL16: =IF(G16<Housing!$I$43, 0, VLOOKUP(G16,Housing!E88:I212,5)*12) -> 0 | AM16: =RMD!V14 -> 0 | AN16: 40171 | AQ16: 15554.21478 | AR16: 1303.963752 | AS16: 14250.25102 | AU16: 34560.31383 | AV16: 864007.8457 | AX16: =IF(G16=Housing!$I$43,Housing!$I$48,0) -> 0 | AY16: 0 | BA16: 8165.736767 | BC16: 0.23627496 | BD16: 204143.4192 | BF16: 659864.4265 | BG16: 0.76372504 | BH16: 110274 | BI16: 26394.57706 | BK16: 101159.6639 | BL16: 110274 | BM16: 211433.6639 | BN16: 34560.31383 | BO16: -75713.68617 | BP16: Investments down | BR16: =LOOKUP(G16,Rental!$C$37:$C$161,Rental!$Y$37:$Y$161) -> 0 | BS16: =LOOKUP(G16,Rental!$C$37:$C$161,Rental!$AD$37:$AD$161) -> 0
F17: 9 | G17: 2042 | H17: 74 | I17: 72 | K17: 788294 | L17: 31532 | M17: 0 | O17: =IF(U17>0,Income!Q36+U17,Income!Q36) -> 214809.5222 | P17: =TaxRates!M55 -> 39890 | Q17: 0.1856994028 | R17: 14577 | S17: 174919.5222 | U17: 112182 | W17: 174924 | X17: 14577 | Y17: 0 | AA17: 0 | AB17: 0 | AF17: 174921.3568 | AG17: 14576.77974 | AH17: =VLOOKUP(G17,Budget!$U$10:$V$134,2) -> 135031.3568 | AI17: 0 | AJ17: =(AB17+SUM($AB$9:AB16))*12 -> 0 | AK17: =IF(G17>=Housing!$I$43, IF( Housing!$I$43 <> "", VLOOKUP(G17,Budget!U18:W142,3)*-1,0), 0) -> 0 | AL17: =IF(G17<Housing!$I$43, 0, VLOOKUP(G17,Housing!E89:I213,5)*12) -> 0 | AM17: =RMD!V15 -> 0 | AN17: 39890 | AQ17: 16020.84122 | AR17: 1343.082665 | AS17: 14677.75855 | AU17: 31531.76638 | AV17: 788294.1595 | AX17: =IF(G17=Housing!$I$43,Housing!$I$48,0) -> 0 | AY17: 0 | BA17: 8492.366238 | BC17: 0.2693273233 | BD17: 212309.156 | BF17: 575985.0036 | BG17: 0.7306726767 | BH17: 112182 | BI17: 23039.40014 | BK17: 102627.5222 | BL17: 112182 | BM17: 214809.5222 | BN17: 31531.76638 | BO17: -80650.23362 | BP17: Investments down | BR17: =LOOKUP(G17,Rental!$C$37:$C$161,Rental!$Y$37:$Y$161) -> 0 | BS17: =LOOKUP(G17,Rental!$C$37:$C$161,Rental!$AD$37:$AD$161) -> 0
C18: Annual inflation rate % | D18: 0.03 | F18: 10 | G18: 2043 | H18: 75 | I18: 73 | K18: 707644 | L18: 28306 | M18: 0 | O18: =IF(U18>0,Income!Q37+U18,Income!Q37) -> 217121.4629 | P18: =TaxRates!M56 -> 39021 | Q18: 0.1797196808 | R18: 14842 | S18: 178100.4629 | U18: 113004 | W18: 178104 | X18: 14842 | Y18: 0 | AA18: 0 | AB18: 0 | AF18: 178103.2975 | AG18: 14841.94146 | AH18: =VLOOKUP(G18,Budget!$U$10:$V$134,2) -> 139082.2975 | AI18: 0 | AJ18: =(AB18+SUM($AB$9:AB17))*12 -> 0 | AK18: =IF(G18>=Housing!$I$43, IF( Housing!$I$43 <> "", VLOOKUP(G18,Budget!U19:W143,3)*-1,0), 0) -> 0 | AL18: =IF(G18<Housing!$I$43, 0, VLOOKUP(G18,Housing!E90:I214,5)*12) -> 0 | AM18: =RMD!V16 -> 0 | AN18: 39021 | AQ18: 16501.46646 | AR18: 1383.375145 | AS18: 15118.09131 | AU18: 28305.75704 | AV18: 707643.9259 | AX18: =IF(G18=Housing!$I$43,Housing!$I$48,0) -> 0 | AY18: 0 | BA18: 8832.060888 | BC18: 0.3120234826 | BD18: 220801.5222 | BF18: 486842.4037 | BG18: 0.6879765174 | BH18: 113004 | BI18: 19473.69615 | BK18: 104117.4629 | BL18: 113004 | BM18: 217121.4629 | BN18: 28305.75704 | BO18: -84698.24296 | BP18: Investments down | BR18: =LOOKUP(G18,Rental!$C$37:$C$161,Rental!$Y$37:$Y$161) -> 0 | BS18: =LOOKUP(G18,Rental!$C$37:$C$161,Rental!$AD$37:$AD$161) -> 0
F19: 11 | G19: 2044 | H19: 76 | I19: 74 | K19: 622946 | L19: 24918 | M19: 0 | O19: =IF(U19>0,Income!Q38+U19,Income!Q38) -> 218039.8321 | P19: =TaxRates!M57 -> 37395 | Q19: 0.1715053604 | R19: 15054 | S19: 180644.8321 | U19: 112410 | W19: 180648 | X19: 15054 | Y19: 0 | AA19: 0 | AB19: 0 | AF19: 180649.7665 | AG19: 15054.1472 | AH19: =VLOOKUP(G19,Budget!$U$10:$V$134,2) -> 143254.7665 | AI19: 0 | AJ19: =(AB19+SUM($AB$9:AB18))*12 -> 0 | AK19: =IF(G19>=Housing!$I$43, IF( Housing!$I$43 <> "", VLOOKUP(G19,Budget!U20:W144,3)*-1,0), 0) -> 0 | AL19: =IF(G19<Housing!$I$43, 0, VLOOKUP(G19,Housing!E91:I214,5)*12) -> 0 | AM19: =RMD!V17 -> 0 | AN19: 37395 | AQ19: 16996.51045 | AR19: 1424.876399 | AS19: 15571.63405 | AU19: 24917.82732 | AV19: 622945.6829 | AX19: =IF(G19=Housing!$I$43,Housing!$I$48,0) -> 0 | AY19: 0 | BA19: 9185.343323 | BC19: 0.3686253703 | BD19: 229633.5831 | BF19: 393312.0999 | BG19: 0.6313746297 | BH19: 112410 | BI19: 15732.48399 | BK19: 105629.8321 | BL19: 112410 | BM19: 218039.8321 | BN19: 24917.82732 | BO19: -87492.17268 | BP19: Investments down | BR19: =LOOKUP(G19,Rental!$C$37:$C$161,Rental!$Y$37:$Y$161) -> 0 | BS19: =LOOKUP(G19,Rental!$C$37:$C$161,Rental!$AD$37:$AD$161) -> 0
F20: 12 | G20: 2045 | H20: 77 | I20: 75 | K20: 535454 | L20: 21418 | M20: 0 | O20: =IF(U20>0,Income!Q39+U20,Income!Q39) -> 217126.982 | P20: =TaxRates!M58 -> 34789 | Q20: 0.1602242138 | R20: 15195 | S20: 182337.982 | U20: 109962 | W20: 182340 | X20: 15195 | Y20: 0 | AA20: 0 | AB20: 0 | AF20: 182341.4094 | AG20: 15195.11745 | AH20: =VLOOKUP(G20,Budget!$U$10:$V$134,2) -> 147552.4094 | AI20: 0 | AJ20: =(AB20+SUM($AB$9:AB19))*12 -> 0 | AK20: =IF(G20>=Housing!$I$43, IF( Housing!$I$43 <> "", VLOOKUP(G20,Budget!U21:W145,3)*-1,0), 0) -> 0 | AL20: =IF(G20<Housing!$I$43, 0, VLOOKUP(G20,Housing!E92:I219,5)*12) -> 0 | AM20: =RMD!V18 -> 0 | AN20: 34789 | AQ20: 17506.40576 | AR20: 1467.622691 | AS20: 16038.78307 | AU20: 21418.14041 | AV20: 535453.5103 | AX20: =IF(G20=Housing!$I$43,Housing!$I$48,0) -> 0 | AY20: 0 | BA20: 9552.757056 | BC20: 0.4460124396 | BD20: 238818.9264 | BF20: 296634.5839 | BG20: 0.5539875604 | BH20: 109962 | BI20: 11865.38335 | BK20: 107164.982 | BL20: 109962 | BM20: 217126.982 | BN20: 21418.14041 | BO20: -88543.85959 | BP20: Investments down | BR20: =LOOKUP(G20,Rental!$C$37:$C$161,Rental!$Y$37:$Y$161) -> 0 | BS20: =LOOKUP(G20,Rental!$C$37:$C$161,Rental!$AD$37:$AD$161) -> 0
F21: 13 | G21: 2046 | H21: 78 | I21: 76 | K21: 446910 | L21: 17876 | M21: 0 | O21: =IF(U21>0,Income!Q40+U21,Income!Q40) -> 213855.2704 | P21: =TaxRates!M59 -> 30943 | Q21: 0.1446913136 | R21: 15243 | S21: 182912.2704 | U21: 105132 | W21: 182916 | X21: 15243 | Y21: 0 | AA21: 0 | AB21: 0 | AF21: 182921.9817 | AG21: 15243.49848 | AH21: =VLOOKUP(G21,Budget!$U$10:$V$134,2) -> 151978.9817 | AI21: 0 | AJ21: =(AB21+SUM($AB$9:AB20))*12 -> 0 | AK21: =IF(G21>=Housing!$I$43, IF( Housing!$I$43 <> "", VLOOKUP(G21,Budget!U22:W146,3)*-1,0), 0) -> 0 | AL21: =IF(G21<Housing!$I$43, 0, VLOOKUP(G21,Housing!E93:I220,5)*12) -> 0 | AM21: =RMD!V19 -> 0 | AN21: 30943 | AQ21: 18031.59794 | AR21: 1511.651372 | AS21: 16519.94656 | AU21: 17876.38603 | AV21: 446909.6507 | AX21: =IF(G21=Housing!$I$43,Housing!$I$48,0) -> 0 | AY21: 0 | BA21: 9934.867338 | BC21: 0.555753681 | BD21: 248371.6835 | BF21: 198537.9672 | BG21: 0.444246319 | BH21: 105132 | BI21: 7941.518689 | BK21: 108723.2704 | BL21: 105132 | BM21: 213855.2704 | BN21: 17876.38603 | BO21: -87255.61397 | BP21: Investments down | BR21: =LOOKUP(G21,Rental!$C$37:$C$161,Rental!$Y$37:$Y$161) -> 0 | BS21: =LOOKUP(G21,Rental!$C$37:$C$161,Rental!$AD$37:$AD$161) -> 0
F22: 14 | G22: 2047 | H22: 79 | I22: 77 | K22: 359654 | L22: 14386 | M22: 0 | O22: =IF(U22>0,Income!Q41+U22,Income!Q41) -> 207709.0609 | P22: =TaxRates!M60 -> 25590 | Q22: 0.1232011733 | R22: 15177 | S22: 182119.0609 | U22: 97404 | W22: 182124 | X22: 15177 | Y22: 0 | AA22: 0 | AB22: 0 | AF22: 182128.3512 | AG22: 15177.3626 | AH22: =VLOOKUP(G22,Budget!$U$10:$V$134,2) -> 156538.3512 | AI22: 0 | AJ22: =(AB22+SUM($AB$9:AB21))*12 -> 0 | AK22: =IF(G22>=Housing!$I$43, IF( Housing!$I$43 <> "", VLOOKUP(G22,Budget!U23:W147,3)*-1,0), 0) -> 0 | AL22: =IF(G22<Housing!$I$43, 0, VLOOKUP(G22,Housing!E94:I221,5)*12) -> 0 | AM22: =RMD!V20 -> 0 | AN22: 25590 | AQ22: 18572.54587 | AR22: 1557.000913 | AS22: 17015.54496 | AU22: 14386.16147 | AV22: 359654.0367 | AX22: =IF(G22=Housing!$I$43,Housing!$I$48,0) -> 0 | AY22: 0 | BA22: 10332.26203 | BC22: 0.7182084015 | BD22: 258306.5508 | BF22: 101347.4859 | BG22: 0.2817915985 | BH22: 97404 | BI22: 4053.899436 | BK22: 110305.0609 | BL22: 97404 | BM22: 207709.0609 | BN22: 14386.16147 | BO22: -83017.83853 | BP22: Investments down | BR22: =LOOKUP(G22,Rental!$C$37:$C$161,Rental!$Y$37:$Y$161) -> 0 | BS22: =LOOKUP(G22,Rental!$C$37:$C$161,Rental!$AD$37:$AD$161) -> 0
F23: 15 | G23: 2048 | H23: 80 | I23: 78 | K23: 276636 | L23: 11065 | M23: 0 | O23: =IF(U23>0,Income!Q42+U23,Income!Q42) -> 198334.7231 | P23: =TaxRates!M61 -> 18552 | Q23: 0.09353884035 | R23: 14982 | S23: 179782.7231 | U23: 86424 | W23: 179784 | X23: 14982 | Y23: 0 | AA23: 0 | AB23: 0 | AF23: 179786.5017 | AG23: 14982.20848 | AH23: =VLOOKUP(G23,Budget!$U$10:$V$134,2) -> 161234.5017 | AI23: 0 | AJ23: =(AB23+SUM($AB$9:AB22))*12 -> 0 | AK23: =IF(G23>=Housing!$I$43, IF( Housing!$I$43 <> "", VLOOKUP(G23,Budget!U24:W148,3)*-1,0), 0) -> 0 | AL23: =IF(G23<Housing!$I$43, 0, VLOOKUP(G23,Housing!E95:I222,5)*12) -> 0 | AM23: =RMD!V21 -> 0 | AN23: 18552 | AQ23: 19129.72225 | AR23: 1603.71094 | AS23: 17526.01131 | AU23: 11065.44793 | AV23: 276636.1982 | AX23: =IF(G23=Housing!$I$43,Housing!$I$48,0) -> 0 | AY23: 0 | BA23: 10745.55251 | BB23: 78426.61 | BC23: 0.9710906042 | BD23: 268638.8128 | BF23: 7997.385345 | BG23: 0.0289093958 | BH23: 7997.3853 | BI23: 319.8954138 | BK23: 111910.7231 | BL23: 86424 | BM23: 198334.7231 | BN23: 11065.44793 | BO23: -75358.55207 | BP23: Investments down | BR23: =LOOKUP(G23,Rental!$C$37:$C$161,Rental!$Y$37:$Y$161) -> 0 | BS23: =LOOKUP(G23,Rental!$C$37:$C$161,Rental!$AD$37:$AD$161) -> 0
F24: 16 | G24: 2049 | H24: 81 | I24: 79 | K24: 201278 | L24: 8051 | M24: 0 | O24: =IF(U24>0,Income!Q43+U24,Income!Q43) -> 202664.6328 | P24: =TaxRates!M62 -> 18300 | Q24: 0.09029695879 | R24: 15364 | S24: 184364.6328 | U24: 89124 | W24: 184368 | X24: 15364 | Y24: 0 | AA24: 0 | AB24: 0 | AF24: 184371.5368 | AG24: 15364.29473 | AH24: =VLOOKUP(G24,Budget!$U$10:$V$134,2) -> 166071.5368 | AI24: 0 | AJ24: =(AB24+SUM($AB$9:AB23))*12 -> 0 | AK24: =IF(G24>=Housing!$I$43, IF( Housing!$I$43 <> "", VLOOKUP(G24,Budget!U25:W149,3)*-1,0), 0) -> 0 | AL24: =IF(G24<Housing!$I$43, 0, VLOOKUP(G24,Housing!E96:I223,5)*12) -> 0 | AM24: =RMD!V22 -> 0 | AN24: 18300 | AQ24: 19703.61392 | AR24: 1651.822269 | AS24: 18051.79165 | AU24: 8051.106032 | AV24: 201277.6508 | AX24: =IF(G24=Housing!$I$43,Housing!$I$48,0) -> 0 | AY24: 0 | BA24: 8038.310214 | BB24: 88804.1 | BC24: 0.9984106757 | BD24: 200957.7553 | BF24: 319.8954591 | BG24: 0.001589324288 | BH24: 319.8955 | BI24: 12.79581836 | BK24: 113540.6328 | BL24: 89124 | BM24: 202664.6328 | BN24: 8051.106032 | BO24: -81072.89397 | BP24: Investments down | BR24: =LOOKUP(G24,Rental!$C$37:$C$161,Rental!$Y$37:$Y$161) -> 0 | BS24: =LOOKUP(G24,Rental!$C$37:$C$161,Rental!$AD$37:$AD$161) -> 0
C25: Name | F25: 17 | G25: 2050 | H25: 82 | I25: 80 | K25: 826882 | L25: 33075 | M25: 706676.8376 | O25: =IF(U25>0,Income!Q44+U25,Income!Q44) -> 218203.172 | P25: =TaxRates!M63 -> 18675 | Q25: 0.08558537363 | R25: 16627 | S25: 199528.172 | U25: 103008 | W25: 199524 | X25: 16627 | Y25: 0 | AA25: 0 | AB25: 0 | AF25: 199529.61 | AG25: 16627.4675 | AH25: =VLOOKUP(G25,Budget!$U$10:$V$134,2) -> 171053.6829 | AI25: 0 | AJ25: =(AB25+SUM($AB$9:AB24))*12 -> 0 | AK25: =IF(G25>=Housing!$I$43, IF( Housing!$I$43 <> "", VLOOKUP(G25,Budget!U26:W150,3)*-1,0), 0) -> -40599.07291 | AL25: =IF(G25<Housing!$I$43, 0, VLOOKUP(G25,Housing!E97:I224,5)*12) -> 50400 | AM25: =RMD!V23 -> 0 | AN25: 18675 | AQ25: 20294.72234 | AR25: 1701.376937 | AS25: 18593.3454 | AU25: 33075.26396 | AV25: 826881.5989 | AX25: =IF(G25=Housing!$I$43,Housing!$I$48,0) -> 706676.8376 | AY25: 0 | BA25: 33074.75213 | BB25: 102995.2 | BC25: 0.9999845253 | BD25: 826868.8032 | BF25: 12.79577743 | BG25: 1.54747396e-05 | BH25: 12.7958 | BI25: 0.5118310971 | BK25: 115195.172 | BL25: 103008 | BM25: 218203.172 | BN25: 33075.26396 | BO25: -69932.73604 | BP25: Investments down | BR25: =LOOKUP(G25,Rental!$C$37:$C$161,Rental!$Y$37:$Y$161) -> 0 | BS25: =LOOKUP(G25,Rental!$C$37:$C$161,Rental!$AD$37:$AD$161) -> 0
C26: =Individuals!D10 -> Jon | D26: Individual 1 | F26: 18 | G26: 2051 | H26: =H25+1 -> 83 | I26: =I25+1 -> 81 | K26: 756949 | L26: 30278 | M26: 0 | O26: =IF(U26>0,Income!Q45+U26,Income!Q45) -> 224514.7287 | P26: =TaxRates!M64 -> 19117 | Q26: 0.08514808854 | R26: 17116 | S26: 205397.7287 | U26: 107640 | W26: 205392 | X26: 17116 | Y26: 0 | AA26: 0 | AB26: 0 | AF26: 205397.2483 | AG26: 17116.43736 | AH26: =VLOOKUP(G26,Budget!$U$10:$V$134,2) -> 176185.2934 | AI26: 0 | AJ26: =(AB26+SUM($AB$9:AB25))*12 -> 0 | AK26: =IF(G26>=Housing!$I$43, IF( Housing!$I$43 <> "", VLOOKUP(G26,Budget!U27:W151,3)*-1,0), 0) -> -41817.0451 | AL26: =IF(G26<Housing!$I$43, 0, VLOOKUP(G26,Housing!E98:I225,5)*12) -> 51912 | AM26: =RMD!V24 -> 0 | AN26: 19117 | AQ26: 20903.56401 | AR26: 1752.418245 | AS26: 19151.14576 | AU26: 30277.95468 | AV26: 756948.8671 | AX26: =IF(G26=Housing!$I$43,Housing!$I$48,0) -> 0 | AY26: 0 | BA26: 30277.93421 | BB26: 107639.49 | BC26: 0.9999993239 | BD26: 756948.3553 | BF26: 0.5118085246 | BG26: 6.761467608e-07 | BH26: 0.5118 | BI26: 0.02047234098 | BK26: 116874.7287 | BL26: 107640 | BM26: 224514.7287 | BN26: 30277.95468 | BO26: -77362.04532 | BP26: Investments down | BR26: =LOOKUP(G26,Rental!$C$37:$C$161,Rental!$Y$37:$Y$161) -> 0 | BS26: =LOOKUP(G26,Rental!$C$37:$C$161,Rental!$AD$37:$AD$161) -> 0
C27: =IF(Individuals!D15>"",Individuals!D15,"") -> Sally | D27: Individual 2 | F27: 19 | G27: 2052 | H27: 84 | I27: 82 | K27: 679587 | L27: 27183 | M27: 0 | O27: =IF(U27>0,Income!Q46+U27,Income!Q46) -> 231019.6976 | P27: =TaxRates!M65 -> 19575 | Q27: 0.08473303445 | R27: 17620 | S27: 211444.6976 | U27: 112440 | W27: 211440 | X27: 17620 | Y27: 0 | AA27: 0 | AB27: 0 | AF27: 211443.6557 | AG27: 17620.30464 | AH27: =VLOOKUP(G27,Budget!$U$10:$V$134,2) -> 181470.8522 | AI27: 0 | AJ27: =(AB27+SUM($AB$9:AB26))*12 -> 0 | AK27: =IF(G27>=Housing!$I$43, IF( Housing!$I$43 <> "", VLOOKUP(G27,Budget!U28:W152,3)*-1,0), 0) -> -43071.55645 | AL27: =IF(G27<Housing!$I$43, 0, VLOOKUP(G27,Housing!E99:I226,5)*12) -> 53469.36 | AM27: =RMD!V25 -> 0 | AN27: 19575 | AQ27: 21530.67093 | AR27: 1804.990792 | AS27: 19725.68013 | AU27: 27183.4728 | AV27: 679586.82 | AX27: =IF(G27=Housing!$I$43,Housing!$I$48,0) -> 0 | AY27: 0 | BA27: 27183.47198 | BB27: 112439.98 | BC27: 0.9999999699 | BD27: 679586.7995 | BF27: 0.02048086554 | BG27: 3.013723182e-08 | BH27: 0.0205 | BI27: 0.0008192346215 | BK27: 118579.6976 | BL27: 112440 | BM27: 231019.6976 | BN27: 27183.4728 | BO27: -85256.5272 | BP27: Investments down | BR27: =LOOKUP(G27,Rental!$C$37:$C$161,Rental!$Y$37:$Y$161) -> 0 | BS27: =LOOKUP(G27,Rental!$C$37:$C$161,Rental!$AD$37:$AD$161) -> 0
C28: Stopped | F28: 20 | G28: 2053 | H28: 85 | I28: 83 | K28: 594330 | L28: 23773 | M28: 0 | O28: =IF(U28>0,Income!Q47+U28,Income!Q47) -> 237706.4799 | P28: =TaxRates!M66 -> 20039 | Q28: 0.0843014461 | R28: 18139 | S28: 217667.4799 | U28: 117396 | W28: 217668 | X28: 18139 | Y28: 0 | AA28: 0 | AB28: 0 | AF28: 217663.7154 | AG28: 18138.64295 | AH28: =VLOOKUP(G28,Budget!$U$10:$V$134,2) -> 186914.9777 | AI28: 0 | AJ28: =(AB28+SUM($AB$9:AB27))*12 -> 0 | AK28: =IF(G28>=Housing!$I$43, IF( Housing!$I$43 <> "", VLOOKUP(G28,Budget!U29:W153,3)*-1,0), 0) -> -44363.70314 | AL28: =IF(G28<Housing!$I$43, 0, VLOOKUP(G28,Housing!E100:I227,5)*12) -> 55073.4408 | AM28: =RMD!V26 -> 0 | AN28: 20039 | AQ28: 22176.59105 | AR28: 1859.140516 | AS28: 20317.45054 | AU28: 23773.21169 | AV28: 594330.2923 | AX28: =IF(G28=Housing!$I$43,Housing!$I$48,0) -> 0 | AY28: 0 | BA28: 23773.21166 | BB28: 117396 | BC28: 0.9999999987 | BD28: 594330.2915 | BF28: 0.0008001001592 | BG28: 1.346221402e-09 | BH28: 0.0008 | BI28: 3.200400637e-05 | BK28: 120310.4799 | BL28: 117396 | BM28: 237706.4799 | BN28: 23773.21169 | BO28: -93622.78831 | BP28: Investments down | BR28: =LOOKUP(G28,Rental!$C$37:$C$161,Rental!$Y$37:$Y$161) -> 0 | BS28: =LOOKUP(G28,Rental!$C$37:$C$161,Rental!$AD$37:$AD$161) -> 0
F29: 21 | G29: 2054 | H29: 86 | I29: 84 | K29: 500708 | L29: 20028 | M29: 0 | O29: =IF(U29>0,Income!Q48+U29,Income!Q48) -> 244575.4831 | P29: =TaxRates!M67 -> 20511 | Q29: 0.08386367979 | R29: 18672 | S29: 224064.4831 | U29: 122508 | W29: 224064 | X29: 18672 | Y29: 0 | AA29: 0 | AB29: 0 | AF29: 224064.4568 | AG29: 18672.03807 | AH29: =VLOOKUP(G29,Budget!$U$10:$V$134,2) -> 192522.4271 | AI29: 0 | AJ29: =(AB29+SUM($AB$9:AB28))*12 -> 0 | AK29: =IF(G29>=Housing!$I$43, IF( Housing!$I$43 <> "", VLOOKUP(G29,Budget!U30:W154,3)*-1,0), 0) -> -45694.61424 | AL29: =IF(G29<Housing!$I$43, 0, VLOOKUP(G29,Housing!E101:I228,5)*12) -> 56725.64402 | AM29: =RMD!V27 -> 0 | AN29: 20511 | AQ29: 22841.88878 | AR29: 1914.914731 | AS29: 20926.97405 | AU29: 20028.30013 | AV29: 500707.5032 | AX29: =IF(G29=Housing!$I$43,Housing!$I$48,0) -> 0 | AY29: 0 | BA29: 20028.30013 | BB29: 122508 | BC29: 0.9999999999 | BD29: 500707.5031 | BF29: =IF((BF28+BI28)-BH28 > 0, (BF28+BI28)-BH28, 0) -> 3.21041656e-05 | BG29: 6.411760437e-11 | BI29: 1.284166624e-06 | BK29: 122067.4831 | BL29: 122508 | BM29: 244575.4831 | BN29: 20028.30013 | BO29: -102479.6999 | BP29: Investments down | BR29: =LOOKUP(G29,Rental!$C$37:$C$161,Rental!$Y$37:$Y$161) -> 0 | BS29: =LOOKUP(G29,Rental!$C$37:$C$161,Rental!$AD$37:$AD$161) -> 0
F30: 22 | G30: 2055 | H30: 87 | I30: 85 | K30: 398228 | L30: 15929 | M30: 0 | O30: =IF(U30>0,Income!Q49+U30,Income!Q49) -> 251639.1218 | P30: =TaxRates!M68 -> 20990 | Q30: 0.08341310306 | R30: 19221 | S30: 230649.1218 | U30: 127788 | W30: 230652 | X30: 19221 | Y30: 0 | AA30: 0 | AB30: 0 | AF30: 230650.0606 | AG30: 19220.83838 | AH30: =VLOOKUP(G30,Budget!$U$10:$V$134,2) -> 198298.0999 | AI30: 0 | AJ30: =(AB30+SUM($AB$9:AB29))*12 -> 0 | AK30: =IF(G30>=Housing!$I$43, IF( Housing!$I$43 <> "", VLOOKUP(G30,Budget!U31:W155,3)*-1,0), 0) -> -47065.45266 | AL30: =IF(G30<Housing!$I$43, 0, VLOOKUP(G30,Housing!E102:I229,5)*12) -> 58427.41334 | AM30: =RMD!V28 -> 0 | AN30: 20990 | AQ30: 23527.14545 | AR30: 1972.362173 | AS30: 21554.78328 | AU30: 15929.11213 | AV30: 398227.8033 | AX30: =IF(G30=Housing!$I$43,Housing!$I$48,0) -> 0 | AY30: 0 | BA30: 15929.11213 | BB30: 127788 | BC30: 0.9999999999 | BD30: 398227.8033 | BF30: =IF((BF29+BI29)-BH29 > 0, (BF29+BI29)-BH29, 0) -> 3.338833222e-05 | BG30: 8.384229314e-11 | BI30: 1.335533289e-06 | BK30: 123851.1218 | BL30: 127788 | BM30: 251639.1218 | BN30: 15929.11213 | BO30: -111858.8879 | BP30: Investments down | BR30: =LOOKUP(G30,Rental!$C$37:$C$161,Rental!$Y$37:$Y$161) -> 0 | BS30: =LOOKUP(G30,Rental!$C$37:$C$161,Rental!$AD$37:$AD$161) -> 0
F31: 23 | G31: 2056 | H31: 88 | I31: 86 | K31: 286369 | L31: 11455 | M31: 0 | O31: =IF(U31>0,Income!Q50+U31,Income!Q50) -> 258897.8173 | P31: =TaxRates!M69 -> 21476 | Q31: 0.08295164566 | R31: 19785 | S31: 237421.8173 | U31: 133236 | W31: 237420 | X31: 19785 | Y31: 0 | AA31: 0 | AB31: 0 | AF31: 237425.8624 | AG31: 19785.48853 | AH31: =VLOOKUP(G31,Budget!$U$10:$V$134,2) -> 204247.0429 | AI31: 0 | AJ31: =(AB31+SUM($AB$9:AB30))*12 -> 0 | AK31: =IF(G31>=Housing!$I$43, IF( Housing!$I$43 <> "", VLOOKUP(G31,Budget!U32:W156,3)*-1,0), 0) -> -48477.41624 | AL31: =IF(G31<Housing!$I$43, 0, VLOOKUP(G31,Housing!E103:I230,5)*12) -> 60180.23575 | AM31: =RMD!V29 -> 0 | AN31: 21476 | AQ31: 24232.95981 | AR31: 2031.533038 | AS31: 22201.42677 | AU31: 11454.75662 | AV31: 286368.9154 | AX31: =IF(G31=Housing!$I$43,Housing!$I$48,0) -> 0 | AY31: 0 | BA31: 11454.75662 | BB31: 133236 | BC31: 0.9999999999 | BD31: 286368.9154 | BF31: 3.472386551e-05 | BG31: 1.212557077e-10 | BI31: 1.38895462e-06 | BK31: 125661.8173 | BL31: 133236 | BM31: 258897.8173 | BN31: 11454.75662 | BO31: -121781.2434 | BP31: Investments down | BR31: =LOOKUP(G31,Rental!$C$37:$C$161,Rental!$Y$37:$Y$161) -> 0 | BS31: =LOOKUP(G31,Rental!$C$37:$C$161,Rental!$AD$37:$AD$161) -> 0
F32: 24 | G32: 2057 | H32: 89 | I32: 87 | K32: 164588 | L32: 6584 | M32: 0 | O32: =IF(U32>0,Income!Q51+U32,Income!Q51) -> 266375.9977 | P32: =TaxRates!M70 -> 21970 | Q32: 0.08247740107 | R32: 20367 | S32: 244405.9977 | U32: 138876 | W32: 244404 | X32: 20367 | Y32: 0 | AA32: 0 | AB32: 0 | AF32: 244398.3582 | AG32: 20366.52985 | AH32: =VLOOKUP(G32,Budget!$U$10:$V$134,2) -> 210374.4542 | AI32: 0 | AJ32: =(AB32+SUM($AB$9:AB31))*12 -> 0 | AK32: =IF(G32>=Housing!$I$43, IF( Housing!$I$43 <> "", VLOOKUP(G32,Budget!U33:W157,3)*-1,0), 0) -> -49931.73873 | AL32: =IF(G32<Housing!$I$43, 0, VLOOKUP(G32,Housing!E104:I231,5)*12) -> 61985.64282 | AM32: =RMD!V30 -> 0 | AN32: 21970 | AQ32: 24959.94861 | AR32: 2092.47903 | AS32: 22867.46958 | AU32: 6583.506882 | AV32: 164587.672 | AX32: =IF(G32=Housing!$I$43,Housing!$I$48,0) -> 0 | AY32: 0 | BA32: 6583.50688 | BB32: 138876 | BC32: 0.9999999998 | BD32: 164587.672 | BF32: 3.611282013e-05 | BG32: 2.194138825e-10 | BI32: 1.444512805e-06 | BK32: 127499.9977 | BL32: 138876 | BM32: 266375.9977 | BN32: 6583.506882 | BO32: -132292.4931 | BP32: Investments down | BR32: =LOOKUP(G32,Rental!$C$37:$C$161,Rental!$Y$37:$Y$161) -> 0 | BS32: =LOOKUP(G32,Rental!$C$37:$C$161,Rental!$AD$37:$AD$161) -> 0
F33: 25 | G33: 2058 | H33: 90 | I33: 88 | K33: 32295 | L33: 1292 | M33: 0 | O33: =IF(U33>0,Income!Q52+U33,Income!Q52) -> 274038.0986 | P33: =TaxRates!M71 -> 22471 | Q33: 0.0819995472 | R33: 20964 | S33: 251567.0986 | U33: 144672 | W33: 251568 | X33: 20964 | Y33: 0 | AA33: 0 | AB33: 0 | AF33: 251572.209 | AG33: 20964.35075 | AH33: =VLOOKUP(G33,Budget!$U$10:$V$134,2) -> 216685.6878 | AI33: 0 | AJ33: =(AB33+SUM($AB$9:AB32))*12 -> 0 | AK33: =IF(G33>=Housing!$I$43, IF( Housing!$I$43 <> "", VLOOKUP(G33,Budget!U34:W158,3)*-1,0), 0) -> -51429.69089 | AL33: =IF(G33<Housing!$I$43, 0, VLOOKUP(G33,Housing!E105:I232,5)*12) -> 63845.2121 | AM33: =RMD!V31 -> 0 | AN33: 22471 | AQ33: 25708.74706 | AR33: 2155.2534 | AS33: 23553.49366 | AU33: 1291.807157 | AV33: 32295.17893 | AX33: =IF(G33=Housing!$I$43,Housing!$I$48,0) -> 0 | AY33: 0 | BA33: 1291.807156 | BC33: 0.9999999988 | BD33: 32295.17889 | BF33: 3.755733293e-05 | BG33: 1.162939305e-09 | BI33: 1.502293317e-06 | BK33: 129366.0986 | BL33: 144672 | BM33: 274038.0986 | BN33: 1291.807157 | BO33: -143380.1928 | BP33: Investments down | BR33: =LOOKUP(G33,Rental!$C$37:$C$161,Rental!$Y$37:$Y$161) -> 0 | BS33: =LOOKUP(G33,Rental!$C$37:$C$161,Rental!$AD$37:$AD$161) -> 0
F34: 26 | G34: 2059 | H34: 91 | I34: 89 | K34: 33587 | L34: 1343 | M34: 0 | O34: =IF(U34>0,Income!Q53+U34,Income!Q53) -> 131260.5624 | P34: =TaxRates!M72 -> 22980 | Q34: 0.1750716253 | R34: 9023 | S34: 108280.5624 | W34: 258960 | X34: 21580 | Y34: -12557 | AA34: 0 | AB34: 0 | AF34: 258954.2453 | AG34: 21579.52044 | AH34: =VLOOKUP(G34,Budget!$U$10:$V$134,2) -> 223186.2584 | AI34: 0 | AJ34: =(AB34+SUM($AB$9:AB33))*12 -> 0 | AK34: =IF(G34>=Housing!$I$43, IF( Housing!$I$43 <> "", VLOOKUP(G34,Budget!U35:W159,3)*-1,0), 0) -> -52972.58162 | AL34: =IF(G34<Housing!$I$43, 0, VLOOKUP(G34,Housing!E106:I233,5)*12) -> 65760.56846 | AM34: =RMD!V32 -> 0 | AN34: 22980 | AQ34: 26480.00948 | AR34: 2219.911002 | AS34: 24260.09847 | AU34: 1343.479443 | AV34: 33586.98609 | AX34: =IF(G34=Housing!$I$43,Housing!$I$48,0) -> 0 | AY34: 0 | BA34: 1343.479442 | BC34: 0.9999999988 | BD34: 33586.98605 | BF34: 3.905962625e-05 | BG34: 1.162939305e-09 | BI34: 1.56238505e-06 | BK34: 131260.5624 | BL34: 0 | BM34: 131260.5624 | BN34: 1343.479443 | BO34: 1343.479443 | BP34: Investments Up | BR34: =LOOKUP(G34,Rental!$C$37:$C$161,Rental!$Y$37:$Y$161) -> 0 | BS34: =LOOKUP(G34,Rental!$C$37:$C$161,Rental!$AD$37:$AD$161) -> 0
F35: 27 | G35: 2060 | H35: 92 | I35: 90 | K35: 34930 | L35: 1397 | M35: 0 | O35: =IF(U35>0,Income!Q54+U35,Income!Q54) -> 133183.839 | P35: =TaxRates!M73 -> 23497 | Q35: 0.1764253093 | R35: 9141 | S35: 109686.839 | W35: 266556 | X35: 22213 | Y35: -13072 | AA35: 0 | AB35: 0 | AF35: 266550.4726 | AG35: 22212.53938 | AH35: =VLOOKUP(G35,Budget!$U$10:$V$134,2) -> 229881.8462 | AI35: 0 | AJ35: =(AB35+SUM($AB$9:AB34))*12 -> 0 | AK35: =IF(G35>=Housing!$I$43, IF( Housing!$I$43 <> "", VLOOKUP(G35,Budget!U36:W160,3)*-1,0), 0) -> -54561.75907 | AL35: =IF(G35<Housing!$I$43, 0, VLOOKUP(G35,Housing!E107:I234,5)*12) -> 67733.38552 | AM35: =RMD!V33 -> 0 | AN35: 23497 | AQ35: 27274.40976 | AR35: 2286.508333 | AS35: 24987.90143 | AU35: 1397.218621 | AV35: 34930.46553 | AX35: =IF(G35=Housing!$I$43,Housing!$I$48,0) -> 0 | AY35: 0 | BA35: 1397.21862 | BC35: 0.9999999988 | BD35: 34930.46549 | BF35: 4.06220113e-05 | BG35: 1.162939305e-09 | BI35: 1.624880452e-06 | BK35: 133183.839 | BL35: 0 | BM35: 133183.839 | BN35: 1397.218621 | BO35: 1397.218621 | BP35: Investments Up | BR35: =LOOKUP(G35,Rental!$C$37:$C$161,Rental!$Y$37:$Y$161) -> 0 | BS35: =LOOKUP(G35,Rental!$C$37:$C$161,Rental!$AD$37:$AD$161) -> 0
F36: 28 | G36: 2061 | H36: 93 | I36: 91 | K36: 36328 | L36: 1453 | M36: 0 | O36: =IF(U36>0,Income!Q55+U36,Income!Q55) -> 135136.3858 | P36: =TaxRates!M74 -> 24023 | Q36: 0.1777685547 | R36: 9259 | S36: 111113.3858 | W36: 274368 | X36: 22864 | Y36: -13605 | AA36: 0 | AB36: 0 | AF36: 274368.0768 | AG36: 22864.0064 | AH36: =VLOOKUP(G36,Budget!$U$10:$V$134,2) -> 236778.3015 | AI36: 0 | AJ36: =(AB36+SUM($AB$9:AB35))*12 -> 0 | AK36: =IF(G36>=Housing!$I$43, IF( Housing!$I$43 <> "", VLOOKUP(G36,Budget!U37:W161,3)*-1,0), 0) -> -56198.61184 | AL36: =IF(G36<Housing!$I$43, 0, VLOOKUP(G36,Housing!E108:I235,5)*12) -> 69765.38708 | AM36: =RMD!V34 -> 0 | AN36: 24023 | AQ36: 28092.64205 | AR36: 2355.103583 | AS36: 25737.53847 | AU36: 1453.107366 | AV36: 36327.68415 | AX36: =IF(G36=Housing!$I$43,Housing!$I$48,0) -> 0 | AY36: 0 | BA36: 1453.107364 | BC36: 0.9999999988 | BD36: 36327.68411 | BF36: 4.224689175e-05 | BG36: 1.162939305e-09 | BI36: 1.68987567e-06 | BK36: 135136.3858 | BL36: 0 | BM36: 135136.3858 | BN36: 1453.107366 | BO36: 1453.107366 | BP36: Investments Up | BR36: =LOOKUP(G36,Rental!$C$37:$C$161,Rental!$Y$37:$Y$161) -> 0 | BS36: =LOOKUP(G36,Rental!$C$37:$C$161,Rental!$AD$37:$AD$161) -> 0
F37: 29 | G37: 2062 | H37: 94 | I37: 92 | K37: 37781 | L37: 1511 | M37: 0 | O37: =IF(U37>0,Income!Q56+U37,Income!Q56) -> 137118.6678 | P37: =TaxRates!M75 -> 24555 | Q37: 0.179078461 | R37: 9380 | S37: 112563.6678 | W37: 282408 | X37: 23534 | Y37: -14154 | AA37: 0 | AB37: 0 | AF37: 282410.4291 | AG37: 23534.20242 | AH37: =VLOOKUP(G37,Budget!$U$10:$V$134,2) -> 243881.6506 | AI37: 0 | AJ37: =(AB37+SUM($AB$9:AB36))*12 -> 0 | AK37: =IF(G37>=Housing!$I$43, IF( Housing!$I$43 <> "", VLOOKUP(G37,Budget!U38:W162,3)*-1,0), 0) -> -57884.5702 | AL37: =IF(G37<Housing!$I$43, 0, VLOOKUP(G37,Housing!E109:I236,5)*12) -> 71858.3487 | AM37: =RMD!V35 -> 0 | AN37: 24555 | AQ37: 28935.42132 | AR37: 2425.75669 | AS37: 26509.66463 | AU37: 1511.231661 | AV37: 37780.79152 | AX37: =IF(G37=Housing!$I$43,Housing!$I$48,0) -> 0 | AY37: 0 | BA37: 1511.231659 | BC37: 0.9999999988 | BD37: 37780.79147 | BF37: 4.393676742e-05 | BG37: =IF(AV37>0,BF37/AV37,0) -> 1.162939305e-09 | BI37: 1.757470697e-06 | BK37: 137118.6678 | BL37: 0 | BM37: 137118.6678 | BN37: 1511.231661 | BO37: 1511.231661 | BP37: Investments Up | BR37: =LOOKUP(G37,Rental!$C$37:$C$161,Rental!$Y$37:$Y$161) -> 0 | BS37: =LOOKUP(G37,Rental!$C$37:$C$161,Rental!$AD$37:$AD$161) -> 0
A38: Significant detail will be show for all calculations | F38: 30 | G38: 2063 | H38: 95 | I38: 93 | K38: 39292 | L38: 1572 | M38: 0 | O38: =IF(U38>0,Income!Q57+U38,Income!Q57) -> 139131.1576 | P38: =TaxRates!M76 -> 25096 | Q38: 0.180376563 | R38: 9503 | S38: 114035.1576 | W38: 290688 | X38: 24224 | Y38: -14721 | AA38: 0 | AB38: 0 | AF38: 290687.092 | AG38: 24223.92433 | AH38: =VLOOKUP(G38,Budget!$U$10:$V$134,2) -> 251198.1001 | AI38: 0 | AJ38: =(AB38+SUM($AB$9:AB37))*12 -> 0 | AK38: =IF(G38>=Housing!$I$43, IF( Housing!$I$43 <> "", VLOOKUP(G38,Budget!U39:W163,3)*-1,0), 0) -> -59621.1073 | AL38: =IF(G38<Housing!$I$43, 0, VLOOKUP(G38,Housing!E110:I237,5)*12) -> 74014.09916 | AM38: =RMD!V36 -> 0 | AN38: 25096 | AQ38: 29803.48395 | AR38: 2498.529391 | AS38: 27304.95456 | AU38: 1571.680927 | AV38: 39292.02318 | AX38: =IF(G38=Housing!$I$43,Housing!$I$48,0) -> 0 | AY38: 0 | BA38: 1571.680925 | BC38: 0.9999999988 | BD38: 39292.02313 | BF38: 4.569423812e-05 | BG38: =IF(AV38>0,BF38/AV38,0) -> 1.162939305e-09 | BI38: 1.827769525e-06 | BK38: 139131.1576 | BL38: 0 | BM38: 139131.1576 | BN38: 1571.680927 | BO38: 1571.680927 | BP38: Investments Up | BR38: =LOOKUP(G38,Rental!$C$37:$C$161,Rental!$Y$37:$Y$161) -> 0 | BS38: =LOOKUP(G38,Rental!$C$37:$C$161,Rental!$AD$37:$AD$161) -> 0
F39: 31 | G39: 2064 | H39: 96 | I39: 94 | K39: 40864 | L39: 1635 | M39: 0 | O39: =IF(U39>0,Income!Q58+U39,Income!Q58) -> 141174.3356 | P39: =TaxRates!M77 -> 25646 | Q39: 0.1816619139 | R39: 9627 | S39: 115528.3356 | W39: 299208 | X39: 24934 | Y39: -15307 | AA39: 0 | AB39: 0 | AF39: 299204.8247 | AG39: 24933.73539 | AH39: =VLOOKUP(G39,Budget!$U$10:$V$134,2) -> 258734.0431 | AI39: 0 | AJ39: =(AB39+SUM($AB$9:AB38))*12 -> 0 | AK39: =IF(G39>=Housing!$I$43, IF( Housing!$I$43 <> "", VLOOKUP(G39,Budget!U40:W164,3)*-1,0), 0) -> -61409.74052 | AL39: =IF(G39<Housing!$I$43, 0, VLOOKUP(G39,Housing!E111:I238,5)*12) -> 76234.52213 | AM39: =RMD!V37 -> 0 | AN39: 25646 | AQ39: 30697.58847 | AR39: 2573.485272 | AS39: 28124.1032 | AU39: 1634.548164 | AV39: 40863.70411 | AX39: =IF(G39=Housing!$I$43,Housing!$I$48,0) -> 0 | AY39: 0 | BA39: 1634.548162 | BC39: 0.9999999988 | BD39: 40863.70406 | BF39: 4.752200765e-05 | BG39: 1.162939305e-09 | BI39: 1.900880306e-06 | BK39: 141174.3356 | BL39: 0 | BM39: 141174.3356 | BN39: 1634.548164 | BO39: 1634.548164 | BP39: Investments Up | BR39: =LOOKUP(G39,Rental!$C$37:$C$161,Rental!$Y$37:$Y$161) -> 0 | BS39: =LOOKUP(G39,Rental!$C$37:$C$161,Rental!$AD$37:$AD$161) -> 0
F40: 32 | G40: 2065 | H40: 97 | I40: 95 | K40: 42498 | L40: 1700 | M40: 0 | O40: =IF(U40>0,Income!Q59+U40,Income!Q59) -> 143248.6905 | P40: =TaxRates!M78 -> 26205 | Q40: 0.1829336094 | R40: 9754 | S40: 117043.6905 | W40: 307968 | X40: 25664 | Y40: -15910 | AA40: 0 | AB40: 0 | AF40: 307970.5895 | AG40: 25664.21579 | AH40: =VLOOKUP(G40,Budget!$U$10:$V$134,2) -> 266496.0644 | AI40: 0 | AJ40: =(AB40+SUM($AB$9:AB39))*12 -> 0 | AK40: =IF(G40>=Housing!$I$43, IF( Housing!$I$43 <> "", VLOOKUP(G40,Budget!U41:W165,3)*-1,0), 0) -> -63252.03274 | AL40: =IF(G40<Housing!$I$43, 0, VLOOKUP(G40,Housing!E112:I239,5)*12) -> 78521.5578 | AM40: =RMD!V38 -> 0 | AN40: 26205 | AQ40: 31618.51613 | AR40: 2650.689831 | AS40: 28967.8263 | AU40: 1699.930091 | AV40: 42498.25227 | AX40: =IF(G40=Housing!$I$43,Housing!$I$48,0) -> 0 | AY40: 0 | BA40: 1699.930089 | BC40: 0.9999999988 | BD40: 42498.25222 | BF40: 4.942288795e-05 | BG40: 1.162939305e-09 | BI40: 1.976915518e-06 | BK40: 143248.6905 | BL40: 0 | BM40: 143248.6905 | BN40: 1699.930091 | BO40: 1699.930091 | BP40: Investments Up | BR40: =LOOKUP(G40,Rental!$C$37:$C$161,Rental!$Y$37:$Y$161) -> 0 | BS40: =LOOKUP(G40,Rental!$C$37:$C$161,Rental!$AD$37:$AD$161) -> 0
A41: Toggle detail view | F41: 33 | G41: 2066 | H41: 98 | I41: 96 | K41: 44198 | L41: 1768 | M41: 0 | O41: =IF(U41>0,Income!Q60+U41,Income!Q60) -> 145354.7189 | P41: =TaxRates!M79 -> 26772 | Q41: 0.1841839068 | R41: 9882 | S41: 118582.7189 | W41: 316992 | X41: 26416 | Y41: -16534 | AA41: 0 | AB41: 0 | AF41: 316990.5572 | AG41: 26415.87976 | AH41: =VLOOKUP(G41,Budget!$U$10:$V$134,2) -> 274490.9463 | AI41: 0 | AJ41: =(AB41+SUM($AB$9:AB40))*12 -> 0 | AK41: =IF(G41>=Housing!$I$43, IF( Housing!$I$43 <> "", VLOOKUP(G41,Budget!U42:W166,3)*-1,0), 0) -> -65149.59372 | AL41: =IF(G41<Housing!$I$43, 0, VLOOKUP(G41,Housing!E113:I240,5)*12) -> 80877.20453 | AM41: =RMD!V39 -> 0 | AN41: 26772 | AQ41: 32567.07161 | AR41: 2730.210526 | AS41: 29836.86109 | AU41: 1767.927294 | AV41: 44198.18236 | AX41: =IF(G41=Housing!$I$43,Housing!$I$48,0) -> 0 | AY41: 0 | BA41: 1767.927292 | BC41: 0.9999999988 | BD41: 44198.18231 | BF41: 5.139980347e-05 | BG41: 1.162939305e-09 | BI41: 2.055992139e-06 | BK41: 145354.7189 | BL41: 0 | BM41: 145354.7189 | BN41: 1767.927294 | BO41: 1767.927294 | BP41: Investments Up | BR41: =LOOKUP(G41,Rental!$C$37:$C$161,Rental!$Y$37:$Y$161) -> 0 | BS41: =LOOKUP(G41,Rental!$C$37:$C$161,Rental!$AD$37:$AD$161) -> 0
F42: 34 | G42: 2067 | H42: 99 | I42: 97 | K42: 45966 | L42: 1839 | M42: 0 | O42: =IF(U42>0,Income!Q61+U42,Income!Q61) -> 147492.9257 | P42: =TaxRates!M80 -> 27348 | Q42: 0.1854190625 | R42: 10012 | S42: 120144.9257 | W42: 326268 | X42: 27189 | Y42: -17177 | AA42: 0 | AB42: 0 | AF42: 326273.1139 | AG42: 27189.42616 | AH42: =VLOOKUP(G42,Budget!$U$10:$V$134,2) -> 282725.6747 | AI42: 0 | AJ42: =(AB42+SUM($AB$9:AB41))*12 -> 0 | AK42: =IF(G42>=Housing!$I$43, IF( Housing!$I$43 <> "", VLOOKUP(G42,Budget!U43:W167,3)*-1,0), 0) -> -67104.08153 | AL42: =IF(G42<Housing!$I$43, 0, VLOOKUP(G42,Housing!E114:I241,5)*12) -> 83303.52067 | AM42: =RMD!V40 -> 0 | AN42: 27348 | AQ42: 33544.08376 | AR42: 2812.116841 | AS42: 30731.96692 | AU42: 1838.644386 | AV42: 45966.10966 | AX42: =IF(G42=Housing!$I$43,Housing!$I$48,0) -> 0 | AY42: 0 | BA42: 1838.644384 | BC42: 0.9999999988 | BD42: 45966.1096 | BF42: 5.345579561e-05 | BG42: 1.162939305e-09 | BI42: 2.138231824e-06 | BK42: 147492.9257 | BL42: 0 | BM42: 147492.9257 | BN42: 1838.644386 | BO42: 1838.644386 | BP42: Investments Up | BR42: =LOOKUP(G42,Rental!$C$37:$C$161,Rental!$Y$37:$Y$161) -> 0 | BS42: =LOOKUP(G42,Rental!$C$37:$C$161,Rental!$AD$37:$AD$161) -> 0
F43: 35 | G43: 2068 | H43: 100 | I43: 98 | K43: 47805 | L43: 1912 | M43: 0 | O43: =IF(U43>0,Income!Q62+U43,Income!Q62) -> 149663.8241 | P43: =TaxRates!M81 -> 27932 | Q43: 0.1866316069 | R43: 10144 | S43: 121731.8241 | W43: 335820 | X43: 27985 | Y43: -17841 | AA43: 0 | AB43: 0 | AF43: 335824.8673 | AG43: 27985.40561 | AH43: =VLOOKUP(G43,Budget!$U$10:$V$134,2) -> 291207.445 | AI43: 0 | AJ43: =(AB43+SUM($AB$9:AB42))*12 -> 0 | AK43: =IF(G43>=Housing!$I$43, IF( Housing!$I$43 <> "", VLOOKUP(G43,Budget!U44:W168,3)*-1,0), 0) -> -69117.20398 | AL43: =IF(G43<Housing!$I$43, 0, VLOOKUP(G43,Housing!E115:I242,5)*12) -> 85802.62629 | AM43: =RMD!V41 -> 0 | AN43: 27932 | AQ43: 34550.40627 | AR43: 2896.480347 | AS43: 31653.92593 | AU43: 1912.190162 | AV43: 47804.75404 | AX43: =IF(G43=Housing!$I$43,Housing!$I$48,0) -> 0 | AY43: 0 | BA43: 1912.190159 | BC43: 0.9999999988 | BD43: 47804.75399 | BF43: 5.559402743e-05 | BG43: 1.162939305e-09 | BI43: 2.223761097e-06 | BK43: 149663.8241 | BL43: 0 | BM43: 149663.8241 | BN43: 1912.190162 | BO43: 1912.190162 | BP43: Investments Up | BR43: =LOOKUP(G43,Rental!$C$37:$C$161,Rental!$Y$37:$Y$161) -> 0 | BS43: =LOOKUP(G43,Rental!$C$37:$C$161,Rental!$AD$37:$AD$161) -> 0
F44: 36 | G44: 2069 | H44: 101 | I44: 99 | K44: 49717 | L44: 1989 | M44: 0 | O44: =IF(U44>0,Income!Q63+U44,Income!Q63) -> 151867.9362 | P44: =TaxRates!M82 -> 28526 | Q44: 0.1878342507 | R44: 10278 | S44: 123341.9362 | W44: 345660 | X44: 28805 | Y44: -18527 | AA44: 0 | AB44: 0 | AF44: 345655.6533 | AG44: 28804.63778 | AH44: =VLOOKUP(G44,Budget!$U$10:$V$134,2) -> 299943.6683 | AI44: 0 | AJ44: =(AB44+SUM($AB$9:AB43))*12 -> 0 | AK44: =IF(G44>=Housing!$I$43, IF( Housing!$I$43 <> "", VLOOKUP(G44,Budget!U45:W169,3)*-1,0), 0) -> -71190.7201 | AL44: =IF(G44<Housing!$I$43, 0, VLOOKUP(G44,Housing!E116:I243,5)*12) -> 88376.70508 | AM44: =RMD!V42 -> 0 | AN44: 28526 | AQ44: 35586.91846 | AR44: 2983.374757 | AS44: 32603.5437 | AU44: 1988.677768 | AV44: 49716.9442 | AX44: =IF(G44=Housing!$I$43,Housing!$I$48,0) -> 0 | AY44: 0 | BA44: 1988.677766 | BC44: 0.9999999988 | BD44: 49716.94415 | BF44: 5.781778853e-05 | BG44: 1.162939305e-09 | BI44: 2.312711541e-06 | BK44: 151867.9362 | BL44: 0 | BM44: 151867.9362 | BN44: 1988.677768 | BO44: 1988.677768 | BP44: Investments Up | BR44: =LOOKUP(G44,Rental!$C$37:$C$161,Rental!$Y$37:$Y$161) -> 0 | BS44: =LOOKUP(G44,Rental!$C$37:$C$161,Rental!$AD$37:$AD$161) -> 0
F45: 37 | G45: 2070 | H45: 102 | I45: 100 | K45: 51706 | L45: 2068 | M45: 0 | O45: =IF(U45>0,Income!Q64+U45,Income!Q64) -> 154105.7924 | P45: =TaxRates!M83 -> 29130 | Q45: 0.1890259901 | R45: 10415 | S45: 124975.7924 | W45: 355776 | X45: 29648 | Y45: -19233 | AA45: 0 | AB45: 0 | AF45: 355773.5429 | AG45: 29647.79524 | AH45: =VLOOKUP(G45,Budget!$U$10:$V$134,2) -> 308941.9784 | AI45: 0 | AJ45: =(AB45+SUM($AB$9:AB44))*12 -> 0 | AK45: =IF(G45>=Housing!$I$43, IF( Housing!$I$43 <> "", VLOOKUP(G45,Budget!U46:W170,3)*-1,0), 0) -> -73326.4417 | AL45: =IF(G45<Housing!$I$43, 0, VLOOKUP(G45,Housing!E117:I244,5)*12) -> 91028.00623 | AM45: =RMD!V43 -> 0 | AN45: 29130 | AQ45: 36654.52601 | AR45: 3072.876 | AS45: 33581.65001 | AU45: 2068.224879 | AV45: 51705.62197 | AX45: =IF(G45=Housing!$I$43,Housing!$I$48,0) -> 0 | AY45: 0 | BA45: 2068.224876 | BC45: 0.9999999988 | BD45: 51705.62191 | BF45: 6.013050007e-05 | BG45: 1.162939305e-09 | BI45: 2.405220003e-06 | BK45: 154105.7924 | BL45: 0 | BM45: 154105.7924 | BN45: 2068.224879 | BO45: 2068.224879 | BP45: Investments Up | BR45: =LOOKUP(G45,Rental!$C$37:$C$161,Rental!$Y$37:$Y$161) -> 0 | BS45: =LOOKUP(G45,Rental!$C$37:$C$161,Rental!$AD$37:$AD$161) -> 0
F46: 38 | G46: 2071 | H46: 103 | I46: 101 | K46: 53774 | L46: 2151 | M46: 0 | O46: =IF(U46>0,Income!Q65+U46,Income!Q65) -> 156377.9323 | P46: =TaxRates!M84 -> 29741 | Q46: 0.1901866814 | R46: 10553 | S46: 126636.9323 | W46: 366180 | X46: 30515 | Y46: -19962 | AA46: 0 | AB46: 0 | AF46: 366183.8492 | AG46: 30515.32077 | AH46: =VLOOKUP(G46,Budget!$U$10:$V$134,2) -> 318210.2377 | AI46: 0 | AJ46: =(AB46+SUM($AB$9:AB45))*12 -> 0 | AK46: =IF(G46>=Housing!$I$43, IF( Housing!$I$43 <> "", VLOOKUP(G46,Budget!U47:W171,3)*-1,0), 0) -> -75526.23495 | AL46: =IF(G46<Housing!$I$43, 0, VLOOKUP(G46,Housing!E118:I245,5)*12) -> 93758.84641 | AM46: =RMD!V44 -> 0 | AN46: 29741 | AQ46: 37754.16179 | AR46: 3165.06228 | AS46: 34589.09952 | AU46: 2150.953874 | AV46: 53773.84685 | AX46: =IF(G46=Housing!$I$43,Housing!$I$48,0) -> 0 | AY46: 0 | BA46: 2150.953872 | BC46: 0.9999999988 | BD46: 53773.84679 | BF46: 6.253572007e-05 | BG46: 1.162939305e-09 | BI46: 2.501428803e-06 | BK46: 156377.9323 | BL46: 0 | BM46: 156377.9323 | BN46: 2150.953874 | BO46: 2150.953874 | BP46: Investments Up | BR46: =LOOKUP(G46,Rental!$C$37:$C$161,Rental!$Y$37:$Y$161) -> 0 | BS46: =LOOKUP(G46,Rental!$C$37:$C$161,Rental!$AD$37:$AD$161) -> 0
F47: 39 | G47: 2072 | H47: 104 | I47: 102 | K47: 55925 | L47: 2237 | M47: 0 | O47: =IF(U47>0,Income!Q66+U47,Income!Q66) -> 158684.9043 | P47: =TaxRates!M85 -> 30364 | Q47: 0.1913477538 | R47: 10693 | S47: 128320.9043 | W47: 376896 | X47: 31408 | Y47: -20715 | AA47: 0 | AB47: 0 | AF47: 376900.1347 | AG47: 31408.34456 | AH47: =VLOOKUP(G47,Budget!$U$10:$V$134,2) -> 327756.5449 | AI47: 0 | AJ47: =(AB47+SUM($AB$9:AB46))*12 -> 0 | AK47: =IF(G47>=Housing!$I$43, IF( Housing!$I$43 <> "", VLOOKUP(G47,Budget!U48:W172,3)*-1,0), 0) -> -77792.022 | AL47: =IF(G47<Housing!$I$43, 0, VLOOKUP(G47,Housing!E119:I246,5)*12) -> 96571.61181 | AM47: =RMD!V45 -> 0 | AN47: 30364 | AQ47: 38886.78665 | AR47: 3260.014148 | AS47: 35626.7725 | AU47: 2236.992029 | AV47: 55924.80072 | AX47: =IF(G47=Housing!$I$43,Housing!$I$48,0) -> 0 | AY47: 0 | BA47: 2236.992026 | BC47: 0.9999999988 | BD47: 55924.80066 | BF47: 6.503714888e-05 | BG47: 1.162939305e-09 | BI47: 2.601485955e-06 | BK47: 158684.9043 | BL47: 0 | BM47: 158684.9043 | BN47: 2236.992029 | BO47: 2236.992029 | BP47: Investments Up | BR47: =LOOKUP(G47,Rental!$C$37:$C$161,Rental!$Y$37:$Y$161) -> 0 | BS47: =LOOKUP(G47,Rental!$C$37:$C$161,Rental!$AD$37:$AD$161) -> 0
F48: 40 | G48: 2073 | H48: 105 | I48: 103 | K48: 58162 | L48: 2326 | M48: 0 | O48: =IF(U48>0,Income!Q67+U48,Income!Q67) -> 161027.2661 | P48: =TaxRates!M86 -> 30995 | Q48: 0.1924829301 | R48: 10836 | S48: 130032.2661 | W48: 387924 | X48: 32327 | Y48: -21491 | AA48: 0 | AB48: 0 | AF48: =AG48*12 -> 387927.2187 | AG48: =SUM(AH48:AO48)/12 -> 32327.26823 | AH48: =VLOOKUP(G48,Budget!$U$10:$V$134,2) -> 337589.2412 | AI48: 0 | AJ48: =(AB48+SUM($AB$9:AB47))*12 -> 0 | AK48: =IF(G48>=Housing!$I$43, IF( Housing!$I$43 <> "", VLOOKUP(G48,Budget!U49:W173,3)*-1,0), 0) -> -80125.78266 | AL48: =IF(G48<Housing!$I$43, 0, VLOOKUP(G48,Housing!E120:I247,5)*12) -> 99468.76016 | AM48: =RMD!V46 -> 0 | AN48: 30995 | AQ48: 40053.39025 | AR48: 3357.814572 | AS48: 36695.57568 | AU48: 2326.47171 | AV48: 58161.79275 | AX48: =IF(G48=Housing!$I$43,Housing!$I$48,0) -> 0 | AY48: 0 | BA48: 2326.471707 | BC48: 0.9999999988 | BD48: 58161.79269 | BF48: 6.763863483e-05 | BG48: 1.162939305e-09 | BI48: 2.705545393e-06 | BK48: 161027.2661 | BL48: 0 | BM48: 161027.2661 | BN48: 2326.47171 | BO48: 2326.47171 | BP48: Investments Up | BR48: =LOOKUP(G48,Rental!$C$37:$C$161,Rental!$Y$37:$Y$161) -> 0 | BS48: =LOOKUP(G48,Rental!$C$37:$C$161,Rental!$AD$37:$AD$161) -> 0
K49: =COUNTIF(K9:K48,"<0") -> 0 | U49: =COUNTIF(U9:U48,"<>")-COUNTIF(U9:U48,">=0") -> 0 | AA49: =SUM(AA9:AA48) -> 0 | AO49: =SUM(AO9:AO48) -> 0

Sheet Useful Info
C2: Useful Information
A3: Return
D4: Useful information regarding Social Security COLA (Cost of Living Adjustment), CPI (Consumer Price Index), Life Expectancy, Medicare IRMAA (Income Related Monthly Adjustment Amount), RMD (Required Minimum Distribution), and Federal & State tax table is available from this tab.
E5: Clicking the lock on a selected report will toggle the protected status of the report. Unlocking the report allows the report to be modified.
E8: COLA & CPI | G8: Social Security COLA (Cost of Living Adjustment) and CPI (Consumer Price Index)
E12: Life Expectancy | G12: National Vital Statistics Life Expectancy tables
E17: Federal & State tax tables | G17: Federal and State tax tables
E21: Medicare IRMMA | G21: Medicare IRMAA (Income Related Monthly Adjustment Amount)
E25: RMD Tables | G25: RMD (Required Minimum Distribution) tables
G29: Calculators (Present Value, Future Value, Mortgage payment, Vehicle payment, Investment Fees, & Rate of Return)
G33: Enter notes or information to save

Sheet ImportMsg (hidden)
C2: Status: Load Scenario 1
C3: The loading of data can take several minutes. While loading a message is displayed showing the current tab and cell being loaded. Once the tab has completed the information will be shown in a table below the processing message. When loading of data is complete the loading of tax table when be performed. Once this is complete this screen will close and return to the Overview tab. To complete the loading of data be sure to update the financial information by pressing the green calculator on either the Home or Retire tabs.
H4: Todays date | I4: =TODAY() -> 2022-08-17
C8: Status report
D10: Loading tax tables
D13: Completed import for tab: | G13: Assets | I13: cell count: | K13: 174
D14: Completed import for tab: | G14: Budget | I14: cell count: | K14: 812
D15: Completed import for tab: | G15: Housing | I15: cell count: | K15: 59
D16: Completed import for tab: | G16: Income | I16: cell count: | K16: 187
D17: Completed import for tab: | G17: Individuals | I17: cell count: | K17: 9
D18: Completed import for tab: | G18: Med-Insur | I18: cell count: | K18: 66
D19: Completed import for tab: | G19: Rental | I19: cell count: | K19: 64
D20: Completed import for tab: | G20: Retire | I20: cell count: | K20: 122
D21: Completed import for tab: | G21: Settings | I21: cell count: | K21: 3
D22: Completed import for tab: | G22: TaxRates | I22: cell count: | K22: 75
D23: Completed import for tab: | G23: Vehicle | I23: cell count: | K23: 56

Sheet HomeChart (hidden)
A1: HOME PAGE GRAPH & REPORT INFO | E1: DO NOT MOVE ANY CELL VALUES OR INSERT ROES OR COLUMNS
B2: Retire tab row # | C2: 9 | D2: =C2+1 -> 10 | E2: =D2+1 -> 11 | F2: 12 | G2: 13 | H2: 14 | I2: 15 | J2: 16 | K2: 17 | L2: 18 | M2: 19 | N2: 20 | O2: 21 | P2: 22 | Q2: 23 | R2: 24 | S2: 25 | T2: 26 | U2: 27 | V2: 28 | W2: 29 | X2: 30 | Y2: 31 | Z2: 32 | AA2: 33 | AB2: 34 | AC2: 35 | AD2: 36 | AE2: 37 | AF2: 38 | AG2: =AF2+1 -> 39 | AH2: 40 | AI2: 41 | AJ2: 42 | AK2: 43 | AL2: 44 | AM2: 45 | AN2: 46 | AO2: 47 | AP2: 48
B3: Year | C3: =Retire!G9 -> 2034 | D3: =C3+1 -> 2035 | E3: =D3+1 -> 2036 | F3: 2037 | G3: 2038 | H3: 2039 | I3: 2040 | J3: 2041 | K3: 2042 | L3: 2043 | M3: 2044 | N3: 2045 | O3: 2046 | P3: 2047 | Q3: 2048 | R3: 2049 | S3: 2050 | T3: 2051 | U3: 2052 | V3: 2053 | W3: =V3+1 -> 2054 | X3: 2055 | Y3: 2056 | Z3: 2057 | AA3: 2058 | AB3: 2059 | AC3: 2060 | AD3: 2061 | AE3: 2062 | AF3: 2063 | AG3: =AF3+1 -> 2064 | AH3: 2065 | AI3: 2066 | AJ3: 2067 | AK3: 2068 | AL3: 2069 | AM3: 2070 | AN3: 2071 | AO3: 2072 | AP3: 2073
B4: Before Tax $ | C4: =Retire!BF9 -> 954679.9625 | D4: =Retire!BF10 -> 974090.051 | E4: =Retire!BF11 -> 987521.4831 | F4: =Retire!BF12 -> 934652.3424 | G4: =Retire!BF13 -> 875450.4361 | H4: =Retire!BF14 -> 809860.4535 | I4: =Retire!BF15 -> 737938.8717 | J4: =Retire!BF16 -> 659864.4265 | K4: =Retire!BF17 -> 575985.0036 | L4: =Retire!BF18 -> 486842.4037 | M4: =Retire!BF19 -> 393312.0999 | N4: =Retire!BF20 -> 296634.5839 | O4: =Retire!BF21 -> 198537.9672 | P4: =Retire!BF22 -> 101347.4859 | Q4: =Retire!BF23 -> 7997.385345 | R4: =Retire!BF24 -> 319.8954591 | S4: =Retire!BF25 -> 12.79577743 | T4: =Retire!BF26 -> 0.5118085246 | U4: =Retire!BF27 -> 0.02048086554 | V4: =Retire!BF28 -> 0.0008001001592 | W4: =Retire!BF29 -> 3.21041656e-05 | X4: =Retire!BF30 -> 3.338833222e-05 | Y4: =Retire!BF31 -> 3.472386551e-05 | Z4: =Retire!BF32 -> 3.611282013e-05 | AA4: =Retire!BF33 -> 3.755733293e-05 | AB4: =Retire!BF34 -> 3.905962625e-05 | AC4: =Retire!BF35 -> 4.06220113e-05 | AD4: =Retire!BF36 -> 4.224689175e-05 | AE4: =Retire!BF37 -> 4.393676742e-05 | AF4: =Retire!BF38 -> 4.569423812e-05 | AG4: =Retire!BF39 -> 4.752200765e-05 | AH4: =Retire!BF40 -> 4.942288795e-05 | AI4: =Retire!BF41 -> 5.139980347e-05 | AJ4: =Retire!BF42 -> 5.345579561e-05 | AK4: =Retire!BF43 -> 5.559402743e-05 | AL4: =Retire!BF44 -> 5.781778853e-05 | AM4: =Retire!BF45 -> 6.013050007e-05 | AN4: =Retire!BF46 -> 6.253572007e-05 | AO4: =Retire!BF47 -> 6.503714888e-05 | AP4: =Retire!BF48 -> 6.763863483e-05
B5: After Tax $ | C5: =Retire!BD9 -> 155132.2207 | D5: =Retire!BD10 -> 161337.5095 | E5: =Retire!BD11 -> 167791.0099 | F5: =Retire!BD12 -> 174502.6503 | G5: =Retire!BD13 -> 181482.7563 | H5: =Retire!BD14 -> 188742.0666 | I5: =Retire!BD15 -> 196291.7492 | J5: =Retire!BD16 -> 204143.4192 | K5: =Retire!BD17 -> 212309.156 | L5: =Retire!BD18 -> 220801.5222 | M5: =Retire!BD19 -> 229633.5831 | N5: =Retire!BD20 -> 238818.9264 | O5: =Retire!BD21 -> 248371.6835 | P5: =Retire!BD23 -> 268638.8128 | Q5: =Retire!BD23 -> 268638.8128 | R5: =Retire!BD24 -> 200957.7553 | S5: =Retire!BD25 -> 826868.8032 | T5: =Retire!BD26 -> 756948.3553 | U5: =Retire!BD27 -> 679586.7995 | V5: =Retire!BD28 -> 594330.2915 | W5: =Retire!BD29 -> 500707.5031 | X5: =Retire!BD30 -> 398227.8033 | Y5: =Retire!BD31 -> 286368.9154 | Z5: =Retire!BD32 -> 164587.672 | AA5: =Retire!BD33 -> 32295.17889 | AB5: =Retire!BD34 -> 33586.98605 | AC5: =Retire!BD35 -> 34930.46549 | AD5: =Retire!BD36 -> 36327.68411 | AE5: =Retire!BD37 -> 37780.79147 | AF5: =Retire!BD38 -> 39292.02313 | AG5: =Retire!BD39 -> 40863.70406 | AH5: =Retire!BD40 -> 42498.25222 | AI5: =Retire!BD41 -> 44198.18231 | AJ5: =Retire!BD42 -> 45966.1096 | AK5: =Retire!BD43 -> 47804.75399 | AL5: =Retire!BD44 -> 49716.94415 | AM5: =Retire!BD45 -> 51705.62191 | AN5: =Retire!BD46 -> 53773.84679 | AO5: =Retire!BD47 -> 55924.80066 | AP5: =Retire!BD48 -> 58161.79269
B6: Withdrawal | C6: =Retire!U9 -> 18777.11 | D6: =Retire!U10 -> 25532.17 | E6: =Retire!U11 -> 92370 | F6: =Retire!U12 -> 96588 | G6: =Retire!U13 -> 100608 | H6: =Retire!U14 -> 104316 | I6: =Retire!U15 -> 107592 | J6: =Retire!U16 -> 110274 | K6: =Retire!U17 -> 112182 | L6: =Retire!U18 -> 113004 | M6: =Retire!U19 -> 112410 | N6: =Retire!U20 -> 109962 | O6: =Retire!U21 -> 105132 | P6: =Retire!U22 -> 97404 | Q6: =Retire!U23 -> 86424 | R6: =Retire!U24 -> 89124 | S6: =Retire!U25 -> 103008 | T6: =Retire!U26 -> 107640 | U6: =Retire!U27 -> 112440 | V6: =Retire!U28 -> 117396 | W6: =Retire!U29 -> 122508 | X6: =Retire!U30 -> 127788 | Y6: =Retire!U31 -> 133236 | Z6: =Retire!U32 -> 138876 | AA6: =Retire!U33 -> 144672 | AB6: =Retire!U34 -> 0 | AC6: =Retire!U35 -> 0 | AD6: =Retire!U36 -> 0 | AE6: =Retire!U37 -> 0 | AF6: =Retire!U38 -> 0 | AG6: =Retire!U39 -> 0 | AH6: =Retire!U40 -> 0 | AI6: =Retire!U41 -> 0 | AJ6: =Retire!U42 -> 0 | AK6: =Retire!U43 -> 0 | AL6: =Retire!U44 -> 0 | AM6: =Retire!U45 -> 0 | AN6: =Retire!U46 -> 0 | AO6: =Retire!U47 -> 0 | AP6: =Retire!U48 -> 0
B7: Budget | C7: =Retire!W9 -> 151764 | D7: =Retire!W10 -> 158388 | E7: =Retire!W11 -> 149796 | F7: =Retire!W12 -> 154284 | G7: =Retire!W13 -> 158736 | H7: =Retire!W14 -> 163092 | I7: =Retire!W15 -> 167292 | J7: =Retire!W16 -> 171264 | K7: =Retire!W17 -> 174924 | L7: =Retire!W18 -> 178104 | M7: =Retire!W19 -> 180648 | N7: =Retire!W20 -> 182340 | O7: =Retire!W21 -> 182916 | P7: =Retire!W22 -> 182124 | Q7: =Retire!W23 -> 179784 | R7: =Retire!W24 -> 184368 | S7: =Retire!W25 -> 199524 | T7: =Retire!W26 -> 205392 | U7: =Retire!W27 -> 211440 | V7: =Retire!W28 -> 217668 | W7: =Retire!W29 -> 224064 | X7: =Retire!W30 -> 230652 | Y7: =Retire!W31 -> 237420 | Z7: =Retire!W32 -> 244404 | AA7: =Retire!W33 -> 251568 | AB7: =Retire!W34 -> 258960 | AC7: =Retire!W35 -> 266556 | AD7: =Retire!W36 -> 274368 | AE7: =Retire!W37 -> 282408 | AF7: =Retire!W38 -> 290688 | AG7: =Retire!W39 -> 299208 | AH7: =Retire!W40 -> 307968 | AI7: =Retire!W41 -> 316992 | AJ7: =Retire!W42 -> 326268 | AK7: =Retire!W43 -> 335820 | AL7: =Retire!W44 -> 345660 | AM7: =Retire!W45 -> 355776 | AN7: =Retire!W46 -> 366180 | AO7: =Retire!W47 -> 376896 | AP7: =Retire!W48 -> 387924
A8: =SUM(C8:AP8) -> 10330517.41 | B8: =IF(A8>0,"House","no house") -> House | C8: =LOOKUP(C3,Housing!$E$81:$E$120,Housing!$H$81:$H$120) -> 560718.537 | D8: =LOOKUP(D3,Housing!$E$81:$E$120,Housing!$H$81:$H$120) -> 571091.8299 | E8: =LOOKUP(E3,Housing!$E$81:$E$120,Housing!$H$81:$H$120) -> 581657.0288 | F8: =LOOKUP(F3,Housing!$E$81:$E$120,Housing!$H$81:$H$120) -> 592417.6838 | G8: =LOOKUP(G3,Housing!$E$81:$E$120,Housing!$H$81:$H$120) -> 603377.4109 | H8: =LOOKUP(H3,Housing!$E$81:$E$120,Housing!$H$81:$H$120) -> 614539.893 | I8: =LOOKUP(I3,Housing!$E$81:$E$120,Housing!$H$81:$H$120) -> 625908.8811 | J8: =LOOKUP(J3,Housing!$E$81:$E$120,Housing!$H$81:$H$120) -> 637488.1954 | K8: =LOOKUP(K3,Housing!$E$81:$E$120,Housing!$H$81:$H$120) -> 649281.727 | L8: =LOOKUP(L3,Housing!$E$81:$E$120,Housing!$H$81:$H$120) -> 661293.4389 | M8: =LOOKUP(M3,Housing!$E$81:$E$120,Housing!$H$81:$H$120) -> 673527.3675 | N8: =LOOKUP(N3,Housing!$E$81:$E$120,Housing!$H$81:$H$120) -> 685987.6238 | O8: =LOOKUP(O3,Housing!$E$81:$E$120,Housing!$H$81:$H$120) -> 698678.3949 | P8: =LOOKUP(P3,Housing!$E$81:$E$120,Housing!$H$81:$H$120) -> 711603.9452 | Q8: =LOOKUP(Q3,Housing!$E$81:$E$120,Housing!$H$81:$H$120) -> 724768.6182 | R8: =LOOKUP(R3,Housing!$E$81:$E$120,Housing!$H$81:$H$120) -> 738176.8376 | S8: =LOOKUP(S3,Housing!$E$81:$E$120,Housing!$H$81:$H$120) -> 0 | T8: =LOOKUP(T3,Housing!$E$81:$E$120,Housing!$H$81:$H$120) -> 0 | U8: =LOOKUP(U3,Housing!$E$81:$E$120,Housing!$H$81:$H$120) -> 0 | V8: =LOOKUP(V3,Housing!$E$81:$E$120,Housing!$H$81:$H$120) -> 0 | W8: =LOOKUP(W3,Housing!$E$81:$E$120,Housing!$H$81:$H$120) -> 0 | X8: =LOOKUP(X3,Housing!$E$81:$E$120,Housing!$H$81:$H$120) -> 0 | Y8: =LOOKUP(Y3,Housing!$E$81:$E$120,Housing!$H$81:$H$120) -> 0 | Z8: =LOOKUP(Z3,Housing!$E$81:$E$120,Housing!$H$81:$H$120) -> 0 | AA8: =LOOKUP(AA3,Housing!$E$81:$E$120,Housing!$H$81:$H$120) -> 0 | AB8: =LOOKUP(AB3,Housing!$E$81:$E$120,Housing!$H$81:$H$120) -> 0 | AC8: =LOOKUP(AC3,Housing!$E$81:$E$120,Housing!$H$81:$H$120) -> 0 | AD8: =LOOKUP(AD3,Housing!$E$81:$E$120,Housing!$H$81:$H$120) -> 0 | AE8: =LOOKUP(AE3,Housing!$E$81:$E$120,Housing!$H$81:$H$120) -> 0 | AF8: =LOOKUP(AF3,Housing!$E$81:$E$120,Housing!$H$81:$H$120) -> 0 | AG8: =LOOKUP(AG3,Housing!$E$81:$E$120,Housing!$H$81:$H$120) -> 0 | AH8: =LOOKUP(AH3,Housing!$E$81:$E$120,Housing!$H$81:$H$120) -> 0 | AI8: =LOOKUP(AI3,Housing!$E$81:$E$120,Housing!$H$81:$H$120) -> 0 | AJ8: =LOOKUP(AJ3,Housing!$E$81:$E$120,Housing!$H$81:$H$120) -> 0 | AK8: =LOOKUP(AK3,Housing!$E$81:$E$120,Housing!$H$81:$H$120) -> 0 | AL8: =LOOKUP(AL3,Housing!$E$81:$E$120,Housing!$H$81:$H$120) -> 0 | AM8: =LOOKUP(AM3,Housing!$E$81:$E$205,Housing!$H$81:$H$205) -> 0 | AN8: =LOOKUP(AN3,Housing!$E$81:$E$205,Housing!$H$81:$H$205) -> 0 | AO8: =LOOKUP(AO3,Housing!$E$81:$E$205,Housing!$H$81:$H$205) -> 0 | AP8: =LOOKUP(AP3,Housing!$E$81:$E$205,Housing!$H$81:$H$205) -> 0 | AQ8: =AP8+(AP8*Housing!I35) -> 0
A9: =SUM(C9:AP9) -> 0 | B9: =IF(A9>0,Assets!C58,"no rental 1") -> no rental 1 | C9: =LOOKUP(C3,Rental!$C$37:$C$76,Rental!$D$37:$D$76) -> 0 | D9: =LOOKUP(D3,Rental!$C$37:$C$76,Rental!$D$37:$D$76) -> 0 | E9: =LOOKUP(E3,Rental!$C$37:$C$76,Rental!$D$37:$D$76) -> 0 | F9: =LOOKUP(F3,Rental!$C$37:$C$76,Rental!$D$37:$D$76) -> 0 | G9: =LOOKUP(G3,Rental!$C$37:$C$76,Rental!$D$37:$D$76) -> 0 | H9: =LOOKUP(H3,Rental!$C$37:$C$76,Rental!$D$37:$D$76) -> 0 | I9: =LOOKUP(I3,Rental!$C$37:$C$76,Rental!$D$37:$D$76) -> 0 | J9: =LOOKUP(J3,Rental!$C$37:$C$76,Rental!$D$37:$D$76) -> 0 | K9: =LOOKUP(K3,Rental!$C$37:$C$76,Rental!$D$37:$D$76) -> 0 | L9: =LOOKUP(L3,Rental!$C$37:$C$76,Rental!$D$37:$D$76) -> 0 | M9: =LOOKUP(M3,Rental!$C$37:$C$76,Rental!$D$37:$D$76) -> 0 | N9: =LOOKUP(N3,Rental!$C$37:$C$76,Rental!$D$37:$D$76) -> 0 | O9: =LOOKUP(O3,Rental!$C$37:$C$76,Rental!$D$37:$D$76) -> 0 | P9: =LOOKUP(P3,Rental!$C$37:$C$76,Rental!$D$37:$D$76) -> 0 | Q9: =LOOKUP(Q3,Rental!$C$37:$C$76,Rental!$D$37:$D$76) -> 0 | R9: =LOOKUP(R3,Rental!$C$37:$C$76,Rental!$D$37:$D$76) -> 0 | S9: =LOOKUP(S3,Rental!$C$37:$C$76,Rental!$D$37:$D$76) -> 0 | T9: =LOOKUP(T3,Rental!$C$37:$C$76,Rental!$D$37:$D$76) -> 0 | U9: =LOOKUP(U3,Rental!$C$37:$C$76,Rental!$D$37:$D$76) -> 0 | V9: =LOOKUP(V3,Rental!$C$37:$C$76,Rental!$D$37:$D$76) -> 0 | W9: =LOOKUP(W3,Rental!$C$37:$C$76,Rental!$D$37:$D$76) -> 0 | X9: =LOOKUP(X3,Rental!$C$37:$C$76,Rental!$D$37:$D$76) -> 0 | Y9: =LOOKUP(Y3,Rental!$C$37:$C$76,Rental!$D$37:$D$76) -> 0 | Z9: =LOOKUP(Z3,Rental!$C$37:$C$76,Rental!$D$37:$D$76) -> 0 | AA9: =LOOKUP(AA3,Rental!$C$37:$C$76,Rental!$D$37:$D$76) -> 0 | AB9: =LOOKUP(AB3,Rental!$C$37:$C$76,Rental!$D$37:$D$76) -> 0 | AC9: =LOOKUP(AC3,Rental!$C$37:$C$76,Rental!$D$37:$D$76) -> 0 | AD9: =LOOKUP(AD3,Rental!$C$37:$C$76,Rental!$D$37:$D$76) -> 0 | AE9: =LOOKUP(AE3,Rental!$C$37:$C$76,Rental!$D$37:$D$76) -> 0 | AF9: =LOOKUP(AF3,Rental!$C$37:$C$76,Rental!$D$37:$D$76) -> 0 | AG9: =LOOKUP(AG3,Rental!$C$37:$C$76,Rental!$D$37:$D$76) -> 0 | AH9: =LOOKUP(AH3,Rental!$C$37:$C$76,Rental!$D$37:$D$76) -> 0 | AI9: =LOOKUP(AI3,Rental!$C$37:$C$76,Rental!$D$37:$D$76) -> 0 | AJ9: =LOOKUP(AJ3,Rental!$C$37:$C$76,Rental!$D$37:$D$76) -> 0 | AK9: =LOOKUP(AK3,Rental!$C$37:$C$76,Rental!$D$37:$D$76) -> 0 | AL9: =LOOKUP(AL3,Rental!$C$37:$C$76,Rental!$D$37:$D$76) -> 0 | AM9: =LOOKUP(AM3,Rental!$C$37:$C$76,Rental!$D$37:$D$76) -> 0 | AN9: =LOOKUP(AN3,Rental!$C$37:$C$76,Rental!$D$37:$D$76) -> 0 | AO9: =LOOKUP(AO3,Rental!$C$37:$C$76,Rental!$D$37:$D$76) -> 0 | AP9: =LOOKUP(AP3,Rental!$C$37:$C$76,Rental!$D$37:$D$76) -> 0
A10: =SUM(C10:AP10) -> 0 | B10: =IF(A10>0,Assets!C59,"no rental 2") -> no rental 2 | C10: =LOOKUP(C3,Rental!$C$37:$C$76,Rental!$K$37:$K$76) -> 0 | D10: =LOOKUP(D3,Rental!$C$37:$C$76,Rental!$K$37:$K$76) -> 0 | E10: =LOOKUP(E3,Rental!$C$37:$C$76,Rental!$K$37:$K$76) -> 0 | F10: =LOOKUP(F3,Rental!$C$37:$C$76,Rental!$K$37:$K$76) -> 0 | G10: =LOOKUP(G3,Rental!$C$37:$C$76,Rental!$K$37:$K$76) -> 0 | H10: =LOOKUP(H3,Rental!$C$37:$C$76,Rental!$K$37:$K$76) -> 0 | I10: =LOOKUP(I3,Rental!$C$37:$C$76,Rental!$K$37:$K$76) -> 0 | J10: =LOOKUP(J3,Rental!$C$37:$C$76,Rental!$K$37:$K$76) -> 0 | K10: =LOOKUP(K3,Rental!$C$37:$C$76,Rental!$K$37:$K$76) -> 0 | L10: =LOOKUP(L3,Rental!$C$37:$C$76,Rental!$K$37:$K$76) -> 0 | M10: =LOOKUP(M3,Rental!$C$37:$C$76,Rental!$K$37:$K$76) -> 0 | N10: =LOOKUP(N3,Rental!$C$37:$C$76,Rental!$K$37:$K$76) -> 0 | O10: =LOOKUP(O3,Rental!$C$37:$C$76,Rental!$K$37:$K$76) -> 0 | P10: =LOOKUP(P3,Rental!$C$37:$C$76,Rental!$K$37:$K$76) -> 0 | Q10: =LOOKUP(Q3,Rental!$C$37:$C$76,Rental!$K$37:$K$76) -> 0 | R10: =LOOKUP(R3,Rental!$C$37:$C$76,Rental!$K$37:$K$76) -> 0 | S10: =LOOKUP(S3,Rental!$C$37:$C$76,Rental!$K$37:$K$76) -> 0 | T10: =LOOKUP(T3,Rental!$C$37:$C$76,Rental!$K$37:$K$76) -> 0 | U10: =LOOKUP(U3,Rental!$C$37:$C$76,Rental!$K$37:$K$76) -> 0 | V10: =LOOKUP(V3,Rental!$C$37:$C$76,Rental!$K$37:$K$76) -> 0 | W10: =LOOKUP(W3,Rental!$C$37:$C$76,Rental!$K$37:$K$76) -> 0 | X10: =LOOKUP(X3,Rental!$C$37:$C$76,Rental!$K$37:$K$76) -> 0 | Y10: =LOOKUP(Y3,Rental!$C$37:$C$76,Rental!$K$37:$K$76) -> 0 | Z10: =LOOKUP(Z3,Rental!$C$37:$C$76,Rental!$K$37:$K$76) -> 0 | AA10: =LOOKUP(AA3,Rental!$C$37:$C$76,Rental!$K$37:$K$76) -> 0 | AB10: =LOOKUP(AB3,Rental!$C$37:$C$76,Rental!$K$37:$K$76) -> 0 | AC10: =LOOKUP(AC3,Rental!$C$37:$C$76,Rental!$K$37:$K$76) -> 0 | AD10: =LOOKUP(AD3,Rental!$C$37:$C$76,Rental!$K$37:$K$76) -> 0 | AE10: =LOOKUP(AE3,Rental!$C$37:$C$76,Rental!$K$37:$K$76) -> 0 | AF10: =LOOKUP(AF3,Rental!$C$37:$C$76,Rental!$K$37:$K$76) -> 0 | AG10: =LOOKUP(AG3,Rental!$C$37:$C$76,Rental!$K$37:$K$76) -> 0 | AH10: =LOOKUP(AH3,Rental!$C$37:$C$76,Rental!$K$37:$K$76) -> 0 | AI10: =LOOKUP(AI3,Rental!$C$37:$C$76,Rental!$K$37:$K$76) -> 0 | AJ10: =LOOKUP(AJ3,Rental!$C$37:$C$76,Rental!$K$37:$K$76) -> 0 | AK10: =LOOKUP(AK3,Rental!$C$37:$C$76,Rental!$K$37:$K$76) -> 0 | AL10: =LOOKUP(AL3,Rental!$C$37:$C$76,Rental!$K$37:$K$76) -> 0 | AM10: =LOOKUP(AM3,Rental!$C$37:$C$76,Rental!$K$37:$K$76) -> 0 | AN10: =LOOKUP(AN3,Rental!$C$37:$C$76,Rental!$K$37:$K$76) -> 0 | AO10: =LOOKUP(AO3,Rental!$C$37:$C$76,Rental!$K$37:$K$76) -> 0 | AP10: =LOOKUP(AF3,Rental!$C$37:$C$76,Rental!$K$37:$K$76) -> 0
A11: =SUM(C11:AP11) -> 0 | B11: =IF(A11>0,"Replacement House","no replacement house") -> no replacement house | C11: =LOOKUP(C3,Housing!$E$219:$E$343,Housing!$H$219:$H343) -> 0 | D11: =LOOKUP(D3,Housing!$E$219:$E$343,Housing!$H$219:$H343) -> 0 | E11: =LOOKUP(E3,Housing!$E$219:$E$343,Housing!$H$219:$H343) -> 0 | F11: =LOOKUP(F3,Housing!$E$219:$E$343,Housing!$H$219:$H343) -> 0 | G11: =LOOKUP(G3,Housing!$E$219:$E$343,Housing!$H$219:$H343) -> 0 | H11: =LOOKUP(H3,Housing!$E$219:$E$343,Housing!$H$219:$H343) -> 0 | I11: =LOOKUP(I3,Housing!$E$219:$E$343,Housing!$H$219:$H343) -> 0 | J11: =LOOKUP(J3,Housing!$E$219:$E$343,Housing!$H$219:$H343) -> 0 | K11: =LOOKUP(K3,Housing!$E$219:$E$343,Housing!$H$219:$H343) -> 0 | L11: =LOOKUP(L3,Housing!$E$219:$E$343,Housing!$H$219:$H343) -> 0 | M11: =LOOKUP(M3,Housing!$E$219:$E$343,Housing!$H$219:$H343) -> 0 | N11: =LOOKUP(N3,Housing!$E$219:$E$343,Housing!$H$219:$H343) -> 0 | O11: =LOOKUP(O3,Housing!$E$219:$E$343,Housing!$H$219:$H343) -> 0 | P11: =LOOKUP(P3,Housing!$E$219:$E$343,Housing!$H$219:$H343) -> 0 | Q11: =LOOKUP(Q3,Housing!$E$219:$E$343,Housing!$H$219:$H343) -> 0 | R11: =LOOKUP(R3,Housing!$E$219:$E$343,Housing!$H$219:$H343) -> 0 | S11: =LOOKUP(S3,Housing!$E$219:$E$343,Housing!$H$219:$H343) -> 0 | T11: =LOOKUP(T3,Housing!$E$219:$E$343,Housing!$H$219:$H343) -> 0 | U11: =LOOKUP(U3,Housing!$E$219:$E$343,Housing!$H$219:$H343) -> 0 | V11: =LOOKUP(V3,Housing!$E$219:$E$343,Housing!$H$219:$H343) -> 0 | W11: =LOOKUP(W3,Housing!$E$219:$E$343,Housing!$H$219:$H343) -> 0 | X11: =LOOKUP(X3,Housing!$E$219:$E$343,Housing!$H$219:$H343) -> 0 | Y11: =LOOKUP(Y3,Housing!$E$219:$E$343,Housing!$H$219:$H343) -> 0 | Z11: =LOOKUP(Z3,Housing!$E$219:$E$343,Housing!$H$219:$H343) -> 0 | AA11: =LOOKUP(AA3,Housing!$E$219:$E$343,Housing!$H$219:$H343) -> 0 | AB11: =LOOKUP(AB3,Housing!$E$219:$E$343,Housing!$H$219:$H343) -> 0 | AC11: =LOOKUP(AC3,Housing!$E$219:$E$343,Housing!$H$219:$H343) -> 0 | AD11: =LOOKUP(AD3,Housing!$E$219:$E$343,Housing!$H$219:$H343) -> 0 | AE11: =LOOKUP(AE3,Housing!$E$219:$E$343,Housing!$H$219:$H343) -> 0 | AF11: =LOOKUP(AF3,Housing!$E$219:$E$343,Housing!$H$219:$H343) -> 0 | AG11: =LOOKUP(AG3,Housing!$E$219:$E$343,Housing!$H$219:$H343) -> 0 | AH11: =LOOKUP(AH3,Housing!$E$219:$E$343,Housing!$H$219:$H343) -> 0 | AI11: =LOOKUP(AI3,Housing!$E$219:$E$343,Housing!$H$219:$H343) -> 0 | AJ11: =LOOKUP(AJ3,Housing!$E$219:$E$343,Housing!$H$219:$H343) -> 0 | AK11: =LOOKUP(AK3,Housing!$E$219:$E$343,Housing!$H$219:$H343) -> 0 | AL11: =LOOKUP(AL3,Housing!$E$219:$E$343,Housing!$H$219:$H343) -> 0 | AM11: =LOOKUP(AM3,Housing!$E$219:$E$343,Housing!$H$219:$H343) -> 0 | AN11: =LOOKUP(AN3,Housing!$E$219:$E$343,Housing!$H$219:$H343) -> 0 | AO11: =LOOKUP(AO3,Housing!$E$219:$E$343,Housing!$H$219:$H343) -> 0 | AP11: =LOOKUP(AP3,Housing!$E$219:$E$343,Housing!$H$219:$H343) -> 0
A12: =SUM(A8:A11) -> 10330517.41 | B12: Total Assets | C12: =SUM(C4+C8+C9+C10+C11) -> 1515398.499 | D12: =SUM(D4+D8+D9+D10+D11) -> 1545181.881 | E12: 1569178.512 | F12: 1527070.026 | G12: 1478827.847 | H12: 1424400.347 | I12: 1363847.753 | J12: 1297352.622 | K12: 1225266.731 | L12: 1148135.843 | M12: 1066839.467 | N12: 982622.2077 | O12: 897216.3621 | P12: 812951.4311 | Q12: 732766.0035 | R12: 738496.7331 | S12: 12.79577743 | T12: 0.5118085246 | U12: 0.02048086554 | V12: 0.0008001001592 | W12: 3.21041656e-05 | X12: 3.338833222e-05 | Y12: 3.472386551e-05 | Z12: 3.611282013e-05 | AA12: 3.755733293e-05 | AB12: 3.905962625e-05 | AC12: 4.06220113e-05 | AD12: 4.224689175e-05 | AE12: 4.393676742e-05 | AF12: 4.569423812e-05 | AG12: 4.752200765e-05 | AH12: 4.942288795e-05 | AI12: 5.139980347e-05 | AJ12: 5.345579561e-05 | AK12: 5.559402743e-05 | AL12: 5.781778853e-05 | AM12: 6.013050007e-05 | AN12: 6.253572007e-05 | AO12: 6.503714888e-05 | AP12: 6.763863483e-05
B14: Year | C14: =C3 -> 2034 | D14: =C14+1 -> 2035 | E14: 2036 | F14: 2037 | G14: 2038 | H14: 2039 | I14: 2040 | J14: 2041 | K14: 2042 | L14: 2043 | M14: 2044 | N14: 2045 | O14: 2046 | P14: 2047 | Q14: 2048 | R14: 2049 | S14: 2050 | T14: 2051 | U14: 2052 | V14: 2053 | W14: 2054 | X14: 2055 | Y14: 2056 | Z14: 2057 | AA14: 2058 | AB14: 2059 | AC14: 2060 | AD14: 2061 | AE14: 2062 | AF14: 2063 | AG14: =AF14+1 -> 2064 | AH14: 2065 | AI14: 2066 | AJ14: 2067 | AK14: 2068 | AL14: 2069 | AM14: 2070 | AN14: 2071 | AO14: 2072 | AP14: 2073
AN17: =Housing!H121 -> 0
B18: Slot #1 must start at row 20. Message number is then shown in the Checklist report on the Home tab.
A19: Slot # | B19: Message Number
A20: 1 | B20: 2
A21: =A20+1 -> 2 | B21: 7
A22: =A21+1 -> 3 | B22: 20
A23: 4
A24: 5
A25: 6
A26: 7
A27: 8
A28: 9
A29: 10
A30: 11
A31: 12
A32: 13
A33: 14
A34: 15
A35: 16
A36: 17
A37: 18
A38: 19
A39: 20
D71: Row at 100 | F71: Row at Retire
D72: =MATCH(100,D75:D135)+74 -> 121 | E72: =IF(ISNUMBER(E75),MATCH(100,E75:E135)+74,"") -> 123 | F72: =MATCH(Individuals!G20,F75:F135)+74 -> 87
D73: Age Id-1 | E73: Age Id-2 | F73: Year | G73: B-Tax (Inv) | H73: A-Tax(Inv) | I73: B-Tax (Retire) | J73: A-Tax (Retire) | K73: B-Tax Withdrawal (Retire) | L73: A-Tax Withdrawal (Retire) | M73: House | N73: =IF(Assets!C58>"",Assets!C58,"n/a") -> n/a | O73: =IF(Assets!C59>"",Assets!C59,"n/a") -> n/a | P73: Rental 1 Sale | Q73: Rental 2 Sale | R73: Income | S73: Tax | T73: Budget | U73: Replacement Hosue
D75: =Individuals!F10 -> 54 | E75: =Individuals!F15 -> 52 | F75: =YEAR(TODAY()) -> 2022 | G75: =Investments!BX7:BX67 -> 475000 | H75: =Investments!BY7:BY67 -> 75000 | M75: =Housing!H81:'Housing'!H205 -> 450000 | N75: =Rental!D37:'Rental'!D117 -> 0 | O75: =Rental!K37:'Rental'!K117 -> 0 | P75: =Investments!DA7:DA67 -> 0 | Q75: =Investments!DB7:DB67 -> 0 | R75: =Income!Q16:Q140 -> 210000 | T75: =Budget!I5 -> 106595 | U75: =Housing!H219 -> 0
D76: =D75+1 -> 55 | E76: =IF(ISNUMBER(E75),E75+1,"") -> 53 | F76: =F75+1 -> 2023 | G76: 503500 | H76: 79750 | M76: 458325 | N76: 0 | O76: 0 | P76: 0 | Q76: 0 | R76: 214200 | T76: =T75+(T75*Retire!$D$18) -> 109792.85 | U76: =Housing!H220 -> 0
D77: =D76+1 -> 56 | E77: =IF(ISNUMBER(E76),E76+1,"") -> 54 | F77: =F76+1 -> 2024 | G77: 533503.75 | H77: 84785 | M77: 466804.0125 | N77: 0 | O77: 0 | P77: 0 | Q77: 0 | R77: 218484 | T77: =T76+(T76*Retire!$D$18) -> 113086.6355 | U77: =Housing!H221 -> 0
D78: 57 | E78: 55 | F78: 2025 | G78: 565090.7688 | H78: 90122.1 | M78: 475439.8867 | N78: 0 | O78: 0 | P78: 0 | Q78: 0 | R78: 222853.68 | T78: =T77+(T77*Retire!$D$18) -> 116479.2346 | U78: =Housing!H222 -> 0
D79: 58 | E79: 56 | F79: 2026 | G79: 598344.7892 | H79: 95779.426 | M79: 484235.5246 | N79: 0 | O79: 0 | P79: 0 | Q79: 0 | R79: 227310.7536 | T79: =T78+(T78*Retire!$D$18) -> 119973.6116 | U79: =Housing!H223 -> 0
D80: 59 | E80: 57 | F80: 2027 | G80: 633353.9821 | H80: 101776.1916 | M80: 493193.8818 | N80: 0 | O80: 0 | P80: 0 | Q80: 0 | R80: 231856.9687 | T80: =T79+(T79*Retire!$D$18) -> 123572.82 | U80: =Housing!H224 -> 0
D81: 60 | E81: 58 | F81: 2028 | G81: 670211.1921 | H81: 108132.7631 | M81: 502317.9687 | N81: 0 | O81: 0 | P81: 0 | Q81: 0 | R81: 236494.108 | T81: =T80+(T80*Retire!$D$18) -> 127280.0045 | U81: =Housing!H225 -> 0
D82: 61 | E82: 59 | F82: 2029 | G82: 709014.1857 | H82: 114870.7288 | M82: 511610.8511 | N82: 0 | O82: 0 | P82: 0 | Q82: 0 | R82: 241223.9902 | T82: =T81+(T81*Retire!$D$18) -> 131098.4047 | U82: =Housing!H226 -> 0
D83: 62 | E83: 60 | F83: 2030 | G83: 749865.9129 | H83: 122012.9726 | M83: 521075.6518 | N83: 0 | O83: 0 | P83: 0 | Q83: 0 | R83: 246048.47 | T83: =T82+(T82*Retire!$D$18) -> 135031.3568 | U83: =Housing!H227 -> 0
D84: 63 | E84: 61 | F84: 2031 | G84: 792874.7824 | H84: 129583.7509 | M84: 530715.5514 | N84: 0 | O84: 0 | P84: 0 | Q84: 0 | R84: 250969.4394 | T84: =T83+(T83*Retire!$D$18) -> 139082.2975 | U84: =Housing!H228 -> 0
D85: 64 | E85: 62 | F85: 2032 | G85: 838154.952 | H85: 137608.776 | M85: 540533.7891 | N85: 0 | O85: 0 | P85: 0 | Q85: 0 | R85: 255988.8282 | T85: =T84+(T84*Retire!$D$18) -> 143254.7665 | U85: =Housing!H229 -> 0
D86: 65 | E86: 63 | F86: 2033 | G86: 885826.6337 | H86: 146115.3025 | M86: 550533.6642 | N86: 0 | O86: 0 | P86: 0 | Q86: 0 | R86: 261108.6048 | T86: =T85+(T85*Retire!$D$18) -> 147552.4094 | U86: =Housing!H230 -> 0
D87: 66 | E87: 64 | F87: 2034 | G87: 936016.4159 | H87: 155132.2207 | I87: =Retire!BF9:'Retire'!BF48 -> 954679.9625 | J87: =Retire!BD9:'Retire'!BD48 -> 155132.2207 | K87: =Retire!BH9:'Retire'!BH48 -> 18777.11 | L87: =Retire!BB9:'Retire'!BB48 -> 0 | M87: 560718.537 | N87: 0 | O87: 0 | P87: 0 | Q87: 0 | R87: 178151.2123 | T87: =T86+(T86*Retire!$D$18) -> 151978.9817 | U87: =Housing!H231 -> 0
D88: 67 | E88: 65 | F88: 2035 | G88: 988857.6019 | H88: 164690.1539 | I88: 974090.051 | J88: 161337.5095 | K88: 25532.17 | L88: 0 | M88: 571091.8299 | N88: 0 | O88: 0 | P88: 0 | Q88: 0 | R88: 181449.2765 | T88: =T87+(T87*Retire!$D$18) -> 156538.3512 | U88: =Housing!H232 -> 0
D89: 68 | E89: 66 | F89: 2036 | G89: 1044490.567 | H89: 174821.5632 | I89: 987521.4831 | J89: 167791.0099 | K89: 92370 | L89: 0 | M89: 581657.0288 | N89: 0 | O89: 0 | P89: 0 | Q89: 0 | R89: 94139.86982 | T89: =T88+(T88*Retire!$D$18) -> 161234.5017 | U89: =Housing!H233 -> 0
D90: 69 | E90: 67 | F90: 2037 | G90: 1103063.136 | H90: 185560.857 | I90: 934652.3424 | J90: 174502.6503 | K90: 96588 | L90: 0 | M90: 592417.6838 | N90: 0 | O90: 0 | P90: 0 | Q90: 0 | R90: 95502.3198 | T90: =T89+(T89*Retire!$D$18) -> 166071.5368 | U90: =Housing!H234 -> 0
D91: 70 | E91: 68 | F91: 2038 | G91: 1164730.975 | H91: 196944.5084 | I91: 875450.4361 | J91: 181482.7563 | K91: 100608 | L91: 0 | M91: 603377.4109 | N91: 0 | O91: 0 | P91: 0 | Q91: 0 | R91: 96885.20222 | T91: =T90+(T90*Retire!$D$18) -> 171053.6829 | U91: =Housing!H235 -> 0
D92: 71 | E92: 69 | F92: 2039 | G92: 1229658.013 | H92: 209011.1789 | I92: 809860.4535 | J92: 188742.0666 | K92: 104316 | L92: 0 | M92: 614539.893 | N92: 0 | O92: 0 | P92: 0 | Q92: 0 | R92: 98288.83645 | T92: =T91+(T91*Retire!$D$18) -> 176185.2934 | U92: =Housing!H236 -> 0
D93: 72 | E93: 70 | F93: 2040 | G93: 1298016.881 | H93: 221801.8496 | I93: 737938.8717 | J93: 196291.7492 | K93: 107592 | L93: 0 | M93: 625908.8811 | N93: 0 | O93: 0 | P93: 0 | Q93: 0 | R93: 99713.54704 | T93: =T92+(T92*Retire!$D$18) -> 181470.8522 | U93: =Housing!H237 -> 0
D94: 73 | E94: 71 | F94: 2041 | G94: 1369989.37 | H94: 235359.9606 | I94: 659864.4265 | J94: 204143.4192 | K94: 110274 | L94: 0 | M94: 637488.1954 | N94: 0 | O94: 0 | P94: 0 | Q94: 0 | R94: 101159.6639 | T94: =T93+(T93*Retire!$D$18) -> 186914.9777 | U94: =Housing!H238 -> 0
D95: 74 | E95: 72 | F95: 2042 | G95: 1445766.923 | H95: 249731.5582 | I95: 575985.0036 | J95: 212309.156 | K95: 112182 | L95: 0 | M95: 649281.727 | N95: 0 | O95: 0 | P95: 0 | Q95: 0 | R95: 102627.5222 | T95: =T94+(T94*Retire!$D$18) -> 192522.4271 | U95: =Housing!H239 -> 0
D96: 75 | E96: 73 | F96: 2043 | G96: 1525551.15 | H96: 264965.4517 | I96: 486842.4037 | J96: 220801.5222 | K96: 113004 | L96: 0 | M96: 661293.4389 | N96: 0 | O96: 0 | P96: 0 | Q96: 0 | R96: 104117.4629 | T96: =T95+(T95*Retire!$D$18) -> 198298.0999 | U96: =Housing!H240 -> 0
D97: 76 | E97: 74 | F97: 2044 | G97: 1609554.361 | H97: 281113.3788 | I97: 393312.0999 | J97: 229633.5831 | K97: 112410 | L97: 0 | M97: 673527.3675 | N97: 0 | O97: 0 | P97: 0 | Q97: 0 | R97: 105629.8321 | T97: =T96+(T96*Retire!$D$18) -> 204247.0429 | U97: =Housing!H241 -> 0
D98: 77 | E98: 75 | F98: 2045 | G98: 1698000.143 | H98: 298230.1815 | I98: 296634.5839 | J98: 238818.9264 | K98: 109962 | L98: 0 | M98: 685987.6238 | N98: 0 | O98: 0 | P98: 0 | Q98: 0 | R98: 107164.982 | T98: =T97+(T97*Retire!$D$18) -> 210374.4542 | U98: =Housing!H242 -> 0
D99: 78 | E99: 76 | F99: 2046 | G99: 1791123.958 | H99: 316373.9924 | I99: 198537.9672 | J99: 248371.6835 | K99: 105132 | L99: 0 | M99: 698678.3949 | N99: 0 | O99: 0 | P99: 0 | Q99: 0 | R99: 108723.2704 | T99: =T98+(T98*Retire!$D$18) -> 216685.6878 | U99: =Housing!H243 -> 0
D100: 79 | E100: 77 | F100: 2047 | G100: 1889173.773 | H100: 335606.432 | I100: 101347.4859 | J100: 258306.5508 | K100: 97404 | L100: 0 | M100: 711603.9452 | N100: 0 | O100: 0 | P100: 0 | Q100: 0 | R100: 110305.0609 | T100: =T99+(T99*Retire!$D$18) -> 223186.2584 | U100: =Housing!H244 -> 0
D101: 80 | E101: 78 | F101: 2048 | G101: 1992410.728 | H101: 355992.8179 | I101: 7997.385345 | J101: 268638.8128 | K101: 7997.3853 | L101: 78426.61 | M101: 724768.6182 | N101: 0 | O101: 0 | P101: 0 | Q101: 0 | R101: 111910.7231 | T101: =T100+(T100*Retire!$D$18) -> 229881.8462 | U101: =Housing!H245 -> 0
D102: 81 | E102: 79 | F102: 2049 | G102: 2101109.836 | H102: 377602.387 | I102: 319.8954591 | J102: 200957.7553 | K102: 319.8955 | L102: 88804.1 | M102: 738176.8376 | N102: 0 | O102: 0 | P102: 0 | Q102: 0 | R102: 113540.6328 | T102: =T101+(T101*Retire!$D$18) -> 236778.3015 | U102: =Housing!H246 -> 0
D103: 82 | E103: 80 | F103: 2050 | G103: 2215560.72 | H103: 400508.5302 | I103: 12.79577743 | J103: 826868.8032 | K103: 12.7958 | L103: 102995.2 | M103: 0 | N103: 0 | O103: 0 | P103: 0 | Q103: 0 | R103: 115195.172 | T103: =T102+(T102*Retire!$D$18) -> 243881.6506 | U103: =Housing!H247 -> 0
D104: 83 | E104: 81 | F104: 2051 | G104: 2336068.395 | H104: 424789.042 | I104: 0.5118085246 | J104: 756948.3553 | K104: 0.5118 | L104: 107639.49 | M104: 0 | N104: 0 | O104: 0 | P104: 0 | Q104: 0 | R104: 116874.7287 | T104: =T103+(T103*Retire!$D$18) -> 251198.1001 | U104: =Housing!H248 -> 0
D105: 84 | E105: 82 | F105: 2052 | G105: 2462954.084 | H105: 450526.3845 | I105: 0.02048086554 | J105: 679586.7995 | K105: 0.0205 | L105: 112439.98 | M105: 0 | N105: 0 | O105: 0 | P105: 0 | Q105: 0 | R105: 118579.6976 | T105: =T104+(T104*Retire!$D$18) -> 258734.0431 | U105: =Housing!H249 -> 0
D106: 85 | E106: 83 | F106: 2053 | G106: 2596556.082 | H106: 477807.9676 | I106: 0.0008001001592 | J106: 594330.2915 | K106: 0.0008 | L106: 117396 | M106: 0 | N106: 0 | O106: 0 | P106: 0 | Q106: 0 | R106: 120310.4799 | T106: =T105+(T105*Retire!$D$18) -> 266496.0644 | U106: =Housing!H250 -> 0
D107: 86 | E107: 84 | F107: 2054 | G107: 2737230.666 | H107: 506726.4456 | I107: 3.21041656e-05 | J107: 500707.5031 | K107: 0 | L107: 122508 | M107: 0 | N107: 0 | O107: 0 | P107: 0 | Q107: 0 | R107: 122067.4831 | T107: =T106+(T106*Retire!$D$18) -> 274490.9463 | U107: =Housing!H251 -> 0
D108: 87 | E108: 85 | F108: 2055 | G108: 2885353.052 | H108: 537380.0324 | I108: 3.338833222e-05 | J108: 398227.8033 | K108: 0 | L108: 127788 | M108: 0 | N108: 0 | O108: 0 | P108: 0 | Q108: 0 | R108: 123851.1218 | T108: =T107+(T107*Retire!$D$18) -> 282725.6747 | U108: =Housing!H252 -> 0
D109: 88 | E109: 86 | F109: 2056 | G109: 3041318.405 | H109: 569872.8343 | I109: 3.472386551e-05 | J109: 286368.9154 | K109: 0 | L109: 133236 | M109: 0 | N109: 0 | O109: 0 | P109: 0 | Q109: 0 | R109: 125661.8173 | T109: =T108+(T108*Retire!$D$18) -> 291207.445 | U109: =Housing!H253 -> 0
D110: 89 | E110: 87 | F110: 2057 | G110: 3205542.898 | H110: 604315.2044 | I110: 3.611282013e-05 | J110: 164587.672 | K110: 0 | L110: 138876 | M110: 0 | N110: 0 | O110: 0 | P110: 0 | Q110: 0 | R110: 127499.9977 | T110: =T109+(T109*Retire!$D$18) -> 299943.6683 | U110: =Housing!H254 -> 0
D111: 90 | E111: 88 | F111: 2058 | G111: 3378464.838 | H111: 640824.1167 | I111: 3.755733293e-05 | J111: 32295.17889 | K111: 0 | L111: 0 | M111: 0 | N111: 0 | O111: 0 | P111: 0 | Q111: 0 | R111: 129366.0986 | T111: =T110+(T110*Retire!$D$18) -> 308941.9784 | U111: =Housing!H255 -> 0
D112: 91 | E112: 89 | F112: 2059 | G112: 3560545.839 | H112: 679523.5637 | I112: 3.905962625e-05 | J112: 33586.98605 | K112: 0 | L112: 0 | M112: 0 | N112: 0 | O112: 0 | P112: 0 | Q112: 0 | R112: 131260.5624 | T112: =T111+(T111*Retire!$D$18) -> 318210.2377 | U112: =Housing!H256 -> 0
D113: 92 | E113: 90 | F113: 2060 | G113: 3752272.066 | H113: 720544.9775 | I113: 4.06220113e-05 | J113: 34930.46549 | K113: 0 | L113: 0 | M113: 0 | N113: 0 | O113: 0 | P113: 0 | Q113: 0 | R113: 133183.839 | T113: =T112+(T112*Retire!$D$18) -> 327756.5449 | U113: =Housing!H257 -> 0
D114: 93 | E114: 91 | F114: 2061 | G114: 3954155.546 | H114: 764027.6761 | I114: 4.224689175e-05 | J114: 36327.68411 | K114: 0 | L114: 0 | M114: 0 | N114: 0 | O114: 0 | P114: 0 | Q114: 0 | R114: 135136.3858 | T114: =T113+(T113*Retire!$D$18) -> 337589.2412 | U114: =Housing!H258 -> 0
D115: 94 | E115: 92 | F115: 2062 | G115: 4166735.543 | H115: 810119.3367 | I115: 4.393676742e-05 | J115: 37780.79147 | K115: 0 | L115: 0 | M115: 0 | N115: 0 | O115: 0 | P115: 0 | Q115: 0 | R115: 137118.6678 | T115: =T114+(T114*Retire!$D$18) -> 347716.9184 | U115: =Housing!H259 -> 0
D116: 95 | E116: 93 | F116: 2063 | G116: 4390580.013 | H116: 858976.4969 | I116: 4.569423812e-05 | J116: 39292.02313 | K116: 0 | L116: 0 | M116: 0 | N116: 0 | O116: 0 | P116: 0 | Q116: 0 | R116: 139131.1576 | T116: =T115+(T115*Retire!$D$18) -> 358148.426 | U116: =Housing!H260 -> 0
D117: 96 | E117: 94 | F117: 2064 | G117: 4626287.128 | H117: 910765.0867 | I117: 4.752200765e-05 | J117: 40863.70406 | K117: 0 | L117: 0 | M117: 0 | N117: 0 | O117: 0 | P117: 0 | Q117: 0 | R117: 141174.3356 | T117: =T116+(T116*Retire!$D$18) -> 368892.8788 | U117: =Housing!H261 -> 0
D118: 97 | E118: 95 | F118: 2065 | G118: 4874486.896 | H118: 965660.9919 | I118: 4.942288795e-05 | J118: 42498.25222 | K118: 0 | L118: 0 | M118: 0 | N118: 0 | O118: 0 | P118: 0 | Q118: 0 | R118: 143248.6905 | T118: =T117+(T117*Retire!$D$18) -> 379959.6651 | U118: =Housing!H262 -> 0
D119: 98 | E119: 96 | F119: 2066 | G119: 5135842.85 | H119: 1023850.651 | I119: 5.139980347e-05 | J119: 44198.18231 | K119: 0 | L119: 0 | M119: 0 | N119: 0 | O119: 0 | P119: 0 | Q119: 0 | R119: 145354.7189 | T119: =T118+(T118*Retire!$D$18) -> 391358.4551 | U119: =Housing!H263 -> 0
D120: 99 | E120: 97 | F120: 2067 | G120: 5411053.84 | H120: 1085531.691 | I120: 5.345579561e-05 | J120: 45966.1096 | K120: 0 | L120: 0 | M120: 0 | N120: 0 | O120: 0 | P120: 0 | Q120: 0 | R120: 147492.9257 | T120: =T119+(T119*Retire!$D$18) -> 403099.2087 | U120: =Housing!H264 -> 0
D121: 100 | E121: 98 | F121: 2068 | G121: 5700855.917 | H121: 1150913.592 | I121: 5.559402743e-05 | J121: 47804.75399 | K121: 0 | L121: 0 | M121: 0 | N121: 0 | O121: 0 | P121: 0 | Q121: 0 | R121: 149663.8241 | T121: =T120+(T120*Retire!$D$18) -> 415192.185 | U121: =Housing!H265 -> 0
D122: 101 | E122: 99 | F122: 2069 | G122: 6006024.313 | H122: 1220218.407 | I122: 5.781778853e-05 | J122: 49716.94415 | K122: 0 | L122: 0 | M122: 0 | N122: 0 | O122: 0 | P122: 0 | Q122: 0 | R122: 151867.9362 | T122: =T121+(T121*Retire!$D$18) -> 427647.9506 | U122: =Housing!H266 -> 0
D123: 102 | E123: 100 | F123: 2070 | G123: 6327375.537 | H123: 1293681.512 | I123: 6.013050007e-05 | J123: 51705.62191 | K123: 0 | L123: 0 | M123: 0 | N123: 0 | O123: 0 | P123: 0 | Q123: 0 | R123: 154105.7924 | T123: =T122+(T122*Retire!$D$18) -> 440477.3891 | U123: =Housing!H267 -> 0
D124: 103 | E124: 101 | F124: 2071 | G124: 6665769.573 | H124: 1371552.403 | I124: 6.253572007e-05 | J124: 53773.84679 | K124: 0 | L124: 0 | M124: 0 | N124: 0 | O124: 0 | P124: 0 | Q124: 0 | R124: 156377.9323 | T124: =T123+(T123*Retire!$D$18) -> 453691.7107 | U124: =Housing!H268 -> 0
D125: 104 | E125: 102 | F125: 2072 | G125: 7022112.199 | H125: 1454095.547 | I125: 6.503714888e-05 | J125: 55924.80066 | K125: 0 | L125: 0 | M125: 0 | N125: 0 | O125: 0 | P125: 0 | Q125: 0 | R125: 158684.9043 | T125: =T124+(T124*Retire!$D$18) -> 467302.4621 | U125: =Housing!H269 -> 0
D126: 105 | E126: 103 | F126: 2073 | G126: 7397357.436 | H126: 1541591.28 | I126: 6.763863483e-05 | J126: 58161.79269 | K126: 0 | L126: 0 | M126: 0 | N126: 0 | O126: 0 | P126: 0 | Q126: 0 | R126: 161027.2661 | T126: =T125+(T125*Retire!$D$18) -> 481321.5359 | U126: =Housing!H270 -> 0
D127: 106 | E127: 104 | F127: 2074 | G127: 7792510.113 | H127: 1634336.756 | M127: 0 | N127: 0 | O127: 0 | P127: 0 | Q127: 0 | R127: 163405.5846 | T127: =T126+(T126*Retire!$D$18) -> 495761.182 | U127: =Housing!H271 -> 0
D128: 107 | E128: 105 | F128: 2075 | G128: 8208628.589 | H128: 1732646.962 | M128: 0 | N128: 0 | O128: 0 | P128: 0 | Q128: 0 | R128: 165820.4363 | T128: =T127+(T127*Retire!$D$18) -> 510634.0175 | U128: =Housing!H272 -> 0
D129: 108 | E129: 106 | F129: 2076 | G129: 8646827.602 | H129: 1836855.779 | M129: 0 | N129: 0 | O129: 0 | P129: 0 | Q129: 0 | R129: 168272.4073 | T129: =T128+(T128*Retire!$D$18) -> 525953.038 | U129: =Housing!H273 -> 0
D130: 109 | E130: 107 | F130: 2077 | G130: 9108281.282 | H130: 1947317.126 | M130: 0 | N130: 0 | O130: 0 | P130: 0 | Q130: 0 | R130: 170762.0936 | T130: =T129+(T129*Retire!$D$18) -> 541731.6291 | U130: =Housing!H274 -> 0
D131: 110 | E131: 108 | F131: 2078 | G131: 9594226.323 | H131: 2064406.154 | M131: 0 | N131: 0 | O131: 0 | P131: 0 | Q131: 0 | R131: 173290.1011 | T131: =T130+(T130*Retire!$D$18) -> 557983.578 | U131: =Housing!H275 -> 0
D132: 111 | E132: 109 | F132: 2079 | G132: 10105965.32 | H132: 2188520.523 | M132: 0 | N132: 0 | O132: 0 | P132: 0 | Q132: 0 | R132: 175857.046 | T132: =T131+(T131*Retire!$D$18) -> 574723.0853 | U132: =Housing!H276 -> 0
D133: 112 | E133: 110 | F133: 2080 | G133: 10644870.29 | H133: 2320081.754 | M133: 0 | N133: 0 | O133: 0 | P133: 0 | Q133: 0 | R133: 178463.5548 | T133: =T132+(T132*Retire!$D$18) -> 591964.7779 | U133: =Housing!H277 -> 0
D134: 113 | E134: 111 | F134: 2081 | G134: 11212386.38 | H134: 2459536.66 | M134: 0 | N134: 0 | O134: 0 | P134: 0 | Q134: 0 | R134: 181110.2645 | T134: =T133+(T133*Retire!$D$18) -> 609723.7212 | U134: =Housing!H278 -> 0
D135: 114 | E135: 112 | F135: 2082 | G135: 11810035.76 | H135: 2607358.859 | M135: 0 | N135: 0 | O135: 0 | P135: 0 | Q135: 0 | R135: 183797.8229 | T135: =T134+(T134*Retire!$D$18) -> 628015.4329 | U135: =Housing!H279 -> 0
D136: =D135+1 -> 115 | E136: 113 | F136: 2083 | M136: 0 | N136: 0 | O136: 0 | R136: 186526.8885 | T136: =T135+(T135*Retire!$D$18) -> 646855.8959 | U136: =Housing!H280 -> 0
D137: 116 | E137: 114 | F137: 2084 | M137: 0 | N137: 0 | O137: 0 | R137: 189298.1311 | T137: =T136+(T136*Retire!$D$18) -> 666261.5727 | U137: =Housing!H281 -> 0
D138: 117 | E138: 115 | F138: 2085 | M138: 0 | N138: 0 | O138: 0 | R138: 192112.2319 | T138: =T137+(T137*Retire!$D$18) -> 686249.4199 | U138: =Housing!H282 -> 0
D139: 118 | E139: 116 | F139: 2086 | M139: 0 | N139: 0 | O139: 0 | R139: 194969.8833 | T139: =T138+(T138*Retire!$D$18) -> 706836.9025 | U139: =Housing!H283 -> 0
D140: 119 | E140: 117 | F140: 2087 | M140: 0 | N140: 0 | O140: 0 | R140: 197871.7895 | T140: =T139+(T139*Retire!$D$18) -> 728042.0096 | U140: =Housing!H284 -> 0
D141: 120 | E141: =IF(ISNUMBER(E140),E140+1,"") -> 118 | F141: =F140+1 -> 2088 | M141: 0 | N141: 0 | O141: 0 | R141: 200818.6667 | T141: =T140+(T140*Retire!$D$18) -> 749883.2699 | U141: =Housing!H285 -> 0
D142: 121 | E142: 119 | F142: 2089 | M142: 0 | N142: 0 | O142: 0 | R142: 203811.2432 | T142: =T141+(T141*Retire!$D$18) -> 772379.768 | U142: =Housing!H286 -> 0
D143: 122 | E143: 120 | F143: 2090 | M143: 0 | N143: 0 | O143: 0 | R143: 206850.2594 | T143: =T142+(T142*Retire!$D$18) -> 795551.161 | U143: =Housing!H287 -> 0
D144: 123 | E144: 121 | F144: 2091 | M144: 0 | N144: 0 | O144: 0 | R144: 209936.4685 | T144: =T143+(T143*Retire!$D$18) -> 819417.6958 | U144: =Housing!H288 -> 0
D145: 124 | E145: 122 | F145: 2092 | M145: 0 | N145: 0 | O145: 0 | R145: 213070.6364 | T145: =T144+(T144*Retire!$D$18) -> 844000.2267 | U145: =Housing!H289 -> 0
D146: 125 | E146: 123 | F146: 2093 | M146: 0 | N146: 0 | O146: 0 | R146: 216253.5419 | T146: =T145+(T145*Retire!$D$18) -> 869320.2335 | U146: =Housing!H290 -> 0
D147: 126 | E147: 124 | F147: 2094 | M147: 0 | N147: 0 | O147: 0 | R147: 219485.977 | T147: =T146+(T146*Retire!$D$18) -> 895399.8405 | U147: =Housing!H291 -> 0
D148: 127 | E148: 125 | F148: 2095 | M148: 0 | N148: 0 | O148: 0 | R148: 222768.7474 | T148: =T147+(T147*Retire!$D$18) -> 922261.8357 | U148: =Housing!H292 -> 0
D149: 128 | E149: 126 | F149: 2096 | M149: 0 | N149: 0 | O149: 0 | R149: 226102.6721 | T149: =T148+(T148*Retire!$D$18) -> 949929.6908 | U149: =Housing!H293 -> 0
D150: 129 | E150: 127 | F150: 2097 | M150: 0 | N150: 0 | O150: 0 | R150: 229488.5842 | T150: =T149+(T149*Retire!$D$18) -> 978427.5815 | U150: =Housing!H294 -> 0
D151: 130 | E151: 128 | F151: 2098 | M151: 0 | N151: 0 | O151: 0 | R151: 232927.3312 | T151: =T150+(T150*Retire!$D$18) -> 1007780.409 | U151: =Housing!H295 -> 0
D152: 131 | E152: 129 | F152: 2099 | M152: 0 | N152: 0 | O152: 0 | R152: 236419.7747 | T152: =T151+(T151*Retire!$D$18) -> 1038013.821 | U152: =Housing!H296 -> 0
D153: 132 | E153: 130 | F153: 2100 | M153: 0 | N153: 0 | O153: 0 | R153: 239966.7911 | T153: =T152+(T152*Retire!$D$18) -> 1069154.236 | U153: =Housing!H297 -> 0
D154: 133 | E154: 131 | F154: 2101 | M154: 0 | N154: 0 | O154: 0 | R154: 243569.2718 | T154: =T153+(T153*Retire!$D$18) -> 1101228.863 | U154: =Housing!H298 -> 0
D155: 134 | E155: 132 | F155: 2102 | M155: 0 | N155: 0 | O155: 0 | R155: 247228.1233 | U155: =Housing!H299 -> 0
D156: =D155+1 -> 135 | E156: 133 | F156: =F155+1 -> 2103 | M156: 0 | R156: 250944.2676 | U156: =Housing!H300 -> 0
D157: 136 | E157: 134 | F157: 2104 | M157: 0 | R157: 254718.6426 | U157: =Housing!H301 -> 0
D158: 137 | E158: 135 | F158: 2105 | M158: 0 | R158: 258552.2019 | U158: =Housing!H302 -> 0
D159: 138 | E159: 136 | F159: 2106 | M159: 0 | R159: 262445.9158 | U159: =Housing!H303 -> 0
D160: 139 | E160: 137 | F160: 2107 | M160: 0 | R160: 266400.7709 | U160: =Housing!H304 -> 0
D161: 140 | E161: 138 | F161: 2108 | M161: 0 | R161: 270417.771 | U161: =Housing!H305 -> 0
D162: 141 | E162: 139 | F162: 2109 | M162: 0 | R162: 274497.9367 | U162: =Housing!H306 -> 0
D163: 142 | E163: 140 | F163: 2110 | M163: 0 | R163: 278642.3064 | U163: =Housing!H307 -> 0
D164: 143 | E164: 141 | F164: 2111 | M164: 0 | R164: 282851.9363 | U164: =Housing!H308 -> 0
D165: 144 | E165: 142 | F165: 2112 | M165: 0 | R165: 287127.9007 | U165: =Housing!H309 -> 0
D166: 145 | E166: 143 | F166: 2113 | M166: 0 | R166: 291471.2923 | U166: =Housing!H310 -> 0
D167: 146 | E167: 144 | F167: 2114 | M167: 0 | R167: 295883.2226 | U167: =Housing!H311 -> 0
D168: 147 | E168: 145 | F168: 2115 | M168: 0 | R168: 300364.8224 | U168: =Housing!H312 -> 0
D169: 148 | E169: 146 | F169: 2116 | M169: 0 | R169: 304917.2417 | U169: =Housing!H313 -> 0
D170: 149 | E170: 147 | F170: 2117 | M170: 0 | R170: 309541.6505 | U170: =Housing!H314 -> 0
D171: 150 | E171: 148 | F171: 2118 | M171: 0 | R171: 314239.2389 | U171: =Housing!H315 -> 0
D172: 151 | E172: 149 | F172: 2119 | M172: 0 | R172: 319011.2176 | U172: =Housing!H316 -> 0
D173: 152 | E173: 150 | F173: 2120 | M173: 0 | R173: 323858.8181 | U173: =Housing!H317 -> 0
D174: 153 | E174: 151 | F174: 2121 | M174: 0 | R174: 328783.2932 | U174: =Housing!H318 -> 0
D175: 154 | E175: 152 | F175: 2122 | M175: 0 | R175: 333785.9175 | U175: =Housing!H319 -> 0
D176: 155 | E176: 153 | F176: 2123 | M176: 0 | R176: 338867.9874 | U176: =Housing!H320 -> 0
D177: 156 | E177: 154 | F177: 2124 | M177: 0 | R177: 344030.8218 | U177: =Housing!H321 -> 0
D178: 157 | E178: 155 | F178: 2125 | M178: 0 | R178: 349275.7627 | U178: =Housing!H322 -> 0
D179: 158 | E179: 156 | F179: 2126 | M179: 0 | R179: 354604.1751 | U179: =Housing!H323 -> 0
D180: 159 | E180: 157 | F180: 2127 | M180: 0 | R180: 360017.4477 | U180: =Housing!H324 -> 0
D181: 160 | E181: 158 | F181: 2128 | M181: 0 | R181: 365516.9933 | U181: =Housing!H325 -> 0
D182: 161 | E182: 159 | F182: 2129 | M182: 0 | R182: 371104.2493 | U182: =Housing!H326 -> 0
D183: 162 | E183: 160 | F183: 2130 | M183: 0 | R183: 376780.678 | U183: =Housing!H327 -> 0
D184: 163 | E184: 161 | F184: 2131 | M184: 0 | R184: 382547.7671 | U184: =Housing!H328 -> 0
D185: 164 | E185: 162 | F185: 2132 | M185: 0 | R185: 388407.0304 | U185: =Housing!H329 -> 0
D186: 165 | E186: 163 | F186: 2133 | M186: 0 | R186: 394360.0078 | U186: =Housing!H330 -> 0
D187: 166 | E187: 164 | F187: 2134 | M187: 0 | R187: 400408.2661 | U187: =Housing!H331 -> 0
D188: 167 | E188: 165 | F188: 2135 | M188: 0 | R188: 406553.3995 | U188: =Housing!H332 -> 0
D189: 168 | E189: 166 | F189: 2136 | M189: 0 | R189: 412797.0298 | U189: =Housing!H333 -> 0
D190: 169 | E190: 167 | F190: 2137 | M190: 0 | R190: 419140.8072 | U190: =Housing!H334 -> 0
D191: 170 | E191: 168 | F191: 2138 | M191: 0 | R191: 425586.4109 | U191: =Housing!H335 -> 0
D192: 171 | E192: 169 | F192: 2139 | M192: 0 | R192: 432135.5491 | U192: =Housing!H336 -> 0
D193: 172 | E193: 170 | F193: 2140 | M193: 0 | R193: 438789.9602 | U193: =Housing!H337 -> 0
D194: 173 | E194: 171 | F194: 2141 | M194: 0 | R194: 445551.4128 | U194: =Housing!H338 -> 0
D195: 174 | E195: 172 | F195: 2142 | M195: 0 | R195: 452421.7065 | U195: =Housing!H339 -> 0
D196: 175 | E196: 173 | F196: 2143 | M196: 0 | R196: 459402.6725 | U196: =Housing!H340 -> 0
D197: 176 | E197: 174 | F197: 2144 | M197: 0 | R197: 466496.1739 | U197: =Housing!H341 -> 0
D198: 177 | E198: 175 | F198: 2145 | M198: 0 | R198: 473704.1067 | U198: =Housing!H342 -> 0
D199: 178 | E199: 176 | F199: 2146 | M199: 0 | R199: 481028.4001 | U199: =Housing!H343 -> 0
M201: 0
M202: No House or Rental data
E205: Year | F205: Before Tax $ | G205: After Tax $
E206: =F75:F200 -> 2022 | F206: =G75:G86 -> 475000 | G206: =H75:H86 -> 75000 | H206: =M75:M123 -> 450000
E207: 2023 | F207: 503500 | G207: 79750 | H207: 458325
E208: 2024 | F208: 533503.75 | G208: 84785 | H208: 466804.0125
E209: 2025 | F209: 565090.7688 | G209: 90122.1 | H209: 475439.8867
E210: 2026 | F210: 598344.7892 | G210: 95779.426 | H210: 484235.5246
E211: 2027 | F211: 633353.9821 | G211: 101776.1916 | H211: 493193.8818
E212: 2028 | F212: 670211.1921 | G212: 108132.7631 | H212: 502317.9687
E213: 2029 | F213: 709014.1857 | G213: 114870.7288 | H213: 511610.8511
E214: 2030 | F214: 749865.9129 | G214: 122012.9726 | H214: 521075.6518
E215: 2031 | F215: 792874.7824 | G215: 129583.7509 | H215: 530715.5514
E216: 2032 | F216: 838154.952 | G216: 137608.776 | H216: 540533.7891
E217: 2033 | F217: 885826.6337 | G217: 146115.3025 | H217: 550533.6642
E218: 2034 | F218: =I87:I123 -> 954679.9625 | G218: =J87:J123 -> 155132.2207 | H218: 560718.537
E219: 2035 | F219: 974090.051 | G219: 161337.5095 | H219: 571091.8299
E220: 2036 | F220: 987521.4831 | G220: 167791.0099 | H220: 581657.0288
E221: 2037 | F221: 934652.3424 | G221: 174502.6503 | H221: 592417.6838
E222: 2038 | F222: 875450.4361 | G222: 181482.7563 | H222: 603377.4109
E223: 2039 | F223: 809860.4535 | G223: 188742.0666 | H223: 614539.893
E224: 2040 | F224: 737938.8717 | G224: 196291.7492 | H224: 625908.8811
E225: 2041 | F225: 659864.4265 | G225: 204143.4192 | H225: 637488.1954
E226: 2042 | F226: 575985.0036 | G226: 212309.156 | H226: 649281.727
E227: 2043 | F227: 486842.4037 | G227: 220801.5222 | H227: 661293.4389
E228: 2044 | F228: 393312.0999 | G228: 229633.5831 | H228: 673527.3675
E229: 2045 | F229: 296634.5839 | G229: 238818.9264 | H229: 685987.6238
E230: 2046 | F230: 198537.9672 | G230: 248371.6835 | H230: 698678.3949
E231: 2047 | F231: 101347.4859 | G231: 258306.5508 | H231: 711603.9452
E232: 2048 | F232: 7997.385345 | G232: 268638.8128 | H232: 724768.6182
E233: 2049 | F233: 319.8954591 | G233: 200957.7553 | H233: 738176.8376
E234: 2050 | F234: 12.79577743 | G234: 826868.8032 | H234: 0
E235: 2051 | F235: 0.5118085246 | G235: 756948.3553 | H235: 0
E236: 2052 | F236: 0.02048086554 | G236: 679586.7995 | H236: 0
E237: 2053 | F237: 0.0008001001592 | G237: 594330.2915 | H237: 0
E238: 2054 | F238: 3.21041656e-05 | G238: 500707.5031 | H238: 0
... 103 more rows

Sheet Rental (hidden)
C2: Rental Property
A3: Return | C3: If you own rental property enter the information below. The information is used to calculate rental income and appreciation of rental property. The 'Combined yearly Total' amount is transferred to the Rental section of the Income tab. Rental property is included in the calculation of total assets.
C9: =IF(Assets!C58>"",Assets!C58,"") ->  | J9: =IF(Assets!C59>"",Assets!C59,"") ->  | O9: Frequent Repair items
C10: Asset Description | D10: =IF(Assets!D58>"",Assets!D58,"") ->  | J10: Asset Description | K10: =IF(Assets!D59>"",Assets!D59,"") ->  | P10: Garbage Disposal
C11: Street Address | J11: Street Address | P11: Plumbing leaks
C12: City, State, Zip | J12: City, State, Zip | P12: Appliance breakdown
C13: Date Acquired | D13: 2020-01-01 | E13: Item | F13: Year | J13: Date Acquired | K13: 2020-01-01 | L13: Item | M13: Year | P13: HVAC System
C14: Year Built | E14: Roof | J14: Year Built | L14: Roof | P14: Plugged furnace filter
C15: Purchase Price | D15: 0 | E15: AC/Heat | J15: Purchase Price | K15: 0 | L15: AC/Heat | P15: Clogged sink/toilet
C16: Est Current Value | D16: =Assets!E58 -> 0 | E16: Paint Ext | J16: Est Current Value | K16: =Assets!E59 -> 0 | L16: Paint Ext | P16: Bugs / Insects / Rodents
C17: App Rate % | D17: 0.03 | E17: Paint Int | J17: App Rate % | K17: 0.03 | L17: Paint Int | P17: Roof leak
C18: Years Owned | D18: =IF(D13<>"",IF(D15>0,(YEAR(TODAY())-YEAR(D13)),""),0) ->  | E18: Carpet | J18: Years Owned | K18: =IF(K13<>"",IF(K15>0,(YEAR(TODAY())-YEAR(K13)),0),0) -> 0 | L18: Carpet
C19: Mgmt. Fee Percent | D19: 0 | E19: Stove | J19: Mgmt. Fee Percent | K19: 0 | L19: Stove
C20: Amt Financed | D20: 0 | E20: Range | J20: Amt Financed | K20: 0 | L20: Range
C21: Mortgage Rate % | D21: 0 | E21: Disposal | J21: Mortgage Rate % | K21: 0 | L21: Disposal
C22: Mortgage Term | D22: N/A | E22: Dishwasher | J22: Mortgage Term | K22: N/A | L22: Dishwasher
C23: Monthly Mortgage | D23: 0 | E23: Refrigerator | J23: Monthly Mortgage | K23: 0 | L23: Refrigerator
C24: Monthly Rent | D24: 0 | E24: Washer | J24: Monthly Rent | K24: 10 | L24: Washer
C25: Annual Taxes | D25: 0 | E25: Dryer | J25: Annual Taxes | K25: 0 | L25: Dryer
C26: Annual Insurance | D26: 0 | J26: Annual Insurance | K26: 0
C27: Annual Repairs | D27: 0 | J27: Annual Repairs | K27: 0
C28: Annual HOA Fees | D28: 0 | J28: Annual HOA Fees | K28: 0
C29: Annual Mortgage | D29: =D23*12 -> 0 | F29: Sale Yr. | J29: Annual Mortgage | K29: =K23*12 -> 0 | M29: Sale Yr. | O29: Realtor commission at sale | R29: 0.05
C30: Annual Mgmt. Fees | D30: =(D24*D19)*12 -> 0 | J30: Annual Mgmt. Fees | K30: =(K24*K19)*12 -> 0 | O30: Capital gains tax rate at sale | R30: 0.15
C31: Expenses Increase % | D31: 0 | J31: Expenses Increase % | K31: 0
A32: View yearly data | C32: Annual rent increase % | D32: 0 | J32: Annual rent increase % | K32: 0
D33: =SUM(D15:D32) -> 0.03 | K33: =SUM(K15:K32) -> 10.03 | M33: =SUM(D33+K33+R33) -> 10.26 | R33: =SUM(R29:R31) -> 0.2
B35: Yrs. | C35: Year | D35: House Value | E35: Annual Costs | F35: Rent Income | G35: Yearly Net Income | H35: Total Above Cost | K35: House Value | L35: Annual Costs | M35: Rent Income | N35: Yearly Net Income | O35: Total Above Cost | Q35: Combined Yearly Income | R35: Combined Total Value | V35: Property 1 Sale Price | W35: Property 1 Realtor Fees | X35: Property 1 Tax | Y35: Property 1 Net Sales $ | AA35: Property 2 Sale Price | AB35: Property 2 Realtor Fees | AC35: Property 2 Tax | AD35: Property 2 Net Sales $
B37: 1 | C37: =YEAR(TODAY()) -> 2022 | D37: =D16 -> 0 | E37: =SUM(D25:D30) -> 0 | F37: =D24*12 -> 0 | G37: =F37-E37 -> 0 | H37: =IF(D37>0,D37-$D$15,0) -> 0 | K37: =K16 -> 0 | L37: =SUM(K25:K30) -> 0 | M37: =K24*12 -> 120 | N37: =M37-L37 -> 120 | O37: =IF(K37>0,K37-$K$15,0) -> 0 | Q37: =G37+O37 -> 0 | R37: =D37+K37 -> 0 | V37: =IF($F$30=C37,D16,0) -> 0 | W37: =IF(V37>0,V37*$R$29,0) -> 0 | X37: =IF(V37>0,V37*$R$30,0) -> 0 | Y37: =IF(V37>0,V37-(W37+X37),0) -> 0 | AA37: =IF($M$30=C37,K15,0) -> 0 | AB37: =IF(AA37>0,AA37*$R$29,0) -> 0 | AC37: =IF(AA37>0,AA37*$R$30,0) -> 0 | AD37: =IF(AA37>0,AA37-(AB37+AC37),0) -> 0
B38: =B37+1 -> 2 | C38: =C37+1 -> 2023 | D38: =IF(C37<$F$30,(D37*$D$17)+D37,0) -> 0 | E38: =IF(D38>0,(E37*$D$31)+E37,0) -> 0 | F38: =IF(D38>0,(F37*$D$32)+F37,0) -> 0 | G38: =F38-E38 -> 0 | H38: 0 | K38: =IF(C37<$M$30,(K37*$K$17)+K37,0) -> 0 | L38: =IF(K38>0,(L37*$K$31)+L37,0) -> 0 | M38: =IF(K38>0,(M37*$K$32)+M37,0) -> 0 | N38: =M38-L38 -> 0 | O38: =IF(K38>0,K38-$K$15,0) -> 0 | Q38: 0 | R38: 0 | V38: =IF($F$30=C37,D37,0) -> 0 | W38: 0 | X38: 0 | Y38: 0 | AA38: =IF($M$30=C37,K37,0) -> 0 | AB38: =IF(AA38>0,AA38*$R$29,0) -> 0 | AC38: =IF(AA38>0,AA38*$R$30,0) -> 0 | AD38: 0
B39: =B38+1 -> 3 | C39: =C38+1 -> 2024 | D39: 0 | E39: 0 | F39: 0 | G39: =F39-E39 -> 0 | H39: 0 | K39: 0 | L39: =IF(K39>0,(L38*$K$31)+L38,0) -> 0 | M39: 0 | N39: =M39-L39 -> 0 | O39: 0 | Q39: 0 | R39: 0 | V39: 0 | W39: 0 | X39: 0 | Y39: 0 | AA39: 0 | AB39: 0 | AC39: 0 | AD39: 0
B40: 4 | C40: 2025 | D40: 0 | E40: 0 | F40: 0 | G40: 0 | H40: 0 | K40: 0 | L40: 0 | M40: 0 | N40: 0 | O40: 0 | Q40: 0 | R40: 0 | V40: 0 | W40: 0 | X40: 0 | Y40: 0 | AA40: 0 | AB40: 0 | AC40: 0 | AD40: 0
B41: 5 | C41: 2026 | D41: 0 | E41: 0 | F41: 0 | G41: 0 | H41: 0 | K41: 0 | L41: 0 | M41: 0 | N41: 0 | O41: 0 | Q41: 0 | R41: 0 | V41: 0 | W41: 0 | X41: 0 | Y41: 0 | AA41: 0 | AB41: 0 | AC41: 0 | AD41: 0
B42: 6 | C42: 2027 | D42: 0 | E42: 0 | F42: 0 | G42: 0 | H42: 0 | K42: 0 | L42: 0 | M42: 0 | N42: 0 | O42: 0 | Q42: 0 | R42: 0 | V42: 0 | W42: 0 | X42: 0 | Y42: 0 | AA42: 0 | AB42: 0 | AC42: 0 | AD42: 0
B43: 7 | C43: 2028 | D43: 0 | E43: 0 | F43: 0 | G43: 0 | H43: 0 | K43: 0 | L43: 0 | M43: 0 | N43: 0 | O43: 0 | Q43: 0 | R43: 0 | V43: 0 | W43: 0 | X43: 0 | Y43: 0 | AA43: 0 | AB43: 0 | AC43: 0 | AD43: 0
B44: 8 | C44: 2029 | D44: 0 | E44: 0 | F44: 0 | G44: 0 | H44: 0 | K44: 0 | L44: 0 | M44: 0 | N44: 0 | O44: 0 | Q44: 0 | R44: 0 | V44: 0 | W44: 0 | X44: 0 | Y44: 0 | AA44: 0 | AB44: 0 | AC44: 0 | AD44: 0
B45: 9 | C45: 2030 | D45: 0 | E45: 0 | F45: 0 | G45: 0 | H45: 0 | K45: 0 | L45: 0 | M45: 0 | N45: 0 | O45: 0 | Q45: 0 | R45: 0 | V45: 0 | W45: 0 | X45: 0 | Y45: 0 | AA45: 0 | AB45: 0 | AC45: 0 | AD45: 0
B46: 10 | C46: 2031 | D46: 0 | E46: 0 | F46: 0 | G46: 0 | H46: 0 | K46: 0 | L46: 0 | M46: 0 | N46: 0 | O46: 0 | Q46: 0 | R46: 0 | V46: 0 | W46: 0 | X46: 0 | Y46: 0 | AA46: 0 | AB46: 0 | AC46: 0 | AD46: 0
B47: 11 | C47: 2032 | D47: 0 | E47: 0 | F47: 0 | G47: 0 | H47: 0 | K47: 0 | L47: 0 | M47: 0 | N47: 0 | O47: 0 | Q47: 0 | R47: 0 | V47: 0 | W47: 0 | X47: 0 | Y47: 0 | AA47: 0 | AB47: 0 | AC47: 0 | AD47: 0
B48: 12 | C48: 2033 | D48: 0 | E48: 0 | F48: 0 | G48: 0 | H48: 0 | K48: 0 | L48: 0 | M48: 0 | N48: 0 | O48: 0 | Q48: 0 | R48: 0 | V48: 0 | W48: 0 | X48: 0 | Y48: 0 | AA48: 0 | AB48: 0 | AC48: 0 | AD48: 0
B49: 13 | C49: 2034 | D49: 0 | E49: 0 | F49: 0 | G49: 0 | H49: 0 | K49: 0 | L49: 0 | M49: 0 | N49: 0 | O49: 0 | Q49: 0 | R49: 0 | V49: 0 | W49: 0 | X49: 0 | Y49: 0 | AA49: 0 | AB49: 0 | AC49: 0 | AD49: 0
B50: 14 | C50: 2035 | D50: 0 | E50: 0 | F50: 0 | G50: 0 | H50: 0 | K50: 0 | L50: 0 | M50: 0 | N50: 0 | O50: 0 | Q50: 0 | R50: 0 | V50: 0 | W50: 0 | X50: 0 | Y50: 0 | AA50: 0 | AB50: 0 | AC50: 0 | AD50: 0
B51: 15 | C51: 2036 | D51: 0 | E51: 0 | F51: 0 | G51: 0 | H51: 0 | K51: 0 | L51: 0 | M51: 0 | N51: 0 | O51: 0 | Q51: 0 | R51: 0 | V51: 0 | W51: 0 | X51: 0 | Y51: 0 | AA51: 0 | AB51: 0 | AC51: 0 | AD51: 0
B52: 16 | C52: 2037 | D52: 0 | E52: 0 | F52: 0 | G52: 0 | H52: 0 | K52: 0 | L52: 0 | M52: 0 | N52: 0 | O52: 0 | Q52: 0 | R52: 0 | V52: 0 | W52: 0 | X52: 0 | Y52: 0 | AA52: 0 | AB52: 0 | AC52: 0 | AD52: 0
B53: 17 | C53: 2038 | D53: 0 | E53: 0 | F53: 0 | G53: 0 | H53: 0 | K53: 0 | L53: 0 | M53: 0 | N53: 0 | O53: 0 | Q53: 0 | R53: 0 | V53: 0 | W53: 0 | X53: 0 | Y53: 0 | AA53: 0 | AB53: 0 | AC53: 0 | AD53: 0
B54: 18 | C54: 2039 | D54: 0 | E54: 0 | F54: 0 | G54: 0 | H54: 0 | K54: 0 | L54: 0 | M54: 0 | N54: 0 | O54: 0 | Q54: 0 | R54: 0 | V54: 0 | W54: 0 | X54: 0 | Y54: 0 | AA54: 0 | AB54: 0 | AC54: 0 | AD54: 0
B55: 19 | C55: 2040 | D55: 0 | E55: 0 | F55: 0 | G55: 0 | H55: 0 | K55: 0 | L55: 0 | M55: 0 | N55: 0 | O55: 0 | Q55: 0 | R55: 0 | V55: =IF($F$30=C54,D54,0) -> 0 | W55: 0 | X55: 0 | Y55: 0 | AA55: 0 | AB55: =IF(AA55>0,AA55*$R$29,0) -> 0 | AC55: =IF(AA55>0,AA55*$R$30,0) -> 0 | AD55: 0
B56: 20 | C56: 2041 | D56: 0 | E56: 0 | F56: 0 | G56: 0 | H56: 0 | K56: 0 | L56: 0 | M56: 0 | N56: 0 | O56: 0 | Q56: 0 | R56: 0 | V56: =IF($F$30=C55,D55,0) -> 0 | W56: 0 | X56: 0 | Y56: 0 | AA56: 0 | AB56: 0 | AC56: 0 | AD56: 0
B57: 21 | C57: 2042 | D57: 0 | E57: 0 | F57: 0 | G57: 0 | H57: 0 | K57: 0 | L57: 0 | M57: 0 | N57: 0 | O57: 0 | Q57: 0 | R57: 0 | V57: 0 | W57: 0 | X57: 0 | Y57: 0 | AA57: 0 | AB57: 0 | AC57: 0 | AD57: 0
B58: 22 | C58: 2043 | D58: 0 | E58: 0 | F58: 0 | G58: 0 | H58: 0 | K58: 0 | L58: 0 | M58: 0 | N58: 0 | O58: 0 | Q58: 0 | R58: 0 | V58: 0 | W58: 0 | X58: 0 | Y58: 0 | AA58: 0 | AB58: 0 | AC58: 0 | AD58: 0
B59: 23 | C59: 2044 | D59: 0 | E59: 0 | F59: 0 | G59: 0 | H59: 0 | K59: 0 | L59: 0 | M59: 0 | N59: 0 | O59: 0 | Q59: 0 | R59: 0 | V59: 0 | W59: 0 | X59: 0 | Y59: 0 | AA59: 0 | AB59: 0 | AC59: 0 | AD59: 0
B60: 24 | C60: 2045 | D60: 0 | E60: 0 | F60: 0 | G60: 0 | H60: 0 | K60: 0 | L60: 0 | M60: 0 | N60: 0 | O60: 0 | Q60: 0 | R60: 0 | V60: 0 | W60: 0 | X60: 0 | Y60: 0 | AA60: 0 | AB60: 0 | AC60: 0 | AD60: 0
B61: 25 | C61: 2046 | D61: 0 | E61: 0 | F61: 0 | G61: 0 | H61: 0 | K61: 0 | L61: 0 | M61: 0 | N61: 0 | O61: 0 | Q61: 0 | R61: 0 | V61: 0 | W61: 0 | X61: 0 | Y61: 0 | AA61: 0 | AB61: 0 | AC61: 0 | AD61: 0
B62: 26 | C62: 2047 | D62: 0 | E62: 0 | F62: 0 | G62: 0 | H62: 0 | K62: 0 | L62: 0 | M62: 0 | N62: 0 | O62: 0 | Q62: 0 | R62: 0 | V62: 0 | W62: 0 | X62: 0 | Y62: 0 | AA62: 0 | AB62: 0 | AC62: 0 | AD62: 0
B63: 27 | C63: 2048 | D63: 0 | E63: 0 | F63: 0 | G63: 0 | H63: 0 | K63: 0 | L63: 0 | M63: 0 | N63: 0 | O63: 0 | Q63: 0 | R63: 0 | V63: 0 | W63: 0 | X63: 0 | Y63: 0 | AA63: =IF($M$30=C62,K62,0) -> 0 | AB63: 0 | AC63: 0 | AD63: 0
B64: 28 | C64: 2049 | D64: 0 | E64: 0 | F64: 0 | G64: 0 | H64: 0 | K64: 0 | L64: 0 | M64: 0 | N64: 0 | O64: 0 | Q64: 0 | R64: 0 | V64: 0 | W64: 0 | X64: 0 | Y64: 0 | AA64: =IF($M$30=C63,K63,0) -> 0 | AB64: 0 | AC64: 0 | AD64: 0
B65: 29 | C65: 2050 | D65: 0 | E65: 0 | F65: 0 | G65: 0 | H65: 0 | K65: 0 | L65: 0 | M65: 0 | N65: 0 | O65: 0 | Q65: 0 | R65: 0 | V65: 0 | W65: 0 | X65: 0 | Y65: 0 | AA65: 0 | AB65: 0 | AC65: 0 | AD65: 0
B66: 30 | C66: 2051 | D66: 0 | E66: 0 | F66: 0 | G66: 0 | H66: 0 | K66: 0 | L66: 0 | M66: 0 | N66: 0 | O66: 0 | Q66: 0 | R66: 0 | V66: 0 | W66: 0 | X66: 0 | Y66: 0 | AA66: 0 | AB66: 0 | AC66: 0 | AD66: 0
B67: 31 | C67: 2052 | D67: 0 | E67: 0 | F67: 0 | G67: 0 | H67: 0 | K67: 0 | L67: 0 | M67: 0 | N67: 0 | O67: 0 | Q67: 0 | R67: 0 | V67: 0 | W67: 0 | X67: 0 | Y67: 0 | AA67: 0 | AB67: 0 | AC67: 0 | AD67: 0
B68: =B67+1 -> 32 | C68: =C67+1 -> 2053 | D68: 0 | E68: 0 | F68: 0 | G68: 0 | H68: 0 | K68: 0 | L68: 0 | M68: 0 | N68: 0 | O68: 0 | Q68: 0 | R68: 0 | V68: 0 | W68: 0 | X68: 0 | Y68: 0 | AA68: 0 | AB68: 0 | AC68: 0 | AD68: 0
B69: 33 | C69: 2054 | D69: 0 | E69: 0 | F69: 0 | G69: 0 | H69: 0 | K69: 0 | L69: 0 | M69: 0 | N69: 0 | O69: 0 | Q69: 0 | R69: =D69+K69 -> 0 | V69: 0 | W69: =IF(V69>0,V69*$R$29,0) -> 0 | X69: =IF(V69>0,V69*$R$30,0) -> 0 | Y69: =IF(V69>0,V69-(W69+X69),0) -> 0 | AA69: 0 | AB69: 0 | AC69: 0 | AD69: =IF(AA69>0,AA69-(AB69+AC69),0) -> 0
B70: 34 | C70: 2055 | D70: 0 | E70: 0 | F70: 0 | G70: 0 | H70: 0 | K70: 0 | L70: 0 | M70: 0 | N70: 0 | O70: 0 | Q70: 0 | R70: 0 | V70: 0 | W70: 0 | X70: 0 | Y70: 0 | AA70: 0 | AB70: 0 | AC70: 0 | AD70: 0
B71: 35 | C71: 2056 | D71: 0 | E71: 0 | F71: 0 | G71: 0 | H71: 0 | K71: 0 | L71: 0 | M71: 0 | N71: 0 | O71: 0 | Q71: 0 | R71: 0 | V71: 0 | W71: 0 | X71: 0 | Y71: 0 | AA71: 0 | AB71: 0 | AC71: 0 | AD71: 0
B72: 36 | C72: 2057 | D72: 0 | E72: 0 | F72: 0 | G72: 0 | H72: 0 | K72: 0 | L72: 0 | M72: 0 | N72: 0 | O72: 0 | Q72: 0 | R72: 0 | V72: 0 | W72: 0 | X72: 0 | Y72: 0 | AA72: 0 | AB72: 0 | AC72: 0 | AD72: 0
B73: 37 | C73: 2058 | D73: 0 | E73: 0 | F73: 0 | G73: 0 | H73: 0 | K73: 0 | L73: 0 | M73: 0 | N73: 0 | O73: 0 | Q73: 0 | R73: 0 | V73: 0 | W73: 0 | X73: 0 | Y73: 0 | AA73: 0 | AB73: 0 | AC73: 0 | AD73: 0
B74: 38 | C74: 2059 | D74: 0 | E74: 0 | F74: 0 | G74: 0 | H74: 0 | K74: 0 | L74: 0 | M74: 0 | N74: 0 | O74: 0 | Q74: 0 | R74: 0 | V74: 0 | W74: 0 | X74: 0 | Y74: 0 | AA74: 0 | AB74: 0 | AC74: 0 | AD74: 0
B75: 39 | C75: 2060 | D75: 0 | E75: 0 | F75: 0 | G75: 0 | H75: 0 | K75: 0 | L75: 0 | M75: 0 | N75: 0 | O75: 0 | Q75: 0 | R75: 0 | V75: 0 | W75: 0 | X75: 0 | Y75: 0 | AA75: 0 | AB75: 0 | AC75: 0 | AD75: 0
B76: 40 | C76: 2061 | D76: 0 | E76: 0 | F76: 0 | G76: 0 | H76: 0 | K76: 0 | L76: 0 | M76: 0 | N76: 0 | O76: 0 | Q76: 0 | R76: 0 | V76: 0 | W76: 0 | X76: 0 | Y76: 0 | AA76: 0 | AB76: 0 | AC76: 0 | AD76: 0
B77: 41 | C77: 2062 | D77: =IF(C76<$F$30,(D76*$D$17)+D76,0) -> 0 | E77: =IF(D77>0,(E76*$D$31)+E76,0) -> 0 | F77: =IF(D77>0,(F76*$D$32)+F76,0) -> 0 | G77: =F77-E77 -> 0 | H77: =IF(D77>0,D77-$D$15,0) -> 0 | K77: =IF(C76<$M$30,(K76*$K$17)+K76,0) -> 0 | L77: =IF(K77>0,(L76*$K$31)+L76,0) -> 0 | M77: =IF(K77>0,(M76*$K$32)+M76,0) -> 0 | N77: =M77-L77 -> 0 | O77: =IF(K77>0,K77-$K$15,0) -> 0 | Q77: =G77+O77 -> 0 | R77: 0 | V77: 0 | W77: 0 | X77: 0 | Y77: 0 | AA77: 0 | AB77: 0 | AC77: 0 | AD77: 0
B78: 42 | C78: 2063 | D78: =IF(C77<$F$30,(D77*$D$17)+D77,0) -> 0 | E78: =IF(D78>0,(E77*$D$31)+E77,0) -> 0 | F78: =IF(D78>0,(F77*$D$32)+F77,0) -> 0 | G78: =F78-E78 -> 0 | H78: =IF(D78>0,D78-$D$15,0) -> 0 | K78: =IF(C77<$M$30,(K77*$K$17)+K77,0) -> 0 | L78: =IF(K78>0,(L77*$K$31)+L77,0) -> 0 | M78: =IF(K78>0,(M77*$K$32)+M77,0) -> 0 | N78: =M78-L78 -> 0 | O78: =IF(K78>0,K78-$K$15,0) -> 0 | Q78: =G78+O78 -> 0 | R78: 0 | V78: 0 | W78: 0 | X78: 0 | Y78: 0 | AA78: 0 | AB78: 0 | AC78: 0 | AD78: 0
B79: 43 | C79: 2064 | D79: =IF(C78<$F$30,(D78*$D$17)+D78,0) -> 0 | E79: =IF(D79>0,(E78*$D$31)+E78,0) -> 0 | F79: =IF(D79>0,(F78*$D$32)+F78,0) -> 0 | G79: =F79-E79 -> 0 | H79: =IF(D79>0,D79-$D$15,0) -> 0 | K79: =IF(C78<$M$30,(K78*$K$17)+K78,0) -> 0 | L79: =IF(K79>0,(L78*$K$31)+L78,0) -> 0 | M79: =IF(K79>0,(M78*$K$32)+M78,0) -> 0 | N79: =M79-L79 -> 0 | O79: =IF(K79>0,K79-$K$15,0) -> 0 | Q79: =G79+O79 -> 0 | R79: 0 | V79: 0 | W79: 0 | X79: 0 | Y79: 0 | AA79: 0 | AB79: 0 | AC79: 0 | AD79: 0
B80: 44 | C80: 2065 | D80: =IF(C79<$F$30,(D79*$D$17)+D79,0) -> 0 | E80: =IF(D80>0,(E79*$D$31)+E79,0) -> 0 | F80: =IF(D80>0,(F79*$D$32)+F79,0) -> 0 | G80: =F80-E80 -> 0 | H80: =IF(D80>0,D80-$D$15,0) -> 0 | K80: =IF(C79<$M$30,(K79*$K$17)+K79,0) -> 0 | L80: =IF(K80>0,(L79*$K$31)+L79,0) -> 0 | M80: =IF(K80>0,(M79*$K$32)+M79,0) -> 0 | N80: =M80-L80 -> 0 | O80: =IF(K80>0,K80-$K$15,0) -> 0 | Q80: =G80+O80 -> 0 | R80: 0 | V80: 0 | W80: 0 | X80: 0 | Y80: 0 | AA80: 0 | AB80: 0 | AC80: 0 | AD80: 0
B81: 45 | C81: 2066 | D81: =IF(C80<$F$30,(D80*$D$17)+D80,0) -> 0 | E81: =IF(D81>0,(E80*$D$31)+E80,0) -> 0 | F81: =IF(D81>0,(F80*$D$32)+F80,0) -> 0 | G81: =F81-E81 -> 0 | H81: =IF(D81>0,D81-$D$15,0) -> 0 | K81: =IF(C80<$M$30,(K80*$K$17)+K80,0) -> 0 | L81: =IF(K81>0,(L80*$K$31)+L80,0) -> 0 | M81: =IF(K81>0,(M80*$K$32)+M80,0) -> 0 | N81: =M81-L81 -> 0 | O81: =IF(K81>0,K81-$K$15,0) -> 0 | Q81: =G81+O81 -> 0 | R81: 0 | V81: 0 | W81: 0 | X81: 0 | Y81: 0 | AA81: 0 | AB81: 0 | AC81: 0 | AD81: 0
B82: 46 | C82: 2067 | D82: 0 | E82: 0 | F82: 0 | G82: 0 | H82: 0 | K82: 0 | L82: 0 | M82: 0 | N82: 0 | O82: 0 | Q82: 0 | R82: 0 | V82: 0 | W82: 0 | X82: 0 | Y82: 0 | AA82: 0 | AB82: 0 | AC82: 0 | AD82: 0
B83: 47 | C83: 2068 | D83: 0 | E83: 0 | F83: 0 | G83: 0 | H83: 0 | K83: 0 | L83: 0 | M83: 0 | N83: 0 | O83: 0 | Q83: 0 | R83: 0 | V83: 0 | W83: 0 | X83: 0 | Y83: 0 | AA83: 0 | AB83: 0 | AC83: 0 | AD83: 0
B84: 48 | C84: 2069 | D84: 0 | E84: 0 | F84: 0 | G84: 0 | H84: 0 | K84: 0 | L84: 0 | M84: 0 | N84: 0 | O84: 0 | Q84: 0 | R84: 0 | V84: 0 | W84: 0 | X84: 0 | Y84: 0 | AA84: 0 | AB84: 0 | AC84: 0 | AD84: 0
B85: 49 | C85: 2070 | D85: 0 | E85: 0 | F85: 0 | G85: 0 | H85: 0 | K85: 0 | L85: 0 | M85: 0 | N85: 0 | O85: 0 | Q85: 0 | R85: 0 | V85: 0 | W85: 0 | X85: 0 | Y85: 0 | AA85: 0 | AB85: 0 | AC85: 0 | AD85: 0
B86: 50 | C86: 2071 | D86: 0 | E86: 0 | F86: 0 | G86: 0 | H86: 0 | K86: 0 | L86: 0 | M86: 0 | N86: 0 | O86: 0 | Q86: 0 | R86: 0 | V86: 0 | W86: 0 | X86: 0 | Y86: 0 | AA86: 0 | AB86: 0 | AC86: 0 | AD86: 0
B87: 51 | C87: 2072 | D87: 0 | E87: 0 | F87: 0 | G87: 0 | H87: 0 | K87: 0 | L87: 0 | M87: 0 | N87: 0 | O87: 0 | Q87: 0 | R87: 0 | V87: 0 | W87: 0 | X87: 0 | Y87: 0 | AA87: 0 | AB87: 0 | AC87: 0 | AD87: 0
B88: 52 | C88: 2073 | D88: 0 | E88: 0 | F88: 0 | G88: 0 | H88: 0 | K88: 0 | L88: 0 | M88: 0 | N88: 0 | O88: 0 | Q88: 0 | R88: 0 | V88: 0 | W88: 0 | X88: 0 | Y88: 0 | AA88: 0 | AB88: 0 | AC88: 0 | AD88: 0
B89: 53 | C89: 2074 | D89: 0 | E89: 0 | F89: 0 | G89: 0 | H89: 0 | K89: 0 | L89: 0 | M89: 0 | N89: 0 | O89: 0 | Q89: 0 | R89: 0 | V89: 0 | W89: 0 | X89: 0 | Y89: 0 | AA89: 0 | AB89: 0 | AC89: 0 | AD89: 0
B90: 54 | C90: 2075 | D90: 0 | E90: 0 | F90: 0 | G90: 0 | H90: 0 | K90: 0 | L90: 0 | M90: 0 | N90: 0 | O90: 0 | Q90: 0 | R90: 0 | V90: 0 | W90: 0 | X90: 0 | Y90: 0 | AA90: 0 | AB90: 0 | AC90: 0 | AD90: 0
B91: 55 | C91: 2076 | D91: 0 | E91: 0 | F91: 0 | G91: 0 | H91: 0 | K91: 0 | L91: 0 | M91: 0 | N91: 0 | O91: 0 | Q91: 0 | R91: 0 | V91: 0 | W91: 0 | X91: 0 | Y91: 0 | AA91: 0 | AB91: 0 | AC91: 0 | AD91: 0
B92: 56 | C92: 2077 | D92: 0 | E92: 0 | F92: 0 | G92: 0 | H92: 0 | K92: 0 | L92: 0 | M92: 0 | N92: 0 | O92: 0 | Q92: 0 | R92: 0 | V92: 0 | W92: 0 | X92: 0 | Y92: 0 | AA92: 0 | AB92: 0 | AC92: 0 | AD92: 0
B93: 57 | C93: 2078 | D93: 0 | E93: 0 | F93: 0 | G93: 0 | H93: 0 | K93: 0 | L93: 0 | M93: 0 | N93: 0 | O93: 0 | Q93: 0 | R93: 0 | V93: 0 | W93: 0 | X93: 0 | Y93: 0 | AA93: 0 | AB93: 0 | AC93: 0 | AD93: 0
B94: 58 | C94: 2079 | D94: 0 | E94: 0 | F94: 0 | G94: 0 | H94: 0 | K94: 0 | L94: 0 | M94: 0 | N94: 0 | O94: 0 | Q94: 0 | R94: 0 | V94: 0 | W94: 0 | X94: 0 | Y94: 0 | AA94: 0 | AB94: 0 | AC94: 0 | AD94: 0
B95: 59 | C95: 2080 | D95: 0 | E95: 0 | F95: 0 | G95: 0 | H95: 0 | K95: 0 | L95: 0 | M95: 0 | N95: 0 | O95: 0 | Q95: 0 | R95: 0 | V95: 0 | W95: 0 | X95: 0 | Y95: 0 | AA95: 0 | AB95: 0 | AC95: 0 | AD95: 0
B96: 60 | C96: 2081 | D96: 0 | E96: 0 | F96: 0 | G96: 0 | H96: 0 | K96: 0 | L96: 0 | M96: 0 | N96: 0 | O96: 0 | Q96: 0 | R96: 0 | V96: 0 | W96: 0 | X96: 0 | Y96: 0 | AA96: 0 | AB96: 0 | AC96: 0 | AD96: 0
B97: 61 | C97: 2082 | D97: 0 | E97: 0 | F97: 0 | G97: 0 | H97: 0 | K97: 0 | L97: 0 | M97: 0 | N97: 0 | O97: 0 | Q97: 0 | R97: 0 | V97: 0 | W97: 0 | X97: 0 | Y97: 0 | AA97: 0 | AB97: 0 | AC97: 0 | AD97: 0
B98: 62 | C98: 2083 | D98: 0 | E98: 0 | F98: 0 | G98: 0 | H98: 0 | K98: 0 | L98: 0 | M98: 0 | N98: 0 | O98: 0 | Q98: 0 | R98: 0 | V98: 0 | W98: 0 | X98: 0 | Y98: 0 | AA98: 0 | AB98: 0 | AC98: 0 | AD98: 0
B99: 63 | C99: 2084 | D99: 0 | E99: 0 | F99: 0 | G99: 0 | H99: 0 | K99: 0 | L99: 0 | M99: 0 | N99: 0 | O99: 0 | Q99: 0 | R99: 0 | V99: 0 | W99: 0 | X99: 0 | Y99: 0 | AA99: 0 | AB99: 0 | AC99: 0 | AD99: 0
B100: 64 | C100: 2085 | D100: 0 | E100: 0 | F100: 0 | G100: 0 | H100: 0 | K100: 0 | L100: 0 | M100: 0 | N100: 0 | O100: 0 | Q100: 0 | R100: 0 | V100: 0 | W100: 0 | X100: 0 | Y100: 0 | AA100: 0 | AB100: 0 | AC100: 0 | AD100: 0
B101: 65 | C101: 2086 | D101: 0 | E101: 0 | F101: 0 | G101: 0 | H101: 0 | K101: 0 | L101: 0 | M101: 0 | N101: 0 | O101: 0 | Q101: 0 | R101: =D101+K101 -> 0 | V101: 0 | W101: =IF(V101>0,V101*$R$29,0) -> 0 | X101: =IF(V101>0,V101*$R$30,0) -> 0 | Y101: =IF(V101>0,V101-(W101+X101),0) -> 0 | AA101: 0 | AB101: 0 | AC101: 0 | AD101: =IF(AA101>0,AA101-(AB101+AC101),0) -> 0
B102: 66 | C102: 2087 | D102: 0 | E102: 0 | F102: 0 | G102: 0 | H102: 0 | K102: 0 | L102: 0 | M102: 0 | N102: 0 | O102: 0 | Q102: 0 | R102: 0 | V102: 0 | W102: 0 | X102: 0 | Y102: 0 | AA102: 0 | AB102: 0 | AC102: 0 | AD102: 0
B103: 67 | C103: 2088 | D103: 0 | E103: 0 | F103: 0 | G103: 0 | H103: 0 | K103: 0 | L103: 0 | M103: 0 | N103: 0 | O103: 0 | Q103: 0 | R103: 0 | V103: 0 | W103: 0 | X103: 0 | Y103: 0 | AA103: 0 | AB103: 0 | AC103: 0 | AD103: 0
B104: 68 | C104: 2089 | D104: 0 | E104: 0 | F104: 0 | G104: 0 | H104: 0 | K104: 0 | L104: 0 | M104: 0 | N104: 0 | O104: 0 | Q104: 0 | R104: 0 | V104: 0 | W104: 0 | X104: 0 | Y104: 0 | AA104: 0 | AB104: 0 | AC104: 0 | AD104: 0
B105: 69 | C105: 2090 | D105: 0 | E105: 0 | F105: 0 | G105: 0 | H105: 0 | K105: 0 | L105: 0 | M105: 0 | N105: 0 | O105: 0 | Q105: 0 | R105: 0 | V105: 0 | W105: 0 | X105: 0 | Y105: 0 | AA105: 0 | AB105: 0 | AC105: 0 | AD105: 0
B106: 70 | C106: 2091 | D106: 0 | E106: 0 | F106: 0 | G106: 0 | H106: 0 | K106: 0 | L106: 0 | M106: 0 | N106: 0 | O106: 0 | Q106: 0 | R106: 0 | V106: 0 | W106: 0 | X106: 0 | Y106: 0 | AA106: 0 | AB106: 0 | AC106: 0 | AD106: 0
B107: 71 | C107: 2092 | D107: 0 | E107: 0 | F107: 0 | G107: 0 | H107: 0 | K107: 0 | L107: 0 | M107: 0 | N107: 0 | O107: 0 | Q107: 0 | R107: 0 | V107: 0 | W107: 0 | X107: 0 | Y107: 0 | AA107: 0 | AB107: 0 | AC107: 0 | AD107: 0
B108: 72 | C108: 2093 | D108: 0 | E108: 0 | F108: 0 | G108: 0 | H108: 0 | K108: 0 | L108: 0 | M108: 0 | N108: 0 | O108: 0 | Q108: 0 | R108: 0 | V108: 0 | W108: 0 | X108: 0 | Y108: 0 | AA108: 0 | AB108: 0 | AC108: 0 | AD108: 0
B109: 73 | C109: 2094 | D109: 0 | E109: 0 | F109: 0 | G109: 0 | H109: 0 | K109: 0 | L109: 0 | M109: 0 | N109: 0 | O109: 0 | Q109: 0 | R109: 0 | V109: 0 | W109: 0 | X109: 0 | Y109: 0 | AA109: 0 | AB109: 0 | AC109: 0 | AD109: 0
B110: 74 | C110: 2095 | D110: 0 | E110: 0 | F110: 0 | G110: 0 | H110: 0 | K110: 0 | L110: 0 | M110: 0 | N110: 0 | O110: 0 | Q110: 0 | R110: 0 | V110: 0 | W110: 0 | X110: 0 | Y110: 0 | AA110: 0 | AB110: 0 | AC110: 0 | AD110: 0
B111: 75 | C111: 2096 | D111: 0 | E111: 0 | F111: 0 | G111: 0 | H111: 0 | K111: 0 | L111: 0 | M111: 0 | N111: 0 | O111: 0 | Q111: 0 | R111: 0 | V111: 0 | W111: 0 | X111: 0 | Y111: 0 | AA111: 0 | AB111: 0 | AC111: 0 | AD111: 0
B112: 76 | C112: 2097 | D112: 0 | E112: 0 | F112: 0 | G112: 0 | H112: 0 | K112: 0 | L112: 0 | M112: 0 | N112: 0 | O112: 0 | Q112: 0 | R112: 0 | V112: 0 | W112: 0 | X112: 0 | Y112: 0 | AA112: 0 | AB112: 0 | AC112: 0 | AD112: 0
B113: 77 | C113: 2098 | D113: 0 | E113: 0 | F113: 0 | G113: 0 | H113: 0 | K113: 0 | L113: 0 | M113: 0 | N113: 0 | O113: 0 | Q113: 0 | R113: 0 | V113: 0 | W113: 0 | X113: 0 | Y113: 0 | AA113: 0 | AB113: 0 | AC113: 0 | AD113: 0
B114: 78 | C114: 2099 | D114: 0 | E114: 0 | F114: 0 | G114: 0 | H114: 0 | K114: 0 | L114: 0 | M114: 0 | N114: 0 | O114: 0 | Q114: 0 | R114: 0 | V114: 0 | W114: 0 | X114: 0 | Y114: 0 | AA114: 0 | AB114: 0 | AC114: 0 | AD114: 0
B115: 79 | C115: 2100 | D115: 0 | E115: 0 | F115: 0 | G115: 0 | H115: 0 | K115: 0 | L115: 0 | M115: 0 | N115: 0 | O115: 0 | Q115: 0 | R115: 0 | V115: 0 | W115: 0 | X115: 0 | Y115: 0 | AA115: 0 | AB115: 0 | AC115: 0 | AD115: 0
B116: 80 | C116: 2101 | D116: 0 | E116: 0 | F116: 0 | G116: 0 | H116: 0 | K116: 0 | L116: 0 | M116: 0 | N116: 0 | O116: 0 | Q116: 0 | R116: 0 | V116: 0 | W116: 0 | X116: 0 | Y116: 0 | AA116: 0 | AB116: 0 | AC116: 0 | AD116: 0
B117: 81 | C117: 2102 | D117: 0 | E117: 0 | F117: 0 | G117: 0 | H117: 0 | K117: 0 | L117: 0 | M117: 0 | N117: 0 | O117: 0 | Q117: 0 | R117: 0 | V117: 0 | W117: 0 | X117: 0 | Y117: 0 | AA117: 0 | AB117: 0 | AC117: 0 | AD117: 0
B118: 82 | C118: 2103 | D118: 0 | E118: 0 | F118: 0 | G118: 0 | H118: 0 | K118: 0 | L118: 0 | M118: 0 | N118: 0 | O118: 0 | Q118: 0 | R118: 0 | V118: 0 | W118: 0 | X118: 0 | Y118: 0 | AA118: 0 | AB118: 0 | AC118: 0 | AD118: 0
B119: 83 | C119: 2104 | D119: 0 | E119: 0 | F119: 0 | G119: 0 | H119: 0 | K119: 0 | L119: 0 | M119: 0 | N119: 0 | O119: 0 | Q119: 0 | R119: 0 | V119: 0 | W119: 0 | X119: 0 | Y119: 0 | AA119: 0 | AB119: =IF(AA119>0,AA119*$R$29,0) -> 0 | AC119: =IF(AA119>0,AA119*$R$30,0) -> 0 | AD119: 0
B120: 84 | C120: 2105 | D120: 0 | E120: 0 | F120: 0 | G120: 0 | H120: 0 | K120: 0 | L120: 0 | M120: 0 | N120: 0 | O120: 0 | Q120: 0 | R120: 0 | V120: =IF($F$30=C119,D119,0) -> 0 | W120: 0 | X120: 0 | Y120: 0 | AA120: 0 | AB120: 0 | AC120: 0 | AD120: 0
B121: 85 | C121: 2106 | D121: 0 | E121: 0 | F121: 0 | G121: 0 | H121: 0 | K121: 0 | L121: 0 | M121: 0 | N121: 0 | O121: 0 | Q121: 0 | R121: 0 | V121: 0 | W121: 0 | X121: 0 | Y121: 0 | AA121: 0 | AB121: 0 | AC121: 0 | AD121: 0
B122: 86 | C122: 2107 | D122: 0 | E122: 0 | F122: 0 | G122: 0 | H122: 0 | K122: 0 | L122: 0 | M122: 0 | N122: 0 | O122: 0 | Q122: 0 | R122: 0 | V122: 0 | W122: 0 | X122: 0 | Y122: 0 | AA122: 0 | AB122: 0 | AC122: 0 | AD122: 0
B123: 87 | C123: 2108 | D123: 0 | E123: 0 | F123: 0 | G123: 0 | H123: 0 | K123: 0 | L123: 0 | M123: 0 | N123: 0 | O123: 0 | Q123: 0 | R123: 0 | V123: 0 | W123: 0 | X123: 0 | Y123: 0 | AA123: 0 | AB123: 0 | AC123: 0 | AD123: 0
B124: 88 | C124: 2109 | D124: 0 | E124: 0 | F124: 0 | G124: 0 | H124: 0 | K124: 0 | L124: 0 | M124: 0 | N124: 0 | O124: 0 | Q124: 0 | R124: 0 | V124: 0 | W124: 0 | X124: 0 | Y124: 0 | AA124: 0 | AB124: 0 | AC124: 0 | AD124: 0
B125: 89 | C125: 2110 | D125: 0 | E125: 0 | F125: 0 | G125: 0 | H125: 0 | K125: 0 | L125: 0 | M125: 0 | N125: 0 | O125: 0 | Q125: 0 | R125: 0 | V125: 0 | W125: 0 | X125: 0 | Y125: 0 | AA125: 0 | AB125: 0 | AC125: 0 | AD125: 0
B126: 90 | C126: 2111 | D126: 0 | E126: 0 | F126: 0 | G126: 0 | H126: 0 | K126: 0 | L126: 0 | M126: 0 | N126: 0 | O126: 0 | Q126: 0 | R126: 0 | V126: 0 | W126: 0 | X126: 0 | Y126: 0 | AA126: 0 | AB126: 0 | AC126: 0 | AD126: 0
B127: 91 | C127: 2112 | D127: =IF(C126<$F$30,(D126*$D$17)+D126,0) -> 0 | E127: =IF(D127>0,(E126*$D$31)+E126,0) -> 0 | F127: =IF(D127>0,(F126*$D$32)+F126,0) -> 0 | G127: =F127-E127 -> 0 | H127: =IF(D127>0,D127-$D$15,0) -> 0 | K127: =IF(C126<$M$30,(K126*$K$17)+K126,0) -> 0 | L127: =IF(K127>0,(L126*$K$31)+L126,0) -> 0 | M127: =IF(K127>0,(M126*$K$32)+M126,0) -> 0 | N127: =M127-L127 -> 0 | O127: =IF(K127>0,K127-$K$15,0) -> 0 | Q127: =G127+O127 -> 0 | R127: =D127+K127 -> 0 | V127: 0 | W127: 0 | X127: 0 | Y127: 0 | AA127: 0 | AB127: 0 | AC127: 0 | AD127: 0
B128: 92 | C128: 2113 | D128: 0 | E128: 0 | F128: 0 | G128: 0 | H128: 0 | K128: 0 | L128: 0 | M128: 0 | N128: 0 | O128: 0 | Q128: 0 | R128: 0 | V128: 0 | W128: 0 | X128: 0 | Y128: 0 | AA128: =IF($M$30=C127,K127,0) -> 0 | AB128: 0 | AC128: 0 | AD128: 0
B129: 93 | C129: 2114 | D129: 0 | E129: 0 | F129: 0 | G129: 0 | H129: 0 | K129: 0 | L129: 0 | M129: 0 | N129: 0 | O129: 0 | Q129: 0 | R129: 0 | V129: 0 | W129: 0 | X129: 0 | Y129: 0 | AA129: 0 | AB129: 0 | AC129: 0 | AD129: 0
B130: 94 | C130: 2115 | D130: 0 | E130: 0 | F130: 0 | G130: 0 | H130: 0 | K130: 0 | L130: 0 | M130: 0 | N130: 0 | O130: 0 | Q130: 0 | R130: 0 | V130: 0 | W130: 0 | X130: 0 | Y130: 0 | AA130: 0 | AB130: 0 | AC130: 0 | AD130: 0
B131: 95 | C131: 2116 | D131: 0 | E131: 0 | F131: 0 | G131: 0 | H131: 0 | K131: 0 | L131: 0 | M131: 0 | N131: 0 | O131: 0 | Q131: 0 | R131: 0 | V131: 0 | W131: 0 | X131: 0 | Y131: 0 | AA131: 0 | AB131: 0 | AC131: 0 | AD131: 0
B132: =B131+1 -> 96 | C132: 2117 | D132: 0 | E132: 0 | F132: 0 | G132: 0 | H132: 0 | K132: 0 | L132: 0 | M132: 0 | N132: 0 | O132: 0 | Q132: 0 | R132: 0 | V132: 0 | W132: 0 | X132: 0 | Y132: 0 | AA132: 0 | AB132: 0 | AC132: 0 | AD132: 0
B133: 97 | C133: 2118 | D133: 0 | E133: 0 | F133: 0 | G133: 0 | H133: 0 | K133: 0 | L133: 0 | M133: 0 | N133: 0 | O133: 0 | Q133: 0 | R133: 0 | V133: 0 | W133: =IF(V133>0,V133*$R$29,0) -> 0 | X133: =IF(V133>0,V133*$R$30,0) -> 0 | Y133: =IF(V133>0,V133-(W133+X133),0) -> 0 | AA133: 0 | AB133: 0 | AC133: 0 | AD133: =IF(AA133>0,AA133-(AB133+AC133),0) -> 0
B134: 98 | C134: 2119 | D134: 0 | E134: 0 | F134: 0 | G134: 0 | H134: 0 | K134: 0 | L134: 0 | M134: 0 | N134: 0 | O134: 0 | Q134: 0 | R134: 0 | V134: 0 | W134: 0 | X134: 0 | Y134: 0 | AA134: 0 | AB134: 0 | AC134: 0 | AD134: 0
B135: 99 | C135: 2120 | D135: 0 | E135: 0 | F135: 0 | G135: 0 | H135: 0 | K135: 0 | L135: 0 | M135: 0 | N135: 0 | O135: 0 | Q135: 0 | R135: 0 | V135: 0 | W135: 0 | X135: 0 | Y135: 0 | AA135: 0 | AB135: 0 | AC135: 0 | AD135: 0
B136: 100 | C136: 2121 | D136: 0 | E136: 0 | F136: 0 | G136: 0 | H136: 0 | K136: 0 | L136: 0 | M136: 0 | N136: 0 | O136: 0 | Q136: 0 | R136: 0 | V136: 0 | W136: 0 | X136: 0 | Y136: 0 | AA136: 0 | AB136: 0 | AC136: 0 | AD136: 0
B137: 101 | C137: 2122 | D137: 0 | E137: 0 | F137: 0 | G137: 0 | H137: 0 | K137: 0 | L137: 0 | M137: 0 | N137: 0 | O137: 0 | Q137: 0 | R137: 0 | V137: 0 | W137: 0 | X137: 0 | Y137: 0 | AA137: 0 | AB137: 0 | AC137: 0 | AD137: 0
B138: 102 | C138: 2123 | D138: 0 | E138: 0 | F138: 0 | G138: 0 | H138: 0 | K138: 0 | L138: 0 | M138: 0 | N138: 0 | O138: 0 | Q138: 0 | R138: 0 | V138: 0 | W138: 0 | X138: 0 | Y138: 0 | AA138: 0 | AB138: 0 | AC138: 0 | AD138: 0
B139: 103 | C139: 2124 | D139: 0 | E139: 0 | F139: 0 | G139: 0 | H139: 0 | K139: 0 | L139: 0 | M139: 0 | N139: 0 | O139: 0 | Q139: 0 | R139: 0 | V139: 0 | W139: 0 | X139: 0 | Y139: 0 | AA139: 0 | AB139: 0 | AC139: 0 | AD139: 0
B140: 104 | C140: 2125 | D140: 0 | E140: 0 | F140: 0 | G140: 0 | H140: 0 | K140: 0 | L140: 0 | M140: 0 | N140: 0 | O140: 0 | Q140: 0 | R140: 0 | V140: 0 | W140: 0 | X140: 0 | Y140: 0 | AA140: 0 | AB140: 0 | AC140: 0 | AD140: 0
B141: 105 | C141: 2126 | D141: 0 | E141: 0 | F141: 0 | G141: 0 | H141: 0 | K141: 0 | L141: 0 | M141: 0 | N141: 0 | O141: 0 | Q141: 0 | R141: 0 | V141: 0 | W141: 0 | X141: 0 | Y141: 0 | AA141: 0 | AB141: 0 | AC141: 0 | AD141: 0
B142: 106 | C142: 2127 | D142: 0 | E142: 0 | F142: 0 | G142: 0 | H142: 0 | K142: 0 | L142: 0 | M142: 0 | N142: 0 | O142: 0 | Q142: 0 | R142: 0 | V142: 0 | W142: 0 | X142: 0 | Y142: 0 | AA142: 0 | AB142: 0 | AC142: 0 | AD142: 0
B143: 107 | C143: 2128 | D143: 0 | E143: 0 | F143: 0 | G143: 0 | H143: 0 | K143: 0 | L143: 0 | M143: 0 | N143: 0 | O143: 0 | Q143: 0 | R143: 0 | V143: 0 | W143: 0 | X143: 0 | Y143: 0 | AA143: 0 | AB143: 0 | AC143: 0 | AD143: 0
B144: 108 | C144: 2129 | D144: 0 | E144: 0 | F144: 0 | G144: 0 | H144: 0 | K144: 0 | L144: 0 | M144: 0 | N144: 0 | O144: 0 | Q144: 0 | R144: 0 | V144: 0 | W144: 0 | X144: 0 | Y144: 0 | AA144: 0 | AB144: 0 | AC144: 0 | AD144: 0
B145: 109 | C145: 2130 | D145: 0 | E145: 0 | F145: 0 | G145: 0 | H145: 0 | K145: 0 | L145: 0 | M145: 0 | N145: 0 | O145: 0 | Q145: 0 | R145: 0 | V145: 0 | W145: 0 | X145: 0 | Y145: 0 | AA145: 0 | AB145: 0 | AC145: 0 | AD145: 0
B146: 110 | C146: 2131 | D146: 0 | E146: 0 | F146: 0 | G146: 0 | H146: 0 | K146: 0 | L146: 0 | M146: 0 | N146: 0 | O146: 0 | Q146: 0 | R146: 0 | V146: 0 | W146: 0 | X146: 0 | Y146: 0 | AA146: 0 | AB146: 0 | AC146: 0 | AD146: 0
B147: 111 | C147: 2132 | D147: 0 | E147: 0 | F147: 0 | G147: 0 | H147: 0 | K147: 0 | L147: 0 | M147: 0 | N147: 0 | O147: 0 | Q147: 0 | R147: 0 | V147: 0 | W147: 0 | X147: 0 | Y147: 0 | AA147: 0 | AB147: 0 | AC147: 0 | AD147: 0
B148: =B147+1 -> 112 | C148: 2133 | D148: 0 | E148: 0 | F148: 0 | G148: 0 | H148: 0 | K148: 0 | L148: 0 | M148: 0 | N148: 0 | O148: 0 | Q148: 0 | R148: 0 | V148: 0 | W148: 0 | X148: 0 | Y148: 0 | AA148: 0 | AB148: 0 | AC148: 0 | AD148: 0
B149: 113 | C149: 2134 | D149: 0 | E149: 0 | F149: 0 | G149: 0 | H149: 0 | K149: 0 | L149: 0 | M149: 0 | N149: 0 | O149: 0 | Q149: 0 | R149: 0 | V149: 0 | W149: 0 | X149: 0 | Y149: 0 | AA149: 0 | AB149: 0 | AC149: 0 | AD149: 0
B150: 114 | C150: 2135 | D150: 0 | E150: 0 | F150: 0 | G150: 0 | H150: 0 | K150: 0 | L150: 0 | M150: 0 | N150: 0 | O150: 0 | Q150: 0 | R150: 0 | V150: 0 | W150: 0 | X150: 0 | Y150: 0 | AA150: 0 | AB150: 0 | AC150: 0 | AD150: 0
B151: 115 | C151: 2136 | D151: 0 | E151: 0 | F151: 0 | G151: 0 | H151: 0 | K151: 0 | L151: 0 | M151: 0 | N151: 0 | O151: 0 | Q151: 0 | R151: 0 | V151: 0 | W151: 0 | X151: 0 | Y151: 0 | AA151: 0 | AB151: 0 | AC151: 0 | AD151: 0
B152: 116 | C152: 2137 | D152: 0 | E152: 0 | F152: 0 | G152: 0 | H152: 0 | K152: 0 | L152: 0 | M152: 0 | N152: 0 | O152: 0 | Q152: 0 | R152: 0 | V152: 0 | W152: 0 | X152: 0 | Y152: 0 | AA152: 0 | AB152: 0 | AC152: 0 | AD152: 0
B153: 117 | C153: 2138 | D153: 0 | E153: 0 | F153: 0 | G153: 0 | H153: 0 | K153: 0 | L153: 0 | M153: 0 | N153: 0 | O153: 0 | Q153: 0 | R153: 0 | V153: 0 | W153: 0 | X153: 0 | Y153: 0 | AA153: 0 | AB153: 0 | AC153: 0 | AD153: 0
B154: 118 | C154: 2139 | D154: 0 | E154: 0 | F154: 0 | G154: 0 | H154: 0 | K154: 0 | L154: 0 | M154: 0 | N154: 0 | O154: 0 | Q154: 0 | R154: 0 | V154: 0 | W154: 0 | X154: 0 | Y154: 0 | AA154: 0 | AB154: 0 | AC154: 0 | AD154: 0
B155: 119 | C155: 2140 | D155: 0 | E155: 0 | F155: 0 | G155: 0 | H155: 0 | K155: 0 | L155: 0 | M155: 0 | N155: 0 | O155: 0 | Q155: 0 | R155: 0 | V155: 0 | W155: 0 | X155: 0 | Y155: 0 | AA155: 0 | AB155: 0 | AC155: 0 | AD155: 0
B156: 120 | C156: 2141 | D156: 0 | E156: 0 | F156: 0 | G156: 0 | H156: 0 | K156: 0 | L156: 0 | M156: 0 | N156: 0 | O156: 0 | Q156: 0 | R156: 0 | V156: 0 | W156: 0 | X156: 0 | Y156: 0 | AA156: 0 | AB156: 0 | AC156: 0 | AD156: 0
B157: 121 | C157: 2142 | D157: 0 | E157: 0 | F157: 0 | G157: 0 | H157: 0 | K157: 0 | L157: 0 | M157: 0 | N157: 0 | O157: 0 | Q157: 0 | R157: 0 | V157: 0 | W157: 0 | X157: 0 | Y157: 0 | AA157: 0 | AB157: 0 | AC157: 0 | AD157: 0
B158: 122 | C158: 2143 | D158: 0 | E158: 0 | F158: 0 | G158: 0 | H158: 0 | K158: 0 | L158: 0 | M158: 0 | N158: 0 | O158: 0 | Q158: 0 | R158: 0 | V158: 0 | W158: 0 | X158: 0 | Y158: 0 | AA158: 0 | AB158: 0 | AC158: 0 | AD158: 0
B159: 123 | C159: 2144 | D159: 0 | E159: 0 | F159: 0 | G159: 0 | H159: 0 | K159: 0 | L159: 0 | M159: 0 | N159: 0 | O159: 0 | Q159: 0 | R159: 0 | V159: 0 | W159: 0 | X159: 0 | Y159: 0 | AA159: 0 | AB159: 0 | AC159: 0 | AD159: 0
B160: 124 | C160: 2145 | D160: 0 | E160: 0 | F160: 0 | G160: 0 | H160: 0 | K160: 0 | L160: 0 | M160: 0 | N160: 0 | O160: 0 | Q160: 0 | R160: 0 | V160: 0 | W160: 0 | X160: 0 | Y160: 0 | AA160: 0 | AB160: 0 | AC160: 0 | AD160: 0
B161: 125 | C161: 2146 | D161: =IF(C160<$F$30,(D160*$D$17)+D160,0) -> 0 | E161: =IF(D161>0,(E160*$D$31)+E160,0) -> 0 | F161: =IF(D161>0,(F160*$D$32)+F160,0) -> 0 | G161: =F161-E161 -> 0 | H161: =IF(D161>0,D161-$D$15,0) -> 0 | K161: =IF(C160<$M$30,(K160*$K$17)+K160,0) -> 0 | L161: =IF(K161>0,(L160*$K$31)+L160,0) -> 0 | M161: =IF(K161>0,(M160*$K$32)+M160,0) -> 0 | N161: =M161-L161 -> 0 | O161: =IF(K161>0,K161-$K$15,0) -> 0 | Q161: =G161+O161 -> 0 | R161: =D161+K161 -> 0 | V161: 0 | W161: 0 | X161: 0 | Y161: 0 | AA161: 0 | AB161: 0 | AC161: 0 | AD161: 0

Sheet Investments (hidden)
A2: 1 | C2: Investments
A3: Return | C3: Projected investment returns | BG3: Amounts of all accounts that are shown that will be added to the field Balance of all Investments | BT3: Lookup values for Home chart
H5: =Assets!H37 -> Before tax | J5: =Assets!I37 -> Individual 1 | L5: =Assets!H38 -> Before tax | N5: =Assets!I38 -> Individual 2 | P5: =Assets!H39 -> After tax | R5: =Assets!I39 -> Individual 2 | T5: =Assets!H40 -> 0 | V5: =Assets!I40 -> 0 | X5: =Assets!H41 -> 0 | Z5: =Assets!I41 -> 00:00:00 | AB5: =Assets!H42 -> 0 | AD5: =Assets!I42 -> 00:00:00 | AF5: =Assets!H43 -> 0 | AH5: =Assets!I43 -> 00:00:00 | AJ5: =Assets!H44 -> 0 | AL5: =Assets!I44 -> 00:00:00 | AN5: =Assets!H45 -> 0 | AP5: =Assets!I45 -> 00:00:00 | AR5: =Assets!H46 -> 0 | AT5: =Assets!I46 -> 00:00:00 | AV5: =Assets!H47 -> 0 | AX5: =Assets!I47 -> 00:00:00 | AZ5: =Assets!H48 -> 0 | BB5: =Assets!I48 -> 00:00:00 | BX5: Sum these to get balance
A6: Return | C6: Retire target year | D6: Yr. # | E6: Year | F6: Balance of all investments | H6: =IF(TRIM(Assets!C37)<>"",Assets!C37,"") -> Jon | L6: =IF(TRIM(Assets!C38)<>"",Assets!C38,"") -> Sally | P6: =IF(TRIM(Assets!C39)<>"",Assets!C39,"") -> Sally | T6: =IF(TRIM(Assets!C40)<>"",Assets!C40,"") ->  | X6: =IF(TRIM(Assets!C41)<>"",Assets!C41,"") ->  | AB6: =IF(TRIM(Assets!C42)<>"",Assets!C42,"") ->  | AF6: =IF(TRIM(Assets!C43)<>"",Assets!C43,"") ->  | AJ6: =IF(TRIM(Assets!C44)<>"",Assets!C44,"") ->  | AN6: =IF(TRIM(Assets!C45)<>"",Assets!C45,"") ->  | AR6: =IF(TRIM(Assets!C46)<>"",Assets!C46,"") ->  | AV6: =IF(TRIM(Assets!C47)<>"",Assets!C47,"") ->  | AZ6: =IF(TRIM(Assets!C48)<>"",Assets!C48,"") ->  | BG6: =H6 -> Jon | BH6: =L6 -> Sally | BI6: =P6 -> Sally | BJ6: =T6 ->  | BK6: =X6 ->  | BL6: =AB6 ->  | BM6: =AF6 ->  | BN6: =AJ6 ->  | BO6: =AN6 ->  | BP6: =AR6 ->  | BQ6: =AV6 ->  | BR6: =AZ6 ->  | BT6: # | BU6: Input | BV6: output | BX6: Before Tax | BY6: After tax | BZ6: Before tax | CM6: After tax | DA6: Rental 1 Net Sales | DB6: Rental 2 Net Sales
A7: =IF(E7=YEAR(Retire!$D$12),1,0) -> 0 | C7: =IF(E7=Retire!$D$12,"==>","") ->  | D7: 1 | E7: =YEAR(TODAY()) -> 2022 | F7: =ROUND(BX7+BY7,0) -> 550000 | H7: =Assets!$G$37 -> 0.055 | I7: =Assets!$F$37 -> 2000 | J7: =IF(Assets!C37<>"",Assets!E37,0) -> 250000 | L7: =Assets!$G$38 -> 0.05 | M7: =Assets!$F$38 -> 1500 | N7: =IF(Assets!C38<>"",Assets!E38, 0) -> 225000 | P7: =Assets!$G$39 -> 0.06 | Q7: =Assets!$F$39 -> 250 | R7: =IF(Assets!C39<>"",Assets!E39, 0) -> 75000 | T7: =Assets!$G$40 -> 0 | U7: =Assets!$F$40 -> 0 | V7: =IF(Assets!C40<>"",Assets!E40, 0) -> 0 | X7: =Assets!$G$41 -> 0 | Y7: =Assets!$F$41 -> 0 | Z7: =IF(Assets!C41<>"",Assets!E41, 0) -> 0 | AB7: =Assets!$G$42 -> 0 | AC7: =Assets!$F$42 -> 0 | AD7: =IF(Assets!C42<>"",Assets!E42, 0) -> 0 | AF7: =Assets!$G$43 -> 0 | AG7: =Assets!$F$43 -> 0 | AH7: =IF(Assets!C43<>"",Assets!E43, 0) -> 0 | AJ7: =Assets!$G$44 -> 0 | AK7: =Assets!$F$44 -> 0 | AL7: =IF(Assets!C44<>"",Assets!E44, 0) -> 0 | AN7: =Assets!$G$45 -> 0 | AO7: =Assets!$F$45 -> 0 | AP7: =IF(Assets!C45<>"",Assets!E45, 0) -> 0 | AR7: =Assets!$G$46 -> 0 | AS7: =Assets!$F$46 -> 0 | AT7: =IF(Assets!C46<>"",Assets!E46, 0) -> 0 | AV7: =Assets!$G$47 -> 0 | AW7: =Assets!F$47 -> 0 | AX7: =IF(Assets!C47<>"",Assets!E47, 0) -> 0 | AZ7: =Assets!$G$48 -> 0 | BA7: =Assets!$F$48 -> 0 | BB7: =IF(Assets!C48<>"",Assets!E48, 0) -> 0 | BG7: =IF($H$6<>"",J7,0) -> 250000 | BH7: =IF($L$6<>"",N7,0) -> 225000 | BI7: =IF($P$6<>"",R7,0) -> 75000 | BJ7: =IF($T$6<>"",V7,0) -> 0 | BK7: =IF($X$6<>"",Z7,0) -> 0 | BL7: =IF($AB$6<>"",AD7,0) -> 0 | BM7: =IF($AF$6<>"",AH7,0) -> 0 | BN7: =IF($AJ$6<>"",AL7,0) -> 0 | BO7: =IF($AN$6<>"",AP7,0) -> 0 | BP7: =IF($AR$6<>"",AT7,0) -> 0 | BQ7: =IF($AV$6<>"",AX7,0) -> 0 | BR7: =IF($AZ$6<>"",BB7,0) -> 0 | BT7: 1 | BU7: BG | BV7: BX | BW7: =YEAR(TODAY()) -> 2022 | BX7: =SUM(BZ7:CK7) -> 475000 | BY7: =SUM(CM7:DB7) -> 75000 | BZ7: =IF($H$5="Before tax",J7,0) -> 250000 | CA7: =IF($L$5="Before tax",N7,0) -> 225000 | CB7: =IF($P$5="Before tax",R7,0) -> 0 | CC7: =IF($T$5="Before tax",V7,0) -> 0 | CD7: =IF($X$5="Before tax",Z7,0) -> 0 | CE7: =IF($AB$5="Before tax",AD7,0) -> 0 | CF7: =IF($AF$5="Before tax",AH7,0) -> 0 | CG7: =IF($AJ$5="Before tax",AL7,0) -> 0 | CH7: =IF($AN$5="Before tax",AP7,0) -> 0 | CI7: =IF($AR$5="Before tax",AT7,0) -> 0 | CJ7: =IF($AV$5="Before tax",AX7,0) -> 0 | CK7: =IF($AZ$5="Before tax",BB7,0) -> 0 | CM7: =IF($H$5="After tax",J7,0) -> 0 | CN7: =IF($L$5="After tax",N7,0) -> 0 | CO7: =IF($P$5="After tax",R7,0) -> 75000 | CP7: =IF($T$5="After tax",V7,0) -> 0 | CQ7: =IF($X$5="After tax",Z7,0) -> 0 | CR7: =IF($AB$5="After tax",AD7,0) -> 0 | CS7: =IF($AF$5="After tax",AH7,0) -> 0 | CT7: =IF($AJ$5="After tax",AL7,0) -> 0 | CU7: =IF($AN$5="After tax",AP7,0) -> 0 | CV7: =IF($AR$5="After tax",AT7,0) -> 0 | CW7: =IF($AV$5="After tax",AX7,0) -> 0 | CX7: =IF($AZ$5="After tax",BB7,0) -> 0 | DA7: =Rental!Y37 -> 0 | DB7: =Rental!AD37 -> 0
A8: =IF(E8=YEAR(Retire!$D$12),1,0) -> 0 | C8: =IF(E8=Retire!$D$12,"==>","") ->  | D8: =SUM(D7+1) -> 2 | E8: =E7+1 -> 2023 | F8: =ROUND(BX8+BY8,0) -> 583250 | H8: =Assets!$G$37 -> 0.055 | I8: =Assets!$F$37 -> 2000 | J8: =SUM((J7*H7)+J7+I7) -> 265750 | L8: =Assets!$G$38 -> 0.05 | M8: =Assets!$F$38 -> 1500 | N8: =SUM((N7*L7)+N7+M7) -> 237750 | P8: =Assets!$G$39 -> 0.06 | Q8: =Assets!$F$39 -> 250 | R8: =SUM((R7*P7)+R7+Q7) -> 79750 | T8: =Assets!$G$40 -> 0 | U8: =Assets!$F$40 -> 0 | V8: =SUM((V7*T7)+V7+U7) -> 0 | X8: =Assets!$G$41 -> 0 | Y8: =Assets!$F$41 -> 0 | Z8: =SUM((Z7*X7)+Z7+Y7) -> 0 | AB8: =Assets!$G$42 -> 0 | AC8: =Assets!$F$42 -> 0 | AD8: =SUM((AD7*AB7)+AD7+AC7) -> 0 | AF8: =Assets!$G$43 -> 0 | AG8: =Assets!$F$43 -> 0 | AH8: =SUM((AH7*AF7)+AH7+AG7) -> 0 | AJ8: =Assets!$G$44 -> 0 | AK8: =Assets!$F$44 -> 0 | AL8: =SUM((AL7*AJ7)+AL7+AK7) -> 0 | AN8: =Assets!$G$45 -> 0 | AO8: =Assets!$F$45 -> 0 | AP8: =SUM((AP7*AN7)+AP7+AO7) -> 0 | AR8: =Assets!$G$46 -> 0 | AS8: =Assets!$F$46 -> 0 | AT8: =SUM((AT7*AR7)+AT7+AS7) -> 0 | AV8: =Assets!$G$47 -> 0 | AW8: =Assets!F$47 -> 0 | AX8: =SUM((AX7*AV7)+AX7+AW7) -> 0 | AZ8: =Assets!$G$48 -> 0 | BA8: =Assets!$F$48 -> 0 | BB8: =SUM((BB7*AZ7)+BB7+BA7) -> 0 | BG8: 265750 | BH8: 237750 | BI8: 79750 | BJ8: 0 | BK8: 0 | BL8: 0 | BM8: 0 | BN8: 0 | BO8: 0 | BP8: 0 | BQ8: 0 | BR8: 0 | BT8: 2 | BU8: BH | BV8: BY | BW8: =BW7+1 -> 2023 | BX8: =SUM(BZ8:CK8) -> 503500 | BY8: 79750 | BZ8: =IF($H$5="Before tax",J8,0) -> 265750 | CA8: =IF($L$5="Before tax",N8,0) -> 237750 | CB8: =IF($P$5="Before tax",R8,0) -> 0 | CC8: =IF($T$5="Before tax",V8,0) -> 0 | CD8: =IF($X$5="Before tax",Z8,0) -> 0 | CE8: =IF($AB$5="Before tax",AD8,0) -> 0 | CF8: =IF($AF$5="Before tax",AH8,0) -> 0 | CG8: =IF($AJ$5="Before tax",AL8,0) -> 0 | CH8: =IF($AN$5="Before tax",AP8,0) -> 0 | CI8: =IF($AR$5="Before tax",AT8,0) -> 0 | CJ8: =IF($AV$5="Before tax",AX8,0) -> 0 | CK8: =IF($AZ$5="Before tax",BB8,0) -> 0 | CM8: =IF($H$5="After tax",J8,0) -> 0 | CN8: =IF($L$5="After tax",N8,0) -> 0 | CO8: =IF($P$5="After tax",R8,0) -> 79750 | CP8: =IF($T$5="After tax",V8,0) -> 0 | CQ8: =IF($X$5="After tax",Z8,0) -> 0 | CR8: =IF($AB$5="After tax",AD8,0) -> 0 | CS8: =IF($AF$5="After tax",AH8,0) -> 0 | CT8: =IF($AJ$5="After tax",AL8,0) -> 0 | CU8: =IF($AN$5="After tax",AP8,0) -> 0 | CV8: =IF($AR$5="After tax",AT8,0) -> 0 | CW8: =IF($AV$5="After tax",AX8,0) -> 0 | CX8: =IF($AZ$5="After tax",BB8,0) -> 0 | DA8: =Rental!Y38 -> 0 | DB8: =Rental!AD38 -> 0
A9: =IF(E9=YEAR(Retire!$D$12),1,0) -> 0 | C9: =IF(E9=Retire!$D$12,"==>","") ->  | D9: 3 | E9: =E8+1 -> 2024 | F9: 618289 | H9: =Assets!$G$37 -> 0.055 | I9: =Assets!$F$37 -> 2000 | J9: 282366.25 | L9: =Assets!$G$38 -> 0.05 | M9: =Assets!$F$38 -> 1500 | N9: 251137.5 | P9: =Assets!$G$39 -> 0.06 | Q9: =Assets!$F$39 -> 250 | R9: 84785 | T9: =Assets!$G$40 -> 0 | U9: =Assets!$F$40 -> 0 | V9: 0 | X9: =Assets!$G$41 -> 0 | Y9: =Assets!$F$41 -> 0 | Z9: 0 | AB9: =Assets!$G$42 -> 0 | AC9: =Assets!$F$42 -> 0 | AD9: 0 | AF9: =Assets!$G$43 -> 0 | AG9: =Assets!$F$43 -> 0 | AH9: 0 | AJ9: =Assets!$G$44 -> 0 | AK9: =Assets!$F$44 -> 0 | AL9: 0 | AN9: =Assets!$G$45 -> 0 | AO9: =Assets!$F$45 -> 0 | AP9: 0 | AR9: =Assets!$G$46 -> 0 | AS9: =Assets!$F$46 -> 0 | AT9: 0 | AV9: =Assets!$G$47 -> 0 | AW9: =Assets!F$47 -> 0 | AX9: 0 | AZ9: =Assets!$G$48 -> 0 | BA9: =Assets!$F$48 -> 0 | BB9: 0 | BG9: 282366.25 | BH9: 251137.5 | BI9: 84785 | BJ9: 0 | BK9: 0 | BL9: 0 | BM9: 0 | BN9: 0 | BO9: 0 | BP9: 0 | BQ9: 0 | BR9: 0 | BT9: 3 | BU9: BI | BV9: BZ | BW9: =BW8+1 -> 2024 | BX9: 533503.75 | BY9: 84785 | BZ9: 282366.25 | CA9: 251137.5 | CB9: 0 | CC9: 0 | CD9: 0 | CE9: 0 | CF9: 0 | CG9: 0 | CH9: 0 | CI9: 0 | CJ9: 0 | CK9: 0 | CM9: 0 | CN9: 0 | CO9: 84785 | CP9: 0 | CQ9: 0 | CR9: 0 | CS9: 0 | CT9: 0 | CU9: 0 | CV9: 0 | CW9: 0 | CX9: 0 | DA9: =Rental!Y39 -> 0 | DB9: =Rental!AD39 -> 0
A10: =IF(E10=YEAR(Retire!$D$12),1,0) -> 0 | C10: =IF(E10=Retire!$D$12,"==>","") ->  | D10: 4 | E10: 2025 | F10: 655213 | H10: =Assets!$G$37 -> 0.055 | I10: =Assets!$F$37 -> 2000 | J10: 299896.3937 | L10: =Assets!$G$38 -> 0.05 | M10: =Assets!$F$38 -> 1500 | N10: 265194.375 | P10: =Assets!$G$39 -> 0.06 | Q10: =Assets!$F$39 -> 250 | R10: 90122.1 | T10: =Assets!$G$40 -> 0 | U10: =Assets!$F$40 -> 0 | V10: 0 | X10: =Assets!$G$41 -> 0 | Y10: =Assets!$F$41 -> 0 | Z10: 0 | AB10: =Assets!$G$42 -> 0 | AC10: =Assets!$F$42 -> 0 | AD10: 0 | AF10: =Assets!$G$43 -> 0 | AG10: =Assets!$F$43 -> 0 | AH10: 0 | AJ10: =Assets!$G$44 -> 0 | AK10: =Assets!$F$44 -> 0 | AL10: 0 | AN10: =Assets!$G$45 -> 0 | AO10: =Assets!$F$45 -> 0 | AP10: 0 | AR10: =Assets!$G$46 -> 0 | AS10: =Assets!$F$46 -> 0 | AT10: 0 | AV10: =Assets!$G$47 -> 0 | AW10: =Assets!F$47 -> 0 | AX10: 0 | AZ10: =Assets!$G$48 -> 0 | BA10: =Assets!$F$48 -> 0 | BB10: 0 | BG10: 299896.3937 | BH10: 265194.375 | BI10: 90122.1 | BJ10: 0 | BK10: 0 | BL10: 0 | BM10: 0 | BN10: 0 | BO10: 0 | BP10: 0 | BQ10: 0 | BR10: 0 | BT10: 4 | BU10: BJ | BV10: CA | BW10: 2025 | BX10: 565090.7688 | BY10: 90122.1 | BZ10: 299896.3937 | CA10: 265194.375 | CB10: 0 | CC10: 0 | CD10: 0 | CE10: 0 | CF10: 0 | CG10: 0 | CH10: 0 | CI10: 0 | CJ10: 0 | CK10: 0 | CM10: 0 | CN10: 0 | CO10: 90122.1 | CP10: 0 | CQ10: 0 | CR10: 0 | CS10: 0 | CT10: 0 | CU10: 0 | CV10: 0 | CW10: 0 | CX10: 0 | DA10: =Rental!Y40 -> 0 | DB10: =Rental!AD40 -> 0
A11: =IF(E11=YEAR(Retire!$D$12),1,0) -> 0 | C11: =IF(E11=Retire!$D$12,"==>","") ->  | D11: 5 | E11: 2026 | F11: 694124 | H11: =Assets!$G$37 -> 0.055 | I11: =Assets!$F$37 -> 2000 | J11: 318390.6954 | L11: =Assets!$G$38 -> 0.05 | M11: =Assets!$F$38 -> 1500 | N11: 279954.0938 | P11: =Assets!$G$39 -> 0.06 | Q11: =Assets!$F$39 -> 250 | R11: 95779.426 | T11: =Assets!$G$40 -> 0 | U11: =Assets!$F$40 -> 0 | V11: 0 | X11: =Assets!$G$41 -> 0 | Y11: =Assets!$F$41 -> 0 | Z11: 0 | AB11: =Assets!$G$42 -> 0 | AC11: =Assets!$F$42 -> 0 | AD11: 0 | AF11: =Assets!$G$43 -> 0 | AG11: =Assets!$F$43 -> 0 | AH11: 0 | AJ11: =Assets!$G$44 -> 0 | AK11: =Assets!$F$44 -> 0 | AL11: 0 | AN11: =Assets!$G$45 -> 0 | AO11: =Assets!$F$45 -> 0 | AP11: 0 | AR11: =Assets!$G$46 -> 0 | AS11: =Assets!$F$46 -> 0 | AT11: 0 | AV11: =Assets!$G$47 -> 0 | AW11: =Assets!F$47 -> 0 | AX11: 0 | AZ11: =Assets!$G$48 -> 0 | BA11: =Assets!$F$48 -> 0 | BB11: 0 | BG11: 318390.6954 | BH11: 279954.0938 | BI11: 95779.426 | BJ11: 0 | BK11: 0 | BL11: 0 | BM11: 0 | BN11: 0 | BO11: 0 | BP11: 0 | BQ11: 0 | BR11: 0 | BT11: 5 | BU11: BK | BV11: CB | BW11: 2026 | BX11: 598344.7892 | BY11: 95779.426 | BZ11: 318390.6954 | CA11: 279954.0938 | CB11: 0 | CC11: 0 | CD11: 0 | CE11: 0 | CF11: 0 | CG11: 0 | CH11: 0 | CI11: 0 | CJ11: 0 | CK11: 0 | CM11: 0 | CN11: 0 | CO11: 95779.426 | CP11: 0 | CQ11: 0 | CR11: 0 | CS11: 0 | CT11: 0 | CU11: 0 | CV11: 0 | CW11: 0 | CX11: 0 | DA11: =Rental!Y41 -> 0 | DB11: =Rental!AD41 -> 0
A12: =IF(E12=YEAR(Retire!$D$12),1,0) -> 0 | C12: =IF(E12=Retire!$D$12,"==>","") ->  | D12: 6 | E12: 2027 | F12: 735130 | H12: =Assets!$G$37 -> 0.055 | I12: =Assets!$F$37 -> 2000 | J12: 337902.1837 | L12: =Assets!$G$38 -> 0.05 | M12: =Assets!$F$38 -> 1500 | N12: 295451.7984 | P12: =Assets!$G$39 -> 0.06 | Q12: =Assets!$F$39 -> 250 | R12: 101776.1916 | T12: =Assets!$G$40 -> 0 | U12: =Assets!$F$40 -> 0 | V12: 0 | X12: =Assets!$G$41 -> 0 | Y12: =Assets!$F$41 -> 0 | Z12: 0 | AB12: =Assets!$G$42 -> 0 | AC12: =Assets!$F$42 -> 0 | AD12: 0 | AF12: =Assets!$G$43 -> 0 | AG12: =Assets!$F$43 -> 0 | AH12: 0 | AJ12: =Assets!$G$44 -> 0 | AK12: =Assets!$F$44 -> 0 | AL12: 0 | AN12: =Assets!$G$45 -> 0 | AO12: =Assets!$F$45 -> 0 | AP12: 0 | AR12: =Assets!$G$46 -> 0 | AS12: =Assets!$F$46 -> 0 | AT12: 0 | AV12: =Assets!$G$47 -> 0 | AW12: =Assets!F$47 -> 0 | AX12: 0 | AZ12: =Assets!$G$48 -> 0 | BA12: =Assets!$F$48 -> 0 | BB12: 0 | BG12: 337902.1837 | BH12: 295451.7984 | BI12: 101776.1916 | BJ12: 0 | BK12: 0 | BL12: 0 | BM12: 0 | BN12: 0 | BO12: 0 | BP12: 0 | BQ12: 0 | BR12: 0 | BT12: 6 | BU12: BL | BV12: CC | BW12: 2027 | BX12: 633353.9821 | BY12: 101776.1916 | BZ12: 337902.1837 | CA12: 295451.7984 | CB12: 0 | CC12: 0 | CD12: 0 | CE12: 0 | CF12: 0 | CG12: 0 | CH12: 0 | CI12: 0 | CJ12: 0 | CK12: 0 | CM12: 0 | CN12: 0 | CO12: 101776.1916 | CP12: 0 | CQ12: 0 | CR12: 0 | CS12: 0 | CT12: 0 | CU12: 0 | CV12: 0 | CW12: 0 | CX12: 0 | DA12: =Rental!Y42 -> 0 | DB12: =Rental!AD42 -> 0
A13: =IF(E13=YEAR(Retire!$D$12),1,0) -> 0 | C13: =IF(E13=Retire!$D$12,"==>","") ->  | D13: 7 | E13: 2028 | F13: 778344 | H13: =Assets!$G$37 -> 0.055 | I13: =Assets!$F$37 -> 2000 | J13: 358486.8038 | L13: =Assets!$G$38 -> 0.05 | M13: =Assets!$F$38 -> 1500 | N13: 311724.3884 | P13: =Assets!$G$39 -> 0.06 | Q13: =Assets!$F$39 -> 250 | R13: 108132.7631 | T13: =Assets!$G$40 -> 0 | U13: =Assets!$F$40 -> 0 | V13: 0 | X13: =Assets!$G$41 -> 0 | Y13: =Assets!$F$41 -> 0 | Z13: 0 | AB13: =Assets!$G$42 -> 0 | AC13: =Assets!$F$42 -> 0 | AD13: 0 | AF13: =Assets!$G$43 -> 0 | AG13: =Assets!$F$43 -> 0 | AH13: 0 | AJ13: =Assets!$G$44 -> 0 | AK13: =Assets!$F$44 -> 0 | AL13: 0 | AN13: =Assets!$G$45 -> 0 | AO13: =Assets!$F$45 -> 0 | AP13: 0 | AR13: =Assets!$G$46 -> 0 | AS13: =Assets!$F$46 -> 0 | AT13: 0 | AV13: =Assets!$G$47 -> 0 | AW13: =Assets!F$47 -> 0 | AX13: 0 | AZ13: =Assets!$G$48 -> 0 | BA13: =Assets!$F$48 -> 0 | BB13: 0 | BG13: 358486.8038 | BH13: 311724.3884 | BI13: 108132.7631 | BJ13: 0 | BK13: 0 | BL13: 0 | BM13: 0 | BN13: 0 | BO13: 0 | BP13: 0 | BQ13: 0 | BR13: 0 | BT13: 7 | BU13: BM | BV13: CD | BW13: 2028 | BX13: 670211.1921 | BY13: 108132.7631 | BZ13: 358486.8038 | CA13: 311724.3884 | CB13: 0 | CC13: 0 | CD13: 0 | CE13: 0 | CF13: 0 | CG13: 0 | CH13: 0 | CI13: 0 | CJ13: 0 | CK13: 0 | CM13: 0 | CN13: 0 | CO13: 108132.7631 | CP13: 0 | CQ13: 0 | CR13: 0 | CS13: 0 | CT13: 0 | CU13: 0 | CV13: 0 | CW13: 0 | CX13: 0 | DA13: =Rental!Y43 -> 0 | DB13: =Rental!AD43 -> 0
A14: =IF(E14=YEAR(Retire!$D$12),1,0) -> 0 | C14: =IF(E14=Retire!$D$12,"==>","") ->  | D14: 8 | E14: 2029 | F14: 823885 | H14: =Assets!$G$37 -> 0.055 | I14: =Assets!$F$37 -> 2000 | J14: 380203.578 | L14: =Assets!$G$38 -> 0.05 | M14: =Assets!$F$38 -> 1500 | N14: 328810.6078 | P14: =Assets!$G$39 -> 0.06 | Q14: =Assets!$F$39 -> 250 | R14: 114870.7288 | T14: =Assets!$G$40 -> 0 | U14: =Assets!$F$40 -> 0 | V14: 0 | X14: =Assets!$G$41 -> 0 | Y14: =Assets!$F$41 -> 0 | Z14: 0 | AB14: =Assets!$G$42 -> 0 | AC14: =Assets!$F$42 -> 0 | AD14: 0 | AF14: =Assets!$G$43 -> 0 | AG14: =Assets!$F$43 -> 0 | AH14: 0 | AJ14: =Assets!$G$44 -> 0 | AK14: =Assets!$F$44 -> 0 | AL14: 0 | AN14: =Assets!$G$45 -> 0 | AO14: =Assets!$F$45 -> 0 | AP14: 0 | AR14: =Assets!$G$46 -> 0 | AS14: =Assets!$F$46 -> 0 | AT14: 0 | AV14: =Assets!$G$47 -> 0 | AW14: =Assets!F$47 -> 0 | AX14: 0 | AZ14: =Assets!$G$48 -> 0 | BA14: =Assets!$F$48 -> 0 | BB14: 0 | BG14: 380203.578 | BH14: 328810.6078 | BI14: 114870.7288 | BJ14: 0 | BK14: 0 | BL14: 0 | BM14: 0 | BN14: 0 | BO14: 0 | BP14: 0 | BQ14: 0 | BR14: 0 | BT14: 8 | BU14: BN | BV14: CE | BW14: 2029 | BX14: 709014.1857 | BY14: 114870.7288 | BZ14: 380203.578 | CA14: 328810.6078 | CB14: 0 | CC14: 0 | CD14: 0 | CE14: 0 | CF14: 0 | CG14: 0 | CH14: 0 | CI14: 0 | CJ14: 0 | CK14: 0 | CM14: 0 | CN14: 0 | CO14: 114870.7288 | CP14: 0 | CQ14: 0 | CR14: 0 | CS14: 0 | CT14: 0 | CU14: 0 | CV14: 0 | CW14: 0 | CX14: 0 | DA14: =Rental!Y44 -> 0 | DB14: =Rental!AD44 -> 0
A15: =IF(E15=YEAR(Retire!$D$12),1,0) -> 0 | C15: =IF(E15=Retire!$D$12,"==>","") ->  | D15: 9 | E15: 2030 | F15: 871879 | H15: =Assets!$G$37 -> 0.055 | I15: =Assets!$F$37 -> 2000 | J15: 403114.7747 | L15: =Assets!$G$38 -> 0.05 | M15: =Assets!$F$38 -> 1500 | N15: 346751.1382 | P15: =Assets!$G$39 -> 0.06 | Q15: =Assets!$F$39 -> 250 | R15: 122012.9726 | T15: =Assets!$G$40 -> 0 | U15: =Assets!$F$40 -> 0 | V15: 0 | X15: =Assets!$G$41 -> 0 | Y15: =Assets!$F$41 -> 0 | Z15: 0 | AB15: =Assets!$G$42 -> 0 | AC15: =Assets!$F$42 -> 0 | AD15: 0 | AF15: =Assets!$G$43 -> 0 | AG15: =Assets!$F$43 -> 0 | AH15: 0 | AJ15: =Assets!$G$44 -> 0 | AK15: =Assets!$F$44 -> 0 | AL15: 0 | AN15: =Assets!$G$45 -> 0 | AO15: =Assets!$F$45 -> 0 | AP15: 0 | AR15: =Assets!$G$46 -> 0 | AS15: =Assets!$F$46 -> 0 | AT15: 0 | AV15: =Assets!$G$47 -> 0 | AW15: =Assets!F$47 -> 0 | AX15: 0 | AZ15: =Assets!$G$48 -> 0 | BA15: =Assets!$F$48 -> 0 | BB15: 0 | BG15: 403114.7747 | BH15: 346751.1382 | BI15: 122012.9726 | BJ15: 0 | BK15: 0 | BL15: 0 | BM15: 0 | BN15: 0 | BO15: 0 | BP15: 0 | BQ15: 0 | BR15: 0 | BT15: 9 | BU15: BO | BV15: CF | BW15: 2030 | BX15: 749865.9129 | BY15: 122012.9726 | BZ15: 403114.7747 | CA15: 346751.1382 | CB15: 0 | CC15: 0 | CD15: 0 | CE15: 0 | CF15: 0 | CG15: 0 | CH15: 0 | CI15: 0 | CJ15: 0 | CK15: 0 | CM15: 0 | CN15: 0 | CO15: 122012.9726 | CP15: 0 | CQ15: 0 | CR15: 0 | CS15: 0 | CT15: 0 | CU15: 0 | CV15: 0 | CW15: 0 | CX15: 0 | DA15: =Rental!Y45 -> 0 | DB15: =Rental!AD45 -> 0
A16: =IF(E16=YEAR(Retire!$D$12),1,0) -> 0 | C16: =IF(E16=Retire!$D$12,"==>","") ->  | D16: 10 | E16: 2031 | F16: 922459 | H16: =Assets!$G$37 -> 0.055 | I16: =Assets!$F$37 -> 2000 | J16: 427286.0874 | L16: =Assets!$G$38 -> 0.05 | M16: =Assets!$F$38 -> 1500 | N16: 365588.6951 | P16: =Assets!$G$39 -> 0.06 | Q16: =Assets!$F$39 -> 250 | R16: 129583.7509 | T16: =Assets!$G$40 -> 0 | U16: =Assets!$F$40 -> 0 | V16: 0 | X16: =Assets!$G$41 -> 0 | Y16: =Assets!$F$41 -> 0 | Z16: 0 | AB16: =Assets!$G$42 -> 0 | AC16: =Assets!$F$42 -> 0 | AD16: 0 | AF16: =Assets!$G$43 -> 0 | AG16: =Assets!$F$43 -> 0 | AH16: 0 | AJ16: =Assets!$G$44 -> 0 | AK16: =Assets!$F$44 -> 0 | AL16: 0 | AN16: =Assets!$G$45 -> 0 | AO16: =Assets!$F$45 -> 0 | AP16: 0 | AR16: =Assets!$G$46 -> 0 | AS16: =Assets!$F$46 -> 0 | AT16: 0 | AV16: =Assets!$G$47 -> 0 | AW16: =Assets!F$47 -> 0 | AX16: 0 | AZ16: =Assets!$G$48 -> 0 | BA16: =Assets!$F$48 -> 0 | BB16: 0 | BG16: 427286.0874 | BH16: 365588.6951 | BI16: 129583.7509 | BJ16: 0 | BK16: 0 | BL16: 0 | BM16: 0 | BN16: 0 | BO16: 0 | BP16: 0 | BQ16: 0 | BR16: 0 | BT16: 10 | BU16: BP | BV16: CG | BW16: 2031 | BX16: 792874.7824 | BY16: 129583.7509 | BZ16: 427286.0874 | CA16: 365588.6951 | CB16: 0 | CC16: 0 | CD16: 0 | CE16: 0 | CF16: 0 | CG16: 0 | CH16: 0 | CI16: 0 | CJ16: 0 | CK16: 0 | CM16: 0 | CN16: 0 | CO16: 129583.7509 | CP16: 0 | CQ16: 0 | CR16: 0 | CS16: 0 | CT16: 0 | CU16: 0 | CV16: 0 | CW16: 0 | CX16: 0 | DA16: =Rental!Y46 -> 0 | DB16: =Rental!AD46 -> 0
